{"text_format":"1","workbook":"xlsx","n_sheets":13,"sheets":["Раздел 0","Раздел 1","Раздел 2","Раздел 3","Раздел 4","Раздел 5","Раздел 6","Раздел 7","Раздел 8","Раздел 9","Раздел 10","Раздел 11","Раздел 12"],"not_rendered":{"charts":0,"images":0,"macros":1,"external_links":1,"defined_names":229,"comments":0,"pivot_tables":0},"unopened":[],"bounds":{"document_bytes":16777216,"sheet_cells":100000,"rows_first":2000,"rows_last":500,"rows_between":2000,"halvings":0,"cell_chars":16384,"cell_head_chars":4096},"cells_cut":0,"cells_raw":0,"read":"whole","date_system":"1900"}

{"sheet":"Раздел 0","index":0,"n_rows":27,"n_cols":19,"rows_kept":27,"cut":false,"hidden":false,"merged":[[7,3,7,15],[12,1,12,9],[12,10,12,11],[13,1,17,9],[13,10,17,11],[14,13,14,16],[15,13,15,16],[19,1,19,5],[19,6,19,10],[20,4,20,18],[19,11,19,13],[19,14,19,18],[25,1,25,3],[25,4,25,7],[25,8,25,11],[25,12,25,17],[26,1,26,3],[26,4,26,7],[26,8,26,11],[26,12,26,17],[0,0,0,17],[1,0,26,0],[1,4,1,14],[3,4,3,14],[5,3,5,15],[9,5,9,13],[10,5,10,13],[12,13,12,16],[13,13,13,16],[22,1,22,7],[22,8,22,11],[22,12,22,17],[23,4,23,18],[20,1,20,3],[23,1,24,3],[24,4,24,7],[24,8,24,11],[24,12,24,17],[21,1,21,7],[21,8,21,11],[21,12,21,17]]}
[]
[null,null,null,null,3]
[]
[null,null,null,null,"КОНФИДЕНЦИАЛЬНОСТЬ ГАРАНТИРУЕТСЯ ПОЛУЧАТЕЛЕМ ИНФОРМАЦИИ"]
[]
[null,null,null,"Нарушение порядка предоставления первичных статистических данных или несвоевременное предоставление этих данных,\nлибо предоставление недостоверных первичных статистических данных влечет ответственность, установленную\nКодексом Российской Федерации об административных правонарушениях"]
[]
[null,null,null,"Обязанность предоставления административных данных предусмотрена статьей 8 Федерального закона от 29 ноября 2007 г. \n№ 282-ФЗ «Об официальном статистическом учете и системе государственной статистики в Российской Федерации»"]
[]
[null,null,null,null,null,"СВЕДЕНИЯ ПО ПОДГОТОВКЕ СПОРТИВНОГО РЕЗЕРВА"]
[null,null,null,null,null,"по состоянию на 31 декабря 2023 г."]
[]
[null,"Предоставляют:",null,null,null,null,null,null,null,null,"Сроки предоставления",null,null,"Форма № 5-ФК (сводная)"]
[null,"юридические лица государственной, муниципальной и иной форм собственности (кроме субъектов малого и среднего предпринимательства) – организации, реализующие дополнительные образовательные программы спортивной подготовки или обеспечивающие подготовку спортивного резерва (спортивные школы (СШ), спортивные школы олимпийского резерва (СШОР), училища олимпийского резерва (УОР - колледжи, техникумы), центры спортивной подготовки (ЦСП), другие организации): \n – органу местного самоуправления муниципального образования (схема предоставления приведена в указаниях по заполнению формы);\n\nорганы местного самоуправления муниципального образования (схема предоставления приведена в указаниях по заполнению формы):\n– органу исполнительной власти субъекта Российской Федерации в области физической культуры и спорта;\n\nорганы исполнительной власти субъектов Российской Федерации в области физической культуры и спорта:\n – Министерству спорта Российской Федерации по установленному им адресу",null,null,null,null,null,null,null,null,"до 15 января после отчетного периода\n\n\n\n\nдо 20 января после отчетного периода\n\n\n\nдо 01 февраля после отчетного периода",null,null,"Приказ Росстата: \nОб утверждении формы \nот __________ № ___\nО внесении изменений (при наличии)  \nот  __________ № ___\nот  __________ № ___"]
[]
[null,null,null,null,null,null,null,null,null,null,null,null,null,"Годовая"]
[]
[]
[]
[null,"Наименование отчитывающейся организации",null,null,null,null,"Муниципальное бюджетное учреждение дополнительного образования \"Спортивная школа № 22\" городского округа город Уфа Республики Башкортостан",null,null,null,null,"Краткое наименование отчитывающейся организации",null,null,"МБУ ДО СШ № 22"]
[null,"Почтовый адрес",null,null,"450061, Республика Башкортостан, г. Уфа, Калининский район, ул. Первомайская,51"]
[null,"Муниципальный район",null,null,null,null,null,null,"Городской округ",null,null,null,"Муниципальный округ",null,null,null,null,null,"Сельское поселение"]
[null,null,null,null,null,null,null,null,"город Уфа"]
[null,"Код\nформы\nпо ОКУД",null,null,"Код"]
[null,null,null,null,"Отчитывающейся организации\nпо ОКПО",null,null,null,"Регистрационный номер лицензии на осуществление образовательной деятельности",null,null,null,"Код субъекта Российской Федерации",null,null,null,null,null,"Код ОКТМО"]
[null,1,null,null,2,null,null,null,3,null,null,null,4,null,null,null,null,null,5]
[null,"0609403",null,null,26794457,null,null,null,"Л035-01198-02/00657150",null,null,null,2,null,null,null,null,null,80701000001]

{"sheet":"Раздел 1","index":1,"n_rows":19,"n_cols":9,"rows_kept":19,"cut":false,"hidden":false,"merged":[[0,0,10,0],[0,9,10,9],[16,1,18,1],[16,2,18,2],[0,1,0,8],[1,1,2,1],[1,2,2,2],[1,3,2,3],[1,4,1,8],[16,3,16,6],[16,7,17,7],[17,5,17,6],[18,5,18,6]]}
[null,"Раздел I. Число организаций, единица"]
[null,"Ведомственная \nпринадлежность","№ строки","Число организаций и структурных подразделений – всего","в том числе по виду организации:"]
[null,null,null,null,"СШ","СШОР","УОР","ЦСП","Другие\nорганизации"]
[null,1,2,3,4,5,6,7,8]
[null,"Организации в ведении органов управления в сфере физической культуры и спорта","01",{"$f":"SUM(E5:I5)","v":1},1]
[null,"Обособленные структурные подразделения, реализующие дополнительные общеобразовательные программы в области физической культуры и спорта","02",{"$f":"SUM(E6:I6)","v":0}]
[null,"Организации в ведении органов управления в сфере образования","03",0]
[null,"Обособленные структурные подразделения, реализующие дополнительные общеобразовательные программы в области физической культуры и спорта","04",0]
[null,"Организации другой ведомственной принадлежности","05",0]
[null,"Обособленные структурные подразделения, реализующие дополнительные общеобразовательные программы в области физической культуры и спорта","06",0]
[null,"Частные организации (из стр. 05)","07",0]
[null,"Итого организаций","08",1,{"$f":"SUM(E5,E7,E9)","v":1},{"$f":"SUM(F5,F7,F9)","v":0},0,0,{"$f":"SUM(I5,I7,I9)","v":0}]
[null,"Итого обособленных структурных подразделений, реализующих дополнительные общеобразовательные программы в области физической культуры и спорта","09",{"$f":"SUM(E13:I13)","v":0},{"$f":"SUM(E6,E8,E10)","v":0},{"$f":"SUM(F6,F8,F10)","v":0},0,0,{"$f":"SUM(I6,I8,I10)","v":0}]
[]
[null,"ОГРН","10",1020202398127]
[]
[null,"Виды правовых образований","11","Публичные правовые образования",null,null,null,"Иные правовые образования \n(в том числе частные)"]
[null,null,null,"Российская Федерация","Субъект Российской Федерации","Муниципальное образование"]
[null,null,null,null,null,1]

{"sheet":"Раздел 2","index":2,"n_rows":283,"n_cols":24,"rows_kept":283,"cut":false,"hidden":false,"merged":[[3,0,3,23],[6,18,7,18],[6,10,6,12],[6,23,7,23],[6,20,7,20],[6,19,7,19],[5,21,5,23],[6,21,7,21],[4,3,7,3],[4,0,7,0],[4,1,7,1],[6,13,7,13],[6,5,7,5],[6,6,6,9],[5,4,7,4],[4,2,7,2],[6,14,6,17],[4,4,4,23],[5,5,5,20],[6,22,7,22]]}
[]
[]
[]
["Раздел II. Численность обучающихся и занимающихся"]
["Виды спорта","№ строки","Число отделений по видам спорта, единица","Базовый вид спорта","Число обучающихся и занимающихся на 31 декабря отчетного года, человек"]
[null,null,null,null,"Итого обучающихся и занимающихся","Обучающиеся по дополнительным общеобразовательным программам в области физической культуры и спорта",null,null,null,null,null,null,null,null,null,null,null,null,null,null,null,"Занимающихся на спортивно-оздоровительном этапе в рамках работ"]
[null,null,null,null,null,"Всего обучающихся\nпо дополнительным образовательным программам спортивной подготовки","по дополнительным образовательным программам спортивной подготовки",null,null,null,"по возрастам (из гр. 6)",null,null,"женщин (из гр. 6 и 19)","в платных группах (из гр. 6)",null,null,null,"по дополнительным общеразвивающим программам\n(спортивно-оздоровительный этап)","в платных группах (из гр. 19)","по возрасту от 5 до 17 лет (из гр. 19)","Всего на спортивно-оздоровительном этапе в рамках работ","в платных группах (из гр. 22)","по возрасту от 5 до 17 лет (из гр. 22)"]
[null,null,null,null,null,null,"начальной подготовки","учебно - тренировочный (этап спортивной специализации)","совершен-ствования спортивного мастерства","высшего спортивного мастерства","от 5 до 17 лет","от 18 до 22 лет","старше 22 лет",null,"начальной подготовки","учебно - тренировочный (этап спортивной специализации)","совершен-ствования спортивного мастерства","высшего спортивного мастерства"]
[1,2,3,4,5,6,7,8,9,10,11,12,13,14,15,16,17,18,19,20,21,22,23,24]
["Авиамодельный спорт","01",null,null,{"$f":"SUM(F10,S10,V10)*IF(C10>0,1,0)","v":0},{"$f":"SUM(G10:J10)","v":0}]
["Авиационные гонки","02",null,null,{"$f":"SUM(F11,S11,V11)*IF(C11>0,1,0)","v":0},{"$f":"SUM(G11:J11)","v":0}]
["Автомобильный спорт","03",null,null,0,0]
["Автомодельный спорт","04",null,null,0,0]
["Айкидо","05",null,null,0,0]
["Акробатический рок-н-ролл","06",null,null,0,0]
["Альпинизм","07",null,null,0,0]
["Американский футбол","08",null,null,0,0]
["Армейский рукопашный бой","09",null,null,0,0]
["Армейское тактико-стрелковое многоборье","10",null,null,0,0]
["Армрестлинг","11",null,null,0,0]
["Бадминтон","12",null,null,0,0]
["Баскетбол - всего","13",{"$f":"IF(SUM(C23:C25)>=1,1,0)","v":0},null,0,0,{"$f":"SUM(G23:G25)","v":0},{"$f":"SUM(H23:H25)","v":0},0,0,0,0,0,0,0,0,0,0,0,0,0,0,0,0]
["в том числе:\nБаскетбол (муж.)","14",null,null,0,0]
["Баскетбол (жен.)","15",null,null,0,0,null,null,null,null,null,null,null,{"$f":"SUM(F24,S24)","v":0}]
["Баскетбол 3х3","16",null,null,0,0]
["Бейсбол","17",null,null,0,0]
["Биатлон","18",null,null,0,0]
["Бильярдный спорт","19",null,null,0,0]
["Бобслей - всего","20",{"$f":"IF(SUM(C30:C31)>=1,1,0)","v":0},null,0,0,{"$f":"SUM(G30:G31)","v":0},{"$f":"SUM(H30:H31)","v":0},0,0,0,0,0,0,0,0,0,0,0,0,0,0,0,0]
["в том числе:\nБобслей","21",null,null,0,0]
["Скелетон","22",null,null,0,0]
["Бодибилдинг","23",null,null,0,0]
["Бокс","24",null,null,0,0]
["Борьба на поясах","25",null,null,0,0]
["Боулинг","26",null,null,0,0]
["Боулспорт","27",null,null,0,0]
["Велосипедный спорт - всего","28",{"$f":"IF(SUM(C38:C41)>=1,1,0)","v":0},null,0,0,{"$f":"SUM(G38:G41)","v":0},{"$f":"SUM(H38:H41)","v":0},0,0,0,0,0,0,0,0,0,0,0,0,0,0,0,0]
["в том числе:\nBMX","29",null,null,0,0]
["Маунтинбайк","30",null,null,0,0]
["Трек","31",null,null,0,0]
["Шоссе","32",null,null,0,0]
["Вертолетный спорт","33",null,null,0,0]
["Водно-моторный спорт","34",null,null,0,0]
["Водно-спасательное многоборье","35",null,null,0,0]
["Водное поло - всего ","36",{"$f":"IF(SUM(C46:C47)>=1,1,0)","v":0},null,0,0,{"$f":"SUM(G46:G47)","v":0},{"$f":"SUM(H46:H47)","v":0},0,0,0,0,0,0,0,0,0,0,0,0,0,0,0,0]
["в том числе:\nВодное поло (муж.)","37",null,null,0,0]
["Водное поло (жен.)","38",null,null,0,0,null,null,null,null,null,null,null,{"$f":"SUM(F47,S47)","v":0}]
["Воднолыжный спорт","39",null,null,0,0]
["Военно-прикладной спорт","40",null,null,0,0]
["Военно-спортивное многоборье","41",null,null,0,0]
["Воздухоплавательный спорт","42",null,null,0,0]
["Воздушно-силовая атлетика","43",null,null,0,0]
["Волейбол - всего","44",{"$f":"IF(SUM(C54:C57)>=1,1,0)","v":0},null,0,0,{"$f":"SUM(G54:G57)","v":0},{"$f":"SUM(H54:H57)","v":0},0,0,0,0,0,0,0,0,0,0,0,0,0,0,0,0]
["в том числе:\nВолейбол (муж.)","45",null,null,0,0]
["Волейбол (жен.)","46",null,null,0,0,null,null,null,null,null,null,null,{"$f":"SUM(F55,S55)","v":0}]
["Пляжный волейбол (муж.)","47",null,null,0,0]
["Пляжный волейбол (жен.)","48",null,null,0,0,null,null,null,null,null,null,null,{"$f":"SUM(F57,S57)","v":0}]
["Восточное боевое единоборство","49",null,null,0,0]
["Всестилевое каратэ","50",null,null,0,0]
["Гандбол - всего","51",{"$f":"IF(SUM(C61:C63)>=1,1,0)","v":0},null,0,0,{"$f":"SUM(G61:G63)","v":0},{"$f":"SUM(H61:H63)","v":0},0,0,0,0,0,0,0,0,0,0,0,0,0,0,0,0]
["в том числе:\nГандбол (муж.)","52",null,null,0,0]
["Гандбол (жен.)","53",null,null,0,0,null,null,null,null,null,null,null,{"$f":"SUM(F62,S62)","v":0}]
["Пляжный гандбол","54",null,null,0,0]
["Гиревой спорт","55",null,null,0,0]
["Го","56",null,null,0,0]
["Гольф","57",null,null,0,0]
["Гонки на охотничьих лыжах","58",null,null,0,0]
["Гонки с препятствиями","59",null,null,0,0]
["Горнолыжный спорт","60",null,null,0,0]
["Городошный спорт","61",null,null,0,0]
["Гребля на байдарках и каноэ","62",null,null,0,0]
["Гребля на шлюпках","63",null,null,0,0]
["Гребной слалом","64",null,null,0,0]
["Гребной спорт - всего","65",{"$f":"IF(SUM(C75:C78)>=1,1,0)","v":0},null,0,0,{"$f":"SUM(G75:G78)","v":0},{"$f":"SUM(H75:H78)","v":0},0,0,0,0,0,0,0,0,0,0,0,0,0,0,0,0]
["в том числе:\nАкадемическая гребля","66",null,null,{"$f":"SUM(F75,S75,V75)*IF(C75>0,1,0)","v":0},{"$f":"SUM(G75:J75)","v":0}]
["Гребля-индор","67",null,null,0,0]
["Народная гребля","68",null,null,0,0]
["Прибрежная гребля","69",null,null,0,0]
["Гребно-парусное двоеборье","70",null,null,0,0]
["Дартс","71",null,null,0,0]
["Джиу-джитсу","72",null,null,0,0]
["Дзюдо","73",1,null,215,209,136,73,null,null,206,3,null,41,null,null,null,null,null,null,null,6,6,6]
["Ездовой спорт","74",null,null,0,0]
["Зимнее плавание","75",null,null,0,0]
["Капоэйра","76",null,null,0,0]
["Каратэ","77",null,null,0,0]
["Кендо","78",null,null,0,0]
["Керешу","79",null,null,0,0]
["Кёрлинг - всего","80",{"$f":"IF(SUM(C90:C92)>=1,1,0)","v":0},null,0,0,{"$f":"SUM(G90:G92)","v":0},{"$f":"SUM(H90:H92)","v":0},0,0,0,0,0,0,0,0,0,0,0,0,0,0,0,0]
["в том числе:\nКёрлинг (муж.)","81",null,null,0,0]
["Кёрлинг (жен.)","82",null,null,0,0,null,null,null,null,null,null,null,{"$f":"SUM(F91,S91)","v":0}]
["Кёрлинг – смешанные пары","83",null,null,0,0]
["Кикбоксинг","84",1,null,82,62,30,24,8,null,50,11,1,11,null,null,null,null,null,null,null,20,20,20]
["Кинологический спорт","85",null,null,0,0]
["Киокусинкай","86",null,null,0,0]
["Киокушин","87",null,null,0,0]
["Комплексное единоборство","88",null,null,0,0]
["Компьютерный спорт","89",null,null,0,0]
["Конный спорт","90",null,null,0,0]
["Конькобежный спорт - всего","91",{"$f":"IF(SUM(C101:C102)>=1,1,0)","v":0},null,0,0,{"$f":"SUM(G101:G102)","v":0},{"$f":"SUM(H101:H102)","v":0},0,0,0,0,0,0,0,0,0,0,0,0,0,0,0,0]
["в том числе:\nКонькобежный спорт","92",null,null,0,0]
["Шорт-трек","93",null,null,0,0]
["Корэш","94",null,null,0,0]
["Крикет","95",null,null,0,0]
["Кудо","96",null,null,0,0]
["Лапта","97",null,null,0,0]
["Легкая атлетика - всего","98",{"$f":"IF(SUM(C108:C114)>=1,1,0)","v":0},null,0,0,{"$f":"SUM(G108:G114)","v":0},{"$f":"SUM(H108:H114)","v":0},0,0,0,0,0,0,0,0,0,0,0,0,0,0,0,0]
["в том числе:\nСпринтерский и барьерный бег","99",null,null,0,0]
["Бег на средние дистанции и бег с препятствиями","100",null,null,0,0]
["Бег на длинные и сверхдлинные дистанции","101",null,null,0,0]
["Многоборья","102",null,null,0,0]
["Прыжки","103",null,null,0,0]
["Метания","104",null,null,0,0]
["Спортивная ходьба","105",null,null,0,0]
["Лыжное двоеборье","106",null,null,0,0]
["Лыжные гонки","107",null,null,0,0]
["Мас-рестлинг","108",null,null,0,0]
["Международное военно-спортивное многоборье","109",null,null,0,0]
["Микрофутзал","110",null,null,0,0]
["Многоборье кинологов","111",null,null,0,0]
["Многоборье спасателей МЧС России","112",null,null,0,0]
["Морское многоборье","113",null,null,0,0]
["Мотоциклетный спорт","114",null,null,0,0]
["Муайтай","115",null,null,0,0]
["Нарды","116",null,null,0,0]
["Настольный теннис","117",null,null,0,0]
["Падел","118",null,null,0,0]
["Парашютный спорт","119",null,null,0,0]
["Парусный спорт","120",null,null,0,0]
["Пауэрлифтинг","121",1,null,94,84,36,40,8,null,44,34,6,20,null,null,null,null,null,null,null,10,10,10]
["Перетягивание каната","122",null,null,0,0]
["Пилонный спорт","123",null,null,0,0]
["Плавание - всего","124",{"$f":"IF(SUM(C134:C135)>=1,1,0)","v":0},null,0,0,{"$f":"SUM(G134:G135)","v":0},{"$f":"SUM(H134:H135)","v":0},0,0,0,0,0,0,0,0,0,0,0,0,0,0,0,0]
["в том числе:\nПлавание ","125",null,null,0,0]
["Открытая вода","126",null,null,0,0]
["Планерный спорт","127",null,null,0,0]
["Подводный спорт","128",null,null,0,0]
["Пожарно-спасательный спорт","129",null,null,0,0]
["Полиатлон","130",null,null,{"$f":"SUM(F139,S139,V139)*IF(C139>0,1,0)","v":0},{"$f":"SUM(G139:J139)","v":0}]
["Практическая стрельба","131",null,null,0,0]
["Прыжки в воду - всего","132",{"$f":"IF(SUM(C142:C143)>=1,1,0)","v":0},null,0,0,{"$f":"SUM(G142:G143)","v":0},{"$f":"SUM(H142:H143)","v":0},0,0,0,0,0,0,0,0,0,0,0,0,0,0,0,0]
["в том числе:\nПрыжки в воду","133",null,null,0,0]
["Прыжки в открытый водоем","134",null,null,0,0]
["Прыжки на батуте - всего","135",{"$f":"IF(SUM(C145:C148)>=1,1,0)","v":0},null,0,0,{"$f":"SUM(G145:G148)","v":0},{"$f":"SUM(H145:H148)","v":0},0,0,0,0,0,0,0,0,0,0,0,0,0,0,0,0]
["в том числе:\nАкробатическая дорожка","136",null,null,0,0]
["Двойной минитрамп","137",null,null,0,0]
["Индивидуальные прыжки","138",null,null,0,0]
["Синхронные прыжки","139",null,null,0,0]
["Прыжки на лыжах с трамплина","140",null,null,0,0]
["Пулевая стрельба - всего","141",{"$f":"IF(SUM(C151:C155)>=1,1,0)","v":0},null,0,0,{"$f":"SUM(G151:G155)","v":0},{"$f":"SUM(H151:H155)","v":0},0,0,0,0,0,0,0,0,0,0,0,0,0,0,0,0]
["в том числе:\nПневматическая винтовка","142",null,null,0,0]
["Пневматический пистолет","143",null,null,0,0]
["Малокалиберная винтовка","144",null,null,0,0]
["Малокалиберный пистолет","145",null,null,0,0]
["Движущаяся мишень","146",null,null,0,0]
["Пэйнтбол","147",null,null,0,0]
["Радиоспорт","148",null,null,0,0]
["Рафтинг","149",null,null,0,0]
["Регби - всего","150",{"$f":"IF(SUM(C160:C164)>=1,1,0)","v":0},null,0,0,{"$f":"SUM(G160:G164)","v":0},{"$f":"SUM(H160:H164)","v":0},0,0,0,0,0,0,0,0,0,0,0,0,0,0,0,0]
["в том числе:\nРегби","151",null,null,0,0]
["Регби 7 (муж.)","152",null,null,0,0]
["Регби 7 (жен.)","153",null,null,0,0,null,null,null,null,null,null,null,{"$f":"SUM(F162,S162)","v":0}]
["Регби - пляжное","154",null,null,0,0]
["Регби на снегу","155",null,null,0,0]
["Регбол","156",null,null,0,0]
["Роллер спорт","157",null,null,0,0]
["Роуп скиппинг (спортивная скакалка)","158",null,null,0,0]
["Рукопашный бой","159",null,null,0,0]
["Рыболовный спорт","160",null,null,0,0]
["Сават","161",null,null,0,0]
["Самбо","162",null,null,0,0]
["Самолетный спорт","163",null,null,0,0]
["Санный спорт","164",null,null,0,0]
["Северное многоборье","165",null,null,0,0]
["Серфинг","166",null,null,0,0]
["Силовой экстрим","167",null,null,0,0]
["Синхронное плавание","168",null,null,0,0]
["Скалолазание","169",null,null,0,0]
["Сквош","170",null,null,0,0]
["Скейтбординг","171",null,null,0,0]
["Служебно-боевая стрельба ","172",null,null,0,0]
["Служебно-прикладной спорт","173",null,null,0,0]
["Служебно-прикладной спорт ФСО России","174",null,null,0,0]
["Служебно-прикладной спорт ФТС России","175",null,null,0,0]
["Служебное двоеборье","176",null,null,0,0]
["Служебное единоборство","177",null,null,0,0]
["Служебное многоборье","178",null,null,0,0]
["Служебный биатлон","179",null,null,0,0]
["Спасательный спорт","180",null,null,0,0]
["Стрельба из боевого ручного стрелкового оружия","181",null,null,0,0]
["Стрельба из штатного или табельного оружия","182",null,null,0,0]
["Стрельба на дальние дистанции","183",null,null,0,0]
["Смешанное боевое единоборство (ММА)","184",null,null,0,0]
["Сноуборд","185",null,null,0,0]
["Современное пятиборье","186",null,null,0,0]
["Софтбол","187",null,null,0,0]
["Спорт сверхлегкой авиации","188",null,null,0,0]
["Спортивная акробатика","189",1,null,61,61,34,11,16,null,58,3,null,49]
["Спортивная аэробика","190",null,null,0,0]
["Спортивная борьба - всего","191",{"$f":"IF(SUM(C201:C205)>=1,1,0)","v":0},null,0,0,{"$f":"SUM(G201:G205)","v":0},{"$f":"SUM(H201:H205)","v":0},0,0,0,0,0,0,0,0,0,0,0,0,0,0,0,0]
["в том числе:\nВольная борьба","192",null,null,0,0]
["Греко-римская борьба","193",null,null,0,0]
["Грэпплинг","194",null,null,{"$f":"SUM(F203,S203,V203)*IF(C203>0,1,0)","v":0},{"$f":"SUM(G203:J203)","v":0}]
["Грэпплинг-ги","195",null,null,0,0]
["Панкратион","196",null,null,0,0]
["Спортивная гимнастика","197",null,null,0,0]
["Спортивная йога","198",null,null,0,0]
["Спортивно-прикладное собаководство","199",null,null,0,0]
["Спортивное программирование","200",null,null,0,0]
["Спортивное метание ножа","201",null,null,0,0]
["Спортивное ориентирование","202",null,null,0,0]
["Спортивный бридж","203",null,null,0,0]
["Спортивный туризм","204",null,null,0,0]
["Стендовая стрельба - всего","205",{"$f":"IF(SUM(C215:C218)>=1,1,0)","v":0},null,0,0,{"$f":"SUM(G215:G218)","v":0},{"$f":"SUM(H215:H218)","v":0},0,0,0,0,0,0,0,0,0,0,0,0,0,0,0,0]
["в том числе:\nТрап","206",null,null,0,0]
["Скит","207",null,null,0,0]
["Дубль-трап","208",null,null,0,0]
["Спортинг","209",null,null,0,0]
["Страйкбол","210",null,null,0,0]
["Стрельба из арбалета","211",null,null,0,0]
["Стрельба из лука - всего","212",{"$f":"IF(SUM(C222:C224)>=1,1,0)","v":0},null,0,0,{"$f":"SUM(G222:G224)","v":0},{"$f":"SUM(H222:H224)","v":0},0,0,0,0,0,0,0,0,0,0,0,0,0,0,0,0]
["в том числе:\nКлассический лук","213",null,null,0,0]
["   Блочный лук","214",null,null,0,0]
["   Ачери ","215",null,null,0,0]
["Судомодельный спорт","216",null,null,0,0]
["Сумо","217",null,null,0,0]
["Таврели","218",null,null,0,0]
["Танцевальный спорт - всего","219",{"$f":"IF(SUM(C229:C230)>=1,1,0)","v":0},null,0,0,{"$f":"SUM(G229:G230)","v":0},{"$f":"SUM(H229:H230)","v":0},0,0,0,0,0,0,0,0,0,0,0,0,0,0,0,0]
["в том числе:\nТанцевальный спорт","220",null,null,0,0]
["Брейкинг","221",null,null,0,0]
["Теннис","222",null,null,0,0]
["Триатлон","223",null,null,0,0]
["Тхэквондо (ВТФ)","224",1,null,91,91,30,61,null,null,90,1,null,22]
["Тхэквондо ГТФ","225",null,null,0,0]
["Тхэквондо ИТФ","226",null,null,0,0]
["Тхэквондо МФТ","227",null,null,0,0]
["Тяжелая атлетика","228",null,null,0,0]
["Универсальный бой","229",null,null,0,0]
["Ушу","230",null,null,0,0]
["Фехтование - всего","231",{"$f":"IF(SUM(C241:C244)>=1,1,0)","v":0},null,0,0,{"$f":"SUM(G241:G244)","v":0},{"$f":"SUM(H241:H244)","v":0},0,0,0,0,0,0,0,0,0,0,0,0,0,0,0,0]
["в том числе:\nРапира","232",null,null,0,0]
["Сабля","233",null,null,0,0]
["Шпага","234",null,null,0,0]
["Арт-фехтование","235",null,null,0,0]
["Фигурное катание на коньках","236",null,null,0,0]
["Фиджитал спорт (функционально-цифровй спорт)","237",null,null,0,0]
["Фитнес-аэробика","238",null,null,0,0]
["Флаинг диск","239",null,null,0,0]
["Флорбол","240",null,null,0,0]
["Фристайл - всего","241",{"$f":"IF(SUM(C251:C256)>=1,1,0)","v":0},null,0,0,{"$f":"SUM(G251:G256)","v":0},{"$f":"SUM(H251:H256)","v":0},0,0,0,0,0,0,0,0,0,0,0,0,0,0,0,0]
["в том числе:\nАкробатика","242",null,null,0,0]
["Биг-эйр","243",null,null,0,0]
["Могул","244",null,null,0,0]
["Ски-кросс","245",null,null,0,0]
["Хаф-пайп","246",null,null,0,0]
["Слоуп-стайл","247",null,null,0,0]
["Функциональное многоборье","248",null,null,0,0]
["Футбол - всего","249",{"$f":"IF(SUM(C259:C264)>=1,1,0)","v":0},null,0,0,{"$f":"SUM(G259:G264)","v":0},{"$f":"SUM(H259:H264)","v":0},0,0,0,0,0,0,0,0,0,0,0,0,0,0,0,0]
["в том числе:\nФутбол (муж.)","250",null,null,0,0]
["Футбол (жен.)","251",null,null,0,0,null,null,null,null,null,null,null,{"$f":"SUM(F260,S260)","v":0}]
["Мини-футбол (футзал)","252",null,null,0,0]
["Пляжный футбол","253",null,null,0,0]
["Футбол 6х6, 7х7, 8х8","254",null,null,0,0]
["Интерактивный футбол","255",null,null,0,0]
["Хапкидо","256",null,null,0,0]
["Хапсагай","257",null,null,0,0]
["Хоккей - всего","258",{"$f":"IF(SUM(C268:C269)>=1,1,0)","v":0},null,{"$f":"SUM(F267,S267,V267)*IF(C267>0,1,0)","v":0},{"$f":"SUM(G267:J267)","v":0},{"$f":"SUM(G268:G269)","v":0},{"$f":"SUM(H268:H269)","v":0},0,0,0,0,0,0,0,0,0,0,0,0,0,0,0,0]
["в том числе:\nХоккей (муж.)","259",null,null,0,0]
["Хоккей (жен.)","260",null,null,0,0,null,null,null,null,null,null,null,{"$f":"SUM(F269,S269)","v":0}]
["Хоккей на траве - всего","261",{"$f":"IF(SUM(C271:C273)>=1,1,0)","v":0},null,0,0,{"$f":"SUM(G271:G273)","v":0},{"$f":"SUM(H271:H273)","v":0},0,0,0,0,0,0,0,0,0,0,0,0,0,0,0,0]
["в том числе:\nХоккей на траве (муж.)","262",null,null,0,0]
["Хоккей на траве (жен.)","263",null,null,0,0,null,null,null,null,null,null,null,{"$f":"SUM(F272,S272)","v":0}]
["Индорхоккей","264",null,null,0,0]
["Хоккей с мячом","265",null,null,0,0]
["Художественная гимнастика","266",null,null,0,0]
["Хуреш","267",null,null,0,0]
["Чир спорт","268",null,null,0,0]
["Шахматы","269",null,null,0,0]
["Шашки","270",null,null,0,0]
["Шодсанлат","271",null,null,0,0]
["Эстетическая гимнастика","272",null,null,0,0]
["Якутские национальные прыжки","273",null,null,0,0]
["ИТОГО","274",{"$f":"SUM(C10:C22,C26:C29,C32:C37,C48:C53,C58:C60,C42:C45,C64:C74,C79:C89,C93:C100,C103:C107,C115:C119,C120:C133,C136:C141,C144,C149:C150,C156:C159,C165:C166,C167:C181,C182:C200,C206:C211,C212:C214,C219:C221,C225:C228,C231:C240,C245:C250,C257:C258,C265:C267,C270,C274:C282)","v":5},null,{"$f":"SUM(E10:E22,E26:E29,E32:E37,E48:E53,E58:E60,E42:E45,E64:E74,E79:E89,E93:E100,E103:E107,E115:E119,E120:E133,E136:E141,E144,E149:E150,E156:E159,E165:E166,E167:E181,E182:E200,E206:E211,E212:E214,E219:E221,E225:E228,E231:E240,E245:E250,E257:E258,E265:E267,E270,E274:E282)","v":543},507,266,209,32,0,448,52,7,143,0,0,0,0,0,0,0,36,36,36]

{"sheet":"Раздел 3","index":3,"n_rows":283,"n_cols":33,"rows_kept":283,"cut":false,"hidden":false,"merged":[[3,0,3,30],[4,0,7,0],[4,1,7,1],[4,2,4,20],[4,21,4,25],[4,26,4,30],[5,2,7,2],[5,21,7,21],[5,26,7,26],[6,3,6,5],[6,6,6,10],[6,11,6,15],[6,16,6,20],[5,3,5,20],[5,22,6,25],[5,27,6,30]]}
[]
[]
[]
["Раздел III. Численность обучающихся по дополнительным образовательным программам спортивной подготовки, человек"]
["Виды спорта","№ строки","Число обучающихся по дополнительным образовательным программам спортивной подготовки на 31 декабря отчетного года (из гр.6 раздела II)",null,null,null,null,null,null,null,null,null,null,null,null,null,null,null,null,null,null,"Число обучающихся, зачисленных на дополнительные образовательные программы \nспортивной подготовки в отчетном году",null,null,null,null,"Число обучающихся, отчисленных с дополнительных образовательных программ \nспортивной подготовки в отчетном году"]
[null,null,"всего","в том числе по этапам и годам подготовки",null,null,null,null,null,null,null,null,null,null,null,null,null,null,null,null,null,"всего","в том числе по этапам подготовки",null,null,null,"всего","в том числе по этапам подготовки"]
[null,null,null,"начальной подготовки",null,null,"учебно-тренировочный (этап спортивной специализации)",null,null,null,null,"совершенствования спортивного мастерства",null,null,null,null,"высшего спортивного мастерства"]
[null,null,null,1,2,"более 2",1,2,3,4,5,1,2,3,4,"более 4",1,2,3,4,"более 4",null,"начальной подготовки","учебно-тренировочный (этап спортивной специализации)","совершен-ствования спортивного мастерства","высшего спортивного мастерства",null,"начальной подготовки","учебно-тренировочный (этап спортивной специализации)","совершен-ствования спортивного мастерства","высшего спортивного мастерства"]
[1,2,3,4,5,6,7,8,9,10,11,12,13,14,15,16,17,18,19,20,21,22,23,24,25,26,27,28,29,30,31,null,"2р"]
["Авиамодельный спорт","01",{"$f":"SUM(D10:U10)","v":0},null,null,null,null,null,null,null,null,null,null,null,null,null,null,null,null,null,null,{"$f":"SUM(W10:Z10)","v":0},null,null,null,null,{"$f":"SUM(AB10:AE10)","v":0},null,null,null,null,null,{"$f":"'Раздел 2'!C10","v":0}]
["Авиационные гонки","02",{"$f":"SUM(D11:U11)","v":0},null,null,null,null,null,null,null,null,null,null,null,null,null,null,null,null,null,null,{"$f":"SUM(W11:Z11)","v":0},null,null,null,null,{"$f":"SUM(AB11:AE11)","v":0},null,null,null,null,null,{"$f":"'Раздел 2'!C11","v":0}]
["Автомобильный спорт","03",0,null,null,null,null,null,null,null,null,null,null,null,null,null,null,null,null,null,null,0,null,null,null,null,0,null,null,null,null,null,{"$f":"'Раздел 2'!C12","v":0}]
["Автомодельный спорт","04",0,null,null,null,null,null,null,null,null,null,null,null,null,null,null,null,null,null,null,0,null,null,null,null,0,null,null,null,null,null,{"$f":"'Раздел 2'!C13","v":0}]
["Айкидо","05",0,null,null,null,null,null,null,null,null,null,null,null,null,null,null,null,null,null,null,0,null,null,null,null,0,null,null,null,null,null,{"$f":"'Раздел 2'!C14","v":0}]
["Акробатический рок-н-ролл","06",0,null,null,null,null,null,null,null,null,null,null,null,null,null,null,null,null,null,null,0,null,null,null,null,0,null,null,null,null,null,{"$f":"'Раздел 2'!C15","v":0}]
["Альпинизм","07",0,null,null,null,null,null,null,null,null,null,null,null,null,null,null,null,null,null,null,0,null,null,null,null,0,null,null,null,null,null,{"$f":"'Раздел 2'!C16","v":0}]
["Американский футбол","08",0,null,null,null,null,null,null,null,null,null,null,null,null,null,null,null,null,null,null,0,null,null,null,null,0,null,null,null,null,null,{"$f":"'Раздел 2'!C17","v":0}]
["Армейский рукопашный бой","09",0,null,null,null,null,null,null,null,null,null,null,null,null,null,null,null,null,null,null,0,null,null,null,null,0,null,null,null,null,null,{"$f":"'Раздел 2'!C18","v":0}]
["Армейское тактико-стрелковое многоборье","10",0,null,null,null,null,null,null,null,null,null,null,null,null,null,null,null,null,null,null,0,null,null,null,null,0,null,null,null,null,null,{"$f":"'Раздел 2'!C19","v":0}]
["Армрестлинг","11",0,null,null,null,null,null,null,null,null,null,null,null,null,null,null,null,null,null,null,0,null,null,null,null,0,null,null,null,null,null,{"$f":"'Раздел 2'!C20","v":0}]
["Бадминтон","12",0,null,null,null,null,null,null,null,null,null,null,null,null,null,null,null,null,null,null,0,null,null,null,null,0,null,null,null,null,null,{"$f":"'Раздел 2'!C21","v":0}]
["Баскетбол - всего","13",0,{"$f":"SUM(D23:D25)","v":0},{"$f":"SUM(E23:E25)","v":0},0,0,0,0,0,0,0,0,0,0,0,0,0,0,0,0,0,0,0,0,0,0,0,0,0,0,null,{"$f":"'Раздел 2'!C22","v":0}]
["в том числе:\nБаскетбол (муж.)","14",0,null,null,null,null,null,null,null,null,null,null,null,null,null,null,null,null,null,null,0,null,null,null,null,0,null,null,null,null,null,{"$f":"'Раздел 2'!C23","v":0}]
["Баскетбол (жен.)","15",0,null,null,null,null,null,null,null,null,null,null,null,null,null,null,null,null,null,null,0,null,null,null,null,0,null,null,null,null,null,{"$f":"'Раздел 2'!C24","v":0}]
["Баскетбол 3х3","16",0,null,null,null,null,null,null,null,null,null,null,null,null,null,null,null,null,null,null,0,null,null,null,null,0,null,null,null,null,null,{"$f":"'Раздел 2'!C25","v":0}]
["Бейсбол","17",0,null,null,null,null,null,null,null,null,null,null,null,null,null,null,null,null,null,null,0,null,null,null,null,0,null,null,null,null,null,{"$f":"'Раздел 2'!C26","v":0}]
["Биатлон","18",0,null,null,null,null,null,null,null,null,null,null,null,null,null,null,null,null,null,null,0,null,null,null,null,0,null,null,null,null,null,{"$f":"'Раздел 2'!C27","v":0}]
["Бильярдный спорт","19",0,null,null,null,null,null,null,null,null,null,null,null,null,null,null,null,null,null,null,0,null,null,null,null,0,null,null,null,null,null,{"$f":"'Раздел 2'!C28","v":0}]
["Бобслей - всего","20",0,{"$f":"SUM(D30:D31)","v":0},{"$f":"SUM(E30:E31)","v":0},0,0,0,0,0,0,0,0,0,0,0,0,0,0,0,0,0,0,0,0,0,0,0,0,0,0,null,{"$f":"'Раздел 2'!C29","v":0}]
["в том числе:\nБобслей","21",0,null,null,null,null,null,null,null,null,null,null,null,null,null,null,null,null,null,null,0,null,null,null,null,0,null,null,null,null,null,{"$f":"'Раздел 2'!C30","v":0}]
["Скелетон","22",0,null,null,null,null,null,null,null,null,null,null,null,null,null,null,null,null,null,null,0,null,null,null,null,0,null,null,null,null,null,{"$f":"'Раздел 2'!C31","v":0}]
["Бодибилдинг","23",0,null,null,null,null,null,null,null,null,null,null,null,null,null,null,null,null,null,null,0,null,null,null,null,0,null,null,null,null,null,{"$f":"'Раздел 2'!C32","v":0}]
["Бокс","24",0,null,null,null,null,null,null,null,null,null,null,null,null,null,null,null,null,null,null,0,null,null,null,null,0,null,null,null,null,null,{"$f":"'Раздел 2'!C33","v":0}]
["Борьба на поясах","25",0,null,null,null,null,null,null,null,null,null,null,null,null,null,null,null,null,null,null,0,null,null,null,null,0,null,null,null,null,null,{"$f":"'Раздел 2'!C34","v":0}]
["Боулинг","26",0,null,null,null,null,null,null,null,null,null,null,null,null,null,null,null,null,null,null,0,null,null,null,null,0,null,null,null,null,null,{"$f":"'Раздел 2'!C35","v":0}]
["Боулспорт","27",0,null,null,null,null,null,null,null,null,null,null,null,null,null,null,null,null,null,null,0,null,null,null,null,0,null,null,null,null,null,{"$f":"'Раздел 2'!C36","v":0}]
["Велосипедный спорт - всего","28",0,{"$f":"SUM(D38:D41)","v":0},{"$f":"SUM(E38:E41)","v":0},0,0,0,0,0,0,0,0,0,0,0,0,0,0,0,0,0,0,0,0,0,0,0,0,0,0,null,{"$f":"'Раздел 2'!C37","v":0}]
["в том числе:\nBMX","29",0,null,null,null,null,null,null,null,null,null,null,null,null,null,null,null,null,null,null,0,null,null,null,null,0,null,null,null,null,null,{"$f":"'Раздел 2'!C38","v":0}]
["Маунтинбайк","30",0,null,null,null,null,null,null,null,null,null,null,null,null,null,null,null,null,null,null,0,null,null,null,null,0,null,null,null,null,null,{"$f":"'Раздел 2'!C39","v":0}]
["Трек","31",0,null,null,null,null,null,null,null,null,null,null,null,null,null,null,null,null,null,null,0,null,null,null,null,0,null,null,null,null,null,{"$f":"'Раздел 2'!C40","v":0}]
["Шоссе","32",0,null,null,null,null,null,null,null,null,null,null,null,null,null,null,null,null,null,null,0,null,null,null,null,0,null,null,null,null,null,{"$f":"'Раздел 2'!C41","v":0}]
["Вертолетный спорт","33",0,null,null,null,null,null,null,null,null,null,null,null,null,null,null,null,null,null,null,0,null,null,null,null,0,null,null,null,null,null,{"$f":"'Раздел 2'!C42","v":0}]
["Водно-моторный спорт","34",0,null,null,null,null,null,null,null,null,null,null,null,null,null,null,null,null,null,null,0,null,null,null,null,0,null,null,null,null,null,{"$f":"'Раздел 2'!C43","v":0}]
["Водно-спасательное многоборье","35",0,null,null,null,null,null,null,null,null,null,null,null,null,null,null,null,null,null,null,0,null,null,null,null,0,null,null,null,null,null,{"$f":"'Раздел 2'!C44","v":0}]
["Водное поло - всего ","36",0,{"$f":"SUM(D46:D47)","v":0},{"$f":"SUM(E46:E47)","v":0},0,0,0,0,0,0,0,0,0,0,0,0,0,0,0,0,0,0,0,0,0,0,0,0,0,0,null,{"$f":"'Раздел 2'!C45","v":0}]
["в том числе:\nВодное поло (муж.)","37",0,null,null,null,null,null,null,null,null,null,null,null,null,null,null,null,null,null,null,0,null,null,null,null,0,null,null,null,null,null,{"$f":"'Раздел 2'!C46","v":0}]
["Водное поло (жен.)","38",0,null,null,null,null,null,null,null,null,null,null,null,null,null,null,null,null,null,null,0,null,null,null,null,0,null,null,null,null,null,{"$f":"'Раздел 2'!C47","v":0}]
["Воднолыжный спорт","39",0,null,null,null,null,null,null,null,null,null,null,null,null,null,null,null,null,null,null,0,null,null,null,null,0,null,null,null,null,null,{"$f":"'Раздел 2'!C48","v":0}]
["Военно-прикладной спорт","40",0,null,null,null,null,null,null,null,null,null,null,null,null,null,null,null,null,null,null,0,null,null,null,null,0,null,null,null,null,null,{"$f":"'Раздел 2'!C49","v":0}]
["Военно-спортивное многоборье","41",0,null,null,null,null,null,null,null,null,null,null,null,null,null,null,null,null,null,null,0,null,null,null,null,0,null,null,null,null,null,{"$f":"'Раздел 2'!C50","v":0}]
["Воздухоплавательный спорт","42",0,null,null,null,null,null,null,null,null,null,null,null,null,null,null,null,null,null,null,0,null,null,null,null,0,null,null,null,null,null,{"$f":"'Раздел 2'!C51","v":0}]
["Воздушно-силовая атлетика","43",0,null,null,null,null,null,null,null,null,null,null,null,null,null,null,null,null,null,null,0,null,null,null,null,0,null,null,null,null,null,{"$f":"'Раздел 2'!C52","v":0}]
["Волейбол - всего","44",0,{"$f":"SUM(D54:D57)","v":0},{"$f":"SUM(E54:E57)","v":0},0,0,0,0,0,0,0,0,0,0,0,0,0,0,0,0,0,0,0,0,0,0,0,0,0,0,null,{"$f":"'Раздел 2'!C53","v":0}]
["в том числе:\nВолейбол (муж.)","45",0,null,null,null,null,null,null,null,null,null,null,null,null,null,null,null,null,null,null,0,null,null,null,null,0,null,null,null,null,null,{"$f":"'Раздел 2'!C54","v":0}]
["Волейбол (жен.)","46",0,null,null,null,null,null,null,null,null,null,null,null,null,null,null,null,null,null,null,0,null,null,null,null,0,null,null,null,null,null,{"$f":"'Раздел 2'!C55","v":0}]
["Пляжный волейбол (муж.)","47",0,null,null,null,null,null,null,null,null,null,null,null,null,null,null,null,null,null,null,0,null,null,null,null,0,null,null,null,null,null,{"$f":"'Раздел 2'!C56","v":0}]
["Пляжный волейбол (жен.)","48",0,null,null,null,null,null,null,null,null,null,null,null,null,null,null,null,null,null,null,0,null,null,null,null,0,null,null,null,null,null,{"$f":"'Раздел 2'!C57","v":0}]
["Восточное боевое единоборство","49",0,null,null,null,null,null,null,null,null,null,null,null,null,null,null,null,null,null,null,0,null,null,null,null,0,null,null,null,null,null,{"$f":"'Раздел 2'!C58","v":0}]
["Всестилевое каратэ","50",0,null,null,null,null,null,null,null,null,null,null,null,null,null,null,null,null,null,null,0,null,null,null,null,0,null,null,null,null,null,{"$f":"'Раздел 2'!C59","v":0}]
["Гандбол - всего","51",0,{"$f":"SUM(D61:D63)","v":0},{"$f":"SUM(E61:E63)","v":0},0,0,0,0,0,0,0,0,0,0,0,0,0,0,0,0,0,0,0,0,0,0,0,0,0,0,null,{"$f":"'Раздел 2'!C60","v":0}]
["в том числе:\nГандбол (муж.)","52",0,null,null,null,null,null,null,null,null,null,null,null,null,null,null,null,null,null,null,0,null,null,null,null,0,null,null,null,null,null,{"$f":"'Раздел 2'!C61","v":0}]
["Гандбол (жен.)","53",0,null,null,null,null,null,null,null,null,null,null,null,null,null,null,null,null,null,null,0,null,null,null,null,0,null,null,null,null,null,{"$f":"'Раздел 2'!C62","v":0}]
["Пляжный гандбол","54",0,null,null,null,null,null,null,null,null,null,null,null,null,null,null,null,null,null,null,0,null,null,null,null,0,null,null,null,null,null,{"$f":"'Раздел 2'!C63","v":0}]
["Гиревой спорт","55",0,null,null,null,null,null,null,null,null,null,null,null,null,null,null,null,null,null,null,0,null,null,null,null,0,null,null,null,null,null,{"$f":"'Раздел 2'!C64","v":0}]
["Го","56",0,null,null,null,null,null,null,null,null,null,null,null,null,null,null,null,null,null,null,0,null,null,null,null,0,null,null,null,null,null,{"$f":"'Раздел 2'!C65","v":0}]
["Гольф","57",0,null,null,null,null,null,null,null,null,null,null,null,null,null,null,null,null,null,null,0,null,null,null,null,0,null,null,null,null,null,{"$f":"'Раздел 2'!C66","v":0}]
["Гонки на охотничьих лыжах","58",0,null,null,null,null,null,null,null,null,null,null,null,null,null,null,null,null,null,null,0,null,null,null,null,0,null,null,null,null,null,{"$f":"'Раздел 2'!C67","v":0}]
["Гонки с препятствиями","59",0,null,null,null,null,null,null,null,null,null,null,null,null,null,null,null,null,null,null,0,null,null,null,null,0,null,null,null,null,null,{"$f":"'Раздел 2'!C68","v":0}]
["Горнолыжный спорт","60",0,null,null,null,null,null,null,null,null,null,null,null,null,null,null,null,null,null,null,0,null,null,null,null,0,null,null,null,null,null,{"$f":"'Раздел 2'!C69","v":0}]
["Городошный спорт","61",0,null,null,null,null,null,null,null,null,null,null,null,null,null,null,null,null,null,null,0,null,null,null,null,0,null,null,null,null,null,{"$f":"'Раздел 2'!C70","v":0}]
["Гребля на байдарках и каноэ","62",0,null,null,null,null,null,null,null,null,null,null,null,null,null,null,null,null,null,null,0,null,null,null,null,0,null,null,null,null,null,{"$f":"'Раздел 2'!C71","v":0}]
["Гребля на шлюпках","63",0,null,null,null,null,null,null,null,null,null,null,null,null,null,null,null,null,null,null,0,null,null,null,null,0,null,null,null,null,null,{"$f":"'Раздел 2'!C72","v":0}]
["Гребной слалом","64",0,null,null,null,null,null,null,null,null,null,null,null,null,null,null,null,null,null,null,0,null,null,null,null,0,null,null,null,null,null,{"$f":"'Раздел 2'!C73","v":0}]
["Гребной спорт - всего","65",0,{"$f":"SUM(D75:D78)","v":0},{"$f":"SUM(E75:E78)","v":0},0,0,0,0,0,0,0,0,0,0,0,0,0,0,0,0,0,0,0,0,0,0,0,0,0,0,null,{"$f":"'Раздел 2'!C74","v":0}]
["в том числе:\nАкадемическая гребля","66",{"$f":"SUM(D75:U75)","v":0},null,null,null,null,null,null,null,null,null,null,null,null,null,null,null,null,null,null,{"$f":"SUM(W75:Z75)","v":0},null,null,null,null,{"$f":"SUM(AB75:AE75)","v":0},null,null,null,null,null,{"$f":"'Раздел 2'!C75","v":0}]
["Гребля-индор","67",0,null,null,null,null,null,null,null,null,null,null,null,null,null,null,null,null,null,null,0,null,null,null,null,0,null,null,null,null,null,{"$f":"'Раздел 2'!C76","v":0}]
["Народная гребля","68",0,null,null,null,null,null,null,null,null,null,null,null,null,null,null,null,null,null,null,0,null,null,null,null,0,null,null,null,null,null,{"$f":"'Раздел 2'!C77","v":0}]
["Прибрежная гребля","69",0,null,null,null,null,null,null,null,null,null,null,null,null,null,null,null,null,null,null,0,null,null,null,null,0,null,null,null,null,null,{"$f":"'Раздел 2'!C78","v":0}]
["Гребно-парусное двоеборье","70",0,null,null,null,null,null,null,null,null,null,null,null,null,null,null,null,null,null,null,0,null,null,null,null,0,null,null,null,null,null,{"$f":"'Раздел 2'!C79","v":0}]
["Дартс","71",0,null,null,null,null,null,null,null,null,null,null,null,null,null,null,null,null,null,null,0,null,null,null,null,0,null,null,null,null,null,{"$f":"'Раздел 2'!C80","v":0}]
["Джиу-джитсу","72",0,null,null,null,null,null,null,null,null,null,null,null,null,null,null,null,null,null,null,0,null,null,null,null,0,null,null,null,null,null,{"$f":"'Раздел 2'!C81","v":0}]
["Дзюдо","73",209,54,64,18,null,55,18,null,null,null,null,null,null,null,null,null,null,null,null,54,54,null,null,null,58,1,57,null,null,null,{"$f":"'Раздел 2'!C82","v":1}]
["Ездовой спорт","74",0,null,null,null,null,null,null,null,null,null,null,null,null,null,null,null,null,null,null,0,null,null,null,null,0,null,null,null,null,null,{"$f":"'Раздел 2'!C83","v":0}]
["Зимнее плавание","75",0,null,null,null,null,null,null,null,null,null,null,null,null,null,null,null,null,null,null,0,null,null,null,null,0,null,null,null,null,null,{"$f":"'Раздел 2'!C84","v":0}]
["Капоэйра","76",0,null,null,null,null,null,null,null,null,null,null,null,null,null,null,null,null,null,null,0,null,null,null,null,0,null,null,null,null,null,{"$f":"'Раздел 2'!C85","v":0}]
["Каратэ","77",0,null,null,null,null,null,null,null,null,null,null,null,null,null,null,null,null,null,null,0,null,null,null,null,0,null,null,null,null,null,{"$f":"'Раздел 2'!C86","v":0}]
["Кендо","78",0,null,null,null,null,null,null,null,null,null,null,null,null,null,null,null,null,null,null,0,null,null,null,null,0,null,null,null,null,null,{"$f":"'Раздел 2'!C87","v":0}]
["Керешу","79",0,null,null,null,null,null,null,null,null,null,null,null,null,null,null,null,null,null,null,0,null,null,null,null,0,null,null,null,null,null,{"$f":"'Раздел 2'!C88","v":0}]
["Кёрлинг - всего","80",0,{"$f":"SUM(D90:D92)","v":0},{"$f":"SUM(E90:E92)","v":0},0,0,0,0,0,0,0,0,0,0,0,0,0,0,0,0,0,0,0,0,0,0,0,0,0,0,null,{"$f":"'Раздел 2'!C89","v":0}]
["в том числе:\nКёрлинг (муж.)","81",0,null,null,null,null,null,null,null,null,null,null,null,null,null,null,null,null,null,null,0,null,null,null,null,0,null,null,null,null,null,{"$f":"'Раздел 2'!C90","v":0}]
["Кёрлинг (жен.)","82",0,null,null,null,null,null,null,null,null,null,null,null,null,null,null,null,null,null,null,0,null,null,null,null,0,null,null,null,null,null,{"$f":"'Раздел 2'!C91","v":0}]
["Кёрлинг – смешанные пары","83",0,null,null,null,null,null,null,null,null,null,null,null,null,null,null,null,null,null,null,0,null,null,null,null,0,null,null,null,null,null,{"$f":"'Раздел 2'!C92","v":0}]
["Кикбоксинг","84",62,15,null,15,null,null,12,12,null,8,null,null,null,null,null,null,null,null,null,15,15,null,null,null,14,13,null,1,null,null,{"$f":"'Раздел 2'!C93","v":1}]
["Кинологический спорт","85",0,null,null,null,null,null,null,null,null,null,null,null,null,null,null,null,null,null,null,0,null,null,null,null,0,null,null,null,null,null,{"$f":"'Раздел 2'!C94","v":0}]
["Киокусинкай","86",0,null,null,null,null,null,null,null,null,null,null,null,null,null,null,null,null,null,null,0,null,null,null,null,0,null,null,null,null,null,{"$f":"'Раздел 2'!C95","v":0}]
["Киокушин","87",0,null,null,null,null,null,null,null,null,null,null,null,null,null,null,null,null,null,null,0,null,null,null,null,0,null,null,null,null,null,{"$f":"'Раздел 2'!C96","v":0}]
["Комплексное единоборство","88",0,null,null,null,null,null,null,null,null,null,null,null,null,null,null,null,null,null,null,0,null,null,null,null,0,null,null,null,null,null,{"$f":"'Раздел 2'!C97","v":0}]
["Компьютерный спорт","89",0,null,null,null,null,null,null,null,null,null,null,null,null,null,null,null,null,null,null,0,null,null,null,null,0,null,null,null,null,null,{"$f":"'Раздел 2'!C98","v":0}]
["Конный спорт","90",0,null,null,null,null,null,null,null,null,null,null,null,null,null,null,null,null,null,null,0,null,null,null,null,0,null,null,null,null,null,{"$f":"'Раздел 2'!C99","v":0}]
["Конькобежный спорт - всего","91",0,{"$f":"SUM(D101:D102)","v":0},{"$f":"SUM(E101:E102)","v":0},0,0,0,0,0,0,0,0,0,0,0,0,0,0,0,0,0,0,0,0,0,0,0,0,0,0,null,{"$f":"'Раздел 2'!C100","v":0}]
["в том числе:\nКонькобежный спорт","92",0,null,null,null,null,null,null,null,null,null,null,null,null,null,null,null,null,null,null,0,null,null,null,null,0,null,null,null,null,null,{"$f":"'Раздел 2'!C101","v":0}]
["Шорт-трек","93",0,null,null,null,null,null,null,null,null,null,null,null,null,null,null,null,null,null,null,0,null,null,null,null,0,null,null,null,null,null,{"$f":"'Раздел 2'!C102","v":0}]
["Корэш","94",0,null,null,null,null,null,null,null,null,null,null,null,null,null,null,null,null,null,null,0,null,null,null,null,0,null,null,null,null,null,{"$f":"'Раздел 2'!C103","v":0}]
["Крикет","95",0,null,null,null,null,null,null,null,null,null,null,null,null,null,null,null,null,null,null,0,null,null,null,null,0,null,null,null,null,null,{"$f":"'Раздел 2'!C104","v":0}]
["Кудо","96",0,null,null,null,null,null,null,null,null,null,null,null,null,null,null,null,null,null,null,0,null,null,null,null,0,null,null,null,null,null,{"$f":"'Раздел 2'!C105","v":0}]
["Лапта","97",0,null,null,null,null,null,null,null,null,null,null,null,null,null,null,null,null,null,null,0,null,null,null,null,0,null,null,null,null,null,{"$f":"'Раздел 2'!C106","v":0}]
["Легкая атлетика - всего","98",0,{"$f":"SUM(D108:D114)","v":0},{"$f":"SUM(E108:E114)","v":0},0,0,0,0,0,0,0,0,0,0,0,0,0,0,0,0,0,0,0,0,0,0,0,0,0,0,null,{"$f":"'Раздел 2'!C107","v":0}]
["в том числе:\nСпринтерский и барьерный бег","99",0,null,null,null,null,null,null,null,null,null,null,null,null,null,null,null,null,null,null,0,null,null,null,null,0,null,null,null,null,null,{"$f":"'Раздел 2'!C108","v":0}]
["Бег на средние дистанции и бег с препятствиями","100",0,null,null,null,null,null,null,null,null,null,null,null,null,null,null,null,null,null,null,0,null,null,null,null,0,null,null,null,null,null,{"$f":"'Раздел 2'!C109","v":0}]
["Бег на длинные и сверхдлинные дистанции","101",0,null,null,null,null,null,null,null,null,null,null,null,null,null,null,null,null,null,null,0,null,null,null,null,0,null,null,null,null,null,{"$f":"'Раздел 2'!C110","v":0}]
["Многоборья","102",0,null,null,null,null,null,null,null,null,null,null,null,null,null,null,null,null,null,null,0,null,null,null,null,0,null,null,null,null,null,{"$f":"'Раздел 2'!C111","v":0}]
["Прыжки","103",0,null,null,null,null,null,null,null,null,null,null,null,null,null,null,null,null,null,null,0,null,null,null,null,0,null,null,null,null,null,{"$f":"'Раздел 2'!C112","v":0}]
["Метания","104",0,null,null,null,null,null,null,null,null,null,null,null,null,null,null,null,null,null,null,0,null,null,null,null,0,null,null,null,null,null,{"$f":"'Раздел 2'!C113","v":0}]
["Спортивная ходьба","105",0,null,null,null,null,null,null,null,null,null,null,null,null,null,null,null,null,null,null,0,null,null,null,null,0,null,null,null,null,null,{"$f":"'Раздел 2'!C114","v":0}]
["Лыжное двоеборье","106",0,null,null,null,null,null,null,null,null,null,null,null,null,null,null,null,null,null,null,0,null,null,null,null,0,null,null,null,null,null,{"$f":"'Раздел 2'!C115","v":0}]
["Лыжные гонки","107",0,null,null,null,null,null,null,null,null,null,null,null,null,null,null,null,null,null,null,0,null,null,null,null,0,null,null,null,null,null,{"$f":"'Раздел 2'!C116","v":0}]
["Мас-рестлинг","108",0,null,null,null,null,null,null,null,null,null,null,null,null,null,null,null,null,null,null,0,null,null,null,null,0,null,null,null,null,null,{"$f":"'Раздел 2'!C117","v":0}]
["Международное военно-спортивное многоборье","109",0,null,null,null,null,null,null,null,null,null,null,null,null,null,null,null,null,null,null,0,null,null,null,null,0,null,null,null,null,null,{"$f":"'Раздел 2'!C118","v":0}]
["Микрофутзал","110",0,null,null,null,null,null,null,null,null,null,null,null,null,null,null,null,null,null,null,0,null,null,null,null,0,null,null,null,null,null,{"$f":"'Раздел 2'!C119","v":0}]
["Многоборье кинологов","111",0,null,null,null,null,null,null,null,null,null,null,null,null,null,null,null,null,null,null,0,null,null,null,null,0,null,null,null,null,null,{"$f":"'Раздел 2'!C120","v":0}]
["Многоборье спасателей МЧС России","112",0,null,null,null,null,null,null,null,null,null,null,null,null,null,null,null,null,null,null,0,null,null,null,null,0,null,null,null,null,null,{"$f":"'Раздел 2'!C121","v":0}]
["Морское многоборье","113",0,null,null,null,null,null,null,null,null,null,null,null,null,null,null,null,null,null,null,0,null,null,null,null,0,null,null,null,null,null,{"$f":"'Раздел 2'!C122","v":0}]
["Мотоциклетный спорт","114",0,null,null,null,null,null,null,null,null,null,null,null,null,null,null,null,null,null,null,0,null,null,null,null,0,null,null,null,null,null,{"$f":"'Раздел 2'!C123","v":0}]
["Муайтай","115",0,null,null,null,null,null,null,null,null,null,null,null,null,null,null,null,null,null,null,0,null,null,null,null,0,null,null,null,null,null,{"$f":"'Раздел 2'!C124","v":0}]
["Нарды","116",0,null,null,null,null,null,null,null,null,null,null,null,null,null,null,null,null,null,null,0,null,null,null,null,0,null,null,null,null,null,{"$f":"'Раздел 2'!C125","v":0}]
["Настольный теннис","117",0,null,null,null,null,null,null,null,null,null,null,null,null,null,null,null,null,null,null,0,null,null,null,null,0,null,null,null,null,null,{"$f":"'Раздел 2'!C126","v":0}]
["Падел","118",0,null,null,null,null,null,null,null,null,null,null,null,null,null,null,null,null,null,null,0,null,null,null,null,0,null,null,null,null,null,{"$f":"'Раздел 2'!C127","v":0}]
["Парашютный спорт","119",0,null,null,null,null,null,null,null,null,null,null,null,null,null,null,null,null,null,null,0,null,null,null,null,0,null,null,null,null,null,{"$f":"'Раздел 2'!C128","v":0}]
["Парусный спорт","120",0,null,null,null,null,null,null,null,null,null,null,null,null,null,null,null,null,null,null,0,null,null,null,null,0,null,null,null,null,null,{"$f":"'Раздел 2'!C129","v":0}]
["Пауэрлифтинг","121",84,25,11,null,null,8,22,null,10,4,4,null,null,null,null,null,null,null,null,25,25,null,null,null,27,5,19,3,null,null,{"$f":"'Раздел 2'!C130","v":1}]
["Перетягивание каната","122",0,null,null,null,null,null,null,null,null,null,null,null,null,null,null,null,null,null,null,0,null,null,null,null,0,null,null,null,null,null,{"$f":"'Раздел 2'!C131","v":0}]
["Пилонный спорт","123",0,null,null,null,null,null,null,null,null,null,null,null,null,null,null,null,null,null,null,0,null,null,null,null,0,null,null,null,null,null,{"$f":"'Раздел 2'!C132","v":0}]
["Плавание - всего","124",0,{"$f":"SUM(D134:D135)","v":0},{"$f":"SUM(E134:E135)","v":0},0,0,0,0,0,0,0,0,0,0,0,0,0,0,0,0,0,0,0,0,0,0,0,0,0,0,null,{"$f":"'Раздел 2'!C133","v":0}]
["в том числе:\nПлавание ","125",0,null,null,null,null,null,null,null,null,null,null,null,null,null,null,null,null,null,null,0,null,null,null,null,0,null,null,null,null,null,{"$f":"'Раздел 2'!C134","v":0}]
["Открытая вода","126",0,null,null,null,null,null,null,null,null,null,null,null,null,null,null,null,null,null,null,0,null,null,null,null,0,null,null,null,null,null,{"$f":"'Раздел 2'!C135","v":0}]
["Планерный спорт","127",0,null,null,null,null,null,null,null,null,null,null,null,null,null,null,null,null,null,null,0,null,null,null,null,0,null,null,null,null,null,{"$f":"'Раздел 2'!C136","v":0}]
["Подводный спорт","128",0,null,null,null,null,null,null,null,null,null,null,null,null,null,null,null,null,null,null,0,null,null,null,null,0,null,null,null,null,null,{"$f":"'Раздел 2'!C137","v":0}]
["Пожарно-спасательный спорт","129",0,null,null,null,null,null,null,null,null,null,null,null,null,null,null,null,null,null,null,0,null,null,null,null,0,null,null,null,null,null,{"$f":"'Раздел 2'!C138","v":0}]
["Полиатлон","130",{"$f":"SUM(D139:U139)","v":0},null,null,null,null,null,null,null,null,null,null,null,null,null,null,null,null,null,null,{"$f":"SUM(W139:Z139)","v":0},null,null,null,null,{"$f":"SUM(AB139:AE139)","v":0},null,null,null,null,null,{"$f":"'Раздел 2'!C139","v":0}]
["Практическая стрельба","131",0,null,null,null,null,null,null,null,null,null,null,null,null,null,null,null,null,null,null,0,null,null,null,null,0,null,null,null,null,null,{"$f":"'Раздел 2'!C140","v":0}]
["Прыжки в воду - всего","132",0,{"$f":"SUM(D142:D143)","v":0},{"$f":"SUM(E142:E143)","v":0},0,0,0,0,0,0,0,0,0,0,0,0,0,0,0,0,0,0,0,0,0,0,0,0,0,0,null,{"$f":"'Раздел 2'!C141","v":0}]
["в том числе:\nПрыжки в воду","133",0,null,null,null,null,null,null,null,null,null,null,null,null,null,null,null,null,null,null,0,null,null,null,null,0,null,null,null,null,null,{"$f":"'Раздел 2'!C142","v":0}]
["Прыжки в открытый водоем","134",0,null,null,null,null,null,null,null,null,null,null,null,null,null,null,null,null,null,null,0,null,null,null,null,0,null,null,null,null,null,{"$f":"'Раздел 2'!C143","v":0}]
["Прыжки на батуте - всего","135",0,{"$f":"SUM(D145:D148)","v":0},{"$f":"SUM(E145:E148)","v":0},0,0,0,0,0,0,0,0,0,0,0,0,0,0,0,0,0,0,0,0,0,0,0,0,0,0,null,{"$f":"'Раздел 2'!C144","v":0}]
["в том числе:\nАкробатическая дорожка","136",0,null,null,null,null,null,null,null,null,null,null,null,null,null,null,null,null,null,null,0,null,null,null,null,0,null,null,null,null,null,{"$f":"'Раздел 2'!C145","v":0}]
["Двойной минитрамп","137",0,null,null,null,null,null,null,null,null,null,null,null,null,null,null,null,null,null,null,0,null,null,null,null,0,null,null,null,null,null,{"$f":"'Раздел 2'!C146","v":0}]
["Индивидуальные прыжки","138",0,null,null,null,null,null,null,null,null,null,null,null,null,null,null,null,null,null,null,0,null,null,null,null,0,null,null,null,null,null,{"$f":"'Раздел 2'!C147","v":0}]
["Синхронные прыжки","139",0,null,null,null,null,null,null,null,null,null,null,null,null,null,null,null,null,null,null,0,null,null,null,null,0,null,null,null,null,null,{"$f":"'Раздел 2'!C148","v":0}]
["Прыжки на лыжах с трамплина","140",0,null,null,null,null,null,null,null,null,null,null,null,null,null,null,null,null,null,null,0,null,null,null,null,0,null,null,null,null,null,{"$f":"'Раздел 2'!C149","v":0}]
["Пулевая стрельба - всего","141",0,{"$f":"SUM(D151:D155)","v":0},{"$f":"SUM(E151:E155)","v":0},0,0,0,0,0,0,0,0,0,0,0,0,0,0,0,0,0,0,0,0,0,0,0,0,0,0,null,{"$f":"'Раздел 2'!C150","v":0}]
["в том числе:\nПневматическая винтовка","142",0,null,null,null,null,null,null,null,null,null,null,null,null,null,null,null,null,null,null,0,null,null,null,null,0,null,null,null,null,null,{"$f":"'Раздел 2'!C151","v":0}]
["Пневматический пистолет","143",0,null,null,null,null,null,null,null,null,null,null,null,null,null,null,null,null,null,null,0,null,null,null,null,0,null,null,null,null,null,{"$f":"'Раздел 2'!C152","v":0}]
["Малокалиберная винтовка","144",0,null,null,null,null,null,null,null,null,null,null,null,null,null,null,null,null,null,null,0,null,null,null,null,0,null,null,null,null,null,{"$f":"'Раздел 2'!C153","v":0}]
["Малокалиберный пистолет","145",0,null,null,null,null,null,null,null,null,null,null,null,null,null,null,null,null,null,null,0,null,null,null,null,0,null,null,null,null,null,{"$f":"'Раздел 2'!C154","v":0}]
["Движущаяся мишень","146",0,null,null,null,null,null,null,null,null,null,null,null,null,null,null,null,null,null,null,0,null,null,null,null,0,null,null,null,null,null,{"$f":"'Раздел 2'!C155","v":0}]
["Пэйнтбол","147",0,null,null,null,null,null,null,null,null,null,null,null,null,null,null,null,null,null,null,0,null,null,null,null,0,null,null,null,null,null,{"$f":"'Раздел 2'!C156","v":0}]
["Радиоспорт","148",0,null,null,null,null,null,null,null,null,null,null,null,null,null,null,null,null,null,null,0,null,null,null,null,0,null,null,null,null,null,{"$f":"'Раздел 2'!C157","v":0}]
["Рафтинг","149",0,null,null,null,null,null,null,null,null,null,null,null,null,null,null,null,null,null,null,0,null,null,null,null,0,null,null,null,null,null,{"$f":"'Раздел 2'!C158","v":0}]
["Регби - всего","150",0,{"$f":"SUM(D160:D164)","v":0},{"$f":"SUM(E160:E164)","v":0},0,0,0,0,0,0,0,0,0,0,0,0,0,0,0,0,0,0,0,0,0,0,0,0,0,0,null,{"$f":"'Раздел 2'!C159","v":0}]
["в том числе:\nРегби","151",0,null,null,null,null,null,null,null,null,null,null,null,null,null,null,null,null,null,null,0,null,null,null,null,0,null,null,null,null,null,{"$f":"'Раздел 2'!C160","v":0}]
["Регби 7 (муж.)","152",0,null,null,null,null,null,null,null,null,null,null,null,null,null,null,null,null,null,null,0,null,null,null,null,0,null,null,null,null,null,{"$f":"'Раздел 2'!C161","v":0}]
["Регби 7 (жен.)","153",0,null,null,null,null,null,null,null,null,null,null,null,null,null,null,null,null,null,null,0,null,null,null,null,0,null,null,null,null,null,{"$f":"'Раздел 2'!C162","v":0}]
["Регби - пляжное","154",0,null,null,null,null,null,null,null,null,null,null,null,null,null,null,null,null,null,null,0,null,null,null,null,0,null,null,null,null,null,{"$f":"'Раздел 2'!C163","v":0}]
["Регби на снегу","155",0,null,null,null,null,null,null,null,null,null,null,null,null,null,null,null,null,null,null,0,null,null,null,null,0,null,null,null,null,null,{"$f":"'Раздел 2'!C164","v":0}]
["Регбол","156",0,null,null,null,null,null,null,null,null,null,null,null,null,null,null,null,null,null,null,0,null,null,null,null,0,null,null,null,null,null,{"$f":"'Раздел 2'!C165","v":0}]
["Роллер спорт","157",0,null,null,null,null,null,null,null,null,null,null,null,null,null,null,null,null,null,null,0,null,null,null,null,0,null,null,null,null,null,{"$f":"'Раздел 2'!C166","v":0}]
["Роуп скиппинг (спортивная скакалка)","158",0,null,null,null,null,null,null,null,null,null,null,null,null,null,null,null,null,null,null,0,null,null,null,null,0,null,null,null,null,null,{"$f":"'Раздел 2'!C167","v":0}]
["Рукопашный бой","159",0,null,null,null,null,null,null,null,null,null,null,null,null,null,null,null,null,null,null,0,null,null,null,null,0,null,null,null,null,null,{"$f":"'Раздел 2'!C168","v":0}]
["Рыболовный спорт","160",0,null,null,null,null,null,null,null,null,null,null,null,null,null,null,null,null,null,null,0,null,null,null,null,0,null,null,null,null,null,{"$f":"'Раздел 2'!C169","v":0}]
["Сават","161",0,null,null,null,null,null,null,null,null,null,null,null,null,null,null,null,null,null,null,0,null,null,null,null,0,null,null,null,null,null,{"$f":"'Раздел 2'!C170","v":0}]
["Самбо","162",0,null,null,null,null,null,null,null,null,null,null,null,null,null,null,null,null,null,null,0,null,null,null,null,0,null,null,null,null,null,{"$f":"'Раздел 2'!C171","v":0}]
["Самолетный спорт","163",0,null,null,null,null,null,null,null,null,null,null,null,null,null,null,null,null,null,null,0,null,null,null,null,0,null,null,null,null,null,{"$f":"'Раздел 2'!C172","v":0}]
["Санный спорт","164",0,null,null,null,null,null,null,null,null,null,null,null,null,null,null,null,null,null,null,0,null,null,null,null,0,null,null,null,null,null,{"$f":"'Раздел 2'!C173","v":0}]
["Северное многоборье","165",0,null,null,null,null,null,null,null,null,null,null,null,null,null,null,null,null,null,null,0,null,null,null,null,0,null,null,null,null,null,{"$f":"'Раздел 2'!C174","v":0}]
["Серфинг","166",0,null,null,null,null,null,null,null,null,null,null,null,null,null,null,null,null,null,null,0,null,null,null,null,0,null,null,null,null,null,{"$f":"'Раздел 2'!C175","v":0}]
["Силовой экстрим","167",0,null,null,null,null,null,null,null,null,null,null,null,null,null,null,null,null,null,null,0,null,null,null,null,0,null,null,null,null,null,{"$f":"'Раздел 2'!C176","v":0}]
["Синхронное плавание","168",0,null,null,null,null,null,null,null,null,null,null,null,null,null,null,null,null,null,null,0,null,null,null,null,0,null,null,null,null,null,{"$f":"'Раздел 2'!C177","v":0}]
["Скалолазание","169",0,null,null,null,null,null,null,null,null,null,null,null,null,null,null,null,null,null,null,0,null,null,null,null,0,null,null,null,null,null,{"$f":"'Раздел 2'!C178","v":0}]
["Сквош","170",0,null,null,null,null,null,null,null,null,null,null,null,null,null,null,null,null,null,null,0,null,null,null,null,0,null,null,null,null,null,{"$f":"'Раздел 2'!C179","v":0}]
["Скейтбординг","171",0,null,null,null,null,null,null,null,null,null,null,null,null,null,null,null,null,null,null,0,null,null,null,null,0,null,null,null,null,null,{"$f":"'Раздел 2'!C180","v":0}]
["Служебно-боевая стрельба ","172",0,null,null,null,null,null,null,null,null,null,null,null,null,null,null,null,null,null,null,0,null,null,null,null,0,null,null,null,null,null,{"$f":"'Раздел 2'!C181","v":0}]
["Служебно-прикладной спорт","173",0,null,null,null,null,null,null,null,null,null,null,null,null,null,null,null,null,null,null,0,null,null,null,null,0,null,null,null,null,null,{"$f":"'Раздел 2'!C182","v":0}]
["Служебно-прикладной спорт ФСО России","174",0,null,null,null,null,null,null,null,null,null,null,null,null,null,null,null,null,null,null,0,null,null,null,null,0,null,null,null,null,null,{"$f":"'Раздел 2'!C183","v":0}]
["Служебно-прикладной спорт ФТС России","175",0,null,null,null,null,null,null,null,null,null,null,null,null,null,null,null,null,null,null,0,null,null,null,null,0,null,null,null,null,null,{"$f":"'Раздел 2'!C184","v":0}]
["Служебное двоеборье","176",0,null,null,null,null,null,null,null,null,null,null,null,null,null,null,null,null,null,null,0,null,null,null,null,0,null,null,null,null,null,{"$f":"'Раздел 2'!C185","v":0}]
["Служебное единоборство","177",0,null,null,null,null,null,null,null,null,null,null,null,null,null,null,null,null,null,null,0,null,null,null,null,0,null,null,null,null,null,{"$f":"'Раздел 2'!C186","v":0}]
["Служебное многоборье","178",0,null,null,null,null,null,null,null,null,null,null,null,null,null,null,null,null,null,null,0,null,null,null,null,0,null,null,null,null,null,{"$f":"'Раздел 2'!C187","v":0}]
["Служебный биатлон","179",0,null,null,null,null,null,null,null,null,null,null,null,null,null,null,null,null,null,null,0,null,null,null,null,0,null,null,null,null,null,{"$f":"'Раздел 2'!C188","v":0}]
["Спасательный спорт","180",0,null,null,null,null,null,null,null,null,null,null,null,null,null,null,null,null,null,null,0,null,null,null,null,0,null,null,null,null,null,{"$f":"'Раздел 2'!C189","v":0}]
["Стрельба из боевого ручного стрелкового оружия","181",0,null,null,null,null,null,null,null,null,null,null,null,null,null,null,null,null,null,null,0,null,null,null,null,0,null,null,null,null,null,{"$f":"'Раздел 2'!C190","v":0}]
["Стрельба из штатного или табельного оружия","182",0,null,null,null,null,null,null,null,null,null,null,null,null,null,null,null,null,null,null,0,null,null,null,null,0,null,null,null,null,null,{"$f":"'Раздел 2'!C191","v":0}]
["Стрельба на дальние дистанции","183",0,null,null,null,null,null,null,null,null,null,null,null,null,null,null,null,null,null,null,0,null,null,null,null,0,null,null,null,null,null,{"$f":"'Раздел 2'!C192","v":0}]
["Смешанное боевое единоборство (ММА)","184",0,null,null,null,null,null,null,null,null,null,null,null,null,null,null,null,null,null,null,0,null,null,null,null,0,null,null,null,null,null,{"$f":"'Раздел 2'!C193","v":0}]
["Сноуборд","185",0,null,null,null,null,null,null,null,null,null,null,null,null,null,null,null,null,null,null,0,null,null,null,null,0,null,null,null,null,null,{"$f":"'Раздел 2'!C194","v":0}]
["Современное пятиборье","186",0,null,null,null,null,null,null,null,null,null,null,null,null,null,null,null,null,null,null,0,null,null,null,null,0,null,null,null,null,null,{"$f":"'Раздел 2'!C195","v":0}]
["Софтбол","187",0,null,null,null,null,null,null,null,null,null,null,null,null,null,null,null,null,null,null,0,null,null,null,null,0,null,null,null,null,null,{"$f":"'Раздел 2'!C196","v":0}]
["Спорт сверхлегкой авиации","188",0,null,null,null,null,null,null,null,null,null,null,null,null,null,null,null,null,null,null,0,null,null,null,null,0,null,null,null,null,null,{"$f":"'Раздел 2'!C197","v":0}]
["Спортивная акробатика","189",61,20,14,null,null,null,11,null,null,16,null,null,null,null,null,null,null,null,null,20,20,null,null,null,7,null,5,2,null,null,{"$f":"'Раздел 2'!C198","v":1}]
["Спортивная аэробика","190",0,null,null,null,null,null,null,null,null,null,null,null,null,null,null,null,null,null,null,0,null,null,null,null,0,null,null,null,null,null,{"$f":"'Раздел 2'!C199","v":0}]
["Спортивная борьба - всего","191",0,{"$f":"SUM(D201:D205)","v":0},{"$f":"SUM(E201:E205)","v":0},0,0,0,0,0,0,0,0,0,0,0,0,0,0,0,0,0,0,0,0,0,0,0,0,0,0,null,{"$f":"'Раздел 2'!C200","v":0}]
["в том числе:\nВольная борьба","192",0,null,null,null,null,null,null,null,null,null,null,null,null,null,null,null,null,null,null,0,null,null,null,null,0,null,null,null,null,null,{"$f":"'Раздел 2'!C201","v":0}]
["Греко-римская борьба","193",0,null,null,null,null,null,null,null,null,null,null,null,null,null,null,null,null,null,null,0,null,null,null,null,0,null,null,null,null,null,{"$f":"'Раздел 2'!C202","v":0}]
["Грэпплинг","194",{"$f":"SUM(D203:U203)","v":0},null,null,null,null,null,null,null,null,null,null,null,null,null,null,null,null,null,null,{"$f":"SUM(W203:Z203)","v":0},null,null,null,null,{"$f":"SUM(AB203:AE203)","v":0},null,null,null,null,null,{"$f":"'Раздел 2'!C203","v":0}]
["Грэпплинг-ги","195",0,null,null,null,null,null,null,null,null,null,null,null,null,null,null,null,null,null,null,0,null,null,null,null,0,null,null,null,null,null,{"$f":"'Раздел 2'!C204","v":0}]
["Панкратион","196",0,null,null,null,null,null,null,null,null,null,null,null,null,null,null,null,null,null,null,0,null,null,null,null,0,null,null,null,null,null,{"$f":"'Раздел 2'!C205","v":0}]
["Спортивная гимнастика","197",0,null,null,null,null,null,null,null,null,null,null,null,null,null,null,null,null,null,null,0,null,null,null,null,0,null,null,null,null,null,{"$f":"'Раздел 2'!C206","v":0}]
["Спортивная йога","198",0,null,null,null,null,null,null,null,null,null,null,null,null,null,null,null,null,null,null,0,null,null,null,null,0,null,null,null,null,null,{"$f":"'Раздел 2'!C207","v":0}]
["Спортивно-прикладное собаководство","199",0,null,null,null,null,null,null,null,null,null,null,null,null,null,null,null,null,null,null,0,null,null,null,null,0,null,null,null,null,null,{"$f":"'Раздел 2'!C208","v":0}]
["Спортивное программирование","200",0,null,null,null,null,null,null,null,null,null,null,null,null,null,null,null,null,null,null,0,null,null,null,null,0,null,null,null,null,null,{"$f":"'Раздел 2'!C209","v":0}]
["Спортивное метание ножа","201",0,null,null,null,null,null,null,null,null,null,null,null,null,null,null,null,null,null,null,0,null,null,null,null,0,null,null,null,null,null,{"$f":"'Раздел 2'!C210","v":0}]
["Спортивное ориентирование","202",0,null,null,null,null,null,null,null,null,null,null,null,null,null,null,null,null,null,null,0,null,null,null,null,0,null,null,null,null,null,{"$f":"'Раздел 2'!C211","v":0}]
["Спортивный бридж","203",0,null,null,null,null,null,null,null,null,null,null,null,null,null,null,null,null,null,null,0,null,null,null,null,0,null,null,null,null,null,{"$f":"'Раздел 2'!C212","v":0}]
["Спортивный туризм","204",0,null,null,null,null,null,null,null,null,null,null,null,null,null,null,null,null,null,null,0,null,null,null,null,0,null,null,null,null,null,{"$f":"'Раздел 2'!C213","v":0}]
["Стендовая стрельба - всего","205",0,{"$f":"SUM(D215:D218)","v":0},{"$f":"SUM(E215:E218)","v":0},0,0,0,0,0,0,0,0,0,0,0,0,0,0,0,0,0,0,0,0,0,0,0,0,0,0,null,{"$f":"'Раздел 2'!C214","v":0}]
["в том числе:\nТрап","206",0,null,null,null,null,null,null,null,null,null,null,null,null,null,null,null,null,null,null,0,null,null,null,null,0,null,null,null,null,null,{"$f":"'Раздел 2'!C215","v":0}]
["Скит","207",0,null,null,null,null,null,null,null,null,null,null,null,null,null,null,null,null,null,null,0,null,null,null,null,0,null,null,null,null,null,{"$f":"'Раздел 2'!C216","v":0}]
["Дубль-трап","208",0,null,null,null,null,null,null,null,null,null,null,null,null,null,null,null,null,null,null,0,null,null,null,null,0,null,null,null,null,null,{"$f":"'Раздел 2'!C217","v":0}]
["Спортинг","209",0,null,null,null,null,null,null,null,null,null,null,null,null,null,null,null,null,null,null,0,null,null,null,null,0,null,null,null,null,null,{"$f":"'Раздел 2'!C218","v":0}]
["Страйкбол","210",0,null,null,null,null,null,null,null,null,null,null,null,null,null,null,null,null,null,null,0,null,null,null,null,0,null,null,null,null,null,{"$f":"'Раздел 2'!C219","v":0}]
["Стрельба из арбалета","211",0,null,null,null,null,null,null,null,null,null,null,null,null,null,null,null,null,null,null,0,null,null,null,null,0,null,null,null,null,null,{"$f":"'Раздел 2'!C220","v":0}]
["Стрельба из лука - всего","212",0,{"$f":"SUM(D222:D224)","v":0},{"$f":"SUM(E222:E224)","v":0},0,0,0,0,0,0,0,0,0,0,0,0,0,0,0,0,0,0,0,0,0,0,0,0,0,0,null,{"$f":"'Раздел 2'!C221","v":0}]
["в том числе:\nКлассический лук","213",0,null,null,null,null,null,null,null,null,null,null,null,null,null,null,null,null,null,null,0,null,null,null,null,0,null,null,null,null,null,{"$f":"'Раздел 2'!C222","v":0}]
["   Блочный лук","214",0,null,null,null,null,null,null,null,null,null,null,null,null,null,null,null,null,null,null,0,null,null,null,null,0,null,null,null,null,null,{"$f":"'Раздел 2'!C223","v":0}]
["   Ачери ","215",0,null,null,null,null,null,null,null,null,null,null,null,null,null,null,null,null,null,null,0,null,null,null,null,0,null,null,null,null,null,{"$f":"'Раздел 2'!C224","v":0}]
["Судомодельный спорт","216",0,null,null,null,null,null,null,null,null,null,null,null,null,null,null,null,null,null,null,0,null,null,null,null,0,null,null,null,null,null,{"$f":"'Раздел 2'!C225","v":0}]
["Сумо","217",0,null,null,null,null,null,null,null,null,null,null,null,null,null,null,null,null,null,null,0,null,null,null,null,0,null,null,null,null,null,{"$f":"'Раздел 2'!C226","v":0}]
["Таврели","218",0,null,null,null,null,null,null,null,null,null,null,null,null,null,null,null,null,null,null,0,null,null,null,null,0,null,null,null,null,null,{"$f":"'Раздел 2'!C227","v":0}]
["Танцевальный спорт - всего","219",0,{"$f":"SUM(D229:D230)","v":0},{"$f":"SUM(E229:E230)","v":0},0,0,0,0,0,0,0,0,0,0,0,0,0,0,0,0,0,0,0,0,0,0,0,0,0,0,null,{"$f":"'Раздел 2'!C228","v":0}]
["в том числе:\nТанцевальный спорт","220",0,null,null,null,null,null,null,null,null,null,null,null,null,null,null,null,null,null,null,0,null,null,null,null,0,null,null,null,null,null,{"$f":"'Раздел 2'!C229","v":0}]
["Брейкинг","221",0,null,null,null,null,null,null,null,null,null,null,null,null,null,null,null,null,null,null,0,null,null,null,null,0,null,null,null,null,null,{"$f":"'Раздел 2'!C230","v":0}]
["Теннис","222",0,null,null,null,null,null,null,null,null,null,null,null,null,null,null,null,null,null,null,0,null,null,null,null,0,null,null,null,null,null,{"$f":"'Раздел 2'!C231","v":0}]
["Триатлон","223",0,null,null,null,null,null,null,null,null,null,null,null,null,null,null,null,null,null,null,0,null,null,null,null,0,null,null,null,null,null,{"$f":"'Раздел 2'!C232","v":0}]
["Тхэквондо (ВТФ)","224",91,30,null,null,26,9,26,null,null,null,null,null,null,null,null,null,null,null,null,30,30,null,null,null,39,18,21,null,null,null,{"$f":"'Раздел 2'!C233","v":1}]
["Тхэквондо ГТФ","225",0,null,null,null,null,null,null,null,null,null,null,null,null,null,null,null,null,null,null,0,null,null,null,null,0,null,null,null,null,null,{"$f":"'Раздел 2'!C234","v":0}]
["Тхэквондо ИТФ","226",0,null,null,null,null,null,null,null,null,null,null,null,null,null,null,null,null,null,null,0,null,null,null,null,0,null,null,null,null,null,{"$f":"'Раздел 2'!C235","v":0}]
["Тхэквондо МФТ","227",0,null,null,null,null,null,null,null,null,null,null,null,null,null,null,null,null,null,null,0,null,null,null,null,0,null,null,null,null,null,{"$f":"'Раздел 2'!C236","v":0}]
["Тяжелая атлетика","228",0,null,null,null,null,null,null,null,null,null,null,null,null,null,null,null,null,null,null,0,null,null,null,null,0,null,null,null,null,null,{"$f":"'Раздел 2'!C237","v":0}]
["Универсальный бой","229",0,null,null,null,null,null,null,null,null,null,null,null,null,null,null,null,null,null,null,0,null,null,null,null,0,null,null,null,null,null,{"$f":"'Раздел 2'!C238","v":0}]
["Ушу","230",0,null,null,null,null,null,null,null,null,null,null,null,null,null,null,null,null,null,null,0,null,null,null,null,0,null,null,null,null,null,{"$f":"'Раздел 2'!C239","v":0}]
["Фехтование - всего","231",0,{"$f":"SUM(D241:D244)","v":0},{"$f":"SUM(E241:E244)","v":0},0,0,0,0,0,0,0,0,0,0,0,0,0,0,0,0,0,0,0,0,0,0,0,0,0,0,null,{"$f":"'Раздел 2'!C240","v":0}]
["в том числе:\nРапира","232",0,null,null,null,null,null,null,null,null,null,null,null,null,null,null,null,null,null,null,0,null,null,null,null,0,null,null,null,null,null,{"$f":"'Раздел 2'!C241","v":0}]
["Сабля","233",0,null,null,null,null,null,null,null,null,null,null,null,null,null,null,null,null,null,null,0,null,null,null,null,0,null,null,null,null,null,{"$f":"'Раздел 2'!C242","v":0}]
["Шпага","234",0,null,null,null,null,null,null,null,null,null,null,null,null,null,null,null,null,null,null,0,null,null,null,null,0,null,null,null,null,null,{"$f":"'Раздел 2'!C243","v":0}]
["Арт-фехтование","235",0,null,null,null,null,null,null,null,null,null,null,null,null,null,null,null,null,null,null,0,null,null,null,null,0,null,null,null,null,null,{"$f":"'Раздел 2'!C244","v":0}]
["Фигурное катание на коньках","236",0,null,null,null,null,null,null,null,null,null,null,null,null,null,null,null,null,null,null,0,null,null,null,null,0,null,null,null,null,null,{"$f":"'Раздел 2'!C245","v":0}]
["Фиджитал спорт (функционально-цифровй спорт)","237",0,null,null,null,null,null,null,null,null,null,null,null,null,null,null,null,null,null,null,0,null,null,null,null,0,null,null,null,null,null,{"$f":"'Раздел 2'!C246","v":0}]
["Фитнес-аэробика","238",0,null,null,null,null,null,null,null,null,null,null,null,null,null,null,null,null,null,null,0,null,null,null,null,0,null,null,null,null,null,{"$f":"'Раздел 2'!C247","v":0}]
["Флаинг диск","239",0,null,null,null,null,null,null,null,null,null,null,null,null,null,null,null,null,null,null,0,null,null,null,null,0,null,null,null,null,null,{"$f":"'Раздел 2'!C248","v":0}]
["Флорбол","240",0,null,null,null,null,null,null,null,null,null,null,null,null,null,null,null,null,null,null,0,null,null,null,null,0,null,null,null,null,null,{"$f":"'Раздел 2'!C249","v":0}]
["Фристайл - всего","241",0,{"$f":"SUM(D251:D256)","v":0},{"$f":"SUM(E251:E256)","v":0},0,0,0,0,0,0,0,0,0,0,0,0,0,0,0,0,0,0,0,0,0,0,0,0,0,0,null,{"$f":"'Раздел 2'!C250","v":0}]
["в том числе:\nАкробатика","242",0,null,null,null,null,null,null,null,null,null,null,null,null,null,null,null,null,null,null,0,null,null,null,null,0,null,null,null,null,null,{"$f":"'Раздел 2'!C251","v":0}]
["Биг-эйр","243",0,null,null,null,null,null,null,null,null,null,null,null,null,null,null,null,null,null,null,0,null,null,null,null,0,null,null,null,null,null,{"$f":"'Раздел 2'!C252","v":0}]
["Могул","244",0,null,null,null,null,null,null,null,null,null,null,null,null,null,null,null,null,null,null,0,null,null,null,null,0,null,null,null,null,null,{"$f":"'Раздел 2'!C253","v":0}]
["Ски-кросс","245",0,null,null,null,null,null,null,null,null,null,null,null,null,null,null,null,null,null,null,0,null,null,null,null,0,null,null,null,null,null,{"$f":"'Раздел 2'!C254","v":0}]
["Хаф-пайп","246",0,null,null,null,null,null,null,null,null,null,null,null,null,null,null,null,null,null,null,0,null,null,null,null,0,null,null,null,null,null,{"$f":"'Раздел 2'!C255","v":0}]
["Слоуп-стайл","247",0,null,null,null,null,null,null,null,null,null,null,null,null,null,null,null,null,null,null,0,null,null,null,null,0,null,null,null,null,null,{"$f":"'Раздел 2'!C256","v":0}]
["Функциональное многоборье","248",0,null,null,null,null,null,null,null,null,null,null,null,null,null,null,null,null,null,null,0,null,null,null,null,0,null,null,null,null,null,{"$f":"'Раздел 2'!C257","v":0}]
["Футбол - всего","249",0,{"$f":"SUM(D259:D264)","v":0},{"$f":"SUM(E259:E264)","v":0},0,0,0,0,0,0,0,0,0,0,0,0,0,0,0,0,0,0,0,0,0,0,0,0,0,0,null,{"$f":"'Раздел 2'!C258","v":0}]
["в том числе:\nФутбол (муж.)","250",0,null,null,null,null,null,null,null,null,null,null,null,null,null,null,null,null,null,null,0,null,null,null,null,0,null,null,null,null,null,{"$f":"'Раздел 2'!C259","v":0}]
["Футбол (жен.)","251",0,null,null,null,null,null,null,null,null,null,null,null,null,null,null,null,null,null,null,0,null,null,null,null,0,null,null,null,null,null,{"$f":"'Раздел 2'!C260","v":0}]
["Мини-футбол (футзал)","252",0,null,null,null,null,null,null,null,null,null,null,null,null,null,null,null,null,null,null,0,null,null,null,null,0,null,null,null,null,null,{"$f":"'Раздел 2'!C261","v":0}]
["Пляжный футбол","253",0,null,null,null,null,null,null,null,null,null,null,null,null,null,null,null,null,null,null,0,null,null,null,null,0,null,null,null,null,null,{"$f":"'Раздел 2'!C262","v":0}]
["Футбол 6х6, 7х7, 8х8","254",0,null,null,null,null,null,null,null,null,null,null,null,null,null,null,null,null,null,null,0,null,null,null,null,0,null,null,null,null,null,{"$f":"'Раздел 2'!C263","v":0}]
["Интерактивный футбол","255",0,null,null,null,null,null,null,null,null,null,null,null,null,null,null,null,null,null,null,0,null,null,null,null,0,null,null,null,null,null,{"$f":"'Раздел 2'!C264","v":0}]
["Хапкидо","256",0,null,null,null,null,null,null,null,null,null,null,null,null,null,null,null,null,null,null,0,null,null,null,null,0,null,null,null,null,null,{"$f":"'Раздел 2'!C265","v":0}]
["Хапсагай","257",0,null,null,null,null,null,null,null,null,null,null,null,null,null,null,null,null,null,null,0,null,null,null,null,0,null,null,null,null,null,{"$f":"'Раздел 2'!C266","v":0}]
["Хоккей - всего","258",{"$f":"SUM(D267:U267)","v":0},{"$f":"SUM(D268:D269)","v":0},{"$f":"SUM(E268:E269)","v":0},0,0,0,0,0,0,0,0,0,0,0,0,0,0,0,0,0,0,0,0,0,0,0,0,0,0,null,{"$f":"'Раздел 2'!C267","v":0}]
["в том числе:\nХоккей (муж.)","259",0,null,null,null,null,null,null,null,null,null,null,null,null,null,null,null,null,null,null,{"$f":"SUM(W268:Z268)","v":0},null,null,null,null,{"$f":"SUM(AB268:AE268)","v":0},null,null,null,null,null,{"$f":"'Раздел 2'!C268","v":0}]
["Хоккей (жен.)","260",0,null,null,null,null,null,null,null,null,null,null,null,null,null,null,null,null,null,null,0,null,null,null,null,0,null,null,null,null,null,{"$f":"'Раздел 2'!C269","v":0}]
["Хоккей на траве - всего","261",0,{"$f":"SUM(D271:D273)","v":0},{"$f":"SUM(E271:E273)","v":0},0,0,0,0,0,0,0,0,0,0,0,0,0,0,0,0,0,0,0,0,0,0,0,0,0,0,null,{"$f":"'Раздел 2'!C270","v":0}]
["в том числе:\nХоккей на траве (муж.)","262",0,null,null,null,null,null,null,null,null,null,null,null,null,null,null,null,null,null,null,0,null,null,null,null,0,null,null,null,null,null,{"$f":"'Раздел 2'!C271","v":0}]
["Хоккей на траве (жен.)","263",0,null,null,null,null,null,null,null,null,null,null,null,null,null,null,null,null,null,null,0,null,null,null,null,0,null,null,null,null,null,{"$f":"'Раздел 2'!C272","v":0}]
["Индорхоккей","264",0,null,null,null,null,null,null,null,null,null,null,null,null,null,null,null,null,null,null,0,null,null,null,null,0,null,null,null,null,null,{"$f":"'Раздел 2'!C273","v":0}]
["Хоккей с мячом","265",0,null,null,null,null,null,null,null,null,null,null,null,null,null,null,null,null,null,null,0,null,null,null,null,0,null,null,null,null,null,{"$f":"'Раздел 2'!C274","v":0}]
["Художественная гимнастика","266",0,null,null,null,null,null,null,null,null,null,null,null,null,null,null,null,null,null,null,0,null,null,null,null,0,null,null,null,null,null,{"$f":"'Раздел 2'!C275","v":0}]
["Хуреш","267",0,null,null,null,null,null,null,null,null,null,null,null,null,null,null,null,null,null,null,0,null,null,null,null,0,null,null,null,null,null,{"$f":"'Раздел 2'!C276","v":0}]
["Чир спорт","268",0,null,null,null,null,null,null,null,null,null,null,null,null,null,null,null,null,null,null,0,null,null,null,null,0,null,null,null,null,null,{"$f":"'Раздел 2'!C277","v":0}]
["Шахматы","269",0,null,null,null,null,null,null,null,null,null,null,null,null,null,null,null,null,null,null,0,null,null,null,null,0,null,null,null,null,null,{"$f":"'Раздел 2'!C278","v":0}]
["Шашки","270",0,null,null,null,null,null,null,null,null,null,null,null,null,null,null,null,null,null,null,0,null,null,null,null,0,null,null,null,null,null,{"$f":"'Раздел 2'!C279","v":0}]
["Шодсанлат","271",0,null,null,null,null,null,null,null,null,null,null,null,null,null,null,null,null,null,null,0,null,null,null,null,0,null,null,null,null,null,{"$f":"'Раздел 2'!C280","v":0}]
["Эстетическая гимнастика","272",0,null,null,null,null,null,null,null,null,null,null,null,null,null,null,null,null,null,null,0,null,null,null,null,0,null,null,null,null,null,{"$f":"'Раздел 2'!C281","v":0}]
["Якутские национальные прыжки","273",0,null,null,null,null,null,null,null,null,null,null,null,null,null,null,null,null,null,null,0,null,null,null,null,0,null,null,null,null,null,{"$f":"'Раздел 2'!C282","v":0}]
["ИТОГО","274",{"$f":"SUM(D283:U283)","v":507},{"$f":"SUM(D10:D22,D26:D29,D32:D37,D48:D53,D58:D60,D42:D45,D64:D74,D79:D89,D93:D100,D103:D107,D115:D119,D120:D133,D136:D141,D144,D149:D150,D156:D159,D165:D166,D167:D181,D182:D200,D206:D211,D212:D214,D219:D221,D225:D228,D231:D240,D245:D250,D257:D258,D265:D267,D270,D274:D282)","v":144},{"$f":"SUM(E10:E22,E26:E29,E32:E37,E48:E53,E58:E60,E42:E45,E64:E74,E79:E89,E93:E100,E103:E107,E115:E119,E120:E133,E136:E141,E144,E149:E150,E156:E159,E165:E166,E167:E181,E182:E200,E206:E211,E212:E214,E219:E221,E225:E228,E231:E240,E245:E250,E257:E258,E265:E267,E270,E274:E282)","v":89},{"$f":"SUM(F10:F22,F26:F29,F32:F37,F48:F53,F58:F60,F42:F45,F64:F74,F79:F89,F93:F100,F103:F107,F115:F119,F120:F133,F136:F141,F144,F149:F150,F156:F159,F165:F166,F167:F181,F182:F200,F206:F211,F212:F214,F219:F221,F225:F228,F231:F240,F245:F250,F257:F258,F265:F267,F270,F274:F282)","v":33},26,72,89,12,10,28,4,0,0,0,0,0,0,0,0,144,144,0,0,0,145,37,102,6,0,null,{"$f":"'Раздел 2'!C283","v":5}]

{"sheet":"Раздел 4","index":4,"n_rows":283,"n_cols":26,"rows_kept":283,"cut":false,"hidden":false,"merged":[[6,20,7,20],[3,0,3,24],[5,12,5,15],[5,16,5,19],[5,20,5,24],[6,21,6,24],[6,13,6,15],[6,16,7,16],[4,0,7,0],[4,1,7,1],[4,2,4,11],[4,12,4,24],[5,2,7,2],[5,3,5,6],[5,7,5,11],[6,17,6,19],[6,3,7,3],[6,4,6,6],[6,7,7,7],[6,8,6,11],[6,12,7,12]]}
[]
[]
[]
["Раздел IV. Спортивные разряды, спортивные звания"]
["Виды спорта","№ строки","Из числа обучающихся и занимающихся  (гр.5 раздела II)\nспортсменов, имеющих разряды, звания, человек",null,null,null,null,null,null,null,null,null,"Разряды, звания, присвоенные и подтвержденные в отчетном году, единица"]
[null,null,"Итого","спортивные разряды",null,null,null,"спортивные звания",null,null,null,null,"спортивные разряды присвоенные",null,null,null,"спортивные разряды подтвержденные",null,null,null,"спортивные звания присвоенные"]
[null,null,null,"Всего","в том числе:",null,null,"Всего","в том числе:",null,null,null,"Всего","в том числе:",null,null,"Всего","в том числе:",null,null,"Всего","в том числе:"]
[null,null,null,null,"КМС","1 разряд","другие разряды",null,"ЗМС","МСМК","МС","гроссмейстер",null,"КМС","1 разряд","другие разряды",null,"КМС","1 разряд","другие разряды",null,"ЗМС","МСМК","МС","гроссмейстер"]
[1,2,3,4,5,6,7,8,9,10,11,12,13,14,15,16,17,18,19,20,21,22,23,24,25,"2р"]
["Авиамодельный спорт","01",{"$f":"SUM(D10,H10)","v":0},{"$f":"SUM(E10:G10)","v":0},null,null,null,{"$f":"SUM(I10:L10)","v":0},null,null,null,null,{"$f":"SUM(N10:P10)","v":0},null,null,null,{"$f":"SUM(R10:T10)","v":0},null,null,null,{"$f":"SUM(V10:Y10)","v":0},null,null,null,null,{"$f":"'Раздел 2'!C10","v":0}]
["Авиационные гонки","02",{"$f":"SUM(D11,H11)","v":0},{"$f":"SUM(E11:G11)","v":0},null,null,null,{"$f":"SUM(I11:L11)","v":0},null,null,null,null,{"$f":"SUM(N11:P11)","v":0},null,null,null,{"$f":"SUM(R11:T11)","v":0},null,null,null,{"$f":"SUM(V11:Y11)","v":0},null,null,null,null,{"$f":"'Раздел 2'!C11","v":0}]
["Автомобильный спорт","03",0,0,null,null,null,0,null,null,null,null,0,null,null,null,0,null,null,null,0,null,null,null,null,{"$f":"'Раздел 2'!C12","v":0}]
["Автомодельный спорт","04",0,0,null,null,null,0,null,null,null,null,0,null,null,null,0,null,null,null,0,null,null,null,null,{"$f":"'Раздел 2'!C13","v":0}]
["Айкидо","05",0,0,null,null,null,0,null,null,null,null,0,null,null,null,0,null,null,null,0,null,null,null,null,{"$f":"'Раздел 2'!C14","v":0}]
["Акробатический рок-н-ролл","06",0,0,null,null,null,0,null,null,null,null,0,null,null,null,0,null,null,null,0,null,null,null,null,{"$f":"'Раздел 2'!C15","v":0}]
["Альпинизм","07",0,0,null,null,null,0,null,null,null,null,0,null,null,null,0,null,null,null,0,null,null,null,null,{"$f":"'Раздел 2'!C16","v":0}]
["Американский футбол","08",0,0,null,null,null,0,null,null,null,null,0,null,null,null,0,null,null,null,0,null,null,null,null,{"$f":"'Раздел 2'!C17","v":0}]
["Армейский рукопашный бой","09",0,0,null,null,null,0,null,null,null,null,0,null,null,null,0,null,null,null,0,null,null,null,null,{"$f":"'Раздел 2'!C18","v":0}]
["Армейское тактико-стрелковое многоборье","10",0,0,null,null,null,0,null,null,null,null,0,null,null,null,0,null,null,null,0,null,null,null,null,{"$f":"'Раздел 2'!C19","v":0}]
["Армрестлинг","11",0,0,null,null,null,0,null,null,null,null,0,null,null,null,0,null,null,null,0,null,null,null,null,{"$f":"'Раздел 2'!C20","v":0}]
["Бадминтон","12",0,0,null,null,null,0,null,null,null,null,0,null,null,null,0,null,null,null,0,null,null,null,null,{"$f":"'Раздел 2'!C21","v":0}]
["Баскетбол - всего","13",0,0,{"$f":"SUM(E23:E25)","v":0},{"$f":"SUM(F23:F25)","v":0},0,0,0,0,0,0,0,0,0,0,0,0,0,0,0,0,0,0,0,{"$f":"'Раздел 2'!C22","v":0}]
["в том числе:\nБаскетбол (муж.)","14",0,0,null,null,null,0,null,null,null,null,0,null,null,null,0,null,null,null,0,null,null,null,null,{"$f":"'Раздел 2'!C23","v":0}]
["Баскетбол (жен.)","15",0,0,null,null,null,0,null,null,null,null,0,null,null,null,0,null,null,null,0,null,null,null,null,{"$f":"'Раздел 2'!C24","v":0}]
["Баскетбол 3х3","16",0,0,null,null,null,0,null,null,null,null,0,null,null,null,0,null,null,null,0,null,null,null,null,{"$f":"'Раздел 2'!C25","v":0}]
["Бейсбол","17",0,0,null,null,null,0,null,null,null,null,0,null,null,null,0,null,null,null,0,null,null,null,null,{"$f":"'Раздел 2'!C26","v":0}]
["Биатлон","18",0,0,null,null,null,0,null,null,null,null,0,null,null,null,0,null,null,null,0,null,null,null,null,{"$f":"'Раздел 2'!C27","v":0}]
["Бильярдный спорт","19",0,0,null,null,null,0,null,null,null,null,0,null,null,null,0,null,null,null,0,null,null,null,null,{"$f":"'Раздел 2'!C28","v":0}]
["Бобслей - всего","20",0,0,{"$f":"SUM(E30:E31)","v":0},{"$f":"SUM(F30:F31)","v":0},0,0,0,0,0,0,0,0,0,0,0,0,0,0,0,0,0,0,0,{"$f":"'Раздел 2'!C29","v":0}]
["в том числе:\nБобслей","21",0,0,null,null,null,0,null,null,null,null,0,null,null,null,0,null,null,null,0,null,null,null,null,{"$f":"'Раздел 2'!C30","v":0}]
["Скелетон","22",0,0,null,null,null,0,null,null,null,null,0,null,null,null,0,null,null,null,0,null,null,null,null,{"$f":"'Раздел 2'!C31","v":0}]
["Бодибилдинг","23",0,0,null,null,null,0,null,null,null,null,0,null,null,null,0,null,null,null,0,null,null,null,null,{"$f":"'Раздел 2'!C32","v":0}]
["Бокс","24",0,0,null,null,null,0,null,null,null,null,0,null,null,null,0,null,null,null,0,null,null,null,null,{"$f":"'Раздел 2'!C33","v":0}]
["Борьба на поясах","25",0,0,null,null,null,0,null,null,null,null,0,null,null,null,0,null,null,null,0,null,null,null,null,{"$f":"'Раздел 2'!C34","v":0}]
["Боулинг","26",0,0,null,null,null,0,null,null,null,null,0,null,null,null,0,null,null,null,0,null,null,null,null,{"$f":"'Раздел 2'!C35","v":0}]
["Боулспорт","27",0,0,null,null,null,0,null,null,null,null,0,null,null,null,0,null,null,null,0,null,null,null,null,{"$f":"'Раздел 2'!C36","v":0}]
["Велосипедный спорт - всего","28",0,0,{"$f":"SUM(E38:E41)","v":0},{"$f":"SUM(F38:F41)","v":0},0,0,0,0,0,0,0,0,0,0,0,0,0,0,0,0,0,0,0,{"$f":"'Раздел 2'!C37","v":0}]
["в том числе:\nBMX","29",0,0,null,null,null,0,null,null,null,null,0,null,null,null,0,null,null,null,0,null,null,null,null,{"$f":"'Раздел 2'!C38","v":0}]
["Маунтинбайк","30",0,0,null,null,null,0,null,null,null,null,0,null,null,null,0,null,null,null,0,null,null,null,null,{"$f":"'Раздел 2'!C39","v":0}]
["Трек","31",0,0,null,null,null,0,null,null,null,null,0,null,null,null,0,null,null,null,0,null,null,null,null,{"$f":"'Раздел 2'!C40","v":0}]
["Шоссе","32",0,0,null,null,null,0,null,null,null,null,0,null,null,null,0,null,null,null,0,null,null,null,null,{"$f":"'Раздел 2'!C41","v":0}]
["Вертолетный спорт","33",0,0,null,null,null,0,null,null,null,null,0,null,null,null,0,null,null,null,0,null,null,null,null,{"$f":"'Раздел 2'!C42","v":0}]
["Водно-моторный спорт","34",0,0,null,null,null,0,null,null,null,null,0,null,null,null,0,null,null,null,0,null,null,null,null,{"$f":"'Раздел 2'!C43","v":0}]
["Водно-спасательное многоборье","35",0,0,null,null,null,0,null,null,null,null,0,null,null,null,0,null,null,null,0,null,null,null,null,{"$f":"'Раздел 2'!C44","v":0}]
["Водное поло - всего ","36",0,0,{"$f":"SUM(E46:E47)","v":0},{"$f":"SUM(F46:F47)","v":0},0,0,0,0,0,0,0,0,0,0,0,0,0,0,0,0,0,0,0,{"$f":"'Раздел 2'!C45","v":0}]
["в том числе:\nВодное поло (муж.)","37",0,0,null,null,null,0,null,null,null,null,0,null,null,null,0,null,null,null,0,null,null,null,null,{"$f":"'Раздел 2'!C46","v":0}]
["Водное поло (жен.)","38",0,0,null,null,null,0,null,null,null,null,0,null,null,null,0,null,null,null,0,null,null,null,null,{"$f":"'Раздел 2'!C47","v":0}]
["Воднолыжный спорт","39",0,0,null,null,null,0,null,null,null,null,0,null,null,null,0,null,null,null,0,null,null,null,null,{"$f":"'Раздел 2'!C48","v":0}]
["Военно-прикладной спорт","40",0,0,null,null,null,0,null,null,null,null,0,null,null,null,0,null,null,null,0,null,null,null,null,{"$f":"'Раздел 2'!C49","v":0}]
["Военно-спортивное многоборье","41",0,0,null,null,null,0,null,null,null,null,0,null,null,null,0,null,null,null,0,null,null,null,null,{"$f":"'Раздел 2'!C50","v":0}]
["Воздухоплавательный спорт","42",0,0,null,null,null,0,null,null,null,null,0,null,null,null,0,null,null,null,0,null,null,null,null,{"$f":"'Раздел 2'!C51","v":0}]
["Воздушно-силовая атлетика","43",0,0,null,null,null,0,null,null,null,null,0,null,null,null,0,null,null,null,0,null,null,null,null,{"$f":"'Раздел 2'!C52","v":0}]
["Волейбол - всего","44",0,0,{"$f":"SUM(E54:E57)","v":0},{"$f":"SUM(F54:F57)","v":0},0,0,0,0,0,0,0,0,0,0,0,0,0,0,0,0,0,0,0,{"$f":"'Раздел 2'!C53","v":0}]
["в том числе:\nВолейбол (муж.)","45",0,0,null,null,null,0,null,null,null,null,0,null,null,null,0,null,null,null,0,null,null,null,null,{"$f":"'Раздел 2'!C54","v":0}]
["Волейбол (жен.)","46",0,0,null,null,null,0,null,null,null,null,0,null,null,null,0,null,null,null,0,null,null,null,null,{"$f":"'Раздел 2'!C55","v":0}]
["Пляжный волейбол (муж.)","47",0,0,null,null,null,0,null,null,null,null,0,null,null,null,0,null,null,null,0,null,null,null,null,{"$f":"'Раздел 2'!C56","v":0}]
["Пляжный волейбол (жен.)","48",0,0,null,null,null,0,null,null,null,null,0,null,null,null,0,null,null,null,0,null,null,null,null,{"$f":"'Раздел 2'!C57","v":0}]
["Восточное боевое единоборство","49",0,0,null,null,null,0,null,null,null,null,0,null,null,null,0,null,null,null,0,null,null,null,null,{"$f":"'Раздел 2'!C58","v":0}]
["Всестилевое каратэ","50",0,0,null,null,null,0,null,null,null,null,0,null,null,null,0,null,null,null,0,null,null,null,null,{"$f":"'Раздел 2'!C59","v":0}]
["Гандбол - всего","51",0,0,{"$f":"SUM(E61:E63)","v":0},{"$f":"SUM(F61:F63)","v":0},0,0,0,0,0,0,0,0,0,0,0,0,0,0,0,0,0,0,0,{"$f":"'Раздел 2'!C60","v":0}]
["в том числе:\nГандбол (муж.)","52",0,0,null,null,null,0,null,null,null,null,0,null,null,null,0,null,null,null,0,null,null,null,null,{"$f":"'Раздел 2'!C61","v":0}]
["Гандбол (жен.)","53",0,0,null,null,null,0,null,null,null,null,0,null,null,null,0,null,null,null,0,null,null,null,null,{"$f":"'Раздел 2'!C62","v":0}]
["Пляжный гандбол","54",0,0,null,null,null,0,null,null,null,null,0,null,null,null,0,null,null,null,0,null,null,null,null,{"$f":"'Раздел 2'!C63","v":0}]
["Гиревой спорт","55",0,0,null,null,null,0,null,null,null,null,0,null,null,null,0,null,null,null,0,null,null,null,null,{"$f":"'Раздел 2'!C64","v":0}]
["Го","56",0,0,null,null,null,0,null,null,null,null,0,null,null,null,0,null,null,null,0,null,null,null,null,{"$f":"'Раздел 2'!C65","v":0}]
["Гольф","57",0,0,null,null,null,0,null,null,null,null,0,null,null,null,0,null,null,null,0,null,null,null,null,{"$f":"'Раздел 2'!C66","v":0}]
["Гонки на охотничьих лыжах","58",0,0,null,null,null,0,null,null,null,null,0,null,null,null,0,null,null,null,0,null,null,null,null,{"$f":"'Раздел 2'!C67","v":0}]
["Гонки с препятствиями","59",0,0,null,null,null,0,null,null,null,null,0,null,null,null,0,null,null,null,0,null,null,null,null,{"$f":"'Раздел 2'!C68","v":0}]
["Горнолыжный спорт","60",0,0,null,null,null,0,null,null,null,null,0,null,null,null,0,null,null,null,0,null,null,null,null,{"$f":"'Раздел 2'!C69","v":0}]
["Городошный спорт","61",0,0,null,null,null,0,null,null,null,null,0,null,null,null,0,null,null,null,0,null,null,null,null,{"$f":"'Раздел 2'!C70","v":0}]
["Гребля на байдарках и каноэ","62",0,0,null,null,null,0,null,null,null,null,0,null,null,null,0,null,null,null,0,null,null,null,null,{"$f":"'Раздел 2'!C71","v":0}]
["Гребля на шлюпках","63",0,0,null,null,null,0,null,null,null,null,0,null,null,null,0,null,null,null,0,null,null,null,null,{"$f":"'Раздел 2'!C72","v":0}]
["Гребной слалом","64",0,0,null,null,null,0,null,null,null,null,0,null,null,null,0,null,null,null,0,null,null,null,null,{"$f":"'Раздел 2'!C73","v":0}]
["Гребной спорт - всего","65",0,0,{"$f":"SUM(E75:E78)","v":0},{"$f":"SUM(F75:F78)","v":0},0,0,0,0,0,0,0,0,0,0,0,0,0,0,0,0,0,0,0,{"$f":"'Раздел 2'!C74","v":0}]
["в том числе:\nАкадемическая гребля","66",{"$f":"SUM(D75,H75)","v":0},{"$f":"SUM(E75:G75)","v":0},null,null,null,{"$f":"SUM(I75:L75)","v":0},null,null,null,null,{"$f":"SUM(N75:P75)","v":0},null,null,null,{"$f":"SUM(R75:T75)","v":0},null,null,null,{"$f":"SUM(V75:Y75)","v":0},null,null,null,null,{"$f":"'Раздел 2'!C75","v":0}]
["Гребля-индор","67",0,0,null,null,null,0,null,null,null,null,0,null,null,null,0,null,null,null,0,null,null,null,null,{"$f":"'Раздел 2'!C76","v":0}]
["Народная гребля","68",0,0,null,null,null,0,null,null,null,null,0,null,null,null,0,null,null,null,0,null,null,null,null,{"$f":"'Раздел 2'!C77","v":0}]
["Прибрежная гребля","69",0,0,null,null,null,0,null,null,null,null,0,null,null,null,0,null,null,null,0,null,null,null,null,{"$f":"'Раздел 2'!C78","v":0}]
["Гребно-парусное двоеборье","70",0,0,null,null,null,0,null,null,null,null,0,null,null,null,0,null,null,null,0,null,null,null,null,{"$f":"'Раздел 2'!C79","v":0}]
["Дартс","71",0,0,null,null,null,0,null,null,null,null,0,null,null,null,0,null,null,null,0,null,null,null,null,{"$f":"'Раздел 2'!C80","v":0}]
["Джиу-джитсу","72",0,0,null,null,null,0,null,null,null,null,0,null,null,null,0,null,null,null,0,null,null,null,null,{"$f":"'Раздел 2'!C81","v":0}]
["Дзюдо","73",118,118,2,null,116,0,null,null,null,null,115,null,null,115,0,null,null,null,0,null,null,null,null,{"$f":"'Раздел 2'!C82","v":1}]
["Ездовой спорт","74",0,0,null,null,null,0,null,null,null,null,0,null,null,null,0,null,null,null,0,null,null,null,null,{"$f":"'Раздел 2'!C83","v":0}]
["Зимнее плавание","75",0,0,null,null,null,0,null,null,null,null,0,null,null,null,0,null,null,null,0,null,null,null,null,{"$f":"'Раздел 2'!C84","v":0}]
["Капоэйра","76",0,0,null,null,null,0,null,null,null,null,0,null,null,null,0,null,null,null,0,null,null,null,null,{"$f":"'Раздел 2'!C85","v":0}]
["Каратэ","77",0,0,null,null,null,0,null,null,null,null,0,null,null,null,0,null,null,null,0,null,null,null,null,{"$f":"'Раздел 2'!C86","v":0}]
["Кендо","78",0,0,null,null,null,0,null,null,null,null,0,null,null,null,0,null,null,null,0,null,null,null,null,{"$f":"'Раздел 2'!C87","v":0}]
["Керешу","79",0,0,null,null,null,0,null,null,null,null,0,null,null,null,0,null,null,null,0,null,null,null,null,{"$f":"'Раздел 2'!C88","v":0}]
["Кёрлинг - всего","80",0,0,{"$f":"SUM(E90:E92)","v":0},{"$f":"SUM(F90:F92)","v":0},0,0,0,0,0,0,0,0,0,0,0,0,0,0,0,0,0,0,0,{"$f":"'Раздел 2'!C89","v":0}]
["в том числе:\nКёрлинг (муж.)","81",0,0,null,null,null,0,null,null,null,null,0,null,null,null,0,null,null,null,0,null,null,null,null,{"$f":"'Раздел 2'!C90","v":0}]
["Кёрлинг (жен.)","82",0,0,null,null,null,0,null,null,null,null,0,null,null,null,0,null,null,null,0,null,null,null,null,{"$f":"'Раздел 2'!C91","v":0}]
["Кёрлинг – смешанные пары","83",0,0,null,null,null,0,null,null,null,null,0,null,null,null,0,null,null,null,0,null,null,null,null,{"$f":"'Раздел 2'!C92","v":0}]
["Кикбоксинг","84",47,46,7,4,35,1,null,null,1,null,1,1,null,null,25,3,null,22,0,null,null,null,null,{"$f":"'Раздел 2'!C93","v":1}]
["Кинологический спорт","85",0,0,null,null,null,0,null,null,null,null,0,null,null,null,0,null,null,null,0,null,null,null,null,{"$f":"'Раздел 2'!C94","v":0}]
["Киокусинкай","86",0,0,null,null,null,0,null,null,null,null,0,null,null,null,0,null,null,null,0,null,null,null,null,{"$f":"'Раздел 2'!C95","v":0}]
["Киокушин","87",0,0,null,null,null,0,null,null,null,null,0,null,null,null,0,null,null,null,0,null,null,null,null,{"$f":"'Раздел 2'!C96","v":0}]
["Комплексное единоборство","88",0,0,null,null,null,0,null,null,null,null,0,null,null,null,0,null,null,null,0,null,null,null,null,{"$f":"'Раздел 2'!C97","v":0}]
["Компьютерный спорт","89",0,0,null,null,null,0,null,null,null,null,0,null,null,null,0,null,null,null,0,null,null,null,null,{"$f":"'Раздел 2'!C98","v":0}]
["Конный спорт","90",0,0,null,null,null,0,null,null,null,null,0,null,null,null,0,null,null,null,0,null,null,null,null,{"$f":"'Раздел 2'!C99","v":0}]
["Конькобежный спорт - всего","91",0,0,{"$f":"SUM(E101:E102)","v":0},{"$f":"SUM(F101:F102)","v":0},0,0,0,0,0,0,0,0,0,0,0,0,0,0,0,0,0,0,0,{"$f":"'Раздел 2'!C100","v":0}]
["в том числе:\nКонькобежный спорт","92",0,0,null,null,null,0,null,null,null,null,0,null,null,null,0,null,null,null,0,null,null,null,null,{"$f":"'Раздел 2'!C101","v":0}]
["Шорт-трек","93",0,0,null,null,null,0,null,null,null,null,0,null,null,null,0,null,null,null,0,null,null,null,null,{"$f":"'Раздел 2'!C102","v":0}]
["Корэш","94",0,0,null,null,null,0,null,null,null,null,0,null,null,null,0,null,null,null,0,null,null,null,null,{"$f":"'Раздел 2'!C103","v":0}]
["Крикет","95",0,0,null,null,null,0,null,null,null,null,0,null,null,null,0,null,null,null,0,null,null,null,null,{"$f":"'Раздел 2'!C104","v":0}]
["Кудо","96",0,0,null,null,null,0,null,null,null,null,0,null,null,null,0,null,null,null,0,null,null,null,null,{"$f":"'Раздел 2'!C105","v":0}]
["Лапта","97",0,0,null,null,null,0,null,null,null,null,0,null,null,null,0,null,null,null,0,null,null,null,null,{"$f":"'Раздел 2'!C106","v":0}]
["Легкая атлетика - всего","98",0,0,{"$f":"SUM(E108:E114)","v":0},{"$f":"SUM(F108:F114)","v":0},0,0,0,0,0,0,0,0,0,0,0,0,0,0,0,0,0,0,0,{"$f":"'Раздел 2'!C107","v":0}]
["в том числе:\nСпринтерский и барьерный бег","99",0,0,null,null,null,0,null,null,null,null,0,null,null,null,0,null,null,null,0,null,null,null,null,{"$f":"'Раздел 2'!C108","v":0}]
["Бег на средние дистанции и бег с препятствиями","100",0,0,null,null,null,0,null,null,null,null,0,null,null,null,0,null,null,null,0,null,null,null,null,{"$f":"'Раздел 2'!C109","v":0}]
["Бег на длинные и сверхдлинные дистанции","101",0,0,null,null,null,0,null,null,null,null,0,null,null,null,0,null,null,null,0,null,null,null,null,{"$f":"'Раздел 2'!C110","v":0}]
["Многоборья","102",0,0,null,null,null,0,null,null,null,null,0,null,null,null,0,null,null,null,0,null,null,null,null,{"$f":"'Раздел 2'!C111","v":0}]
["Прыжки","103",0,0,null,null,null,0,null,null,null,null,0,null,null,null,0,null,null,null,0,null,null,null,null,{"$f":"'Раздел 2'!C112","v":0}]
["Метания","104",0,0,null,null,null,0,null,null,null,null,0,null,null,null,0,null,null,null,0,null,null,null,null,{"$f":"'Раздел 2'!C113","v":0}]
["Спортивная ходьба","105",0,0,null,null,null,0,null,null,null,null,0,null,null,null,0,null,null,null,0,null,null,null,null,{"$f":"'Раздел 2'!C114","v":0}]
["Лыжное двоеборье","106",0,0,null,null,null,0,null,null,null,null,0,null,null,null,0,null,null,null,0,null,null,null,null,{"$f":"'Раздел 2'!C115","v":0}]
["Лыжные гонки","107",0,0,null,null,null,0,null,null,null,null,0,null,null,null,0,null,null,null,0,null,null,null,null,{"$f":"'Раздел 2'!C116","v":0}]
["Мас-рестлинг","108",0,0,null,null,null,0,null,null,null,null,0,null,null,null,0,null,null,null,0,null,null,null,null,{"$f":"'Раздел 2'!C117","v":0}]
["Международное военно-спортивное многоборье","109",0,0,null,null,null,0,null,null,null,null,0,null,null,null,0,null,null,null,0,null,null,null,null,{"$f":"'Раздел 2'!C118","v":0}]
["Микрофутзал","110",0,0,null,null,null,0,null,null,null,null,0,null,null,null,0,null,null,null,0,null,null,null,null,{"$f":"'Раздел 2'!C119","v":0}]
["Многоборье кинологов","111",0,0,null,null,null,0,null,null,null,null,0,null,null,null,0,null,null,null,0,null,null,null,null,{"$f":"'Раздел 2'!C120","v":0}]
["Многоборье спасателей МЧС России","112",0,0,null,null,null,0,null,null,null,null,0,null,null,null,0,null,null,null,0,null,null,null,null,{"$f":"'Раздел 2'!C121","v":0}]
["Морское многоборье","113",0,0,null,null,null,0,null,null,null,null,0,null,null,null,0,null,null,null,0,null,null,null,null,{"$f":"'Раздел 2'!C122","v":0}]
["Мотоциклетный спорт","114",0,0,null,null,null,0,null,null,null,null,0,null,null,null,0,null,null,null,0,null,null,null,null,{"$f":"'Раздел 2'!C123","v":0}]
["Муайтай","115",0,0,null,null,null,0,null,null,null,null,0,null,null,null,0,null,null,null,0,null,null,null,null,{"$f":"'Раздел 2'!C124","v":0}]
["Нарды","116",0,0,null,null,null,0,null,null,null,null,0,null,null,null,0,null,null,null,0,null,null,null,null,{"$f":"'Раздел 2'!C125","v":0}]
["Настольный теннис","117",0,0,null,null,null,0,null,null,null,null,0,null,null,null,0,null,null,null,0,null,null,null,null,{"$f":"'Раздел 2'!C126","v":0}]
["Падел","118",0,0,null,null,null,0,null,null,null,null,0,null,null,null,0,null,null,null,0,null,null,null,null,{"$f":"'Раздел 2'!C127","v":0}]
["Парашютный спорт","119",0,0,null,null,null,0,null,null,null,null,0,null,null,null,0,null,null,null,0,null,null,null,null,{"$f":"'Раздел 2'!C128","v":0}]
["Парусный спорт","120",0,0,null,null,null,0,null,null,null,null,0,null,null,null,0,null,null,null,0,null,null,null,null,{"$f":"'Раздел 2'!C129","v":0}]
["Пауэрлифтинг","121",50,48,10,15,23,2,null,null,2,null,23,6,11,6,0,null,null,null,0,null,null,null,null,{"$f":"'Раздел 2'!C130","v":1}]
["Перетягивание каната","122",0,0,null,null,null,0,null,null,null,null,0,null,null,null,0,null,null,null,0,null,null,null,null,{"$f":"'Раздел 2'!C131","v":0}]
["Пилонный спорт","123",0,0,null,null,null,0,null,null,null,null,0,null,null,null,0,null,null,null,0,null,null,null,null,{"$f":"'Раздел 2'!C132","v":0}]
["Плавание - всего","124",0,0,{"$f":"SUM(E134:E135)","v":0},{"$f":"SUM(F134:F135)","v":0},0,0,0,0,0,0,0,0,0,0,0,0,0,0,0,0,0,0,0,{"$f":"'Раздел 2'!C133","v":0}]
["в том числе:\nПлавание ","125",0,0,null,null,null,0,null,null,null,null,0,null,null,null,0,null,null,null,0,null,null,null,null,{"$f":"'Раздел 2'!C134","v":0}]
["Открытая вода","126",0,0,null,null,null,0,null,null,null,null,0,null,null,null,0,null,null,null,0,null,null,null,null,{"$f":"'Раздел 2'!C135","v":0}]
["Планерный спорт","127",0,0,null,null,null,0,null,null,null,null,0,null,null,null,0,null,null,null,0,null,null,null,null,{"$f":"'Раздел 2'!C136","v":0}]
["Подводный спорт","128",0,0,null,null,null,0,null,null,null,null,0,null,null,null,0,null,null,null,0,null,null,null,null,{"$f":"'Раздел 2'!C137","v":0}]
["Пожарно-спасательный спорт","129",0,0,null,null,null,0,null,null,null,null,0,null,null,null,0,null,null,null,0,null,null,null,null,{"$f":"'Раздел 2'!C138","v":0}]
["Полиатлон","130",{"$f":"SUM(D139,H139)","v":0},{"$f":"SUM(E139:G139)","v":0},null,null,null,{"$f":"SUM(I139:L139)","v":0},null,null,null,null,{"$f":"SUM(N139:P139)","v":0},null,null,null,{"$f":"SUM(R139:T139)","v":0},null,null,null,{"$f":"SUM(V139:Y139)","v":0},null,null,null,null,{"$f":"'Раздел 2'!C139","v":0}]
["Практическая стрельба","131",0,0,null,null,null,0,null,null,null,null,0,null,null,null,0,null,null,null,0,null,null,null,null,{"$f":"'Раздел 2'!C140","v":0}]
["Прыжки в воду - всего","132",0,0,{"$f":"SUM(E142:E143)","v":0},{"$f":"SUM(F142:F143)","v":0},0,0,0,0,0,0,0,0,0,0,0,0,0,0,0,0,0,0,0,{"$f":"'Раздел 2'!C141","v":0}]
["в том числе:\nПрыжки в воду","133",0,0,null,null,null,0,null,null,null,null,0,null,null,null,0,null,null,null,0,null,null,null,null,{"$f":"'Раздел 2'!C142","v":0}]
["Прыжки в открытый водоем","134",0,0,null,null,null,0,null,null,null,null,0,null,null,null,0,null,null,null,0,null,null,null,null,{"$f":"'Раздел 2'!C143","v":0}]
["Прыжки на батуте - всего","135",0,0,{"$f":"SUM(E145:E148)","v":0},{"$f":"SUM(F145:F148)","v":0},0,0,0,0,0,0,0,0,0,0,0,0,0,0,0,0,0,0,0,{"$f":"'Раздел 2'!C144","v":0}]
["в том числе:\nАкробатическая дорожка","136",0,0,null,null,null,0,null,null,null,null,0,null,null,null,0,null,null,null,0,null,null,null,null,{"$f":"'Раздел 2'!C145","v":0}]
["Двойной минитрамп","137",0,0,null,null,null,0,null,null,null,null,0,null,null,null,0,null,null,null,0,null,null,null,null,{"$f":"'Раздел 2'!C146","v":0}]
["Индивидуальные прыжки","138",0,0,null,null,null,0,null,null,null,null,0,null,null,null,0,null,null,null,0,null,null,null,null,{"$f":"'Раздел 2'!C147","v":0}]
["Синхронные прыжки","139",0,0,null,null,null,0,null,null,null,null,0,null,null,null,0,null,null,null,0,null,null,null,null,{"$f":"'Раздел 2'!C148","v":0}]
["Прыжки на лыжах с трамплина","140",0,0,null,null,null,0,null,null,null,null,0,null,null,null,0,null,null,null,0,null,null,null,null,{"$f":"'Раздел 2'!C149","v":0}]
["Пулевая стрельба - всего","141",0,0,{"$f":"SUM(E151:E155)","v":0},{"$f":"SUM(F151:F155)","v":0},0,0,0,0,0,0,0,0,0,0,0,0,0,0,0,0,0,0,0,{"$f":"'Раздел 2'!C150","v":0}]
["в том числе:\nПневматическая винтовка","142",0,0,null,null,null,0,null,null,null,null,0,null,null,null,0,null,null,null,0,null,null,null,null,{"$f":"'Раздел 2'!C151","v":0}]
["Пневматический пистолет","143",0,0,null,null,null,0,null,null,null,null,0,null,null,null,0,null,null,null,0,null,null,null,null,{"$f":"'Раздел 2'!C152","v":0}]
["Малокалиберная винтовка","144",0,0,null,null,null,0,null,null,null,null,0,null,null,null,0,null,null,null,0,null,null,null,null,{"$f":"'Раздел 2'!C153","v":0}]
["Малокалиберный пистолет","145",0,0,null,null,null,0,null,null,null,null,0,null,null,null,0,null,null,null,0,null,null,null,null,{"$f":"'Раздел 2'!C154","v":0}]
["Движущаяся мишень","146",0,0,null,null,null,0,null,null,null,null,0,null,null,null,0,null,null,null,0,null,null,null,null,{"$f":"'Раздел 2'!C155","v":0}]
["Пэйнтбол","147",0,0,null,null,null,0,null,null,null,null,0,null,null,null,0,null,null,null,0,null,null,null,null,{"$f":"'Раздел 2'!C156","v":0}]
["Радиоспорт","148",0,0,null,null,null,0,null,null,null,null,0,null,null,null,0,null,null,null,0,null,null,null,null,{"$f":"'Раздел 2'!C157","v":0}]
["Рафтинг","149",0,0,null,null,null,0,null,null,null,null,0,null,null,null,0,null,null,null,0,null,null,null,null,{"$f":"'Раздел 2'!C158","v":0}]
["Регби - всего","150",0,0,{"$f":"SUM(E160:E164)","v":0},{"$f":"SUM(F160:F164)","v":0},0,0,0,0,0,0,0,0,0,0,0,0,0,0,0,0,0,0,0,{"$f":"'Раздел 2'!C159","v":0}]
["в том числе:\nРегби","151",0,0,null,null,null,0,null,null,null,null,0,null,null,null,0,null,null,null,0,null,null,null,null,{"$f":"'Раздел 2'!C160","v":0}]
["Регби 7 (муж.)","152",0,0,null,null,null,0,null,null,null,null,0,null,null,null,0,null,null,null,0,null,null,null,null,{"$f":"'Раздел 2'!C161","v":0}]
["Регби 7 (жен.)","153",0,0,null,null,null,0,null,null,null,null,0,null,null,null,0,null,null,null,0,null,null,null,null,{"$f":"'Раздел 2'!C162","v":0}]
["Регби - пляжное","154",0,0,null,null,null,0,null,null,null,null,0,null,null,null,0,null,null,null,0,null,null,null,null,{"$f":"'Раздел 2'!C163","v":0}]
["Регби на снегу","155",0,0,null,null,null,0,null,null,null,null,0,null,null,null,0,null,null,null,0,null,null,null,null,{"$f":"'Раздел 2'!C164","v":0}]
["Регбол","156",0,0,null,null,null,0,null,null,null,null,0,null,null,null,0,null,null,null,0,null,null,null,null,{"$f":"'Раздел 2'!C165","v":0}]
["Роллер спорт","157",0,0,null,null,null,0,null,null,null,null,0,null,null,null,0,null,null,null,0,null,null,null,null,{"$f":"'Раздел 2'!C166","v":0}]
["Роуп скиппинг (спортивная скакалка)","158",0,0,null,null,null,0,null,null,null,null,0,null,null,null,0,null,null,null,0,null,null,null,null,{"$f":"'Раздел 2'!C167","v":0}]
["Рукопашный бой","159",0,0,null,null,null,0,null,null,null,null,0,null,null,null,0,null,null,null,0,null,null,null,null,{"$f":"'Раздел 2'!C168","v":0}]
["Рыболовный спорт","160",0,0,null,null,null,0,null,null,null,null,0,null,null,null,0,null,null,null,0,null,null,null,null,{"$f":"'Раздел 2'!C169","v":0}]
["Сават","161",0,0,null,null,null,0,null,null,null,null,0,null,null,null,0,null,null,null,0,null,null,null,null,{"$f":"'Раздел 2'!C170","v":0}]
["Самбо","162",0,0,null,null,null,0,null,null,null,null,0,null,null,null,0,null,null,null,0,null,null,null,null,{"$f":"'Раздел 2'!C171","v":0}]
["Самолетный спорт","163",0,0,null,null,null,0,null,null,null,null,0,null,null,null,0,null,null,null,0,null,null,null,null,{"$f":"'Раздел 2'!C172","v":0}]
["Санный спорт","164",0,0,null,null,null,0,null,null,null,null,0,null,null,null,0,null,null,null,0,null,null,null,null,{"$f":"'Раздел 2'!C173","v":0}]
["Северное многоборье","165",0,0,null,null,null,0,null,null,null,null,0,null,null,null,0,null,null,null,0,null,null,null,null,{"$f":"'Раздел 2'!C174","v":0}]
["Серфинг","166",0,0,null,null,null,0,null,null,null,null,0,null,null,null,0,null,null,null,0,null,null,null,null,{"$f":"'Раздел 2'!C175","v":0}]
["Силовой экстрим","167",0,0,null,null,null,0,null,null,null,null,0,null,null,null,0,null,null,null,0,null,null,null,null,{"$f":"'Раздел 2'!C176","v":0}]
["Синхронное плавание","168",0,0,null,null,null,0,null,null,null,null,0,null,null,null,0,null,null,null,0,null,null,null,null,{"$f":"'Раздел 2'!C177","v":0}]
["Скалолазание","169",0,0,null,null,null,0,null,null,null,null,0,null,null,null,0,null,null,null,0,null,null,null,null,{"$f":"'Раздел 2'!C178","v":0}]
["Сквош","170",0,0,null,null,null,0,null,null,null,null,0,null,null,null,0,null,null,null,0,null,null,null,null,{"$f":"'Раздел 2'!C179","v":0}]
["Скейтбординг","171",0,0,null,null,null,0,null,null,null,null,0,null,null,null,0,null,null,null,0,null,null,null,null,{"$f":"'Раздел 2'!C180","v":0}]
["Служебно-боевая стрельба ","172",0,0,null,null,null,0,null,null,null,null,0,null,null,null,0,null,null,null,0,null,null,null,null,{"$f":"'Раздел 2'!C181","v":0}]
["Служебно-прикладной спорт","173",0,0,null,null,null,0,null,null,null,null,0,null,null,null,0,null,null,null,0,null,null,null,null,{"$f":"'Раздел 2'!C182","v":0}]
["Служебно-прикладной спорт ФСО России","174",0,0,null,null,null,0,null,null,null,null,0,null,null,null,0,null,null,null,0,null,null,null,null,{"$f":"'Раздел 2'!C183","v":0}]
["Служебно-прикладной спорт ФТС России","175",0,0,null,null,null,0,null,null,null,null,0,null,null,null,0,null,null,null,0,null,null,null,null,{"$f":"'Раздел 2'!C184","v":0}]
["Служебное двоеборье","176",0,0,null,null,null,0,null,null,null,null,0,null,null,null,0,null,null,null,0,null,null,null,null,{"$f":"'Раздел 2'!C185","v":0}]
["Служебное единоборство","177",0,0,null,null,null,0,null,null,null,null,0,null,null,null,0,null,null,null,0,null,null,null,null,{"$f":"'Раздел 2'!C186","v":0}]
["Служебное многоборье","178",0,0,null,null,null,0,null,null,null,null,0,null,null,null,0,null,null,null,0,null,null,null,null,{"$f":"'Раздел 2'!C187","v":0}]
["Служебный биатлон","179",0,0,null,null,null,0,null,null,null,null,0,null,null,null,0,null,null,null,0,null,null,null,null,{"$f":"'Раздел 2'!C188","v":0}]
["Спасательный спорт","180",0,0,null,null,null,0,null,null,null,null,0,null,null,null,0,null,null,null,0,null,null,null,null,{"$f":"'Раздел 2'!C189","v":0}]
["Стрельба из боевого ручного стрелкового оружия","181",0,0,null,null,null,0,null,null,null,null,0,null,null,null,0,null,null,null,0,null,null,null,null,{"$f":"'Раздел 2'!C190","v":0}]
["Стрельба из штатного или табельного оружия","182",0,0,null,null,null,0,null,null,null,null,0,null,null,null,0,null,null,null,0,null,null,null,null,{"$f":"'Раздел 2'!C191","v":0}]
["Стрельба на дальние дистанции","183",0,0,null,null,null,0,null,null,null,null,0,null,null,null,0,null,null,null,0,null,null,null,null,{"$f":"'Раздел 2'!C192","v":0}]
["Смешанное боевое единоборство (ММА)","184",0,0,null,null,null,0,null,null,null,null,0,null,null,null,0,null,null,null,0,null,null,null,null,{"$f":"'Раздел 2'!C193","v":0}]
["Сноуборд","185",0,0,null,null,null,0,null,null,null,null,0,null,null,null,0,null,null,null,0,null,null,null,null,{"$f":"'Раздел 2'!C194","v":0}]
["Современное пятиборье","186",0,0,null,null,null,0,null,null,null,null,0,null,null,null,0,null,null,null,0,null,null,null,null,{"$f":"'Раздел 2'!C195","v":0}]
["Софтбол","187",0,0,null,null,null,0,null,null,null,null,0,null,null,null,0,null,null,null,0,null,null,null,null,{"$f":"'Раздел 2'!C196","v":0}]
["Спорт сверхлегкой авиации","188",0,0,null,null,null,0,null,null,null,null,0,null,null,null,0,null,null,null,0,null,null,null,null,{"$f":"'Раздел 2'!C197","v":0}]
["Спортивная акробатика","189",52,51,20,17,14,1,null,null,1,null,25,6,9,10,0,null,null,null,0,null,null,null,null,{"$f":"'Раздел 2'!C198","v":1}]
["Спортивная аэробика","190",0,0,null,null,null,0,null,null,null,null,0,null,null,null,0,null,null,null,0,null,null,null,null,{"$f":"'Раздел 2'!C199","v":0}]
["Спортивная борьба - всего","191",0,0,{"$f":"SUM(E201:E205)","v":0},{"$f":"SUM(F201:F205)","v":0},0,0,0,0,0,0,0,0,0,0,0,0,0,0,0,0,0,0,0,{"$f":"'Раздел 2'!C200","v":0}]
["в том числе:\nВольная борьба","192",0,0,null,null,null,0,null,null,null,null,0,null,null,null,0,null,null,null,0,null,null,null,null,{"$f":"'Раздел 2'!C201","v":0}]
["Греко-римская борьба","193",0,0,null,null,null,0,null,null,null,null,0,null,null,null,0,null,null,null,0,null,null,null,null,{"$f":"'Раздел 2'!C202","v":0}]
["Грэпплинг","194",{"$f":"SUM(D203,H203)","v":0},{"$f":"SUM(E203:G203)","v":0},null,null,null,{"$f":"SUM(I203:L203)","v":0},null,null,null,null,{"$f":"SUM(N203:P203)","v":0},null,null,null,{"$f":"SUM(R203:T203)","v":0},null,null,null,{"$f":"SUM(V203:Y203)","v":0},null,null,null,null,{"$f":"'Раздел 2'!C203","v":0}]
["Грэпплинг-ги","195",0,0,null,null,null,0,null,null,null,null,0,null,null,null,0,null,null,null,0,null,null,null,null,{"$f":"'Раздел 2'!C204","v":0}]
["Панкратион","196",0,0,null,null,null,0,null,null,null,null,0,null,null,null,0,null,null,null,0,null,null,null,null,{"$f":"'Раздел 2'!C205","v":0}]
["Спортивная гимнастика","197",0,0,null,null,null,0,null,null,null,null,0,null,null,null,0,null,null,null,0,null,null,null,null,{"$f":"'Раздел 2'!C206","v":0}]
["Спортивная йога","198",0,0,null,null,null,0,null,null,null,null,0,null,null,null,0,null,null,null,0,null,null,null,null,{"$f":"'Раздел 2'!C207","v":0}]
["Спортивно-прикладное собаководство","199",0,0,null,null,null,0,null,null,null,null,0,null,null,null,0,null,null,null,0,null,null,null,null,{"$f":"'Раздел 2'!C208","v":0}]
["Спортивное программирование","200",0,0,null,null,null,0,null,null,null,null,0,null,null,null,0,null,null,null,0,null,null,null,null,{"$f":"'Раздел 2'!C209","v":0}]
["Спортивное метание ножа","201",0,0,null,null,null,0,null,null,null,null,0,null,null,null,0,null,null,null,0,null,null,null,null,{"$f":"'Раздел 2'!C210","v":0}]
["Спортивное ориентирование","202",0,0,null,null,null,0,null,null,null,null,0,null,null,null,0,null,null,null,0,null,null,null,null,{"$f":"'Раздел 2'!C211","v":0}]
["Спортивный бридж","203",0,0,null,null,null,0,null,null,null,null,0,null,null,null,0,null,null,null,0,null,null,null,null,{"$f":"'Раздел 2'!C212","v":0}]
["Спортивный туризм","204",0,0,null,null,null,0,null,null,null,null,0,null,null,null,0,null,null,null,0,null,null,null,null,{"$f":"'Раздел 2'!C213","v":0}]
["Стендовая стрельба - всего","205",0,0,{"$f":"SUM(E215:E218)","v":0},{"$f":"SUM(F215:F218)","v":0},0,0,0,0,0,0,0,0,0,0,0,0,0,0,0,0,0,0,0,{"$f":"'Раздел 2'!C214","v":0}]
["в том числе:\nТрап","206",0,0,null,null,null,0,null,null,null,null,0,null,null,null,0,null,null,null,0,null,null,null,null,{"$f":"'Раздел 2'!C215","v":0}]
["Скит","207",0,0,null,null,null,0,null,null,null,null,0,null,null,null,0,null,null,null,0,null,null,null,null,{"$f":"'Раздел 2'!C216","v":0}]
["Дубль-трап","208",0,0,null,null,null,0,null,null,null,null,0,null,null,null,0,null,null,null,0,null,null,null,null,{"$f":"'Раздел 2'!C217","v":0}]
["Спортинг","209",0,0,null,null,null,0,null,null,null,null,0,null,null,null,0,null,null,null,0,null,null,null,null,{"$f":"'Раздел 2'!C218","v":0}]
["Страйкбол","210",0,0,null,null,null,0,null,null,null,null,0,null,null,null,0,null,null,null,0,null,null,null,null,{"$f":"'Раздел 2'!C219","v":0}]
["Стрельба из арбалета","211",0,0,null,null,null,0,null,null,null,null,0,null,null,null,0,null,null,null,0,null,null,null,null,{"$f":"'Раздел 2'!C220","v":0}]
["Стрельба из лука - всего","212",0,0,{"$f":"SUM(E222:E224)","v":0},{"$f":"SUM(F222:F224)","v":0},0,0,0,0,0,0,0,0,0,0,0,0,0,0,0,0,0,0,0,{"$f":"'Раздел 2'!C221","v":0}]
["в том числе:\nКлассический лук","213",0,0,null,null,null,0,null,null,null,null,0,null,null,null,0,null,null,null,0,null,null,null,null,{"$f":"'Раздел 2'!C222","v":0}]
["   Блочный лук","214",0,0,null,null,null,0,null,null,null,null,0,null,null,null,0,null,null,null,0,null,null,null,null,{"$f":"'Раздел 2'!C223","v":0}]
["   Ачери ","215",0,0,null,null,null,0,null,null,null,null,0,null,null,null,0,null,null,null,0,null,null,null,null,{"$f":"'Раздел 2'!C224","v":0}]
["Судомодельный спорт","216",0,0,null,null,null,0,null,null,null,null,0,null,null,null,0,null,null,null,0,null,null,null,null,{"$f":"'Раздел 2'!C225","v":0}]
["Сумо","217",0,0,null,null,null,0,null,null,null,null,0,null,null,null,0,null,null,null,0,null,null,null,null,{"$f":"'Раздел 2'!C226","v":0}]
["Таврели","218",0,0,null,null,null,0,null,null,null,null,0,null,null,null,0,null,null,null,0,null,null,null,null,{"$f":"'Раздел 2'!C227","v":0}]
["Танцевальный спорт - всего","219",0,0,{"$f":"SUM(E229:E230)","v":0},{"$f":"SUM(F229:F230)","v":0},0,0,0,0,0,0,0,0,0,0,0,0,0,0,0,0,0,0,0,{"$f":"'Раздел 2'!C228","v":0}]
["в том числе:\nТанцевальный спорт","220",0,0,null,null,null,0,null,null,null,null,0,null,null,null,0,null,null,null,0,null,null,null,null,{"$f":"'Раздел 2'!C229","v":0}]
["Брейкинг","221",0,0,null,null,null,0,null,null,null,null,0,null,null,null,0,null,null,null,0,null,null,null,null,{"$f":"'Раздел 2'!C230","v":0}]
["Теннис","222",0,0,null,null,null,0,null,null,null,null,0,null,null,null,0,null,null,null,0,null,null,null,null,{"$f":"'Раздел 2'!C231","v":0}]
["Триатлон","223",0,0,null,null,null,0,null,null,null,null,0,null,null,null,0,null,null,null,0,null,null,null,null,{"$f":"'Раздел 2'!C232","v":0}]
["Тхэквондо (ВТФ)","224",73,73,1,8,64,0,null,null,null,null,45,null,6,39,0,null,null,null,0,null,null,null,null,{"$f":"'Раздел 2'!C233","v":1}]
["Тхэквондо ГТФ","225",0,0,null,null,null,0,null,null,null,null,0,null,null,null,0,null,null,null,0,null,null,null,null,{"$f":"'Раздел 2'!C234","v":0}]
["Тхэквондо ИТФ","226",0,0,null,null,null,0,null,null,null,null,0,null,null,null,0,null,null,null,0,null,null,null,null,{"$f":"'Раздел 2'!C235","v":0}]
["Тхэквондо МФТ","227",0,0,null,null,null,0,null,null,null,null,0,null,null,null,0,null,null,null,0,null,null,null,null,{"$f":"'Раздел 2'!C236","v":0}]
["Тяжелая атлетика","228",0,0,null,null,null,0,null,null,null,null,0,null,null,null,0,null,null,null,0,null,null,null,null,{"$f":"'Раздел 2'!C237","v":0}]
["Универсальный бой","229",0,0,null,null,null,0,null,null,null,null,0,null,null,null,0,null,null,null,0,null,null,null,null,{"$f":"'Раздел 2'!C238","v":0}]
["Ушу","230",0,0,null,null,null,0,null,null,null,null,0,null,null,null,0,null,null,null,0,null,null,null,null,{"$f":"'Раздел 2'!C239","v":0}]
["Фехтование - всего","231",0,0,{"$f":"SUM(E241:E244)","v":0},{"$f":"SUM(F241:F244)","v":0},0,0,0,0,0,0,0,0,0,0,0,0,0,0,0,0,0,0,0,{"$f":"'Раздел 2'!C240","v":0}]
["в том числе:\nРапира","232",0,0,null,null,null,0,null,null,null,null,0,null,null,null,0,null,null,null,0,null,null,null,null,{"$f":"'Раздел 2'!C241","v":0}]
["Сабля","233",0,0,null,null,null,0,null,null,null,null,0,null,null,null,0,null,null,null,0,null,null,null,null,{"$f":"'Раздел 2'!C242","v":0}]
["Шпага","234",0,0,null,null,null,0,null,null,null,null,0,null,null,null,0,null,null,null,0,null,null,null,null,{"$f":"'Раздел 2'!C243","v":0}]
["Арт-фехтование","235",0,0,null,null,null,0,null,null,null,null,0,null,null,null,0,null,null,null,0,null,null,null,null,{"$f":"'Раздел 2'!C244","v":0}]
["Фигурное катание на коньках","236",0,0,null,null,null,0,null,null,null,null,0,null,null,null,0,null,null,null,0,null,null,null,null,{"$f":"'Раздел 2'!C245","v":0}]
["Фиджитал спорт (функционально-цифровй спорт)","237",0,0,null,null,null,0,null,null,null,null,0,null,null,null,0,null,null,null,0,null,null,null,null,{"$f":"'Раздел 2'!C246","v":0}]
["Фитнес-аэробика","238",0,0,null,null,null,0,null,null,null,null,0,null,null,null,0,null,null,null,0,null,null,null,null,{"$f":"'Раздел 2'!C247","v":0}]
["Флаинг диск","239",0,0,null,null,null,0,null,null,null,null,0,null,null,null,0,null,null,null,0,null,null,null,null,{"$f":"'Раздел 2'!C248","v":0}]
["Флорбол","240",0,0,null,null,null,0,null,null,null,null,0,null,null,null,0,null,null,null,0,null,null,null,null,{"$f":"'Раздел 2'!C249","v":0}]
["Фристайл - всего","241",0,0,{"$f":"SUM(E251:E256)","v":0},{"$f":"SUM(F251:F256)","v":0},0,0,0,0,0,0,0,0,0,0,0,0,0,0,0,0,0,0,0,{"$f":"'Раздел 2'!C250","v":0}]
["в том числе:\nАкробатика","242",0,0,null,null,null,0,null,null,null,null,0,null,null,null,0,null,null,null,0,null,null,null,null,{"$f":"'Раздел 2'!C251","v":0}]
["Биг-эйр","243",0,0,null,null,null,0,null,null,null,null,0,null,null,null,0,null,null,null,0,null,null,null,null,{"$f":"'Раздел 2'!C252","v":0}]
["Могул","244",0,0,null,null,null,0,null,null,null,null,0,null,null,null,0,null,null,null,0,null,null,null,null,{"$f":"'Раздел 2'!C253","v":0}]
["Ски-кросс","245",0,0,null,null,null,0,null,null,null,null,0,null,null,null,0,null,null,null,0,null,null,null,null,{"$f":"'Раздел 2'!C254","v":0}]
["Хаф-пайп","246",0,0,null,null,null,0,null,null,null,null,0,null,null,null,0,null,null,null,0,null,null,null,null,{"$f":"'Раздел 2'!C255","v":0}]
["Слоуп-стайл","247",0,0,null,null,null,0,null,null,null,null,0,null,null,null,0,null,null,null,0,null,null,null,null,{"$f":"'Раздел 2'!C256","v":0}]
["Функциональное многоборье","248",0,0,null,null,null,0,null,null,null,null,0,null,null,null,0,null,null,null,0,null,null,null,null,{"$f":"'Раздел 2'!C257","v":0}]
["Футбол - всего","249",0,0,{"$f":"SUM(E259:E264)","v":0},{"$f":"SUM(F259:F264)","v":0},0,0,0,0,0,0,0,0,0,0,0,0,0,0,0,0,0,0,0,{"$f":"'Раздел 2'!C258","v":0}]
["в том числе:\nФутбол (муж.)","250",0,0,null,null,null,0,null,null,null,null,0,null,null,null,0,null,null,null,0,null,null,null,null,{"$f":"'Раздел 2'!C259","v":0}]
["Футбол (жен.)","251",0,0,null,null,null,0,null,null,null,null,0,null,null,null,0,null,null,null,0,null,null,null,null,{"$f":"'Раздел 2'!C260","v":0}]
["Мини-футбол (футзал)","252",0,0,null,null,null,0,null,null,null,null,0,null,null,null,0,null,null,null,0,null,null,null,null,{"$f":"'Раздел 2'!C261","v":0}]
["Пляжный футбол","253",0,0,null,null,null,0,null,null,null,null,0,null,null,null,0,null,null,null,0,null,null,null,null,{"$f":"'Раздел 2'!C262","v":0}]
["Футбол 6х6, 7х7, 8х8","254",0,0,null,null,null,0,null,null,null,null,0,null,null,null,0,null,null,null,0,null,null,null,null,{"$f":"'Раздел 2'!C263","v":0}]
["Интерактивный футбол","255",0,0,null,null,null,0,null,null,null,null,0,null,null,null,0,null,null,null,0,null,null,null,null,{"$f":"'Раздел 2'!C264","v":0}]
["Хапкидо","256",0,0,null,null,null,0,null,null,null,null,0,null,null,null,0,null,null,null,0,null,null,null,null,{"$f":"'Раздел 2'!C265","v":0}]
["Хапсагай","257",0,0,null,null,null,0,null,null,null,null,0,null,null,null,0,null,null,null,0,null,null,null,null,{"$f":"'Раздел 2'!C266","v":0}]
["Хоккей - всего","258",{"$f":"SUM(D267,H267)","v":0},{"$f":"SUM(E267:G267)","v":0},{"$f":"SUM(E268:E269)","v":0},{"$f":"SUM(F268:F269)","v":0},0,0,0,0,0,0,0,0,0,0,0,0,0,0,0,0,0,0,0,{"$f":"'Раздел 2'!C267","v":0}]
["в том числе:\nХоккей (муж.)","259",0,0,null,null,null,{"$f":"SUM(I268:L268)","v":0},null,null,null,null,{"$f":"SUM(N268:P268)","v":0},null,null,null,{"$f":"SUM(R268:T268)","v":0},null,null,null,{"$f":"SUM(V268:Y268)","v":0},null,null,null,null,{"$f":"'Раздел 2'!C268","v":0}]
["Хоккей (жен.)","260",0,0,null,null,null,0,null,null,null,null,0,null,null,null,0,null,null,null,0,null,null,null,null,{"$f":"'Раздел 2'!C269","v":0}]
["Хоккей на траве - всего","261",0,0,{"$f":"SUM(E271:E273)","v":0},{"$f":"SUM(F271:F273)","v":0},0,0,0,0,0,0,0,0,0,0,0,0,0,0,0,0,0,0,0,{"$f":"'Раздел 2'!C270","v":0}]
["в том числе:\nХоккей на траве (муж.)","262",0,0,null,null,null,0,null,null,null,null,0,null,null,null,0,null,null,null,0,null,null,null,null,{"$f":"'Раздел 2'!C271","v":0}]
["Хоккей на траве (жен.)","263",0,0,null,null,null,0,null,null,null,null,0,null,null,null,0,null,null,null,0,null,null,null,null,{"$f":"'Раздел 2'!C272","v":0}]
["Индорхоккей","264",0,0,null,null,null,0,null,null,null,null,0,null,null,null,0,null,null,null,0,null,null,null,null,{"$f":"'Раздел 2'!C273","v":0}]
["Хоккей с мячом","265",0,0,null,null,null,0,null,null,null,null,0,null,null,null,0,null,null,null,0,null,null,null,null,{"$f":"'Раздел 2'!C274","v":0}]
["Художественная гимнастика","266",0,0,null,null,null,0,null,null,null,null,0,null,null,null,0,null,null,null,0,null,null,null,null,{"$f":"'Раздел 2'!C275","v":0}]
["Хуреш","267",0,0,null,null,null,0,null,null,null,null,0,null,null,null,0,null,null,null,0,null,null,null,null,{"$f":"'Раздел 2'!C276","v":0}]
["Чир спорт","268",0,0,null,null,null,0,null,null,null,null,0,null,null,null,0,null,null,null,0,null,null,null,null,{"$f":"'Раздел 2'!C277","v":0}]
["Шахматы","269",0,0,null,null,null,0,null,null,null,null,0,null,null,null,0,null,null,null,0,null,null,null,null,{"$f":"'Раздел 2'!C278","v":0}]
["Шашки","270",0,0,null,null,null,0,null,null,null,null,0,null,null,null,0,null,null,null,0,null,null,null,null,{"$f":"'Раздел 2'!C279","v":0}]
["Шодсанлат","271",0,0,null,null,null,0,null,null,null,null,0,null,null,null,0,null,null,null,0,null,null,null,null,{"$f":"'Раздел 2'!C280","v":0}]
["Эстетическая гимнастика","272",0,0,null,null,null,0,null,null,null,null,0,null,null,null,0,null,null,null,0,null,null,null,null,{"$f":"'Раздел 2'!C281","v":0}]
["Якутские национальные прыжки","273",0,0,null,null,null,0,null,null,null,null,0,null,null,null,0,null,null,null,0,null,null,null,null,{"$f":"'Раздел 2'!C282","v":0}]
["ИТОГО","274",340,336,{"$f":"SUM(E10:E22,E26:E29,E32:E37,E48:E53,E58:E60,E42:E45,E64:E74,E79:E89,E93:E100,E103:E107,E115:E119,E120:E133,E136:E141,E144,E149:E150,E156:E159,E165:E166,E167:E181,E182:E200,E206:E211,E212:E214,E219:E221,E225:E228,E231:E240,E245:E250,E257:E258,E265:E267,E270,E274:E282)","v":40},{"$f":"SUM(F10:F22,F26:F29,F32:F37,F48:F53,F58:F60,F42:F45,F64:F74,F79:F89,F93:F100,F103:F107,F115:F119,F120:F133,F136:F141,F144,F149:F150,F156:F159,F165:F166,F167:F181,F182:F200,F206:F211,F212:F214,F219:F221,F225:F228,F231:F240,F245:F250,F257:F258,F265:F267,F270,F274:F282)","v":44},252,4,0,0,4,0,209,13,26,170,25,3,0,22,0,0,0,0,0,{"$f":"'Раздел 2'!C283","v":5}]

{"sheet":"Раздел 5","index":5,"n_rows":283,"n_cols":18,"rows_kept":283,"cut":false,"hidden":false,"merged":[[4,3,7,3],[4,2,7,2],[3,0,133,0],[3,1,3,15],[4,1,7,1],[6,8,6,9],[6,12,6,13],[6,14,6,15],[4,4,5,9],[6,4,6,5],[4,10,5,15],[6,6,6,7],[6,10,6,11]]}
[]
[]
[]
[null,"                                                                     Раздел V. Обучающиеся – кандидаты в спортивные сборные команды России, человек"]
[null,null,"№ строки","Всего кандидатов из числа обучающихся и занимающихся","Из числа обучающихся и занимающихся (гр. 5 раздела II) – кандидаты, состоящие в списках спортивных сборных команд",null,null,null,null,null,"Кандидаты, подготовленные в отчетном году"]
[]
[null,null,null,null,"Юношеский состав",null,"Юниорский состав",null,"Основной состав",null,"Юношеский состав",null,"Юниорский состав",null,"Основной состав"]
[null,null,null,null,"основной","резерв","основной","резерв","основной","резерв","основной","резерв","основной","резерв","основной","резерв"]
[null,1,2,3,4,5,6,7,8,9,10,11,12,13,14,15,null,"2р"]
[null,"Авиамодельный спорт","01",{"$f":"SUM(E10:J10)","v":0},null,null,null,null,null,null,null,null,null,null,null,null,null,{"$f":"'Раздел 2'!C10","v":0}]
[null,"Авиационные гонки","02",{"$f":"SUM(E11:J11)","v":0},null,null,null,null,null,null,null,null,null,null,null,null,null,{"$f":"'Раздел 2'!C11","v":0}]
[null,"Автомобильный спорт","03",0,null,null,null,null,null,null,null,null,null,null,null,null,null,{"$f":"'Раздел 2'!C12","v":0}]
[null,"Автомодельный спорт","04",0,null,null,null,null,null,null,null,null,null,null,null,null,null,{"$f":"'Раздел 2'!C13","v":0}]
[null,"Айкидо","05",0,null,null,null,null,null,null,null,null,null,null,null,null,null,{"$f":"'Раздел 2'!C14","v":0}]
[null,"Акробатический рок-н-ролл","06",0,null,null,null,null,null,null,null,null,null,null,null,null,null,{"$f":"'Раздел 2'!C15","v":0}]
[null,"Альпинизм","07",0,null,null,null,null,null,null,null,null,null,null,null,null,null,{"$f":"'Раздел 2'!C16","v":0}]
[null,"Американский футбол","08",0,null,null,null,null,null,null,null,null,null,null,null,null,null,{"$f":"'Раздел 2'!C17","v":0}]
[null,"Армейский рукопашный бой","09",0,null,null,null,null,null,null,null,null,null,null,null,null,null,{"$f":"'Раздел 2'!C18","v":0}]
[null,"Армейское тактико-стрелковое многоборье","10",0,null,null,null,null,null,null,null,null,null,null,null,null,null,{"$f":"'Раздел 2'!C19","v":0}]
[null,"Армрестлинг","11",0,null,null,null,null,null,null,null,null,null,null,null,null,null,{"$f":"'Раздел 2'!C20","v":0}]
[null,"Бадминтон","12",0,null,null,null,null,null,null,null,null,null,null,null,null,null,{"$f":"'Раздел 2'!C21","v":0}]
[null,"Баскетбол - всего","13",0,{"$f":"SUM(E23:E25)","v":0},{"$f":"SUM(F23:F25)","v":0},0,0,0,0,0,0,0,0,0,0,null,{"$f":"'Раздел 2'!C22","v":0}]
[null,"в том числе:\nБаскетбол (муж.)","14",0,null,null,null,null,null,null,null,null,null,null,null,null,null,{"$f":"'Раздел 2'!C23","v":0}]
[null,"Баскетбол (жен.)","15",0,null,null,null,null,null,null,null,null,null,null,null,null,null,{"$f":"'Раздел 2'!C24","v":0}]
[null,"Баскетбол 3х3","16",0,null,null,null,null,null,null,null,null,null,null,null,null,null,{"$f":"'Раздел 2'!C25","v":0}]
[null,"Бейсбол","17",0,null,null,null,null,null,null,null,null,null,null,null,null,null,{"$f":"'Раздел 2'!C26","v":0}]
[null,"Биатлон","18",0,null,null,null,null,null,null,null,null,null,null,null,null,null,{"$f":"'Раздел 2'!C27","v":0}]
[null,"Бильярдный спорт","19",0,null,null,null,null,null,null,null,null,null,null,null,null,null,{"$f":"'Раздел 2'!C28","v":0}]
[null,"Бобслей - всего","20",0,{"$f":"SUM(E30:E31)","v":0},{"$f":"SUM(F30:F31)","v":0},0,0,0,0,0,0,0,0,0,0,null,{"$f":"'Раздел 2'!C29","v":0}]
[null,"в том числе:\nБобслей","21",0,null,null,null,null,null,null,null,null,null,null,null,null,null,{"$f":"'Раздел 2'!C30","v":0}]
[null,"Скелетон","22",0,null,null,null,null,null,null,null,null,null,null,null,null,null,{"$f":"'Раздел 2'!C31","v":0}]
[null,"Бодибилдинг","23",0,null,null,null,null,null,null,null,null,null,null,null,null,null,{"$f":"'Раздел 2'!C32","v":0}]
[null,"Бокс","24",0,null,null,null,null,null,null,null,null,null,null,null,null,null,{"$f":"'Раздел 2'!C33","v":0}]
[null,"Борьба на поясах","25",0,null,null,null,null,null,null,null,null,null,null,null,null,null,{"$f":"'Раздел 2'!C34","v":0}]
[null,"Боулинг","26",0,null,null,null,null,null,null,null,null,null,null,null,null,null,{"$f":"'Раздел 2'!C35","v":0}]
[null,"Боулспорт","27",0,null,null,null,null,null,null,null,null,null,null,null,null,null,{"$f":"'Раздел 2'!C36","v":0}]
[null,"Велосипедный спорт - всего","28",0,{"$f":"SUM(E38:E41)","v":0},{"$f":"SUM(F38:F41)","v":0},0,0,0,0,0,0,0,0,0,0,null,{"$f":"'Раздел 2'!C37","v":0}]
[null,"в том числе:\nBMX","29",0,null,null,null,null,null,null,null,null,null,null,null,null,null,{"$f":"'Раздел 2'!C38","v":0}]
[null,"Маунтинбайк","30",0,null,null,null,null,null,null,null,null,null,null,null,null,null,{"$f":"'Раздел 2'!C39","v":0}]
[null,"Трек","31",0,null,null,null,null,null,null,null,null,null,null,null,null,null,{"$f":"'Раздел 2'!C40","v":0}]
[null,"Шоссе","32",0,null,null,null,null,null,null,null,null,null,null,null,null,null,{"$f":"'Раздел 2'!C41","v":0}]
[null,"Вертолетный спорт","33",0,null,null,null,null,null,null,null,null,null,null,null,null,null,{"$f":"'Раздел 2'!C42","v":0}]
[null,"Водно-моторный спорт","34",0,null,null,null,null,null,null,null,null,null,null,null,null,null,{"$f":"'Раздел 2'!C43","v":0}]
[null,"Водно-спасательное многоборье","35",0,null,null,null,null,null,null,null,null,null,null,null,null,null,{"$f":"'Раздел 2'!C44","v":0}]
[null,"Водное поло - всего ","36",0,{"$f":"SUM(E46:E47)","v":0},{"$f":"SUM(F46:F47)","v":0},0,0,0,0,0,0,0,0,0,0,null,{"$f":"'Раздел 2'!C45","v":0}]
[null,"в том числе:\nВодное поло (муж.)","37",0,null,null,null,null,null,null,null,null,null,null,null,null,null,{"$f":"'Раздел 2'!C46","v":0}]
[null,"Водное поло (жен.)","38",0,null,null,null,null,null,null,null,null,null,null,null,null,null,{"$f":"'Раздел 2'!C47","v":0}]
[null,"Воднолыжный спорт","39",0,null,null,null,null,null,null,null,null,null,null,null,null,null,{"$f":"'Раздел 2'!C48","v":0}]
[null,"Военно-прикладной спорт","40",0,null,null,null,null,null,null,null,null,null,null,null,null,null,{"$f":"'Раздел 2'!C49","v":0}]
[null,"Военно-спортивное многоборье","41",0,null,null,null,null,null,null,null,null,null,null,null,null,null,{"$f":"'Раздел 2'!C50","v":0}]
[null,"Воздухоплавательный спорт","42",0,null,null,null,null,null,null,null,null,null,null,null,null,null,{"$f":"'Раздел 2'!C51","v":0}]
[null,"Воздушно-силовая атлетика","43",0,null,null,null,null,null,null,null,null,null,null,null,null,null,{"$f":"'Раздел 2'!C52","v":0}]
[null,"Волейбол - всего","44",0,{"$f":"SUM(E54:E57)","v":0},{"$f":"SUM(F54:F57)","v":0},0,0,0,0,0,0,0,0,0,0,null,{"$f":"'Раздел 2'!C53","v":0}]
[null,"в том числе:\nВолейбол (муж.)","45",0,null,null,null,null,null,null,null,null,null,null,null,null,null,{"$f":"'Раздел 2'!C54","v":0}]
[null,"Волейбол (жен.)","46",0,null,null,null,null,null,null,null,null,null,null,null,null,null,{"$f":"'Раздел 2'!C55","v":0}]
[null,"Пляжный волейбол (муж.)","47",0,null,null,null,null,null,null,null,null,null,null,null,null,null,{"$f":"'Раздел 2'!C56","v":0}]
[null,"Пляжный волейбол (жен.)","48",0,null,null,null,null,null,null,null,null,null,null,null,null,null,{"$f":"'Раздел 2'!C57","v":0}]
[null,"Восточное боевое единоборство","49",0,null,null,null,null,null,null,null,null,null,null,null,null,null,{"$f":"'Раздел 2'!C58","v":0}]
[null,"Всестилевое каратэ","50",0,null,null,null,null,null,null,null,null,null,null,null,null,null,{"$f":"'Раздел 2'!C59","v":0}]
[null,"Гандбол - всего","51",0,{"$f":"SUM(E61:E63)","v":0},{"$f":"SUM(F61:F63)","v":0},0,0,0,0,0,0,0,0,0,0,null,{"$f":"'Раздел 2'!C60","v":0}]
[null,"в том числе:\nГандбол (муж.)","52",0,null,null,null,null,null,null,null,null,null,null,null,null,null,{"$f":"'Раздел 2'!C61","v":0}]
[null,"Гандбол (жен.)","53",0,null,null,null,null,null,null,null,null,null,null,null,null,null,{"$f":"'Раздел 2'!C62","v":0}]
[null,"Пляжный гандбол","54",0,null,null,null,null,null,null,null,null,null,null,null,null,null,{"$f":"'Раздел 2'!C63","v":0}]
[null,"Гиревой спорт","55",0,null,null,null,null,null,null,null,null,null,null,null,null,null,{"$f":"'Раздел 2'!C64","v":0}]
[null,"Го","56",0,null,null,null,null,null,null,null,null,null,null,null,null,null,{"$f":"'Раздел 2'!C65","v":0}]
[null,"Гольф","57",0,null,null,null,null,null,null,null,null,null,null,null,null,null,{"$f":"'Раздел 2'!C66","v":0}]
[null,"Гонки на охотничьих лыжах","58",0,null,null,null,null,null,null,null,null,null,null,null,null,null,{"$f":"'Раздел 2'!C67","v":0}]
[null,"Гонки с препятствиями","59",0,null,null,null,null,null,null,null,null,null,null,null,null,null,{"$f":"'Раздел 2'!C68","v":0}]
[null,"Горнолыжный спорт","60",0,null,null,null,null,null,null,null,null,null,null,null,null,null,{"$f":"'Раздел 2'!C69","v":0}]
[null,"Городошный спорт","61",0,null,null,null,null,null,null,null,null,null,null,null,null,null,{"$f":"'Раздел 2'!C70","v":0}]
[null,"Гребля на байдарках и каноэ","62",0,null,null,null,null,null,null,null,null,null,null,null,null,null,{"$f":"'Раздел 2'!C71","v":0}]
[null,"Гребля на шлюпках","63",0,null,null,null,null,null,null,null,null,null,null,null,null,null,{"$f":"'Раздел 2'!C72","v":0}]
[null,"Гребной слалом","64",0,null,null,null,null,null,null,null,null,null,null,null,null,null,{"$f":"'Раздел 2'!C73","v":0}]
[null,"Гребной спорт - всего","65",0,{"$f":"SUM(E75:E78)","v":0},{"$f":"SUM(F75:F78)","v":0},0,0,0,0,0,0,0,0,0,0,null,{"$f":"'Раздел 2'!C74","v":0}]
[null,"в том числе:\nАкадемическая гребля","66",{"$f":"SUM(E75:J75)","v":0},null,null,null,null,null,null,null,null,null,null,null,null,null,{"$f":"'Раздел 2'!C75","v":0}]
[null,"Гребля-индор","67",0,null,null,null,null,null,null,null,null,null,null,null,null,null,{"$f":"'Раздел 2'!C76","v":0}]
[null,"Народная гребля","68",0,null,null,null,null,null,null,null,null,null,null,null,null,null,{"$f":"'Раздел 2'!C77","v":0}]
[null,"Прибрежная гребля","69",0,null,null,null,null,null,null,null,null,null,null,null,null,null,{"$f":"'Раздел 2'!C78","v":0}]
[null,"Гребно-парусное двоеборье","70",0,null,null,null,null,null,null,null,null,null,null,null,null,null,{"$f":"'Раздел 2'!C79","v":0}]
[null,"Дартс","71",0,null,null,null,null,null,null,null,null,null,null,null,null,null,{"$f":"'Раздел 2'!C80","v":0}]
[null,"Джиу-джитсу","72",0,null,null,null,null,null,null,null,null,null,null,null,null,null,{"$f":"'Раздел 2'!C81","v":0}]
[null,"Дзюдо","73",0,null,null,null,null,null,null,null,null,null,null,null,null,null,{"$f":"'Раздел 2'!C82","v":1}]
[null,"Ездовой спорт","74",0,null,null,null,null,null,null,null,null,null,null,null,null,null,{"$f":"'Раздел 2'!C83","v":0}]
[null,"Зимнее плавание","75",0,null,null,null,null,null,null,null,null,null,null,null,null,null,{"$f":"'Раздел 2'!C84","v":0}]
[null,"Капоэйра","76",0,null,null,null,null,null,null,null,null,null,null,null,null,null,{"$f":"'Раздел 2'!C85","v":0}]
[null,"Каратэ","77",0,null,null,null,null,null,null,null,null,null,null,null,null,null,{"$f":"'Раздел 2'!C86","v":0}]
[null,"Кендо","78",0,null,null,null,null,null,null,null,null,null,null,null,null,null,{"$f":"'Раздел 2'!C87","v":0}]
[null,"Керешу","79",0,null,null,null,null,null,null,null,null,null,null,null,null,null,{"$f":"'Раздел 2'!C88","v":0}]
[null,"Кёрлинг - всего","80",0,{"$f":"SUM(E90:E92)","v":0},{"$f":"SUM(F90:F92)","v":0},0,0,0,0,0,0,0,0,0,0,null,{"$f":"'Раздел 2'!C89","v":0}]
[null,"в том числе:\nКёрлинг (муж.)","81",0,null,null,null,null,null,null,null,null,null,null,null,null,null,{"$f":"'Раздел 2'!C90","v":0}]
[null,"Кёрлинг (жен.)","82",0,null,null,null,null,null,null,null,null,null,null,null,null,null,{"$f":"'Раздел 2'!C91","v":0}]
[null,"Кёрлинг – смешанные пары","83",0,null,null,null,null,null,null,null,null,null,null,null,null,null,{"$f":"'Раздел 2'!C92","v":0}]
[null,"Кикбоксинг","84",3,null,null,null,null,2,1,null,null,null,null,null,null,null,{"$f":"'Раздел 2'!C93","v":1}]
[null,"Кинологический спорт","85",0,null,null,null,null,null,null,null,null,null,null,null,null,null,{"$f":"'Раздел 2'!C94","v":0}]
[null,"Киокусинкай","86",0,null,null,null,null,null,null,null,null,null,null,null,null,null,{"$f":"'Раздел 2'!C95","v":0}]
[null,"Киокушин","87",0,null,null,null,null,null,null,null,null,null,null,null,null,null,{"$f":"'Раздел 2'!C96","v":0}]
[null,"Комплексное единоборство","88",0,null,null,null,null,null,null,null,null,null,null,null,null,null,{"$f":"'Раздел 2'!C97","v":0}]
[null,"Компьютерный спорт","89",0,null,null,null,null,null,null,null,null,null,null,null,null,null,{"$f":"'Раздел 2'!C98","v":0}]
[null,"Конный спорт","90",0,null,null,null,null,null,null,null,null,null,null,null,null,null,{"$f":"'Раздел 2'!C99","v":0}]
[null,"Конькобежный спорт - всего","91",0,{"$f":"SUM(E101:E102)","v":0},{"$f":"SUM(F101:F102)","v":0},0,0,0,0,0,0,0,0,0,0,null,{"$f":"'Раздел 2'!C100","v":0}]
[null,"в том числе:\nКонькобежный спорт","92",0,null,null,null,null,null,null,null,null,null,null,null,null,null,{"$f":"'Раздел 2'!C101","v":0}]
[null,"Шорт-трек","93",0,null,null,null,null,null,null,null,null,null,null,null,null,null,{"$f":"'Раздел 2'!C102","v":0}]
[null,"Корэш","94",0,null,null,null,null,null,null,null,null,null,null,null,null,null,{"$f":"'Раздел 2'!C103","v":0}]
[null,"Крикет","95",0,null,null,null,null,null,null,null,null,null,null,null,null,null,{"$f":"'Раздел 2'!C104","v":0}]
[null,"Кудо","96",0,null,null,null,null,null,null,null,null,null,null,null,null,null,{"$f":"'Раздел 2'!C105","v":0}]
[null,"Лапта","97",0,null,null,null,null,null,null,null,null,null,null,null,null,null,{"$f":"'Раздел 2'!C106","v":0}]
[null,"Легкая атлетика - всего","98",0,{"$f":"SUM(E108:E114)","v":0},{"$f":"SUM(F108:F114)","v":0},0,0,0,0,0,0,0,0,0,0,null,{"$f":"'Раздел 2'!C107","v":0}]
[null,"в том числе:\nСпринтерский и барьерный бег","99",0,null,null,null,null,null,null,null,null,null,null,null,null,null,{"$f":"'Раздел 2'!C108","v":0}]
[null,"Бег на средние дистанции и бег с препятствиями","100",0,null,null,null,null,null,null,null,null,null,null,null,null,null,{"$f":"'Раздел 2'!C109","v":0}]
[null,"Бег на длинные и сверхдлинные дистанции","101",0,null,null,null,null,null,null,null,null,null,null,null,null,null,{"$f":"'Раздел 2'!C110","v":0}]
[null,"Многоборья","102",0,null,null,null,null,null,null,null,null,null,null,null,null,null,{"$f":"'Раздел 2'!C111","v":0}]
[null,"Прыжки","103",0,null,null,null,null,null,null,null,null,null,null,null,null,null,{"$f":"'Раздел 2'!C112","v":0}]
[null,"Метания","104",0,null,null,null,null,null,null,null,null,null,null,null,null,null,{"$f":"'Раздел 2'!C113","v":0}]
[null,"Спортивная ходьба","105",0,null,null,null,null,null,null,null,null,null,null,null,null,null,{"$f":"'Раздел 2'!C114","v":0}]
[null,"Лыжное двоеборье","106",0,null,null,null,null,null,null,null,null,null,null,null,null,null,{"$f":"'Раздел 2'!C115","v":0}]
[null,"Лыжные гонки","107",0,null,null,null,null,null,null,null,null,null,null,null,null,null,{"$f":"'Раздел 2'!C116","v":0}]
[null,"Мас-рестлинг","108",0,null,null,null,null,null,null,null,null,null,null,null,null,null,{"$f":"'Раздел 2'!C117","v":0}]
[null,"Международное военно-спортивное многоборье","109",0,null,null,null,null,null,null,null,null,null,null,null,null,null,{"$f":"'Раздел 2'!C118","v":0}]
[null,"Микрофутзал","110",0,null,null,null,null,null,null,null,null,null,null,null,null,null,{"$f":"'Раздел 2'!C119","v":0}]
[null,"Многоборье кинологов","111",0,null,null,null,null,null,null,null,null,null,null,null,null,null,{"$f":"'Раздел 2'!C120","v":0}]
[null,"Многоборье спасателей МЧС России","112",0,null,null,null,null,null,null,null,null,null,null,null,null,null,{"$f":"'Раздел 2'!C121","v":0}]
[null,"Морское многоборье","113",0,null,null,null,null,null,null,null,null,null,null,null,null,null,{"$f":"'Раздел 2'!C122","v":0}]
[null,"Мотоциклетный спорт","114",0,null,null,null,null,null,null,null,null,null,null,null,null,null,{"$f":"'Раздел 2'!C123","v":0}]
[null,"Муайтай","115",0,null,null,null,null,null,null,null,null,null,null,null,null,null,{"$f":"'Раздел 2'!C124","v":0}]
[null,"Нарды","116",0,null,null,null,null,null,null,null,null,null,null,null,null,null,{"$f":"'Раздел 2'!C125","v":0}]
[null,"Настольный теннис","117",0,null,null,null,null,null,null,null,null,null,null,null,null,null,{"$f":"'Раздел 2'!C126","v":0}]
[null,"Падел","118",0,null,null,null,null,null,null,null,null,null,null,null,null,null,{"$f":"'Раздел 2'!C127","v":0}]
[null,"Парашютный спорт","119",0,null,null,null,null,null,null,null,null,null,null,null,null,null,{"$f":"'Раздел 2'!C128","v":0}]
[null,"Парусный спорт","120",0,null,null,null,null,null,null,null,null,null,null,null,null,null,{"$f":"'Раздел 2'!C129","v":0}]
[null,"Пауэрлифтинг","121",3,1,null,1,1,null,null,null,null,null,null,null,null,null,{"$f":"'Раздел 2'!C130","v":1}]
[null,"Перетягивание каната","122",0,null,null,null,null,null,null,null,null,null,null,null,null,null,{"$f":"'Раздел 2'!C131","v":0}]
[null,"Пилонный спорт","123",0,null,null,null,null,null,null,null,null,null,null,null,null,null,{"$f":"'Раздел 2'!C132","v":0}]
[null,"Плавание - всего","124",0,{"$f":"SUM(E134:E135)","v":0},{"$f":"SUM(F134:F135)","v":0},0,0,0,0,0,0,0,0,0,0,null,{"$f":"'Раздел 2'!C133","v":0}]
[null,"в том числе:\nПлавание ","125",0,null,null,null,null,null,null,null,null,null,null,null,null,null,{"$f":"'Раздел 2'!C134","v":0}]
[null,"Открытая вода","126",0,null,null,null,null,null,null,null,null,null,null,null,null,null,{"$f":"'Раздел 2'!C135","v":0}]
[null,"Планерный спорт","127",0,null,null,null,null,null,null,null,null,null,null,null,null,null,{"$f":"'Раздел 2'!C136","v":0}]
[null,"Подводный спорт","128",0,null,null,null,null,null,null,null,null,null,null,null,null,null,{"$f":"'Раздел 2'!C137","v":0}]
[null,"Пожарно-спасательный спорт","129",0,null,null,null,null,null,null,null,null,null,null,null,null,null,{"$f":"'Раздел 2'!C138","v":0}]
[null,"Полиатлон","130",{"$f":"SUM(E139:J139)","v":0},null,null,null,null,null,null,null,null,null,null,null,null,null,{"$f":"'Раздел 2'!C139","v":0}]
[null,"Практическая стрельба","131",0,null,null,null,null,null,null,null,null,null,null,null,null,null,{"$f":"'Раздел 2'!C140","v":0}]
[null,"Прыжки в воду - всего","132",0,{"$f":"SUM(E142:E143)","v":0},{"$f":"SUM(F142:F143)","v":0},0,0,0,0,0,0,0,0,0,0,null,{"$f":"'Раздел 2'!C141","v":0}]
[null,"в том числе:\nПрыжки в воду","133",0,null,null,null,null,null,null,null,null,null,null,null,null,null,{"$f":"'Раздел 2'!C142","v":0}]
[null,"Прыжки в открытый водоем","134",0,null,null,null,null,null,null,null,null,null,null,null,null,null,{"$f":"'Раздел 2'!C143","v":0}]
[null,"Прыжки на батуте - всего","135",0,{"$f":"SUM(E145:E148)","v":0},{"$f":"SUM(F145:F148)","v":0},0,0,0,0,0,0,0,0,0,0,null,{"$f":"'Раздел 2'!C144","v":0}]
[null,"в том числе:\nАкробатическая дорожка","136",0,null,null,null,null,null,null,null,null,null,null,null,null,null,{"$f":"'Раздел 2'!C145","v":0}]
[null,"Двойной минитрамп","137",0,null,null,null,null,null,null,null,null,null,null,null,null,null,{"$f":"'Раздел 2'!C146","v":0}]
[null,"Индивидуальные прыжки","138",0,null,null,null,null,null,null,null,null,null,null,null,null,null,{"$f":"'Раздел 2'!C147","v":0}]
[null,"Синхронные прыжки","139",0,null,null,null,null,null,null,null,null,null,null,null,null,null,{"$f":"'Раздел 2'!C148","v":0}]
[null,"Прыжки на лыжах с трамплина","140",0,null,null,null,null,null,null,null,null,null,null,null,null,null,{"$f":"'Раздел 2'!C149","v":0}]
[null,"Пулевая стрельба - всего","141",0,{"$f":"SUM(E151:E155)","v":0},{"$f":"SUM(F151:F155)","v":0},0,0,0,0,0,0,0,0,0,0,null,{"$f":"'Раздел 2'!C150","v":0}]
[null,"в том числе:\nПневматическая винтовка","142",0,null,null,null,null,null,null,null,null,null,null,null,null,null,{"$f":"'Раздел 2'!C151","v":0}]
[null,"Пневматический пистолет","143",0,null,null,null,null,null,null,null,null,null,null,null,null,null,{"$f":"'Раздел 2'!C152","v":0}]
[null,"Малокалиберная винтовка","144",0,null,null,null,null,null,null,null,null,null,null,null,null,null,{"$f":"'Раздел 2'!C153","v":0}]
[null,"Малокалиберный пистолет","145",0,null,null,null,null,null,null,null,null,null,null,null,null,null,{"$f":"'Раздел 2'!C154","v":0}]
[null,"Движущаяся мишень","146",0,null,null,null,null,null,null,null,null,null,null,null,null,null,{"$f":"'Раздел 2'!C155","v":0}]
[null,"Пэйнтбол","147",0,null,null,null,null,null,null,null,null,null,null,null,null,null,{"$f":"'Раздел 2'!C156","v":0}]
[null,"Радиоспорт","148",0,null,null,null,null,null,null,null,null,null,null,null,null,null,{"$f":"'Раздел 2'!C157","v":0}]
[null,"Рафтинг","149",0,null,null,null,null,null,null,null,null,null,null,null,null,null,{"$f":"'Раздел 2'!C158","v":0}]
[null,"Регби - всего","150",0,{"$f":"SUM(E160:E164)","v":0},{"$f":"SUM(F160:F164)","v":0},0,0,0,0,0,0,0,0,0,0,null,{"$f":"'Раздел 2'!C159","v":0}]
[null,"в том числе:\nРегби","151",0,null,null,null,null,null,null,null,null,null,null,null,null,null,{"$f":"'Раздел 2'!C160","v":0}]
[null,"Регби 7 (муж.)","152",0,null,null,null,null,null,null,null,null,null,null,null,null,null,{"$f":"'Раздел 2'!C161","v":0}]
[null,"Регби 7 (жен.)","153",0,null,null,null,null,null,null,null,null,null,null,null,null,null,{"$f":"'Раздел 2'!C162","v":0}]
[null,"Регби - пляжное","154",0,null,null,null,null,null,null,null,null,null,null,null,null,null,{"$f":"'Раздел 2'!C163","v":0}]
[null,"Регби на снегу","155",0,null,null,null,null,null,null,null,null,null,null,null,null,null,{"$f":"'Раздел 2'!C164","v":0}]
[null,"Регбол","156",0,null,null,null,null,null,null,null,null,null,null,null,null,null,{"$f":"'Раздел 2'!C165","v":0}]
[null,"Роллер спорт","157",0,null,null,null,null,null,null,null,null,null,null,null,null,null,{"$f":"'Раздел 2'!C166","v":0}]
[null,"Роуп скиппинг (спортивная скакалка)","158",0,null,null,null,null,null,null,null,null,null,null,null,null,null,{"$f":"'Раздел 2'!C167","v":0}]
[null,"Рукопашный бой","159",0,null,null,null,null,null,null,null,null,null,null,null,null,null,{"$f":"'Раздел 2'!C168","v":0}]
[null,"Рыболовный спорт","160",0,null,null,null,null,null,null,null,null,null,null,null,null,null,{"$f":"'Раздел 2'!C169","v":0}]
[null,"Сават","161",0,null,null,null,null,null,null,null,null,null,null,null,null,null,{"$f":"'Раздел 2'!C170","v":0}]
[null,"Самбо","162",0,null,null,null,null,null,null,null,null,null,null,null,null,null,{"$f":"'Раздел 2'!C171","v":0}]
[null,"Самолетный спорт","163",0,null,null,null,null,null,null,null,null,null,null,null,null,null,{"$f":"'Раздел 2'!C172","v":0}]
[null,"Санный спорт","164",0,null,null,null,null,null,null,null,null,null,null,null,null,null,{"$f":"'Раздел 2'!C173","v":0}]
[null,"Северное многоборье","165",0,null,null,null,null,null,null,null,null,null,null,null,null,null,{"$f":"'Раздел 2'!C174","v":0}]
[null,"Серфинг","166",0,null,null,null,null,null,null,null,null,null,null,null,null,null,{"$f":"'Раздел 2'!C175","v":0}]
[null,"Силовой экстрим","167",0,null,null,null,null,null,null,null,null,null,null,null,null,null,{"$f":"'Раздел 2'!C176","v":0}]
[null,"Синхронное плавание","168",0,null,null,null,null,null,null,null,null,null,null,null,null,null,{"$f":"'Раздел 2'!C177","v":0}]
[null,"Скалолазание","169",0,null,null,null,null,null,null,null,null,null,null,null,null,null,{"$f":"'Раздел 2'!C178","v":0}]
[null,"Сквош","170",0,null,null,null,null,null,null,null,null,null,null,null,null,null,{"$f":"'Раздел 2'!C179","v":0}]
[null,"Скейтбординг","171",0,null,null,null,null,null,null,null,null,null,null,null,null,null,{"$f":"'Раздел 2'!C180","v":0}]
[null,"Служебно-боевая стрельба ","172",0,null,null,null,null,null,null,null,null,null,null,null,null,null,{"$f":"'Раздел 2'!C181","v":0}]
[null,"Служебно-прикладной спорт","173",0,null,null,null,null,null,null,null,null,null,null,null,null,null,{"$f":"'Раздел 2'!C182","v":0}]
[null,"Служебно-прикладной спорт ФСО России","174",0,null,null,null,null,null,null,null,null,null,null,null,null,null,{"$f":"'Раздел 2'!C183","v":0}]
[null,"Служебно-прикладной спорт ФТС России","175",0,null,null,null,null,null,null,null,null,null,null,null,null,null,{"$f":"'Раздел 2'!C184","v":0}]
[null,"Служебное двоеборье","176",0,null,null,null,null,null,null,null,null,null,null,null,null,null,{"$f":"'Раздел 2'!C185","v":0}]
[null,"Служебное единоборство","177",0,null,null,null,null,null,null,null,null,null,null,null,null,null,{"$f":"'Раздел 2'!C186","v":0}]
[null,"Служебное многоборье","178",0,null,null,null,null,null,null,null,null,null,null,null,null,null,{"$f":"'Раздел 2'!C187","v":0}]
[null,"Служебный биатлон","179",0,null,null,null,null,null,null,null,null,null,null,null,null,null,{"$f":"'Раздел 2'!C188","v":0}]
[null,"Спасательный спорт","180",0,null,null,null,null,null,null,null,null,null,null,null,null,null,{"$f":"'Раздел 2'!C189","v":0}]
[null,"Стрельба из боевого ручного стрелкового оружия","181",0,null,null,null,null,null,null,null,null,null,null,null,null,null,{"$f":"'Раздел 2'!C190","v":0}]
[null,"Стрельба из штатного или табельного оружия","182",0,null,null,null,null,null,null,null,null,null,null,null,null,null,{"$f":"'Раздел 2'!C191","v":0}]
[null,"Стрельба на дальние дистанции","183",0,null,null,null,null,null,null,null,null,null,null,null,null,null,{"$f":"'Раздел 2'!C192","v":0}]
[null,"Смешанное боевое единоборство (ММА)","184",0,null,null,null,null,null,null,null,null,null,null,null,null,null,{"$f":"'Раздел 2'!C193","v":0}]
[null,"Сноуборд","185",0,null,null,null,null,null,null,null,null,null,null,null,null,null,{"$f":"'Раздел 2'!C194","v":0}]
[null,"Современное пятиборье","186",0,null,null,null,null,null,null,null,null,null,null,null,null,null,{"$f":"'Раздел 2'!C195","v":0}]
[null,"Софтбол","187",0,null,null,null,null,null,null,null,null,null,null,null,null,null,{"$f":"'Раздел 2'!C196","v":0}]
[null,"Спорт сверхлегкой авиации","188",0,null,null,null,null,null,null,null,null,null,null,null,null,null,{"$f":"'Раздел 2'!C197","v":0}]
[null,"Спортивная акробатика","189",0,null,null,null,null,null,null,null,null,null,null,null,null,null,{"$f":"'Раздел 2'!C198","v":1}]
[null,"Спортивная аэробика","190",0,null,null,null,null,null,null,null,null,null,null,null,null,null,{"$f":"'Раздел 2'!C199","v":0}]
[null,"Спортивная борьба - всего","191",0,{"$f":"SUM(E201:E205)","v":0},{"$f":"SUM(F201:F205)","v":0},0,0,0,0,0,0,0,0,0,0,null,{"$f":"'Раздел 2'!C200","v":0}]
[null,"в том числе:\nВольная борьба","192",0,null,null,null,null,null,null,null,null,null,null,null,null,null,{"$f":"'Раздел 2'!C201","v":0}]
[null,"Греко-римская борьба","193",0,null,null,null,null,null,null,null,null,null,null,null,null,null,{"$f":"'Раздел 2'!C202","v":0}]
[null,"Грэпплинг","194",{"$f":"SUM(E203:J203)","v":0},null,null,null,null,null,null,null,null,null,null,null,null,null,{"$f":"'Раздел 2'!C203","v":0}]
[null,"Грэпплинг-ги","195",0,null,null,null,null,null,null,null,null,null,null,null,null,null,{"$f":"'Раздел 2'!C204","v":0}]
[null,"Панкратион","196",0,null,null,null,null,null,null,null,null,null,null,null,null,null,{"$f":"'Раздел 2'!C205","v":0}]
[null,"Спортивная гимнастика","197",0,null,null,null,null,null,null,null,null,null,null,null,null,null,{"$f":"'Раздел 2'!C206","v":0}]
[null,"Спортивная йога","198",0,null,null,null,null,null,null,null,null,null,null,null,null,null,{"$f":"'Раздел 2'!C207","v":0}]
[null,"Спортивно-прикладное собаководство","199",0,null,null,null,null,null,null,null,null,null,null,null,null,null,{"$f":"'Раздел 2'!C208","v":0}]
[null,"Спортивное программирование","200",0,null,null,null,null,null,null,null,null,null,null,null,null,null,{"$f":"'Раздел 2'!C209","v":0}]
[null,"Спортивное метание ножа","201",0,null,null,null,null,null,null,null,null,null,null,null,null,null,{"$f":"'Раздел 2'!C210","v":0}]
[null,"Спортивное ориентирование","202",0,null,null,null,null,null,null,null,null,null,null,null,null,null,{"$f":"'Раздел 2'!C211","v":0}]
[null,"Спортивный бридж","203",0,null,null,null,null,null,null,null,null,null,null,null,null,null,{"$f":"'Раздел 2'!C212","v":0}]
[null,"Спортивный туризм","204",0,null,null,null,null,null,null,null,null,null,null,null,null,null,{"$f":"'Раздел 2'!C213","v":0}]
[null,"Стендовая стрельба - всего","205",0,{"$f":"SUM(E215:E218)","v":0},{"$f":"SUM(F215:F218)","v":0},0,0,0,0,0,0,0,0,0,0,null,{"$f":"'Раздел 2'!C214","v":0}]
[null,"в том числе:\nТрап","206",0,null,null,null,null,null,null,null,null,null,null,null,null,null,{"$f":"'Раздел 2'!C215","v":0}]
[null,"Скит","207",0,null,null,null,null,null,null,null,null,null,null,null,null,null,{"$f":"'Раздел 2'!C216","v":0}]
[null,"Дубль-трап","208",0,null,null,null,null,null,null,null,null,null,null,null,null,null,{"$f":"'Раздел 2'!C217","v":0}]
[null,"Спортинг","209",0,null,null,null,null,null,null,null,null,null,null,null,null,null,{"$f":"'Раздел 2'!C218","v":0}]
[null,"Страйкбол","210",0,null,null,null,null,null,null,null,null,null,null,null,null,null,{"$f":"'Раздел 2'!C219","v":0}]
[null,"Стрельба из арбалета","211",0,null,null,null,null,null,null,null,null,null,null,null,null,null,{"$f":"'Раздел 2'!C220","v":0}]
[null,"Стрельба из лука - всего","212",0,{"$f":"SUM(E222:E224)","v":0},{"$f":"SUM(F222:F224)","v":0},0,0,0,0,0,0,0,0,0,0,null,{"$f":"'Раздел 2'!C221","v":0}]
[null,"в том числе:\nКлассический лук","213",0,null,null,null,null,null,null,null,null,null,null,null,null,null,{"$f":"'Раздел 2'!C222","v":0}]
[null,"   Блочный лук","214",0,null,null,null,null,null,null,null,null,null,null,null,null,null,{"$f":"'Раздел 2'!C223","v":0}]
[null,"   Ачери ","215",0,null,null,null,null,null,null,null,null,null,null,null,null,null,{"$f":"'Раздел 2'!C224","v":0}]
[null,"Судомодельный спорт","216",0,null,null,null,null,null,null,null,null,null,null,null,null,null,{"$f":"'Раздел 2'!C225","v":0}]
[null,"Сумо","217",0,null,null,null,null,null,null,null,null,null,null,null,null,null,{"$f":"'Раздел 2'!C226","v":0}]
[null,"Таврели","218",0,null,null,null,null,null,null,null,null,null,null,null,null,null,{"$f":"'Раздел 2'!C227","v":0}]
[null,"Танцевальный спорт - всего","219",0,{"$f":"SUM(E229:E230)","v":0},{"$f":"SUM(F229:F230)","v":0},0,0,0,0,0,0,0,0,0,0,null,{"$f":"'Раздел 2'!C228","v":0}]
[null,"в том числе:\nТанцевальный спорт","220",0,null,null,null,null,null,null,null,null,null,null,null,null,null,{"$f":"'Раздел 2'!C229","v":0}]
[null,"Брейкинг","221",0,null,null,null,null,null,null,null,null,null,null,null,null,null,{"$f":"'Раздел 2'!C230","v":0}]
[null,"Теннис","222",0,null,null,null,null,null,null,null,null,null,null,null,null,null,{"$f":"'Раздел 2'!C231","v":0}]
[null,"Триатлон","223",0,null,null,null,null,null,null,null,null,null,null,null,null,null,{"$f":"'Раздел 2'!C232","v":0}]
[null,"Тхэквондо (ВТФ)","224",0,null,null,null,null,null,null,null,null,null,null,null,null,null,{"$f":"'Раздел 2'!C233","v":1}]
[null,"Тхэквондо ГТФ","225",0,null,null,null,null,null,null,null,null,null,null,null,null,null,{"$f":"'Раздел 2'!C234","v":0}]
[null,"Тхэквондо ИТФ","226",0,null,null,null,null,null,null,null,null,null,null,null,null,null,{"$f":"'Раздел 2'!C235","v":0}]
[null,"Тхэквондо МФТ","227",0,null,null,null,null,null,null,null,null,null,null,null,null,null,{"$f":"'Раздел 2'!C236","v":0}]
[null,"Тяжелая атлетика","228",0,null,null,null,null,null,null,null,null,null,null,null,null,null,{"$f":"'Раздел 2'!C237","v":0}]
[null,"Универсальный бой","229",0,null,null,null,null,null,null,null,null,null,null,null,null,null,{"$f":"'Раздел 2'!C238","v":0}]
[null,"Ушу","230",0,null,null,null,null,null,null,null,null,null,null,null,null,null,{"$f":"'Раздел 2'!C239","v":0}]
[null,"Фехтование - всего","231",0,{"$f":"SUM(E241:E244)","v":0},{"$f":"SUM(F241:F244)","v":0},0,0,0,0,0,0,0,0,0,0,null,{"$f":"'Раздел 2'!C240","v":0}]
[null,"в том числе:\nРапира","232",0,null,null,null,null,null,null,null,null,null,null,null,null,null,{"$f":"'Раздел 2'!C241","v":0}]
[null,"Сабля","233",0,null,null,null,null,null,null,null,null,null,null,null,null,null,{"$f":"'Раздел 2'!C242","v":0}]
[null,"Шпага","234",0,null,null,null,null,null,null,null,null,null,null,null,null,null,{"$f":"'Раздел 2'!C243","v":0}]
[null,"Арт-фехтование","235",0,null,null,null,null,null,null,null,null,null,null,null,null,null,{"$f":"'Раздел 2'!C244","v":0}]
[null,"Фигурное катание на коньках","236",0,null,null,null,null,null,null,null,null,null,null,null,null,null,{"$f":"'Раздел 2'!C245","v":0}]
[null,"Фиджитал спорт (функционально-цифровй спорт)","237",0,null,null,null,null,null,null,null,null,null,null,null,null,null,{"$f":"'Раздел 2'!C246","v":0}]
[null,"Фитнес-аэробика","238",0,null,null,null,null,null,null,null,null,null,null,null,null,null,{"$f":"'Раздел 2'!C247","v":0}]
[null,"Флаинг диск","239",0,null,null,null,null,null,null,null,null,null,null,null,null,null,{"$f":"'Раздел 2'!C248","v":0}]
[null,"Флорбол","240",0,null,null,null,null,null,null,null,null,null,null,null,null,null,{"$f":"'Раздел 2'!C249","v":0}]
[null,"Фристайл - всего","241",0,{"$f":"SUM(E251:E256)","v":0},{"$f":"SUM(F251:F256)","v":0},0,0,0,0,0,0,0,0,0,0,null,{"$f":"'Раздел 2'!C250","v":0}]
[null,"в том числе:\nАкробатика","242",0,null,null,null,null,null,null,null,null,null,null,null,null,null,{"$f":"'Раздел 2'!C251","v":0}]
[null,"Биг-эйр","243",0,null,null,null,null,null,null,null,null,null,null,null,null,null,{"$f":"'Раздел 2'!C252","v":0}]
[null,"Могул","244",0,null,null,null,null,null,null,null,null,null,null,null,null,null,{"$f":"'Раздел 2'!C253","v":0}]
[null,"Ски-кросс","245",0,null,null,null,null,null,null,null,null,null,null,null,null,null,{"$f":"'Раздел 2'!C254","v":0}]
[null,"Хаф-пайп","246",0,null,null,null,null,null,null,null,null,null,null,null,null,null,{"$f":"'Раздел 2'!C255","v":0}]
[null,"Слоуп-стайл","247",0,null,null,null,null,null,null,null,null,null,null,null,null,null,{"$f":"'Раздел 2'!C256","v":0}]
[null,"Функциональное многоборье","248",0,null,null,null,null,null,null,null,null,null,null,null,null,null,{"$f":"'Раздел 2'!C257","v":0}]
[null,"Футбол - всего","249",0,{"$f":"SUM(E259:E264)","v":0},{"$f":"SUM(F259:F264)","v":0},0,0,0,0,0,0,0,0,0,0,null,{"$f":"'Раздел 2'!C258","v":0}]
[null,"в том числе:\nФутбол (муж.)","250",0,null,null,null,null,null,null,null,null,null,null,null,null,null,{"$f":"'Раздел 2'!C259","v":0}]
[null,"Футбол (жен.)","251",0,null,null,null,null,null,null,null,null,null,null,null,null,null,{"$f":"'Раздел 2'!C260","v":0}]
[null,"Мини-футбол (футзал)","252",0,null,null,null,null,null,null,null,null,null,null,null,null,null,{"$f":"'Раздел 2'!C261","v":0}]
[null,"Пляжный футбол","253",0,null,null,null,null,null,null,null,null,null,null,null,null,null,{"$f":"'Раздел 2'!C262","v":0}]
[null,"Футбол 6х6, 7х7, 8х8","254",0,null,null,null,null,null,null,null,null,null,null,null,null,null,{"$f":"'Раздел 2'!C263","v":0}]
[null,"Интерактивный футбол","255",0,null,null,null,null,null,null,null,null,null,null,null,null,null,{"$f":"'Раздел 2'!C264","v":0}]
[null,"Хапкидо","256",0,null,null,null,null,null,null,null,null,null,null,null,null,null,{"$f":"'Раздел 2'!C265","v":0}]
[null,"Хапсагай","257",0,null,null,null,null,null,null,null,null,null,null,null,null,null,{"$f":"'Раздел 2'!C266","v":0}]
[null,"Хоккей - всего","258",{"$f":"SUM(E267:J267)","v":0},{"$f":"SUM(E268:E269)","v":0},{"$f":"SUM(F268:F269)","v":0},0,0,0,0,0,0,0,0,0,0,null,{"$f":"'Раздел 2'!C267","v":0}]
[null,"в том числе:\nХоккей (муж.)","259",0,null,null,null,null,null,null,null,null,null,null,null,null,null,{"$f":"'Раздел 2'!C268","v":0}]
[null,"Хоккей (жен.)","260",0,null,null,null,null,null,null,null,null,null,null,null,null,null,{"$f":"'Раздел 2'!C269","v":0}]
[null,"Хоккей на траве - всего","261",0,{"$f":"SUM(E271:E273)","v":0},{"$f":"SUM(F271:F273)","v":0},0,0,0,0,0,0,0,0,0,0,null,{"$f":"'Раздел 2'!C270","v":0}]
[null,"в том числе:\nХоккей на траве (муж.)","262",0,null,null,null,null,null,null,null,null,null,null,null,null,null,{"$f":"'Раздел 2'!C271","v":0}]
[null,"Хоккей на траве (жен.)","263",0,null,null,null,null,null,null,null,null,null,null,null,null,null,{"$f":"'Раздел 2'!C272","v":0}]
[null,"Индорхоккей","264",0,null,null,null,null,null,null,null,null,null,null,null,null,null,{"$f":"'Раздел 2'!C273","v":0}]
[null,"Хоккей с мячом","265",0,null,null,null,null,null,null,null,null,null,null,null,null,null,{"$f":"'Раздел 2'!C274","v":0}]
[null,"Художественная гимнастика","266",0,null,null,null,null,null,null,null,null,null,null,null,null,null,{"$f":"'Раздел 2'!C275","v":0}]
[null,"Хуреш","267",0,null,null,null,null,null,null,null,null,null,null,null,null,null,{"$f":"'Раздел 2'!C276","v":0}]
[null,"Чир спорт","268",0,null,null,null,null,null,null,null,null,null,null,null,null,null,{"$f":"'Раздел 2'!C277","v":0}]
[null,"Шахматы","269",0,null,null,null,null,null,null,null,null,null,null,null,null,null,{"$f":"'Раздел 2'!C278","v":0}]
[null,"Шашки","270",0,null,null,null,null,null,null,null,null,null,null,null,null,null,{"$f":"'Раздел 2'!C279","v":0}]
[null,"Шодсанлат","271",0,null,null,null,null,null,null,null,null,null,null,null,null,null,{"$f":"'Раздел 2'!C280","v":0}]
[null,"Эстетическая гимнастика","272",0,null,null,null,null,null,null,null,null,null,null,null,null,null,{"$f":"'Раздел 2'!C281","v":0}]
[null,"Якутские национальные прыжки","273",0,null,null,null,null,null,null,null,null,null,null,null,null,null,{"$f":"'Раздел 2'!C282","v":0}]
[null,"ИТОГО","274",{"$f":"SUM(E283:J283)","v":6},{"$f":"SUM(E10:E22,E26:E29,E32:E37,E48:E53,E58:E60,E42:E45,E64:E74,E79:E89,E93:E100,E103:E107,E115:E119,E120:E133,E136:E141,E144,E149:E150,E156:E159,E165:E166,E167:E181,E182:E200,E206:E211,E212:E214,E219:E221,E225:E228,E231:E240,E245:E250,E257:E258,E265:E267,E270,E274:E282)","v":1},{"$f":"SUM(F10:F22,F26:F29,F32:F37,F48:F53,F58:F60,F42:F45,F64:F74,F79:F89,F93:F100,F103:F107,F115:F119,F120:F133,F136:F141,F144,F149:F150,F156:F159,F165:F166,F167:F181,F182:F200,F206:F211,F212:F214,F219:F221,F225:F228,F231:F240,F245:F250,F257:F258,F265:F267,F270,F274:F282)","v":0},1,1,2,{"$f":"SUM(J10:J22,J26:J29,J32:J37,J48:J53,J58:J60,J42:J45,J64:J74,J79:J89,J93:J100,J103:J107,J115:J119,J120:J133,J136:J141,J144,J149:J150,J156:J159,J165:J166,J167:J181,J182:J200,J206:J211,J212:J214,J219:J221,J225:J228,J231:J240,J245:J250,J257:J258,J265:J267,J270,J274:J282)","v":1},0,0,0,0,0,0,null,{"$f":"'Раздел 2'!C283","v":5}]

{"sheet":"Раздел 6","index":6,"n_rows":283,"n_cols":42,"rows_kept":283,"cut":false,"hidden":false,"merged":[[4,41,7,41],[5,3,6,8],[5,9,6,13],[5,14,6,18],[5,19,6,23],[5,24,6,28],[5,34,6,38],[5,29,6,33],[3,0,133,0],[3,1,3,38],[3,39,133,39],[4,1,7,1],[4,2,7,2],[4,3,4,38]]}
[]
[]
[]
[null,"Раздел VI. Всероссийские спортивные соревнования, единица"]
[null,"Виды спорта","№ строки","Результаты выступлений на соревнованиях",null,null,null,null,null,null,null,null,null,null,null,null,null,null,null,null,null,null,null,null,null,null,null,null,null,null,null,null,null,null,null,null,null,null,null,null,null,"Раздел2 графа3\nЧисло отделений"]
[null,null,null,"Всего",null,null,null,null,null,"Чемпионат России",null,null,null,null,"Первенство России среди юниоров и юниорок",null,null,null,null,"Первенство России среди юношей и девушек",null,null,null,null,"Кубок России",null,null,null,null,"Всероссийские спартакиады между спортсменами субъектов Российской Федерации по летним и зимним видам спорта ",null,null,null,null,"Прочие официальные всероссийские соревнования"]
[]
[null,null,null,"медали \n(1-3 место)",1,2,3,"4-6","учас-тие",1,2,3,"4-6","учас-тие",1,2,3,"4-6","учас-тие",1,2,3,"4-6","учас-тие",1,2,3,"4-6","учас-тие",1,2,3,"4-6","учас-тие",1,2,3,"4-6","учас-тие",null,"цсп?"]
[null,1,2,3,4,5,6,7,8,9,10,11,12,13,14,15,16,17,18,19,20,21,22,23,24,25,26,27,28,29,30,31,32,33,34,35,36,37,38]
[null,"Авиамодельный спорт","01",{"$f":"SUM(E10:G10)","v":0},{"$f":"SUM(J10,O10,T10,Y10,AD10,AI10)","v":0},{"$f":"SUM(K10,P10,U10,Z10,AE10,AJ10)","v":0},0,0,0,null,null,null,null,null,null,null,null,null,null,null,null,null,null,null,null,null,null,null,null,null,null,null,null,null,null,null,null,null,null,null,{"$f":"'Раздел 1'!H12","v":0},{"$f":"'Раздел 2'!C10","v":0}]
[null,"Авиационные гонки","02",{"$f":"SUM(E11:G11)","v":0},{"$f":"SUM(J11,O11,T11,Y11,AD11,AI11)","v":0},{"$f":"SUM(K11,P11,U11,Z11,AE11,AJ11)","v":0},{"$f":"SUM(L11,Q11,V11,AA11,AF11,AK11)","v":0},{"$f":"SUM(M11,R11,W11,AB11,AG11,AL11)","v":0},{"$f":"SUM(N11,S11,X11,AC11,AH11,AM11)","v":0},null,null,null,null,null,null,null,null,null,null,null,null,null,null,null,null,null,null,null,null,null,null,null,null,null,null,null,null,null,null,null,null,{"$f":"'Раздел 2'!C11","v":0}]
[null,"Автомобильный спорт","03",0,0,0,0,0,0,null,null,null,null,null,null,null,null,null,null,null,null,null,null,null,null,null,null,null,null,null,null,null,null,null,null,null,null,null,null,null,null,{"$f":"'Раздел 2'!C12","v":0}]
[null,"Автомодельный спорт","04",0,0,0,0,0,0,null,null,null,null,null,null,null,null,null,null,null,null,null,null,null,null,null,null,null,null,null,null,null,null,null,null,null,null,null,null,null,null,{"$f":"'Раздел 2'!C13","v":0}]
[null,"Айкидо","05",0,0,0,0,0,0,null,null,null,null,null,null,null,null,null,null,null,null,null,null,null,null,null,null,null,null,null,null,null,null,null,null,null,null,null,null,null,null,{"$f":"'Раздел 2'!C14","v":0}]
[null,"Акробатический рок-н-ролл","06",0,0,0,0,0,0,null,null,null,null,null,null,null,null,null,null,null,null,null,null,null,null,null,null,null,null,null,null,null,null,null,null,null,null,null,null,null,null,{"$f":"'Раздел 2'!C15","v":0}]
[null,"Альпинизм","07",0,0,0,0,0,0,null,null,null,null,null,null,null,null,null,null,null,null,null,null,null,null,null,null,null,null,null,null,null,null,null,null,null,null,null,null,null,null,{"$f":"'Раздел 2'!C16","v":0}]
[null,"Американский футбол","08",0,0,0,0,0,0,null,null,null,null,null,null,null,null,null,null,null,null,null,null,null,null,null,null,null,null,null,null,null,null,null,null,null,null,null,null,null,null,{"$f":"'Раздел 2'!C17","v":0}]
[null,"Армейский рукопашный бой","09",0,0,0,0,0,0,null,null,null,null,null,null,null,null,null,null,null,null,null,null,null,null,null,null,null,null,null,null,null,null,null,null,null,null,null,null,null,null,{"$f":"'Раздел 2'!C18","v":0}]
[null,"Армейское тактико-стрелковое многоборье","10",0,0,0,0,0,0,null,null,null,null,null,null,null,null,null,null,null,null,null,null,null,null,null,null,null,null,null,null,null,null,null,null,null,null,null,null,null,null,{"$f":"'Раздел 2'!C19","v":0}]
[null,"Армрестлинг","11",0,0,0,0,0,0,null,null,null,null,null,null,null,null,null,null,null,null,null,null,null,null,null,null,null,null,null,null,null,null,null,null,null,null,null,null,null,null,{"$f":"'Раздел 2'!C20","v":0}]
[null,"Бадминтон","12",0,0,0,0,0,0,null,null,null,null,null,null,null,null,null,null,null,null,null,null,null,null,null,null,null,null,null,null,null,null,null,null,null,null,null,null,null,null,{"$f":"'Раздел 2'!C21","v":0}]
[null,"Баскетбол - всего","13",0,0,0,0,0,0,{"$f":"SUM(J23:J25)","v":0},{"$f":"SUM(K23:K25)","v":0},0,0,0,0,0,0,0,0,0,0,0,0,0,0,0,0,0,0,0,0,0,0,0,0,0,0,0,0,null,null,{"$f":"'Раздел 2'!C22","v":0}]
[null,"в том числе:\nБаскетбол (муж.)","14",0,0,0,0,0,0,null,null,null,null,null,null,null,null,null,null,null,null,null,null,null,null,null,null,null,null,null,null,null,null,null,null,null,null,null,null,null,null,{"$f":"'Раздел 2'!C23","v":0}]
[null,"Баскетбол (жен.)","15",0,0,0,0,0,0,null,null,null,null,null,null,null,null,null,null,null,null,null,null,null,null,null,null,null,null,null,null,null,null,null,null,null,null,null,null,null,null,{"$f":"'Раздел 2'!C24","v":0}]
[null,"Баскетбол 3х3","16",0,0,0,0,0,0,null,null,null,null,null,null,null,null,null,null,null,null,null,null,null,null,null,null,null,null,null,null,null,null,null,null,null,null,null,null,null,null,{"$f":"'Раздел 2'!C25","v":0}]
[null,"Бейсбол","17",0,0,0,0,0,0,null,null,null,null,null,null,null,null,null,null,null,null,null,null,null,null,null,null,null,null,null,null,null,null,null,null,null,null,null,null,null,null,{"$f":"'Раздел 2'!C26","v":0}]
[null,"Биатлон","18",0,0,0,0,0,0,null,null,null,null,null,null,null,null,null,null,null,null,null,null,null,null,null,null,null,null,null,null,null,null,null,null,null,null,null,null,null,null,{"$f":"'Раздел 2'!C27","v":0}]
[null,"Бильярдный спорт","19",0,0,0,0,0,0,null,null,null,null,null,null,null,null,null,null,null,null,null,null,null,null,null,null,null,null,null,null,null,null,null,null,null,null,null,null,null,null,{"$f":"'Раздел 2'!C28","v":0}]
[null,"Бобслей - всего","20",0,0,0,0,0,0,{"$f":"SUM(J30:J31)","v":0},{"$f":"SUM(K30:K31)","v":0},0,0,0,0,0,0,0,0,0,0,0,0,0,0,0,0,0,0,0,0,0,0,0,0,0,0,0,0,null,null,{"$f":"'Раздел 2'!C29","v":0}]
[null,"в том числе:\nБобслей","21",0,0,0,0,0,0,null,null,null,null,null,null,null,null,null,null,null,null,null,null,null,null,null,null,null,null,null,null,null,null,null,null,null,null,null,null,null,null,{"$f":"'Раздел 2'!C30","v":0}]
[null,"Скелетон","22",0,0,0,0,0,0,null,null,null,null,null,null,null,null,null,null,null,null,null,null,null,null,null,null,null,null,null,null,null,null,null,null,null,null,null,null,null,null,{"$f":"'Раздел 2'!C31","v":0}]
[null,"Бодибилдинг","23",0,0,0,0,0,0,null,null,null,null,null,null,null,null,null,null,null,null,null,null,null,null,null,null,null,null,null,null,null,null,null,null,null,null,null,null,null,null,{"$f":"'Раздел 2'!C32","v":0}]
[null,"Бокс","24",0,0,0,0,0,0,null,null,null,null,null,null,null,null,null,null,null,null,null,null,null,null,null,null,null,null,null,null,null,null,null,null,null,null,null,null,null,null,{"$f":"'Раздел 2'!C33","v":0}]
[null,"Борьба на поясах","25",0,0,0,0,0,0,null,null,null,null,null,null,null,null,null,null,null,null,null,null,null,null,null,null,null,null,null,null,null,null,null,null,null,null,null,null,null,null,{"$f":"'Раздел 2'!C34","v":0}]
[null,"Боулинг","26",0,0,0,0,0,0,null,null,null,null,null,null,null,null,null,null,null,null,null,null,null,null,null,null,null,null,null,null,null,null,null,null,null,null,null,null,null,null,{"$f":"'Раздел 2'!C35","v":0}]
[null,"Боулспорт","27",0,0,0,0,0,0,null,null,null,null,null,null,null,null,null,null,null,null,null,null,null,null,null,null,null,null,null,null,null,null,null,null,null,null,null,null,null,null,{"$f":"'Раздел 2'!C36","v":0}]
[null,"Велосипедный спорт - всего","28",0,0,0,0,0,0,{"$f":"SUM(J38:J41)","v":0},{"$f":"SUM(K38:K41)","v":0},0,0,0,0,0,0,0,0,0,0,0,0,0,0,0,0,0,0,0,0,0,0,0,0,0,0,0,0,null,null,{"$f":"'Раздел 2'!C37","v":0}]
[null,"в том числе:\nBMX","29",0,0,0,0,0,0,null,null,null,null,null,null,null,null,null,null,null,null,null,null,null,null,null,null,null,null,null,null,null,null,null,null,null,null,null,null,null,null,{"$f":"'Раздел 2'!C38","v":0}]
[null,"Маунтинбайк","30",0,0,0,0,0,0,null,null,null,null,null,null,null,null,null,null,null,null,null,null,null,null,null,null,null,null,null,null,null,null,null,null,null,null,null,null,null,null,{"$f":"'Раздел 2'!C39","v":0}]
[null,"Трек","31",0,0,0,0,0,0,null,null,null,null,null,null,null,null,null,null,null,null,null,null,null,null,null,null,null,null,null,null,null,null,null,null,null,null,null,null,null,null,{"$f":"'Раздел 2'!C40","v":0}]
[null,"Шоссе","32",0,0,0,0,0,0,null,null,null,null,null,null,null,null,null,null,null,null,null,null,null,null,null,null,null,null,null,null,null,null,null,null,null,null,null,null,null,null,{"$f":"'Раздел 2'!C41","v":0}]
[null,"Вертолетный спорт","33",0,0,0,0,0,0,null,null,null,null,null,null,null,null,null,null,null,null,null,null,null,null,null,null,null,null,null,null,null,null,null,null,null,null,null,null,null,null,{"$f":"'Раздел 2'!C42","v":0}]
[null,"Водно-моторный спорт","34",0,0,0,0,0,0,null,null,null,null,null,null,null,null,null,null,null,null,null,null,null,null,null,null,null,null,null,null,null,null,null,null,null,null,null,null,null,null,{"$f":"'Раздел 2'!C43","v":0}]
[null,"Водно-спасательное многоборье","35",0,0,0,0,0,0,null,null,null,null,null,null,null,null,null,null,null,null,null,null,null,null,null,null,null,null,null,null,null,null,null,null,null,null,null,null,null,null,{"$f":"'Раздел 2'!C44","v":0}]
[null,"Водное поло - всего ","36",0,0,0,0,0,0,{"$f":"SUM(J46:J47)","v":0},{"$f":"SUM(K46:K47)","v":0},0,0,0,0,0,0,0,0,0,0,0,0,0,0,0,0,0,0,0,0,0,0,0,0,0,0,0,0,null,null,{"$f":"'Раздел 2'!C45","v":0}]
[null,"в том числе:\nВодное поло (муж.)","37",0,0,0,0,0,0,null,null,null,null,null,null,null,null,null,null,null,null,null,null,null,null,null,null,null,null,null,null,null,null,null,null,null,null,null,null,null,null,{"$f":"'Раздел 2'!C46","v":0}]
[null,"Водное поло (жен.)","38",0,0,0,0,0,0,null,null,null,null,null,null,null,null,null,null,null,null,null,null,null,null,null,null,null,null,null,null,null,null,null,null,null,null,null,null,null,null,{"$f":"'Раздел 2'!C47","v":0}]
[null,"Воднолыжный спорт","39",0,0,0,0,0,0,null,null,null,null,null,null,null,null,null,null,null,null,null,null,null,null,null,null,null,null,null,null,null,null,null,null,null,null,null,null,null,null,{"$f":"'Раздел 2'!C48","v":0}]
[null,"Военно-прикладной спорт","40",0,0,0,0,0,0,null,null,null,null,null,null,null,null,null,null,null,null,null,null,null,null,null,null,null,null,null,null,null,null,null,null,null,null,null,null,null,null,{"$f":"'Раздел 2'!C49","v":0}]
[null,"Военно-спортивное многоборье","41",0,0,0,0,0,0,null,null,null,null,null,null,null,null,null,null,null,null,null,null,null,null,null,null,null,null,null,null,null,null,null,null,null,null,null,null,null,null,{"$f":"'Раздел 2'!C50","v":0}]
[null,"Воздухоплавательный спорт","42",0,0,0,0,0,0,null,null,null,null,null,null,null,null,null,null,null,null,null,null,null,null,null,null,null,null,null,null,null,null,null,null,null,null,null,null,null,null,{"$f":"'Раздел 2'!C51","v":0}]
[null,"Воздушно-силовая атлетика","43",0,0,0,0,0,0,null,null,null,null,null,null,null,null,null,null,null,null,null,null,null,null,null,null,null,null,null,null,null,null,null,null,null,null,null,null,null,null,{"$f":"'Раздел 2'!C52","v":0}]
[null,"Волейбол - всего","44",0,0,0,0,0,0,{"$f":"SUM(J54:J57)","v":0},{"$f":"SUM(K54:K57)","v":0},0,0,0,0,0,0,0,0,0,0,0,0,0,0,0,0,0,0,0,0,0,0,0,0,0,0,0,0,null,null,{"$f":"'Раздел 2'!C53","v":0}]
[null,"в том числе:\nВолейбол (муж.)","45",0,0,0,0,0,0,null,null,null,null,null,null,null,null,null,null,null,null,null,null,null,null,null,null,null,null,null,null,null,null,null,null,null,null,null,null,null,null,{"$f":"'Раздел 2'!C54","v":0}]
[null,"Волейбол (жен.)","46",0,0,0,0,0,0,null,null,null,null,null,null,null,null,null,null,null,null,null,null,null,null,null,null,null,null,null,null,null,null,null,null,null,null,null,null,null,null,{"$f":"'Раздел 2'!C55","v":0}]
[null,"Пляжный волейбол (муж.)","47",0,0,0,0,0,0,null,null,null,null,null,null,null,null,null,null,null,null,null,null,null,null,null,null,null,null,null,null,null,null,null,null,null,null,null,null,null,null,{"$f":"'Раздел 2'!C56","v":0}]
[null,"Пляжный волейбол (жен.)","48",0,0,0,0,0,0,null,null,null,null,null,null,null,null,null,null,null,null,null,null,null,null,null,null,null,null,null,null,null,null,null,null,null,null,null,null,null,null,{"$f":"'Раздел 2'!C57","v":0}]
[null,"Восточное боевое единоборство","49",0,0,0,0,0,0,null,null,null,null,null,null,null,null,null,null,null,null,null,null,null,null,null,null,null,null,null,null,null,null,null,null,null,null,null,null,null,null,{"$f":"'Раздел 2'!C58","v":0}]
[null,"Всестилевое каратэ","50",0,0,0,0,0,0,null,null,null,null,null,null,null,null,null,null,null,null,null,null,null,null,null,null,null,null,null,null,null,null,null,null,null,null,null,null,null,null,{"$f":"'Раздел 2'!C59","v":0}]
[null,"Гандбол - всего","51",0,0,0,0,0,0,{"$f":"SUM(J61:J63)","v":0},{"$f":"SUM(K61:K63)","v":0},0,0,0,0,0,0,0,0,0,0,0,0,0,0,0,0,0,0,0,0,0,0,0,0,0,0,0,0,null,null,{"$f":"'Раздел 2'!C60","v":0}]
[null,"в том числе:\nГандбол (муж.)","52",0,0,0,0,0,0,null,null,null,null,null,null,null,null,null,null,null,null,null,null,null,null,null,null,null,null,null,null,null,null,null,null,null,null,null,null,null,null,{"$f":"'Раздел 2'!C61","v":0}]
[null,"Гандбол (жен.)","53",0,0,0,0,0,0,null,null,null,null,null,null,null,null,null,null,null,null,null,null,null,null,null,null,null,null,null,null,null,null,null,null,null,null,null,null,null,null,{"$f":"'Раздел 2'!C62","v":0}]
[null,"Пляжный гандбол","54",0,0,0,0,0,0,null,null,null,null,null,null,null,null,null,null,null,null,null,null,null,null,null,null,null,null,null,null,null,null,null,null,null,null,null,null,null,null,{"$f":"'Раздел 2'!C63","v":0}]
[null,"Гиревой спорт","55",0,0,0,0,0,0,null,null,null,null,null,null,null,null,null,null,null,null,null,null,null,null,null,null,null,null,null,null,null,null,null,null,null,null,null,null,null,null,{"$f":"'Раздел 2'!C64","v":0}]
[null,"Го","56",0,0,0,0,0,0,null,null,null,null,null,null,null,null,null,null,null,null,null,null,null,null,null,null,null,null,null,null,null,null,null,null,null,null,null,null,null,null,{"$f":"'Раздел 2'!C65","v":0}]
[null,"Гольф","57",0,0,0,0,0,0,null,null,null,null,null,null,null,null,null,null,null,null,null,null,null,null,null,null,null,null,null,null,null,null,null,null,null,null,null,null,null,null,{"$f":"'Раздел 2'!C66","v":0}]
[null,"Гонки на охотничьих лыжах","58",0,0,0,0,0,0,null,null,null,null,null,null,null,null,null,null,null,null,null,null,null,null,null,null,null,null,null,null,null,null,null,null,null,null,null,null,null,null,{"$f":"'Раздел 2'!C67","v":0}]
[null,"Гонки с препятствиями","59",0,0,0,0,0,0,null,null,null,null,null,null,null,null,null,null,null,null,null,null,null,null,null,null,null,null,null,null,null,null,null,null,null,null,null,null,null,null,{"$f":"'Раздел 2'!C68","v":0}]
[null,"Горнолыжный спорт","60",0,0,0,0,0,0,null,null,null,null,null,null,null,null,null,null,null,null,null,null,null,null,null,null,null,null,null,null,null,null,null,null,null,null,null,null,null,null,{"$f":"'Раздел 2'!C69","v":0}]
[null,"Городошный спорт","61",0,0,0,0,0,0,null,null,null,null,null,null,null,null,null,null,null,null,null,null,null,null,null,null,null,null,null,null,null,null,null,null,null,null,null,null,null,null,{"$f":"'Раздел 2'!C70","v":0}]
[null,"Гребля на байдарках и каноэ","62",0,0,0,0,0,0,null,null,null,null,null,null,null,null,null,null,null,null,null,null,null,null,null,null,null,null,null,null,null,null,null,null,null,null,null,null,null,null,{"$f":"'Раздел 2'!C71","v":0}]
[null,"Гребля на шлюпках","63",0,0,0,0,0,0,null,null,null,null,null,null,null,null,null,null,null,null,null,null,null,null,null,null,null,null,null,null,null,null,null,null,null,null,null,null,null,null,{"$f":"'Раздел 2'!C72","v":0}]
[null,"Гребной слалом","64",0,0,0,0,0,0,null,null,null,null,null,null,null,null,null,null,null,null,null,null,null,null,null,null,null,null,null,null,null,null,null,null,null,null,null,null,null,null,{"$f":"'Раздел 2'!C73","v":0}]
[null,"Гребной спорт - всего","65",0,0,0,0,0,0,{"$f":"SUM(J75:J78)","v":0},{"$f":"SUM(K75:K78)","v":0},0,0,0,0,0,0,0,0,0,0,0,0,0,0,0,0,0,0,0,0,0,0,0,0,0,0,0,0,null,null,{"$f":"'Раздел 2'!C74","v":0}]
[null,"в том числе:\nАкадемическая гребля","66",{"$f":"SUM(E75:G75)","v":0},{"$f":"SUM(J75,O75,T75,Y75,AD75,AI75)","v":0},{"$f":"SUM(K75,P75,U75,Z75,AE75,AJ75)","v":0},{"$f":"SUM(L75,Q75,V75,AA75,AF75,AK75)","v":0},{"$f":"SUM(M75,R75,W75,AB75,AG75,AL75)","v":0},{"$f":"SUM(N75,S75,X75,AC75,AH75,AM75)","v":0},null,null,null,null,null,null,null,null,null,null,null,null,null,null,null,null,null,null,null,null,null,null,null,null,null,null,null,null,null,null,null,null,{"$f":"'Раздел 2'!C75","v":0}]
[null,"Гребля-индор","67",0,0,0,0,0,0,null,null,null,null,null,null,null,null,null,null,null,null,null,null,null,null,null,null,null,null,null,null,null,null,null,null,null,null,null,null,null,null,{"$f":"'Раздел 2'!C76","v":0}]
[null,"Народная гребля","68",0,0,0,0,0,0,null,null,null,null,null,null,null,null,null,null,null,null,null,null,null,null,null,null,null,null,null,null,null,null,null,null,null,null,null,null,null,null,{"$f":"'Раздел 2'!C77","v":0}]
[null,"Прибрежная гребля","69",0,0,0,0,0,0,null,null,null,null,null,null,null,null,null,null,null,null,null,null,null,null,null,null,null,null,null,null,null,null,null,null,null,null,null,null,null,null,{"$f":"'Раздел 2'!C78","v":0}]
[null,"Гребно-парусное двоеборье","70",0,0,0,0,0,0,null,null,null,null,null,null,null,null,null,null,null,null,null,null,null,null,null,null,null,null,null,null,null,null,null,null,null,null,null,null,null,null,{"$f":"'Раздел 2'!C79","v":0}]
[null,"Дартс","71",0,0,0,0,0,0,null,null,null,null,null,null,null,null,null,null,null,null,null,null,null,null,null,null,null,null,null,null,null,null,null,null,null,null,null,null,null,null,{"$f":"'Раздел 2'!C80","v":0}]
[null,"Джиу-джитсу","72",0,0,0,0,0,0,null,null,null,null,null,null,null,null,null,null,null,null,null,null,null,null,null,null,null,null,null,null,null,null,null,null,null,null,null,null,null,null,{"$f":"'Раздел 2'!C81","v":0}]
[null,"Дзюдо","73",0,0,0,0,0,1,null,null,null,null,null,null,null,null,null,null,null,null,null,null,null,null,null,null,null,null,null,null,null,null,null,null,null,null,null,1,null,null,{"$f":"'Раздел 2'!C82","v":1}]
[null,"Ездовой спорт","74",0,0,0,0,0,0,null,null,null,null,null,null,null,null,null,null,null,null,null,null,null,null,null,null,null,null,null,null,null,null,null,null,null,null,null,null,null,null,{"$f":"'Раздел 2'!C83","v":0}]
[null,"Зимнее плавание","75",0,0,0,0,0,0,null,null,null,null,null,null,null,null,null,null,null,null,null,null,null,null,null,null,null,null,null,null,null,null,null,null,null,null,null,null,null,null,{"$f":"'Раздел 2'!C84","v":0}]
[null,"Капоэйра","76",0,0,0,0,0,0,null,null,null,null,null,null,null,null,null,null,null,null,null,null,null,null,null,null,null,null,null,null,null,null,null,null,null,null,null,null,null,null,{"$f":"'Раздел 2'!C85","v":0}]
[null,"Каратэ","77",0,0,0,0,0,0,null,null,null,null,null,null,null,null,null,null,null,null,null,null,null,null,null,null,null,null,null,null,null,null,null,null,null,null,null,null,null,null,{"$f":"'Раздел 2'!C86","v":0}]
[null,"Кендо","78",0,0,0,0,0,0,null,null,null,null,null,null,null,null,null,null,null,null,null,null,null,null,null,null,null,null,null,null,null,null,null,null,null,null,null,null,null,null,{"$f":"'Раздел 2'!C87","v":0}]
[null,"Керешу","79",0,0,0,0,0,0,null,null,null,null,null,null,null,null,null,null,null,null,null,null,null,null,null,null,null,null,null,null,null,null,null,null,null,null,null,null,null,null,{"$f":"'Раздел 2'!C88","v":0}]
[null,"Кёрлинг - всего","80",0,0,0,0,0,0,{"$f":"SUM(J90:J92)","v":0},{"$f":"SUM(K90:K92)","v":0},0,0,0,0,0,0,0,0,0,0,0,0,0,0,0,0,0,0,0,0,0,0,0,0,0,0,0,0,null,null,{"$f":"'Раздел 2'!C89","v":0}]
[null,"в том числе:\nКёрлинг (муж.)","81",0,0,0,0,0,0,null,null,null,null,null,null,null,null,null,null,null,null,null,null,null,null,null,null,null,null,null,null,null,null,null,null,null,null,null,null,null,null,{"$f":"'Раздел 2'!C90","v":0}]
[null,"Кёрлинг (жен.)","82",0,0,0,0,0,0,null,null,null,null,null,null,null,null,null,null,null,null,null,null,null,null,null,null,null,null,null,null,null,null,null,null,null,null,null,null,null,null,{"$f":"'Раздел 2'!C91","v":0}]
[null,"Кёрлинг – смешанные пары","83",0,0,0,0,0,0,null,null,null,null,null,null,null,null,null,null,null,null,null,null,null,null,null,null,null,null,null,null,null,null,null,null,null,null,null,null,null,null,{"$f":"'Раздел 2'!C92","v":0}]
[null,"Кикбоксинг","84",36,10,10,16,8,7,null,null,null,null,null,1,null,3,4,null,null,null,null,null,null,null,1,4,null,null,null,null,null,null,null,9,9,9,4,7,null,null,{"$f":"'Раздел 2'!C93","v":1}]
[null,"Кинологический спорт","85",0,0,0,0,0,0,null,null,null,null,null,null,null,null,null,null,null,null,null,null,null,null,null,null,null,null,null,null,null,null,null,null,null,null,null,null,null,null,{"$f":"'Раздел 2'!C94","v":0}]
[null,"Киокусинкай","86",0,0,0,0,0,0,null,null,null,null,null,null,null,null,null,null,null,null,null,null,null,null,null,null,null,null,null,null,null,null,null,null,null,null,null,null,null,null,{"$f":"'Раздел 2'!C95","v":0}]
[null,"Киокушин","87",0,0,0,0,0,0,null,null,null,null,null,null,null,null,null,null,null,null,null,null,null,null,null,null,null,null,null,null,null,null,null,null,null,null,null,null,null,null,{"$f":"'Раздел 2'!C96","v":0}]
[null,"Комплексное единоборство","88",0,0,0,0,0,0,null,null,null,null,null,null,null,null,null,null,null,null,null,null,null,null,null,null,null,null,null,null,null,null,null,null,null,null,null,null,null,null,{"$f":"'Раздел 2'!C97","v":0}]
[null,"Компьютерный спорт","89",0,0,0,0,0,0,null,null,null,null,null,null,null,null,null,null,null,null,null,null,null,null,null,null,null,null,null,null,null,null,null,null,null,null,null,null,null,null,{"$f":"'Раздел 2'!C98","v":0}]
[null,"Конный спорт","90",0,0,0,0,0,0,null,null,null,null,null,null,null,null,null,null,null,null,null,null,null,null,null,null,null,null,null,null,null,null,null,null,null,null,null,null,null,null,{"$f":"'Раздел 2'!C99","v":0}]
[null,"Конькобежный спорт - всего","91",0,0,0,0,0,0,{"$f":"SUM(J101:J102)","v":0},{"$f":"SUM(K101:K102)","v":0},0,0,0,0,0,0,0,0,0,0,0,0,0,0,0,0,0,0,0,0,0,0,0,0,0,0,0,0,null,null,{"$f":"'Раздел 2'!C100","v":0}]
[null,"в том числе:\nКонькобежный спорт","92",0,0,0,0,0,0,null,null,null,null,null,null,null,null,null,null,null,null,null,null,null,null,null,null,null,null,null,null,null,null,null,null,null,null,null,null,null,null,{"$f":"'Раздел 2'!C101","v":0}]
[null,"Шорт-трек","93",0,0,0,0,0,0,null,null,null,null,null,null,null,null,null,null,null,null,null,null,null,null,null,null,null,null,null,null,null,null,null,null,null,null,null,null,null,null,{"$f":"'Раздел 2'!C102","v":0}]
[null,"Корэш","94",0,0,0,0,0,0,null,null,null,null,null,null,null,null,null,null,null,null,null,null,null,null,null,null,null,null,null,null,null,null,null,null,null,null,null,null,null,null,{"$f":"'Раздел 2'!C103","v":0}]
[null,"Крикет","95",0,0,0,0,0,0,null,null,null,null,null,null,null,null,null,null,null,null,null,null,null,null,null,null,null,null,null,null,null,null,null,null,null,null,null,null,null,null,{"$f":"'Раздел 2'!C104","v":0}]
[null,"Кудо","96",0,0,0,0,0,0,null,null,null,null,null,null,null,null,null,null,null,null,null,null,null,null,null,null,null,null,null,null,null,null,null,null,null,null,null,null,null,null,{"$f":"'Раздел 2'!C105","v":0}]
[null,"Лапта","97",0,0,0,0,0,0,null,null,null,null,null,null,null,null,null,null,null,null,null,null,null,null,null,null,null,null,null,null,null,null,null,null,null,null,null,null,null,null,{"$f":"'Раздел 2'!C106","v":0}]
[null,"Легкая атлетика - всего","98",0,0,0,0,0,0,{"$f":"SUM(J108:J114)","v":0},{"$f":"SUM(K108:K114)","v":0},0,0,0,0,0,0,0,0,0,0,0,0,0,0,0,0,0,0,0,0,0,0,0,0,0,0,0,0,null,null,{"$f":"'Раздел 2'!C107","v":0}]
[null,"в том числе:\nСпринтерский и барьерный бег","99",0,0,0,0,0,0,null,null,null,null,null,null,null,null,null,null,null,null,null,null,null,null,null,null,null,null,null,null,null,null,null,null,null,null,null,null,null,null,{"$f":"'Раздел 2'!C108","v":0}]
[null,"Бег на средние дистанции и бег с препятствиями","100",0,0,0,0,0,0,null,null,null,null,null,null,null,null,null,null,null,null,null,null,null,null,null,null,null,null,null,null,null,null,null,null,null,null,null,null,null,null,{"$f":"'Раздел 2'!C109","v":0}]
[null,"Бег на длинные и сверхдлинные дистанции","101",0,0,0,0,0,0,null,null,null,null,null,null,null,null,null,null,null,null,null,null,null,null,null,null,null,null,null,null,null,null,null,null,null,null,null,null,null,null,{"$f":"'Раздел 2'!C110","v":0}]
[null,"Многоборья","102",0,0,0,0,0,0,null,null,null,null,null,null,null,null,null,null,null,null,null,null,null,null,null,null,null,null,null,null,null,null,null,null,null,null,null,null,null,null,{"$f":"'Раздел 2'!C111","v":0}]
[null,"Прыжки","103",0,0,0,0,0,0,null,null,null,null,null,null,null,null,null,null,null,null,null,null,null,null,null,null,null,null,null,null,null,null,null,null,null,null,null,null,null,null,{"$f":"'Раздел 2'!C112","v":0}]
[null,"Метания","104",0,0,0,0,0,0,null,null,null,null,null,null,null,null,null,null,null,null,null,null,null,null,null,null,null,null,null,null,null,null,null,null,null,null,null,null,null,null,{"$f":"'Раздел 2'!C113","v":0}]
[null,"Спортивная ходьба","105",0,0,0,0,0,0,null,null,null,null,null,null,null,null,null,null,null,null,null,null,null,null,null,null,null,null,null,null,null,null,null,null,null,null,null,null,null,null,{"$f":"'Раздел 2'!C114","v":0}]
[null,"Лыжное двоеборье","106",0,0,0,0,0,0,null,null,null,null,null,null,null,null,null,null,null,null,null,null,null,null,null,null,null,null,null,null,null,null,null,null,null,null,null,null,null,null,{"$f":"'Раздел 2'!C115","v":0}]
[null,"Лыжные гонки","107",0,0,0,0,0,0,null,null,null,null,null,null,null,null,null,null,null,null,null,null,null,null,null,null,null,null,null,null,null,null,null,null,null,null,null,null,null,null,{"$f":"'Раздел 2'!C116","v":0}]
[null,"Мас-рестлинг","108",0,0,0,0,0,0,null,null,null,null,null,null,null,null,null,null,null,null,null,null,null,null,null,null,null,null,null,null,null,null,null,null,null,null,null,null,null,null,{"$f":"'Раздел 2'!C117","v":0}]
[null,"Международное военно-спортивное многоборье","109",0,0,0,0,0,0,null,null,null,null,null,null,null,null,null,null,null,null,null,null,null,null,null,null,null,null,null,null,null,null,null,null,null,null,null,null,null,null,{"$f":"'Раздел 2'!C118","v":0}]
[null,"Микрофутзал","110",0,0,0,0,0,0,null,null,null,null,null,null,null,null,null,null,null,null,null,null,null,null,null,null,null,null,null,null,null,null,null,null,null,null,null,null,null,null,{"$f":"'Раздел 2'!C119","v":0}]
[null,"Многоборье кинологов","111",0,0,0,0,0,0,null,null,null,null,null,null,null,null,null,null,null,null,null,null,null,null,null,null,null,null,null,null,null,null,null,null,null,null,null,null,null,null,{"$f":"'Раздел 2'!C120","v":0}]
[null,"Многоборье спасателей МЧС России","112",0,0,0,0,0,0,null,null,null,null,null,null,null,null,null,null,null,null,null,null,null,null,null,null,null,null,null,null,null,null,null,null,null,null,null,null,null,null,{"$f":"'Раздел 2'!C121","v":0}]
[null,"Морское многоборье","113",0,0,0,0,0,0,null,null,null,null,null,null,null,null,null,null,null,null,null,null,null,null,null,null,null,null,null,null,null,null,null,null,null,null,null,null,null,null,{"$f":"'Раздел 2'!C122","v":0}]
[null,"Мотоциклетный спорт","114",0,0,0,0,0,0,null,null,null,null,null,null,null,null,null,null,null,null,null,null,null,null,null,null,null,null,null,null,null,null,null,null,null,null,null,null,null,null,{"$f":"'Раздел 2'!C123","v":0}]
[null,"Муайтай","115",0,0,0,0,0,0,null,null,null,null,null,null,null,null,null,null,null,null,null,null,null,null,null,null,null,null,null,null,null,null,null,null,null,null,null,null,null,null,{"$f":"'Раздел 2'!C124","v":0}]
[null,"Нарды","116",0,0,0,0,0,0,null,null,null,null,null,null,null,null,null,null,null,null,null,null,null,null,null,null,null,null,null,null,null,null,null,null,null,null,null,null,null,null,{"$f":"'Раздел 2'!C125","v":0}]
[null,"Настольный теннис","117",0,0,0,0,0,0,null,null,null,null,null,null,null,null,null,null,null,null,null,null,null,null,null,null,null,null,null,null,null,null,null,null,null,null,null,null,null,null,{"$f":"'Раздел 2'!C126","v":0}]
[null,"Падел","118",0,0,0,0,0,0,null,null,null,null,null,null,null,null,null,null,null,null,null,null,null,null,null,null,null,null,null,null,null,null,null,null,null,null,null,null,null,null,{"$f":"'Раздел 2'!C127","v":0}]
[null,"Парашютный спорт","119",0,0,0,0,0,0,null,null,null,null,null,null,null,null,null,null,null,null,null,null,null,null,null,null,null,null,null,null,null,null,null,null,null,null,null,null,null,null,{"$f":"'Раздел 2'!C128","v":0}]
[null,"Парусный спорт","120",0,0,0,0,0,0,null,null,null,null,null,null,null,null,null,null,null,null,null,null,null,null,null,null,null,null,null,null,null,null,null,null,null,null,null,null,null,null,{"$f":"'Раздел 2'!C129","v":0}]
[null,"Пауэрлифтинг","121",8,2,3,3,8,0,null,null,null,1,null,null,null,null,1,null,1,1,1,1,null,null,null,null,null,null,null,null,null,null,null,1,2,2,5,null,null,null,{"$f":"'Раздел 2'!C130","v":1}]
[null,"Перетягивание каната","122",0,0,0,0,0,0,null,null,null,null,null,null,null,null,null,null,null,null,null,null,null,null,null,null,null,null,null,null,null,null,null,null,null,null,null,null,null,null,{"$f":"'Раздел 2'!C131","v":0}]
[null,"Пилонный спорт","123",0,0,0,0,0,0,null,null,null,null,null,null,null,null,null,null,null,null,null,null,null,null,null,null,null,null,null,null,null,null,null,null,null,null,null,null,null,null,{"$f":"'Раздел 2'!C132","v":0}]
[null,"Плавание - всего","124",0,0,0,0,0,0,{"$f":"SUM(J134:J135)","v":0},{"$f":"SUM(K134:K135)","v":0},0,0,0,0,0,0,0,0,0,0,0,0,0,0,0,0,0,0,0,0,0,0,0,0,0,0,0,0,null,null,{"$f":"'Раздел 2'!C133","v":0}]
[null,"в том числе:\nПлавание ","125",0,0,0,0,0,0,null,null,null,null,null,null,null,null,null,null,null,null,null,null,null,null,null,null,null,null,null,null,null,null,null,null,null,null,null,null,null,null,{"$f":"'Раздел 2'!C134","v":0}]
[null,"Открытая вода","126",0,0,0,0,0,0,null,null,null,null,null,null,null,null,null,null,null,null,null,null,null,null,null,null,null,null,null,null,null,null,null,null,null,null,null,null,null,null,{"$f":"'Раздел 2'!C135","v":0}]
[null,"Планерный спорт","127",0,0,0,0,0,0,null,null,null,null,null,null,null,null,null,null,null,null,null,null,null,null,null,null,null,null,null,null,null,null,null,null,null,null,null,null,null,null,{"$f":"'Раздел 2'!C136","v":0}]
[null,"Подводный спорт","128",0,0,0,0,0,0,null,null,null,null,null,null,null,null,null,null,null,null,null,null,null,null,null,null,null,null,null,null,null,null,null,null,null,null,null,null,null,null,{"$f":"'Раздел 2'!C137","v":0}]
[null,"Пожарно-спасательный спорт","129",0,0,0,0,0,0,null,null,null,null,null,null,null,null,null,null,null,null,null,null,null,null,null,null,null,null,null,null,null,null,null,null,null,null,null,null,null,null,{"$f":"'Раздел 2'!C138","v":0}]
[null,"Полиатлон","130",{"$f":"SUM(E139:G139)","v":0},{"$f":"SUM(J139,O139,T139,Y139,AD139,AI139)","v":0},{"$f":"SUM(K139,P139,U139,Z139,AE139,AJ139)","v":0},{"$f":"SUM(L139,Q139,V139,AA139,AF139,AK139)","v":0},{"$f":"SUM(M139,R139,W139,AB139,AG139,AL139)","v":0},{"$f":"SUM(N139,S139,X139,AC139,AH139,AM139)","v":0},null,null,null,null,null,null,null,null,null,null,null,null,null,null,null,null,null,null,null,null,null,null,null,null,null,null,null,null,null,null,null,null,{"$f":"'Раздел 2'!C139","v":0}]
[null,"Практическая стрельба","131",0,0,0,0,0,0,null,null,null,null,null,null,null,null,null,null,null,null,null,null,null,null,null,null,null,null,null,null,null,null,null,null,null,null,null,null,null,null,{"$f":"'Раздел 2'!C140","v":0}]
[null,"Прыжки в воду - всего","132",0,0,0,0,0,0,{"$f":"SUM(J142:J143)","v":0},{"$f":"SUM(K142:K143)","v":0},0,0,0,0,0,0,0,0,0,0,0,0,0,0,0,0,0,0,0,0,0,0,0,0,0,0,0,0,null,null,{"$f":"'Раздел 2'!C141","v":0}]
[null,"в том числе:\nПрыжки в воду","133",0,0,0,0,0,0,null,null,null,null,null,null,null,null,null,null,null,null,null,null,null,null,null,null,null,null,null,null,null,null,null,null,null,null,null,null,null,null,{"$f":"'Раздел 2'!C142","v":0}]
[null,"Прыжки в открытый водоем","134",0,0,0,0,0,0,null,null,null,null,null,null,null,null,null,null,null,null,null,null,null,null,null,null,null,null,null,null,null,null,null,null,null,null,null,null,null,null,{"$f":"'Раздел 2'!C143","v":0}]
[null,"Прыжки на батуте - всего","135",0,0,0,0,0,0,{"$f":"SUM(J145:J148)","v":0},{"$f":"SUM(K145:K148)","v":0},0,0,0,0,0,0,0,0,0,0,0,0,0,0,0,0,0,0,0,0,0,0,0,0,0,0,0,0,null,null,{"$f":"'Раздел 2'!C144","v":0}]
[null,"в том числе:\nАкробатическая дорожка","136",0,0,0,0,0,0,null,null,null,null,null,null,null,null,null,null,null,null,null,null,null,null,null,null,null,null,null,null,null,null,null,null,null,null,null,null,null,null,{"$f":"'Раздел 2'!C145","v":0}]
[null,"Двойной минитрамп","137",0,0,0,0,0,0,null,null,null,null,null,null,null,null,null,null,null,null,null,null,null,null,null,null,null,null,null,null,null,null,null,null,null,null,null,null,null,null,{"$f":"'Раздел 2'!C146","v":0}]
[null,"Индивидуальные прыжки","138",0,0,0,0,0,0,null,null,null,null,null,null,null,null,null,null,null,null,null,null,null,null,null,null,null,null,null,null,null,null,null,null,null,null,null,null,null,null,{"$f":"'Раздел 2'!C147","v":0}]
[null,"Синхронные прыжки","139",0,0,0,0,0,0,null,null,null,null,null,null,null,null,null,null,null,null,null,null,null,null,null,null,null,null,null,null,null,null,null,null,null,null,null,null,null,null,{"$f":"'Раздел 2'!C148","v":0}]
[null,"Прыжки на лыжах с трамплина","140",0,0,0,0,0,0,null,null,null,null,null,null,null,null,null,null,null,null,null,null,null,null,null,null,null,null,null,null,null,null,null,null,null,null,null,null,null,null,{"$f":"'Раздел 2'!C149","v":0}]
[null,"Пулевая стрельба - всего","141",0,0,0,0,0,0,{"$f":"SUM(J151:J155)","v":0},{"$f":"SUM(K151:K155)","v":0},0,0,0,0,0,0,0,0,0,0,0,0,0,0,0,0,0,0,0,0,0,0,0,0,0,0,0,0,null,null,{"$f":"'Раздел 2'!C150","v":0}]
[null,"в том числе:\nПневматическая винтовка","142",0,0,0,0,0,0,null,null,null,null,null,null,null,null,null,null,null,null,null,null,null,null,null,null,null,null,null,null,null,null,null,null,null,null,null,null,null,null,{"$f":"'Раздел 2'!C151","v":0}]
[null,"Пневматический пистолет","143",0,0,0,0,0,0,null,null,null,null,null,null,null,null,null,null,null,null,null,null,null,null,null,null,null,null,null,null,null,null,null,null,null,null,null,null,null,null,{"$f":"'Раздел 2'!C152","v":0}]
[null,"Малокалиберная винтовка","144",0,0,0,0,0,0,null,null,null,null,null,null,null,null,null,null,null,null,null,null,null,null,null,null,null,null,null,null,null,null,null,null,null,null,null,null,null,null,{"$f":"'Раздел 2'!C153","v":0}]
[null,"Малокалиберный пистолет","145",0,0,0,0,0,0,null,null,null,null,null,null,null,null,null,null,null,null,null,null,null,null,null,null,null,null,null,null,null,null,null,null,null,null,null,null,null,null,{"$f":"'Раздел 2'!C154","v":0}]
[null,"Движущаяся мишень","146",0,0,0,0,0,0,null,null,null,null,null,null,null,null,null,null,null,null,null,null,null,null,null,null,null,null,null,null,null,null,null,null,null,null,null,null,null,null,{"$f":"'Раздел 2'!C155","v":0}]
[null,"Пэйнтбол","147",0,0,0,0,0,0,null,null,null,null,null,null,null,null,null,null,null,null,null,null,null,null,null,null,null,null,null,null,null,null,null,null,null,null,null,null,null,null,{"$f":"'Раздел 2'!C156","v":0}]
[null,"Радиоспорт","148",0,0,0,0,0,0,null,null,null,null,null,null,null,null,null,null,null,null,null,null,null,null,null,null,null,null,null,null,null,null,null,null,null,null,null,null,null,null,{"$f":"'Раздел 2'!C157","v":0}]
[null,"Рафтинг","149",0,0,0,0,0,0,null,null,null,null,null,null,null,null,null,null,null,null,null,null,null,null,null,null,null,null,null,null,null,null,null,null,null,null,null,null,null,null,{"$f":"'Раздел 2'!C158","v":0}]
[null,"Регби - всего","150",0,0,0,0,0,0,{"$f":"SUM(J160:J164)","v":0},{"$f":"SUM(K160:K164)","v":0},0,0,0,0,0,0,0,0,0,0,0,0,0,0,0,0,0,0,0,0,0,0,0,0,0,0,0,0,null,null,{"$f":"'Раздел 2'!C159","v":0}]
[null,"в том числе:\nРегби","151",0,0,0,0,0,0,null,null,null,null,null,null,null,null,null,null,null,null,null,null,null,null,null,null,null,null,null,null,null,null,null,null,null,null,null,null,null,null,{"$f":"'Раздел 2'!C160","v":0}]
[null,"Регби 7 (муж.)","152",0,0,0,0,0,0,null,null,null,null,null,null,null,null,null,null,null,null,null,null,null,null,null,null,null,null,null,null,null,null,null,null,null,null,null,null,null,null,{"$f":"'Раздел 2'!C161","v":0}]
[null,"Регби 7 (жен.)","153",0,0,0,0,0,0,null,null,null,null,null,null,null,null,null,null,null,null,null,null,null,null,null,null,null,null,null,null,null,null,null,null,null,null,null,null,null,null,{"$f":"'Раздел 2'!C162","v":0}]
[null,"Регби - пляжное","154",0,0,0,0,0,0,null,null,null,null,null,null,null,null,null,null,null,null,null,null,null,null,null,null,null,null,null,null,null,null,null,null,null,null,null,null,null,null,{"$f":"'Раздел 2'!C163","v":0}]
[null,"Регби на снегу","155",0,0,0,0,0,0,null,null,null,null,null,null,null,null,null,null,null,null,null,null,null,null,null,null,null,null,null,null,null,null,null,null,null,null,null,null,null,null,{"$f":"'Раздел 2'!C164","v":0}]
[null,"Регбол","156",0,0,0,0,0,0,null,null,null,null,null,null,null,null,null,null,null,null,null,null,null,null,null,null,null,null,null,null,null,null,null,null,null,null,null,null,null,null,{"$f":"'Раздел 2'!C165","v":0}]
[null,"Роллер спорт","157",0,0,0,0,0,0,null,null,null,null,null,null,null,null,null,null,null,null,null,null,null,null,null,null,null,null,null,null,null,null,null,null,null,null,null,null,null,null,{"$f":"'Раздел 2'!C166","v":0}]
[null,"Роуп скиппинг (спортивная скакалка)","158",0,0,0,0,0,0,null,null,null,null,null,null,null,null,null,null,null,null,null,null,null,null,null,null,null,null,null,null,null,null,null,null,null,null,null,null,null,null,{"$f":"'Раздел 2'!C167","v":0}]
[null,"Рукопашный бой","159",0,0,0,0,0,0,null,null,null,null,null,null,null,null,null,null,null,null,null,null,null,null,null,null,null,null,null,null,null,null,null,null,null,null,null,null,null,null,{"$f":"'Раздел 2'!C168","v":0}]
[null,"Рыболовный спорт","160",0,0,0,0,0,0,null,null,null,null,null,null,null,null,null,null,null,null,null,null,null,null,null,null,null,null,null,null,null,null,null,null,null,null,null,null,null,null,{"$f":"'Раздел 2'!C169","v":0}]
[null,"Сават","161",0,0,0,0,0,0,null,null,null,null,null,null,null,null,null,null,null,null,null,null,null,null,null,null,null,null,null,null,null,null,null,null,null,null,null,null,null,null,{"$f":"'Раздел 2'!C170","v":0}]
[null,"Самбо","162",0,0,0,0,0,0,null,null,null,null,null,null,null,null,null,null,null,null,null,null,null,null,null,null,null,null,null,null,null,null,null,null,null,null,null,null,null,null,{"$f":"'Раздел 2'!C171","v":0}]
[null,"Самолетный спорт","163",0,0,0,0,0,0,null,null,null,null,null,null,null,null,null,null,null,null,null,null,null,null,null,null,null,null,null,null,null,null,null,null,null,null,null,null,null,null,{"$f":"'Раздел 2'!C172","v":0}]
[null,"Санный спорт","164",0,0,0,0,0,0,null,null,null,null,null,null,null,null,null,null,null,null,null,null,null,null,null,null,null,null,null,null,null,null,null,null,null,null,null,null,null,null,{"$f":"'Раздел 2'!C173","v":0}]
[null,"Северное многоборье","165",0,0,0,0,0,0,null,null,null,null,null,null,null,null,null,null,null,null,null,null,null,null,null,null,null,null,null,null,null,null,null,null,null,null,null,null,null,null,{"$f":"'Раздел 2'!C174","v":0}]
[null,"Серфинг","166",0,0,0,0,0,0,null,null,null,null,null,null,null,null,null,null,null,null,null,null,null,null,null,null,null,null,null,null,null,null,null,null,null,null,null,null,null,null,{"$f":"'Раздел 2'!C175","v":0}]
[null,"Силовой экстрим","167",0,0,0,0,0,0,null,null,null,null,null,null,null,null,null,null,null,null,null,null,null,null,null,null,null,null,null,null,null,null,null,null,null,null,null,null,null,null,{"$f":"'Раздел 2'!C176","v":0}]
[null,"Синхронное плавание","168",0,0,0,0,0,0,null,null,null,null,null,null,null,null,null,null,null,null,null,null,null,null,null,null,null,null,null,null,null,null,null,null,null,null,null,null,null,null,{"$f":"'Раздел 2'!C177","v":0}]
[null,"Скалолазание","169",0,0,0,0,0,0,null,null,null,null,null,null,null,null,null,null,null,null,null,null,null,null,null,null,null,null,null,null,null,null,null,null,null,null,null,null,null,null,{"$f":"'Раздел 2'!C178","v":0}]
[null,"Сквош","170",0,0,0,0,0,0,null,null,null,null,null,null,null,null,null,null,null,null,null,null,null,null,null,null,null,null,null,null,null,null,null,null,null,null,null,null,null,null,{"$f":"'Раздел 2'!C179","v":0}]
[null,"Скейтбординг","171",0,0,0,0,0,0,null,null,null,null,null,null,null,null,null,null,null,null,null,null,null,null,null,null,null,null,null,null,null,null,null,null,null,null,null,null,null,null,{"$f":"'Раздел 2'!C180","v":0}]
[null,"Служебно-боевая стрельба ","172",0,0,0,0,0,0,null,null,null,null,null,null,null,null,null,null,null,null,null,null,null,null,null,null,null,null,null,null,null,null,null,null,null,null,null,null,null,null,{"$f":"'Раздел 2'!C181","v":0}]
[null,"Служебно-прикладной спорт","173",0,0,0,0,0,0,null,null,null,null,null,null,null,null,null,null,null,null,null,null,null,null,null,null,null,null,null,null,null,null,null,null,null,null,null,null,null,null,{"$f":"'Раздел 2'!C182","v":0}]
[null,"Служебно-прикладной спорт ФСО России","174",0,0,0,0,0,0,null,null,null,null,null,null,null,null,null,null,null,null,null,null,null,null,null,null,null,null,null,null,null,null,null,null,null,null,null,null,null,null,{"$f":"'Раздел 2'!C183","v":0}]
[null,"Служебно-прикладной спорт ФТС России","175",0,0,0,0,0,0,null,null,null,null,null,null,null,null,null,null,null,null,null,null,null,null,null,null,null,null,null,null,null,null,null,null,null,null,null,null,null,null,{"$f":"'Раздел 2'!C184","v":0}]
[null,"Служебное двоеборье","176",0,0,0,0,0,0,null,null,null,null,null,null,null,null,null,null,null,null,null,null,null,null,null,null,null,null,null,null,null,null,null,null,null,null,null,null,null,null,{"$f":"'Раздел 2'!C185","v":0}]
[null,"Служебное единоборство","177",0,0,0,0,0,0,null,null,null,null,null,null,null,null,null,null,null,null,null,null,null,null,null,null,null,null,null,null,null,null,null,null,null,null,null,null,null,null,{"$f":"'Раздел 2'!C186","v":0}]
[null,"Служебное многоборье","178",0,0,0,0,0,0,null,null,null,null,null,null,null,null,null,null,null,null,null,null,null,null,null,null,null,null,null,null,null,null,null,null,null,null,null,null,null,null,{"$f":"'Раздел 2'!C187","v":0}]
[null,"Служебный биатлон","179",0,0,0,0,0,0,null,null,null,null,null,null,null,null,null,null,null,null,null,null,null,null,null,null,null,null,null,null,null,null,null,null,null,null,null,null,null,null,{"$f":"'Раздел 2'!C188","v":0}]
[null,"Спасательный спорт","180",0,0,0,0,0,0,null,null,null,null,null,null,null,null,null,null,null,null,null,null,null,null,null,null,null,null,null,null,null,null,null,null,null,null,null,null,null,null,{"$f":"'Раздел 2'!C189","v":0}]
[null,"Стрельба из боевого ручного стрелкового оружия","181",0,0,0,0,0,0,null,null,null,null,null,null,null,null,null,null,null,null,null,null,null,null,null,null,null,null,null,null,null,null,null,null,null,null,null,null,null,null,{"$f":"'Раздел 2'!C190","v":0}]
[null,"Стрельба из штатного или табельного оружия","182",0,0,0,0,0,0,null,null,null,null,null,null,null,null,null,null,null,null,null,null,null,null,null,null,null,null,null,null,null,null,null,null,null,null,null,null,null,null,{"$f":"'Раздел 2'!C191","v":0}]
[null,"Стрельба на дальние дистанции","183",0,0,0,0,0,0,null,null,null,null,null,null,null,null,null,null,null,null,null,null,null,null,null,null,null,null,null,null,null,null,null,null,null,null,null,null,null,null,{"$f":"'Раздел 2'!C192","v":0}]
[null,"Смешанное боевое единоборство (ММА)","184",0,0,0,0,0,0,null,null,null,null,null,null,null,null,null,null,null,null,null,null,null,null,null,null,null,null,null,null,null,null,null,null,null,null,null,null,null,null,{"$f":"'Раздел 2'!C193","v":0}]
[null,"Сноуборд","185",0,0,0,0,0,0,null,null,null,null,null,null,null,null,null,null,null,null,null,null,null,null,null,null,null,null,null,null,null,null,null,null,null,null,null,null,null,null,{"$f":"'Раздел 2'!C194","v":0}]
[null,"Современное пятиборье","186",0,0,0,0,0,0,null,null,null,null,null,null,null,null,null,null,null,null,null,null,null,null,null,null,null,null,null,null,null,null,null,null,null,null,null,null,null,null,{"$f":"'Раздел 2'!C195","v":0}]
[null,"Софтбол","187",0,0,0,0,0,0,null,null,null,null,null,null,null,null,null,null,null,null,null,null,null,null,null,null,null,null,null,null,null,null,null,null,null,null,null,null,null,null,{"$f":"'Раздел 2'!C196","v":0}]
[null,"Спорт сверхлегкой авиации","188",0,0,0,0,0,0,null,null,null,null,null,null,null,null,null,null,null,null,null,null,null,null,null,null,null,null,null,null,null,null,null,null,null,null,null,null,null,null,{"$f":"'Раздел 2'!C197","v":0}]
[null,"Спортивная акробатика","189",11,2,3,6,7,36,null,null,null,null,null,null,null,null,null,2,null,null,null,null,null,null,null,null,null,null,null,null,null,null,null,2,3,6,7,34,null,null,{"$f":"'Раздел 2'!C198","v":1}]
[null,"Спортивная аэробика","190",0,0,0,0,0,0,null,null,null,null,null,null,null,null,null,null,null,null,null,null,null,null,null,null,null,null,null,null,null,null,null,null,null,null,null,null,null,null,{"$f":"'Раздел 2'!C199","v":0}]
[null,"Спортивная борьба - всего","191",0,0,0,0,0,0,{"$f":"SUM(J201:J205)","v":0},{"$f":"SUM(K201:K205)","v":0},0,0,0,0,0,0,0,0,0,0,0,0,0,0,0,0,0,0,0,0,0,0,0,0,0,0,0,0,null,null,{"$f":"'Раздел 2'!C200","v":0}]
[null,"в том числе:\nВольная борьба","192",0,0,0,0,0,0,null,null,null,null,null,null,null,null,null,null,null,null,null,null,null,null,null,null,null,null,null,null,null,null,null,null,null,null,null,null,null,null,{"$f":"'Раздел 2'!C201","v":0}]
[null,"Греко-римская борьба","193",0,0,0,0,0,0,null,null,null,null,null,null,null,null,null,null,null,null,null,null,null,null,null,null,null,null,null,null,null,null,null,null,null,null,null,null,null,null,{"$f":"'Раздел 2'!C202","v":0}]
[null,"Грэпплинг","194",{"$f":"SUM(E203:G203)","v":0},{"$f":"SUM(J203,O203,T203,Y203,AD203,AI203)","v":0},{"$f":"SUM(K203,P203,U203,Z203,AE203,AJ203)","v":0},{"$f":"SUM(L203,Q203,V203,AA203,AF203,AK203)","v":0},{"$f":"SUM(M203,R203,W203,AB203,AG203,AL203)","v":0},{"$f":"SUM(N203,S203,X203,AC203,AH203,AM203)","v":0},null,null,null,null,null,null,null,null,null,null,null,null,null,null,null,null,null,null,null,null,null,null,null,null,null,null,null,null,null,null,null,null,{"$f":"'Раздел 2'!C203","v":0}]
[null,"Грэпплинг-ги","195",0,0,0,0,0,0,null,null,null,null,null,null,null,null,null,null,null,null,null,null,null,null,null,null,null,null,null,null,null,null,null,null,null,null,null,null,null,null,{"$f":"'Раздел 2'!C204","v":0}]
[null,"Панкратион","196",0,0,0,0,0,0,null,null,null,null,null,null,null,null,null,null,null,null,null,null,null,null,null,null,null,null,null,null,null,null,null,null,null,null,null,null,null,null,{"$f":"'Раздел 2'!C205","v":0}]
[null,"Спортивная гимнастика","197",0,0,0,0,0,0,null,null,null,null,null,null,null,null,null,null,null,null,null,null,null,null,null,null,null,null,null,null,null,null,null,null,null,null,null,null,null,null,{"$f":"'Раздел 2'!C206","v":0}]
[null,"Спортивная йога","198",0,0,0,0,0,0,null,null,null,null,null,null,null,null,null,null,null,null,null,null,null,null,null,null,null,null,null,null,null,null,null,null,null,null,null,null,null,null,{"$f":"'Раздел 2'!C207","v":0}]
[null,"Спортивно-прикладное собаководство","199",0,0,0,0,0,0,null,null,null,null,null,null,null,null,null,null,null,null,null,null,null,null,null,null,null,null,null,null,null,null,null,null,null,null,null,null,null,null,{"$f":"'Раздел 2'!C208","v":0}]
[null,"Спортивное программирование","200",0,0,0,0,0,0,null,null,null,null,null,null,null,null,null,null,null,null,null,null,null,null,null,null,null,null,null,null,null,null,null,null,null,null,null,null,null,null,{"$f":"'Раздел 2'!C209","v":0}]
[null,"Спортивное метание ножа","201",0,0,0,0,0,0,null,null,null,null,null,null,null,null,null,null,null,null,null,null,null,null,null,null,null,null,null,null,null,null,null,null,null,null,null,null,null,null,{"$f":"'Раздел 2'!C210","v":0}]
[null,"Спортивное ориентирование","202",0,0,0,0,0,0,null,null,null,null,null,null,null,null,null,null,null,null,null,null,null,null,null,null,null,null,null,null,null,null,null,null,null,null,null,null,null,null,{"$f":"'Раздел 2'!C211","v":0}]
[null,"Спортивный бридж","203",0,0,0,0,0,0,null,null,null,null,null,null,null,null,null,null,null,null,null,null,null,null,null,null,null,null,null,null,null,null,null,null,null,null,null,null,null,null,{"$f":"'Раздел 2'!C212","v":0}]
[null,"Спортивный туризм","204",0,0,0,0,0,0,null,null,null,null,null,null,null,null,null,null,null,null,null,null,null,null,null,null,null,null,null,null,null,null,null,null,null,null,null,null,null,null,{"$f":"'Раздел 2'!C213","v":0}]
[null,"Стендовая стрельба - всего","205",0,0,0,0,0,0,{"$f":"SUM(J215:J218)","v":0},{"$f":"SUM(K215:K218)","v":0},0,0,0,0,0,0,0,0,0,0,0,0,0,0,0,0,0,0,0,0,0,0,0,0,0,0,0,0,null,null,{"$f":"'Раздел 2'!C214","v":0}]
[null,"в том числе:\nТрап","206",0,0,0,0,0,0,null,null,null,null,null,null,null,null,null,null,null,null,null,null,null,null,null,null,null,null,null,null,null,null,null,null,null,null,null,null,null,null,{"$f":"'Раздел 2'!C215","v":0}]
[null,"Скит","207",0,0,0,0,0,0,null,null,null,null,null,null,null,null,null,null,null,null,null,null,null,null,null,null,null,null,null,null,null,null,null,null,null,null,null,null,null,null,{"$f":"'Раздел 2'!C216","v":0}]
[null,"Дубль-трап","208",0,0,0,0,0,0,null,null,null,null,null,null,null,null,null,null,null,null,null,null,null,null,null,null,null,null,null,null,null,null,null,null,null,null,null,null,null,null,{"$f":"'Раздел 2'!C217","v":0}]
[null,"Спортинг","209",0,0,0,0,0,0,null,null,null,null,null,null,null,null,null,null,null,null,null,null,null,null,null,null,null,null,null,null,null,null,null,null,null,null,null,null,null,null,{"$f":"'Раздел 2'!C218","v":0}]
[null,"Страйкбол","210",0,0,0,0,0,0,null,null,null,null,null,null,null,null,null,null,null,null,null,null,null,null,null,null,null,null,null,null,null,null,null,null,null,null,null,null,null,null,{"$f":"'Раздел 2'!C219","v":0}]
[null,"Стрельба из арбалета","211",0,0,0,0,0,0,null,null,null,null,null,null,null,null,null,null,null,null,null,null,null,null,null,null,null,null,null,null,null,null,null,null,null,null,null,null,null,null,{"$f":"'Раздел 2'!C220","v":0}]
[null,"Стрельба из лука - всего","212",0,0,0,0,0,0,{"$f":"SUM(J222:J224)","v":0},{"$f":"SUM(K222:K224)","v":0},0,0,0,0,0,0,0,0,0,0,0,0,0,0,0,0,0,0,0,0,0,0,0,0,0,0,0,0,null,null,{"$f":"'Раздел 2'!C221","v":0}]
[null,"в том числе:\nКлассический лук","213",0,0,0,0,0,0,null,null,null,null,null,null,null,null,null,null,null,null,null,null,null,null,null,null,null,null,null,null,null,null,null,null,null,null,null,null,null,null,{"$f":"'Раздел 2'!C222","v":0}]
[null,"   Блочный лук","214",0,0,0,0,0,0,null,null,null,null,null,null,null,null,null,null,null,null,null,null,null,null,null,null,null,null,null,null,null,null,null,null,null,null,null,null,null,null,{"$f":"'Раздел 2'!C223","v":0}]
[null,"   Ачери ","215",0,0,0,0,0,0,null,null,null,null,null,null,null,null,null,null,null,null,null,null,null,null,null,null,null,null,null,null,null,null,null,null,null,null,null,null,null,null,{"$f":"'Раздел 2'!C224","v":0}]
[null,"Судомодельный спорт","216",0,0,0,0,0,0,null,null,null,null,null,null,null,null,null,null,null,null,null,null,null,null,null,null,null,null,null,null,null,null,null,null,null,null,null,null,null,null,{"$f":"'Раздел 2'!C225","v":0}]
[null,"Сумо","217",0,0,0,0,0,0,null,null,null,null,null,null,null,null,null,null,null,null,null,null,null,null,null,null,null,null,null,null,null,null,null,null,null,null,null,null,null,null,{"$f":"'Раздел 2'!C226","v":0}]
[null,"Таврели","218",0,0,0,0,0,0,null,null,null,null,null,null,null,null,null,null,null,null,null,null,null,null,null,null,null,null,null,null,null,null,null,null,null,null,null,null,null,null,{"$f":"'Раздел 2'!C227","v":0}]
[null,"Танцевальный спорт - всего","219",0,0,0,0,0,0,{"$f":"SUM(J229:J230)","v":0},{"$f":"SUM(K229:K230)","v":0},0,0,0,0,0,0,0,0,0,0,0,0,0,0,0,0,0,0,0,0,0,0,0,0,0,0,0,0,null,null,{"$f":"'Раздел 2'!C228","v":0}]
[null,"в том числе:\nТанцевальный спорт","220",0,0,0,0,0,0,null,null,null,null,null,null,null,null,null,null,null,null,null,null,null,null,null,null,null,null,null,null,null,null,null,null,null,null,null,null,null,null,{"$f":"'Раздел 2'!C229","v":0}]
[null,"Брейкинг","221",0,0,0,0,0,0,null,null,null,null,null,null,null,null,null,null,null,null,null,null,null,null,null,null,null,null,null,null,null,null,null,null,null,null,null,null,null,null,{"$f":"'Раздел 2'!C230","v":0}]
[null,"Теннис","222",0,0,0,0,0,0,null,null,null,null,null,null,null,null,null,null,null,null,null,null,null,null,null,null,null,null,null,null,null,null,null,null,null,null,null,null,null,null,{"$f":"'Раздел 2'!C231","v":0}]
[null,"Триатлон","223",0,0,0,0,0,0,null,null,null,null,null,null,null,null,null,null,null,null,null,null,null,null,null,null,null,null,null,null,null,null,null,null,null,null,null,null,null,null,{"$f":"'Раздел 2'!C232","v":0}]
[null,"Тхэквондо (ВТФ)","224",3,0,0,3,1,4,null,null,null,null,null,null,null,null,null,null,null,null,null,null,null,null,null,null,null,null,null,null,null,null,null,null,null,3,1,4,null,null,{"$f":"'Раздел 2'!C233","v":1}]
[null,"Тхэквондо ГТФ","225",0,0,0,0,0,0,null,null,null,null,null,null,null,null,null,null,null,null,null,null,null,null,null,null,null,null,null,null,null,null,null,null,null,null,null,null,null,null,{"$f":"'Раздел 2'!C234","v":0}]
[null,"Тхэквондо ИТФ","226",0,0,0,0,0,0,null,null,null,null,null,null,null,null,null,null,null,null,null,null,null,null,null,null,null,null,null,null,null,null,null,null,null,null,null,null,null,null,{"$f":"'Раздел 2'!C235","v":0}]
[null,"Тхэквондо МФТ","227",0,0,0,0,0,0,null,null,null,null,null,null,null,null,null,null,null,null,null,null,null,null,null,null,null,null,null,null,null,null,null,null,null,null,null,null,null,null,{"$f":"'Раздел 2'!C236","v":0}]
[null,"Тяжелая атлетика","228",0,0,0,0,0,0,null,null,null,null,null,null,null,null,null,null,null,null,null,null,null,null,null,null,null,null,null,null,null,null,null,null,null,null,null,null,null,null,{"$f":"'Раздел 2'!C237","v":0}]
[null,"Универсальный бой","229",0,0,0,0,0,0,null,null,null,null,null,null,null,null,null,null,null,null,null,null,null,null,null,null,null,null,null,null,null,null,null,null,null,null,null,null,null,null,{"$f":"'Раздел 2'!C238","v":0}]
[null,"Ушу","230",0,0,0,0,0,0,null,null,null,null,null,null,null,null,null,null,null,null,null,null,null,null,null,null,null,null,null,null,null,null,null,null,null,null,null,null,null,null,{"$f":"'Раздел 2'!C239","v":0}]
[null,"Фехтование - всего","231",0,0,0,0,0,0,{"$f":"SUM(J241:J244)","v":0},{"$f":"SUM(K241:K244)","v":0},0,0,0,0,0,0,0,0,0,0,0,0,0,0,0,0,0,0,0,0,0,0,0,0,0,0,0,0,null,null,{"$f":"'Раздел 2'!C240","v":0}]
[null,"в том числе:\nРапира","232",0,0,0,0,0,0,null,null,null,null,null,null,null,null,null,null,null,null,null,null,null,null,null,null,null,null,null,null,null,null,null,null,null,null,null,null,null,null,{"$f":"'Раздел 2'!C241","v":0}]
[null,"Сабля","233",0,0,0,0,0,0,null,null,null,null,null,null,null,null,null,null,null,null,null,null,null,null,null,null,null,null,null,null,null,null,null,null,null,null,null,null,null,null,{"$f":"'Раздел 2'!C242","v":0}]
[null,"Шпага","234",0,0,0,0,0,0,null,null,null,null,null,null,null,null,null,null,null,null,null,null,null,null,null,null,null,null,null,null,null,null,null,null,null,null,null,null,null,null,{"$f":"'Раздел 2'!C243","v":0}]
[null,"Арт-фехтование","235",0,0,0,0,0,0,null,null,null,null,null,null,null,null,null,null,null,null,null,null,null,null,null,null,null,null,null,null,null,null,null,null,null,null,null,null,null,null,{"$f":"'Раздел 2'!C244","v":0}]
[null,"Фигурное катание на коньках","236",0,0,0,0,0,0,null,null,null,null,null,null,null,null,null,null,null,null,null,null,null,null,null,null,null,null,null,null,null,null,null,null,null,null,null,null,null,null,{"$f":"'Раздел 2'!C245","v":0}]
[null,"Фиджитал спорт (функционально-цифровй спорт)","237",0,0,0,0,0,0,null,null,null,null,null,null,null,null,null,null,null,null,null,null,null,null,null,null,null,null,null,null,null,null,null,null,null,null,null,null,null,null,{"$f":"'Раздел 2'!C246","v":0}]
[null,"Фитнес-аэробика","238",0,0,0,0,0,0,null,null,null,null,null,null,null,null,null,null,null,null,null,null,null,null,null,null,null,null,null,null,null,null,null,null,null,null,null,null,null,null,{"$f":"'Раздел 2'!C247","v":0}]
[null,"Флаинг диск","239",0,0,0,0,0,0,null,null,null,null,null,null,null,null,null,null,null,null,null,null,null,null,null,null,null,null,null,null,null,null,null,null,null,null,null,null,null,null,{"$f":"'Раздел 2'!C248","v":0}]
[null,"Флорбол","240",0,0,0,0,0,0,null,null,null,null,null,null,null,null,null,null,null,null,null,null,null,null,null,null,null,null,null,null,null,null,null,null,null,null,null,null,null,null,{"$f":"'Раздел 2'!C249","v":0}]
[null,"Фристайл - всего","241",0,0,0,0,0,0,{"$f":"SUM(J251:J256)","v":0},{"$f":"SUM(K251:K256)","v":0},0,0,0,0,0,0,0,0,0,0,0,0,0,0,0,0,0,0,0,0,0,0,0,0,0,0,0,0,null,null,{"$f":"'Раздел 2'!C250","v":0}]
[null,"в том числе:\nАкробатика","242",0,0,0,0,0,0,null,null,null,null,null,null,null,null,null,null,null,null,null,null,null,null,null,null,null,null,null,null,null,null,null,null,null,null,null,null,null,null,{"$f":"'Раздел 2'!C251","v":0}]
[null,"Биг-эйр","243",0,0,0,0,0,0,null,null,null,null,null,null,null,null,null,null,null,null,null,null,null,null,null,null,null,null,null,null,null,null,null,null,null,null,null,null,null,null,{"$f":"'Раздел 2'!C252","v":0}]
[null,"Могул","244",0,0,0,0,0,0,null,null,null,null,null,null,null,null,null,null,null,null,null,null,null,null,null,null,null,null,null,null,null,null,null,null,null,null,null,null,null,null,{"$f":"'Раздел 2'!C253","v":0}]
[null,"Ски-кросс","245",0,0,0,0,0,0,null,null,null,null,null,null,null,null,null,null,null,null,null,null,null,null,null,null,null,null,null,null,null,null,null,null,null,null,null,null,null,null,{"$f":"'Раздел 2'!C254","v":0}]
[null,"Хаф-пайп","246",0,0,0,0,0,0,null,null,null,null,null,null,null,null,null,null,null,null,null,null,null,null,null,null,null,null,null,null,null,null,null,null,null,null,null,null,null,null,{"$f":"'Раздел 2'!C255","v":0}]
[null,"Слоуп-стайл","247",0,0,0,0,0,0,null,null,null,null,null,null,null,null,null,null,null,null,null,null,null,null,null,null,null,null,null,null,null,null,null,null,null,null,null,null,null,null,{"$f":"'Раздел 2'!C256","v":0}]
[null,"Функциональное многоборье","248",0,0,0,0,0,0,null,null,null,null,null,null,null,null,null,null,null,null,null,null,null,null,null,null,null,null,null,null,null,null,null,null,null,null,null,null,null,null,{"$f":"'Раздел 2'!C257","v":0}]
[null,"Футбол - всего","249",0,0,0,0,0,0,{"$f":"SUM(J259:J264)","v":0},{"$f":"SUM(K259:K264)","v":0},0,0,0,0,0,0,0,0,0,0,0,0,0,0,0,0,0,0,0,0,0,0,0,0,0,0,0,0,null,null,{"$f":"'Раздел 2'!C258","v":0}]
[null,"в том числе:\nФутбол (муж.)","250",0,0,0,0,0,0,null,null,null,null,null,null,null,null,null,null,null,null,null,null,null,null,null,null,null,null,null,null,null,null,null,null,null,null,null,null,null,null,{"$f":"'Раздел 2'!C259","v":0}]
[null,"Футбол (жен.)","251",0,0,0,0,0,0,null,null,null,null,null,null,null,null,null,null,null,null,null,null,null,null,null,null,null,null,null,null,null,null,null,null,null,null,null,null,null,null,{"$f":"'Раздел 2'!C260","v":0}]
[null,"Мини-футбол (футзал)","252",0,0,0,0,0,0,null,null,null,null,null,null,null,null,null,null,null,null,null,null,null,null,null,null,null,null,null,null,null,null,null,null,null,null,null,null,null,null,{"$f":"'Раздел 2'!C261","v":0}]
[null,"Пляжный футбол","253",0,0,0,0,0,0,null,null,null,null,null,null,null,null,null,null,null,null,null,null,null,null,null,null,null,null,null,null,null,null,null,null,null,null,null,null,null,null,{"$f":"'Раздел 2'!C262","v":0}]
[null,"Футбол 6х6, 7х7, 8х8","254",0,0,0,0,0,0,null,null,null,null,null,null,null,null,null,null,null,null,null,null,null,null,null,null,null,null,null,null,null,null,null,null,null,null,null,null,null,null,{"$f":"'Раздел 2'!C263","v":0}]
[null,"Интерактивный футбол","255",0,0,0,0,0,0,null,null,null,null,null,null,null,null,null,null,null,null,null,null,null,null,null,null,null,null,null,null,null,null,null,null,null,null,null,null,null,null,{"$f":"'Раздел 2'!C264","v":0}]
[null,"Хапкидо","256",0,0,0,0,0,0,null,null,null,null,null,null,null,null,null,null,null,null,null,null,null,null,null,null,null,null,null,null,null,null,null,null,null,null,null,null,null,null,{"$f":"'Раздел 2'!C265","v":0}]
[null,"Хапсагай","257",0,0,0,0,0,0,null,null,null,null,null,null,null,null,null,null,null,null,null,null,null,null,null,null,null,null,null,null,null,null,null,null,null,null,null,null,null,null,{"$f":"'Раздел 2'!C266","v":0}]
[null,"Хоккей - всего","258",{"$f":"SUM(E267:G267)","v":0},{"$f":"SUM(J267,O267,T267,Y267,AD267,AI267)","v":0},{"$f":"SUM(K267,P267,U267,Z267,AE267,AJ267)","v":0},{"$f":"SUM(L267,Q267,V267,AA267,AF267,AK267)","v":0},{"$f":"SUM(M267,R267,W267,AB267,AG267,AL267)","v":0},{"$f":"SUM(N267,S267,X267,AC267,AH267,AM267)","v":0},{"$f":"SUM(J268:J269)","v":0},{"$f":"SUM(K268:K269)","v":0},0,0,0,0,0,0,0,0,0,0,0,0,0,0,0,0,0,0,0,0,0,0,0,0,0,0,0,0,null,null,{"$f":"'Раздел 2'!C267","v":0}]
[null,"в том числе:\nХоккей (муж.)","259",0,0,0,0,0,0,null,null,null,null,null,null,null,null,null,null,null,null,null,null,null,null,null,null,null,null,null,null,null,null,null,null,null,null,null,null,null,null,{"$f":"'Раздел 2'!C268","v":0}]
[null,"Хоккей (жен.)","260",0,0,0,0,0,0,null,null,null,null,null,null,null,null,null,null,null,null,null,null,null,null,null,null,null,null,null,null,null,null,null,null,null,null,null,null,null,null,{"$f":"'Раздел 2'!C269","v":0}]
[null,"Хоккей на траве - всего","261",0,0,0,0,0,0,{"$f":"SUM(J271:J273)","v":0},{"$f":"SUM(K271:K273)","v":0},0,0,0,0,0,0,0,0,0,0,0,0,0,0,0,0,0,0,0,0,0,0,0,0,0,0,0,0,null,null,{"$f":"'Раздел 2'!C270","v":0}]
[null,"в том числе:\nХоккей на траве (муж.)","262",0,0,0,0,0,0,null,null,null,null,null,null,null,null,null,null,null,null,null,null,null,null,null,null,null,null,null,null,null,null,null,null,null,null,null,null,null,null,{"$f":"'Раздел 2'!C271","v":0}]
[null,"Хоккей на траве (жен.)","263",0,0,0,0,0,0,null,null,null,null,null,null,null,null,null,null,null,null,null,null,null,null,null,null,null,null,null,null,null,null,null,null,null,null,null,null,null,null,{"$f":"'Раздел 2'!C272","v":0}]
[null,"Индорхоккей","264",0,0,0,0,0,0,null,null,null,null,null,null,null,null,null,null,null,null,null,null,null,null,null,null,null,null,null,null,null,null,null,null,null,null,null,null,null,null,{"$f":"'Раздел 2'!C273","v":0}]
[null,"Хоккей с мячом","265",0,0,0,0,0,0,null,null,null,null,null,null,null,null,null,null,null,null,null,null,null,null,null,null,null,null,null,null,null,null,null,null,null,null,null,null,null,null,{"$f":"'Раздел 2'!C274","v":0}]
[null,"Художественная гимнастика","266",0,0,0,0,0,0,null,null,null,null,null,null,null,null,null,null,null,null,null,null,null,null,null,null,null,null,null,null,null,null,null,null,null,null,null,null,null,null,{"$f":"'Раздел 2'!C275","v":0}]
[null,"Хуреш","267",0,0,0,0,0,0,null,null,null,null,null,null,null,null,null,null,null,null,null,null,null,null,null,null,null,null,null,null,null,null,null,null,null,null,null,null,null,null,{"$f":"'Раздел 2'!C276","v":0}]
[null,"Чир спорт","268",0,0,0,0,0,0,null,null,null,null,null,null,null,null,null,null,null,null,null,null,null,null,null,null,null,null,null,null,null,null,null,null,null,null,null,null,null,null,{"$f":"'Раздел 2'!C277","v":0}]
[null,"Шахматы","269",0,0,0,0,0,0,null,null,null,null,null,null,null,null,null,null,null,null,null,null,null,null,null,null,null,null,null,null,null,null,null,null,null,null,null,null,null,null,{"$f":"'Раздел 2'!C278","v":0}]
[null,"Шашки","270",0,0,0,0,0,0,null,null,null,null,null,null,null,null,null,null,null,null,null,null,null,null,null,null,null,null,null,null,null,null,null,null,null,null,null,null,null,null,{"$f":"'Раздел 2'!C279","v":0}]
[null,"Шодсанлат","271",0,0,0,0,{"$f":"SUM(M280,R280,W280,AB280,AG280,AL280)","v":0},0,null,null,null,null,null,null,null,null,null,null,null,null,null,null,null,null,null,null,null,null,null,null,null,null,null,null,null,null,null,null,null,null,{"$f":"'Раздел 2'!C280","v":0}]
[null,"Эстетическая гимнастика","272",0,0,0,0,0,0,null,null,null,null,null,null,null,null,null,null,null,null,null,null,null,null,null,null,null,null,null,null,null,null,null,null,null,null,null,null,null,null,{"$f":"'Раздел 2'!C281","v":0}]
[null,"Якутские национальные прыжки","273",0,0,0,0,0,0,null,null,null,null,null,null,null,null,null,null,null,null,null,null,null,null,null,null,null,null,null,null,null,null,null,null,null,null,null,null,null,null,{"$f":"'Раздел 2'!C282","v":0}]
[null,"ИТОГО","274",58,14,16,28,24,{"$f":"SUM(N283,S283,X283,AC283,AH283,AM283)","v":48},{"$f":"SUM(J10:J22,J26:J29,J32:J37,J48:J53,J58:J60,J42:J45,J64:J74,J79:J89,J93:J100,J103:J107,J115:J119,J120:J133,J136:J141,J144,J149:J150,J156:J159,J165:J166,J167:J181,J182:J200,J206:J211,J212:J214,J219:J221,J225:J228,J231:J240,J245:J250,J257:J258,J265:J267,J270,J274:J282)","v":0},{"$f":"SUM(K10:K22,K26:K29,K32:K37,K48:K53,K58:K60,K42:K45,K64:K74,K79:K89,K93:K100,K103:K107,K115:K119,K120:K133,K136:K141,K144,K149:K150,K156:K159,K165:K166,K167:K181,K182:K200,K206:K211,K212:K214,K219:K221,K225:K228,K231:K240,K245:K250,K257:K258,K265:K267,K270,K274:K282)","v":0},0,1,0,1,0,3,5,2,1,1,1,1,0,0,1,4,0,0,0,0,0,0,0,12,14,20,17,46,null,null,{"$f":"'Раздел 2'!C283","v":5}]

{"sheet":"Раздел 7","index":7,"n_rows":283,"n_cols":62,"rows_kept":283,"cut":false,"hidden":false,"merged":[[4,61,7,61],[5,3,6,8],[5,9,6,13],[5,14,6,18],[5,19,6,23],[5,24,6,28],[5,29,6,33],[5,34,6,38],[5,39,6,43],[5,44,6,48],[3,0,133,0],[3,59,133,59],[4,1,7,1],[4,2,7,2],[5,49,6,53],[5,54,6,58],[4,3,4,58],[3,1,3,58]]}
[]
[]
[]
[null,"Раздел VII. Международные спортивные соревнования, единица"]
[null,"Виды спорта","№ строки","Результаты выступлений на соревнованиях",null,null,null,null,null,null,null,null,null,null,null,null,null,null,null,null,null,null,null,null,null,null,null,null,null,null,null,null,null,null,null,null,null,null,null,null,null,null,null,null,null,null,null,null,null,null,null,null,null,null,null,null,null,null,null,null,null,"Раздел2 графа3\nЧисло отделений"]
[null,null,null,"Всего",null,null,null,null,null,"Олимпийские игры",null,null,null,null,"Чемпионат мира",null,null,null,null,"Юношеские Олимпийские игры",null,null,null,null,"Первенство мира",null,null,null,null,"Кубок мира",null,null,null,null,"Этапы Кубка мира",null,null,null,null,"Чемпионат Европы",null,null,null,null,"Первенство Европы",null,null,null,null,"Кубок Европы",null,null,null,null,"Прочие официальные международные соревнования"]
[]
[null,null,null,"медали \n(1-3 место)",1,2,3,"4-6","учас-тие",1,2,3,"4-6","учас-тие",1,2,3,"4-6","учас-тие",1,2,3,"4-6","учас-тие",1,2,3,"4-6","учас-тие",1,2,3,"4-6","учас-тие",1,2,3,"4-6","учас-тие",1,2,3,"4-6","учас-тие",1,2,3,"4-6","учас-тие",1,2,3,"4-6","учас-тие",1,2,3,"4-6","учас-тие",null,"цсп?"]
[null,1,2,3,4,5,6,7,8,9,10,11,12,13,14,15,16,17,18,19,20,21,22,23,24,25,26,27,28,29,30,31,32,33,34,35,36,37,38,39,40,41,42,43,44,45,46,47,48,49,50,51,52,53,54,55,56,57,58]
[null,"Авиамодельный спорт","01",{"$f":"SUM(E10:G10)","v":0},{"$f":"SUM(J10,O10,T10,Y10,AD10,AI10,AN10,AS10,AX10,BC10)","v":0},{"$f":"SUM(K10,P10,U10,Z10,AE10,AJ10,AO10,AT10,AY10,BD10)","v":0},0,0,0,null,null,null,null,null,null,null,null,null,null,null,null,null,null,null,null,null,null,null,null,null,null,null,null,null,null,null,null,null,null,null,null,null,null,null,null,null,null,null,null,null,null,null,null,null,null,null,null,null,null,null,{"$f":"'Раздел 1'!H12","v":0},{"$f":"'Раздел 2'!C10","v":0}]
[null,"Авиационные гонки","02",{"$f":"SUM(E11:G11)","v":0},{"$f":"SUM(J11,O11,T11,Y11,AD11,AI11,AN11,AS11,AX11,BC11)","v":0},{"$f":"SUM(K11,P11,U11,Z11,AE11,AJ11,AO11,AT11,AY11,BD11)","v":0},{"$f":"SUM(L11,Q11,V11,AA11,AF11,AK11,AP11,AU11,AZ11,BE11)","v":0},{"$f":"SUM(M11,R11,W11,AB11,AG11,AL11,AQ11,AV11,BA11,BF11)","v":0},{"$f":"SUM(N11,S11,X11,AC11,AH11,AM11,AR11,AW11,BB11,BG11)","v":0},null,null,null,null,null,null,null,null,null,null,null,null,null,null,null,null,null,null,null,null,null,null,null,null,null,null,null,null,null,null,null,null,null,null,null,null,null,null,null,null,null,null,null,null,null,null,null,null,null,null,null,null,{"$f":"'Раздел 2'!C11","v":0}]
[null,"Автомобильный спорт","03",0,0,0,0,0,0,null,null,null,null,null,null,null,null,null,null,null,null,null,null,null,null,null,null,null,null,null,null,null,null,null,null,null,null,null,null,null,null,null,null,null,null,null,null,null,null,null,null,null,null,null,null,null,null,null,null,null,null,{"$f":"'Раздел 2'!C12","v":0}]
[null,"Автомодельный спорт","04",0,0,0,0,0,0,null,null,null,null,null,null,null,null,null,null,null,null,null,null,null,null,null,null,null,null,null,null,null,null,null,null,null,null,null,null,null,null,null,null,null,null,null,null,null,null,null,null,null,null,null,null,null,null,null,null,null,null,{"$f":"'Раздел 2'!C13","v":0}]
[null,"Айкидо","05",0,0,0,0,0,0,null,null,null,null,null,null,null,null,null,null,null,null,null,null,null,null,null,null,null,null,null,null,null,null,null,null,null,null,null,null,null,null,null,null,null,null,null,null,null,null,null,null,null,null,null,null,null,null,null,null,null,null,{"$f":"'Раздел 2'!C14","v":0}]
[null,"Акробатический рок-н-ролл","06",0,0,0,0,0,0,null,null,null,null,null,null,null,null,null,null,null,null,null,null,null,null,null,null,null,null,null,null,null,null,null,null,null,null,null,null,null,null,null,null,null,null,null,null,null,null,null,null,null,null,null,null,null,null,null,null,null,null,{"$f":"'Раздел 2'!C15","v":0}]
[null,"Альпинизм","07",0,0,0,0,0,0,null,null,null,null,null,null,null,null,null,null,null,null,null,null,null,null,null,null,null,null,null,null,null,null,null,null,null,null,null,null,null,null,null,null,null,null,null,null,null,null,null,null,null,null,null,null,null,null,null,null,null,null,{"$f":"'Раздел 2'!C16","v":0}]
[null,"Американский футбол","08",0,0,0,0,0,0,null,null,null,null,null,null,null,null,null,null,null,null,null,null,null,null,null,null,null,null,null,null,null,null,null,null,null,null,null,null,null,null,null,null,null,null,null,null,null,null,null,null,null,null,null,null,null,null,null,null,null,null,{"$f":"'Раздел 2'!C17","v":0}]
[null,"Армейский рукопашный бой","09",0,0,0,0,0,0,null,null,null,null,null,null,null,null,null,null,null,null,null,null,null,null,null,null,null,null,null,null,null,null,null,null,null,null,null,null,null,null,null,null,null,null,null,null,null,null,null,null,null,null,null,null,null,null,null,null,null,null,{"$f":"'Раздел 2'!C18","v":0}]
[null,"Армейское тактико-стрелковое многоборье","10",0,0,0,0,0,0,null,null,null,null,null,null,null,null,null,null,null,null,null,null,null,null,null,null,null,null,null,null,null,null,null,null,null,null,null,null,null,null,null,null,null,null,null,null,null,null,null,null,null,null,null,null,null,null,null,null,null,null,{"$f":"'Раздел 2'!C19","v":0}]
[null,"Армрестлинг","11",0,0,0,0,0,0,null,null,null,null,null,null,null,null,null,null,null,null,null,null,null,null,null,null,null,null,null,null,null,null,null,null,null,null,null,null,null,null,null,null,null,null,null,null,null,null,null,null,null,null,null,null,null,null,null,null,null,null,{"$f":"'Раздел 2'!C20","v":0}]
[null,"Бадминтон","12",0,0,0,0,0,0,null,null,null,null,null,null,null,null,null,null,null,null,null,null,null,null,null,null,null,null,null,null,null,null,null,null,null,null,null,null,null,null,null,null,null,null,null,null,null,null,null,null,null,null,null,null,null,null,null,null,null,null,{"$f":"'Раздел 2'!C21","v":0}]
[null,"Баскетбол - всего","13",0,0,0,0,0,0,{"$f":"SUM(J23:J25)","v":0},{"$f":"SUM(K23:K25)","v":0},0,0,0,0,0,0,0,0,0,0,0,0,0,0,0,0,0,0,0,0,0,0,0,0,0,0,0,0,0,0,0,0,0,0,0,0,0,0,0,0,0,0,0,0,0,0,0,0,null,null,{"$f":"'Раздел 2'!C22","v":0}]
[null,"в том числе:\nБаскетбол (муж.)","14",0,0,0,0,0,0,null,null,null,null,null,null,null,null,null,null,null,null,null,null,null,null,null,null,null,null,null,null,null,null,null,null,null,null,null,null,null,null,null,null,null,null,null,null,null,null,null,null,null,null,null,null,null,null,null,null,null,null,{"$f":"'Раздел 2'!C23","v":0}]
[null,"Баскетбол (жен.)","15",0,0,0,0,0,0,null,null,null,null,null,null,null,null,null,null,null,null,null,null,null,null,null,null,null,null,null,null,null,null,null,null,null,null,null,null,null,null,null,null,null,null,null,null,null,null,null,null,null,null,null,null,null,null,null,null,null,null,{"$f":"'Раздел 2'!C24","v":0}]
[null,"Баскетбол 3х3","16",0,0,0,0,0,0,null,null,null,null,null,null,null,null,null,null,null,null,null,null,null,null,null,null,null,null,null,null,null,null,null,null,null,null,null,null,null,null,null,null,null,null,null,null,null,null,null,null,null,null,null,null,null,null,null,null,null,null,{"$f":"'Раздел 2'!C25","v":0}]
[null,"Бейсбол","17",0,0,0,0,0,0,null,null,null,null,null,null,null,null,null,null,null,null,null,null,null,null,null,null,null,null,null,null,null,null,null,null,null,null,null,null,null,null,null,null,null,null,null,null,null,null,null,null,null,null,null,null,null,null,null,null,null,null,{"$f":"'Раздел 2'!C26","v":0}]
[null,"Биатлон","18",0,0,0,0,0,0,null,null,null,null,null,null,null,null,null,null,null,null,null,null,null,null,null,null,null,null,null,null,null,null,null,null,null,null,null,null,null,null,null,null,null,null,null,null,null,null,null,null,null,null,null,null,null,null,null,null,null,null,{"$f":"'Раздел 2'!C27","v":0}]
[null,"Бильярдный спорт","19",0,0,0,0,0,0,null,null,null,null,null,null,null,null,null,null,null,null,null,null,null,null,null,null,null,null,null,null,null,null,null,null,null,null,null,null,null,null,null,null,null,null,null,null,null,null,null,null,null,null,null,null,null,null,null,null,null,null,{"$f":"'Раздел 2'!C28","v":0}]
[null,"Бобслей - всего","20",0,0,0,0,0,0,{"$f":"SUM(J30:J31)","v":0},{"$f":"SUM(K30:K31)","v":0},0,0,0,0,0,0,0,0,0,0,0,0,0,0,0,0,0,0,0,0,0,0,0,0,0,0,0,0,0,0,0,0,0,0,0,0,0,0,0,0,0,0,0,0,0,0,0,0,null,null,{"$f":"'Раздел 2'!C29","v":0}]
[null,"в том числе:\nБобслей","21",0,0,0,0,0,0,null,null,null,null,null,null,null,null,null,null,null,null,null,null,null,null,null,null,null,null,null,null,null,null,null,null,null,null,null,null,null,null,null,null,null,null,null,null,null,null,null,null,null,null,null,null,null,null,null,null,null,null,{"$f":"'Раздел 2'!C30","v":0}]
[null,"Скелетон","22",0,0,0,0,0,0,null,null,null,null,null,null,null,null,null,null,null,null,null,null,null,null,null,null,null,null,null,null,null,null,null,null,null,null,null,null,null,null,null,null,null,null,null,null,null,null,null,null,null,null,null,null,null,null,null,null,null,null,{"$f":"'Раздел 2'!C31","v":0}]
[null,"Бодибилдинг","23",0,0,0,0,0,0,null,null,null,null,null,null,null,null,null,null,null,null,null,null,null,null,null,null,null,null,null,null,null,null,null,null,null,null,null,null,null,null,null,null,null,null,null,null,null,null,null,null,null,null,null,null,null,null,null,null,null,null,{"$f":"'Раздел 2'!C32","v":0}]
[null,"Бокс","24",0,0,0,0,0,0,null,null,null,null,null,null,null,null,null,null,null,null,null,null,null,null,null,null,null,null,null,null,null,null,null,null,null,null,null,null,null,null,null,null,null,null,null,null,null,null,null,null,null,null,null,null,null,null,null,null,null,null,{"$f":"'Раздел 2'!C33","v":0}]
[null,"Борьба на поясах","25",0,0,0,0,0,0,null,null,null,null,null,null,null,null,null,null,null,null,null,null,null,null,null,null,null,null,null,null,null,null,null,null,null,null,null,null,null,null,null,null,null,null,null,null,null,null,null,null,null,null,null,null,null,null,null,null,null,null,{"$f":"'Раздел 2'!C34","v":0}]
[null,"Боулинг","26",0,0,0,0,0,0,null,null,null,null,null,null,null,null,null,null,null,null,null,null,null,null,null,null,null,null,null,null,null,null,null,null,null,null,null,null,null,null,null,null,null,null,null,null,null,null,null,null,null,null,null,null,null,null,null,null,null,null,{"$f":"'Раздел 2'!C35","v":0}]
[null,"Боулспорт","27",0,0,0,0,0,0,null,null,null,null,null,null,null,null,null,null,null,null,null,null,null,null,null,null,null,null,null,null,null,null,null,null,null,null,null,null,null,null,null,null,null,null,null,null,null,null,null,null,null,null,null,null,null,null,null,null,null,null,{"$f":"'Раздел 2'!C36","v":0}]
[null,"Велосипедный спорт - всего","28",0,0,0,0,0,0,{"$f":"SUM(J38:J41)","v":0},{"$f":"SUM(K38:K41)","v":0},0,0,0,0,0,0,0,0,0,0,0,0,0,0,0,0,0,0,0,0,0,0,0,0,0,0,0,0,0,0,0,0,0,0,0,0,0,0,0,0,0,0,0,0,0,0,0,0,null,null,{"$f":"'Раздел 2'!C37","v":0}]
[null,"в том числе:\nBMX","29",0,0,0,0,0,0,null,null,null,null,null,null,null,null,null,null,null,null,null,null,null,null,null,null,null,null,null,null,null,null,null,null,null,null,null,null,null,null,null,null,null,null,null,null,null,null,null,null,null,null,null,null,null,null,null,null,null,null,{"$f":"'Раздел 2'!C38","v":0}]
[null,"Маунтинбайк","30",0,0,0,0,0,0,null,null,null,null,null,null,null,null,null,null,null,null,null,null,null,null,null,null,null,null,null,null,null,null,null,null,null,null,null,null,null,null,null,null,null,null,null,null,null,null,null,null,null,null,null,null,null,null,null,null,null,null,{"$f":"'Раздел 2'!C39","v":0}]
[null,"Трек","31",0,0,0,0,0,0,null,null,null,null,null,null,null,null,null,null,null,null,null,null,null,null,null,null,null,null,null,null,null,null,null,null,null,null,null,null,null,null,null,null,null,null,null,null,null,null,null,null,null,null,null,null,null,null,null,null,null,null,{"$f":"'Раздел 2'!C40","v":0}]
[null,"Шоссе","32",0,0,0,0,0,0,null,null,null,null,null,null,null,null,null,null,null,null,null,null,null,null,null,null,null,null,null,null,null,null,null,null,null,null,null,null,null,null,null,null,null,null,null,null,null,null,null,null,null,null,null,null,null,null,null,null,null,null,{"$f":"'Раздел 2'!C41","v":0}]
[null,"Вертолетный спорт","33",0,0,0,0,0,0,null,null,null,null,null,null,null,null,null,null,null,null,null,null,null,null,null,null,null,null,null,null,null,null,null,null,null,null,null,null,null,null,null,null,null,null,null,null,null,null,null,null,null,null,null,null,null,null,null,null,null,null,{"$f":"'Раздел 2'!C42","v":0}]
[null,"Водно-моторный спорт","34",0,0,0,0,0,0,null,null,null,null,null,null,null,null,null,null,null,null,null,null,null,null,null,null,null,null,null,null,null,null,null,null,null,null,null,null,null,null,null,null,null,null,null,null,null,null,null,null,null,null,null,null,null,null,null,null,null,null,{"$f":"'Раздел 2'!C43","v":0}]
[null,"Водно-спасательное многоборье","35",0,0,0,0,0,0,null,null,null,null,null,null,null,null,null,null,null,null,null,null,null,null,null,null,null,null,null,null,null,null,null,null,null,null,null,null,null,null,null,null,null,null,null,null,null,null,null,null,null,null,null,null,null,null,null,null,null,null,{"$f":"'Раздел 2'!C44","v":0}]
[null,"Водное поло - всего ","36",0,0,0,0,0,0,{"$f":"SUM(J46:J47)","v":0},{"$f":"SUM(K46:K47)","v":0},0,0,0,0,0,0,0,0,0,0,0,0,0,0,0,0,0,0,0,0,0,0,0,0,0,0,0,0,0,0,0,0,0,0,0,0,0,0,0,0,0,0,0,0,0,0,0,0,null,null,{"$f":"'Раздел 2'!C45","v":0}]
[null,"в том числе:\nВодное поло (муж.)","37",0,0,0,0,0,0,null,null,null,null,null,null,null,null,null,null,null,null,null,null,null,null,null,null,null,null,null,null,null,null,null,null,null,null,null,null,null,null,null,null,null,null,null,null,null,null,null,null,null,null,null,null,null,null,null,null,null,null,{"$f":"'Раздел 2'!C46","v":0}]
[null,"Водное поло (жен.)","38",0,0,0,0,0,0,null,null,null,null,null,null,null,null,null,null,null,null,null,null,null,null,null,null,null,null,null,null,null,null,null,null,null,null,null,null,null,null,null,null,null,null,null,null,null,null,null,null,null,null,null,null,null,null,null,null,null,null,{"$f":"'Раздел 2'!C47","v":0}]
[null,"Воднолыжный спорт","39",0,0,0,0,0,0,null,null,null,null,null,null,null,null,null,null,null,null,null,null,null,null,null,null,null,null,null,null,null,null,null,null,null,null,null,null,null,null,null,null,null,null,null,null,null,null,null,null,null,null,null,null,null,null,null,null,null,null,{"$f":"'Раздел 2'!C48","v":0}]
[null,"Военно-прикладной спорт","40",0,0,0,0,0,0,null,null,null,null,null,null,null,null,null,null,null,null,null,null,null,null,null,null,null,null,null,null,null,null,null,null,null,null,null,null,null,null,null,null,null,null,null,null,null,null,null,null,null,null,null,null,null,null,null,null,null,null,{"$f":"'Раздел 2'!C49","v":0}]
[null,"Военно-спортивное многоборье","41",0,0,0,0,0,0,null,null,null,null,null,null,null,null,null,null,null,null,null,null,null,null,null,null,null,null,null,null,null,null,null,null,null,null,null,null,null,null,null,null,null,null,null,null,null,null,null,null,null,null,null,null,null,null,null,null,null,null,{"$f":"'Раздел 2'!C50","v":0}]
[null,"Воздухоплавательный спорт","42",0,0,0,0,0,0,null,null,null,null,null,null,null,null,null,null,null,null,null,null,null,null,null,null,null,null,null,null,null,null,null,null,null,null,null,null,null,null,null,null,null,null,null,null,null,null,null,null,null,null,null,null,null,null,null,null,null,null,{"$f":"'Раздел 2'!C51","v":0}]
[null,"Воздушно-силовая атлетика","43",0,0,0,0,0,0,null,null,null,null,null,null,null,null,null,null,null,null,null,null,null,null,null,null,null,null,null,null,null,null,null,null,null,null,null,null,null,null,null,null,null,null,null,null,null,null,null,null,null,null,null,null,null,null,null,null,null,null,{"$f":"'Раздел 2'!C52","v":0}]
[null,"Волейбол - всего","44",0,0,0,0,0,0,{"$f":"SUM(J54:J57)","v":0},{"$f":"SUM(K54:K57)","v":0},0,0,0,0,0,0,0,0,0,0,0,0,0,0,0,0,0,0,0,0,0,0,0,0,0,0,0,0,0,0,0,0,0,0,0,0,0,0,0,0,0,0,0,0,0,0,0,0,null,null,{"$f":"'Раздел 2'!C53","v":0}]
[null,"в том числе:\nВолейбол (муж.)","45",0,0,0,0,0,0,null,null,null,null,null,null,null,null,null,null,null,null,null,null,null,null,null,null,null,null,null,null,null,null,null,null,null,null,null,null,null,null,null,null,null,null,null,null,null,null,null,null,null,null,null,null,null,null,null,null,null,null,{"$f":"'Раздел 2'!C54","v":0}]
[null,"Волейбол (жен.)","46",0,0,0,0,0,0,null,null,null,null,null,null,null,null,null,null,null,null,null,null,null,null,null,null,null,null,null,null,null,null,null,null,null,null,null,null,null,null,null,null,null,null,null,null,null,null,null,null,null,null,null,null,null,null,null,null,null,null,{"$f":"'Раздел 2'!C55","v":0}]
[null,"Пляжный волейбол (муж.)","47",0,0,0,0,0,0,null,null,null,null,null,null,null,null,null,null,null,null,null,null,null,null,null,null,null,null,null,null,null,null,null,null,null,null,null,null,null,null,null,null,null,null,null,null,null,null,null,null,null,null,null,null,null,null,null,null,null,null,{"$f":"'Раздел 2'!C56","v":0}]
[null,"Пляжный волейбол (жен.)","48",0,0,0,0,0,0,null,null,null,null,null,null,null,null,null,null,null,null,null,null,null,null,null,null,null,null,null,null,null,null,null,null,null,null,null,null,null,null,null,null,null,null,null,null,null,null,null,null,null,null,null,null,null,null,null,null,null,null,{"$f":"'Раздел 2'!C57","v":0}]
[null,"Восточное боевое единоборство","49",0,0,0,0,0,0,null,null,null,null,null,null,null,null,null,null,null,null,null,null,null,null,null,null,null,null,null,null,null,null,null,null,null,null,null,null,null,null,null,null,null,null,null,null,null,null,null,null,null,null,null,null,null,null,null,null,null,null,{"$f":"'Раздел 2'!C58","v":0}]
[null,"Всестилевое каратэ","50",0,0,0,0,0,0,null,null,null,null,null,null,null,null,null,null,null,null,null,null,null,null,null,null,null,null,null,null,null,null,null,null,null,null,null,null,null,null,null,null,null,null,null,null,null,null,null,null,null,null,null,null,null,null,null,null,null,null,{"$f":"'Раздел 2'!C59","v":0}]
[null,"Гандбол - всего","51",0,0,0,0,0,0,{"$f":"SUM(J61:J63)","v":0},{"$f":"SUM(K61:K63)","v":0},0,0,0,0,0,0,0,0,0,0,0,0,0,0,0,0,0,0,0,0,0,0,0,0,0,0,0,0,0,0,0,0,0,0,0,0,0,0,0,0,0,0,0,0,0,0,0,0,null,null,{"$f":"'Раздел 2'!C60","v":0}]
[null,"в том числе:\nГандбол (муж.)","52",0,0,0,0,0,0,null,null,null,null,null,null,null,null,null,null,null,null,null,null,null,null,null,null,null,null,null,null,null,null,null,null,null,null,null,null,null,null,null,null,null,null,null,null,null,null,null,null,null,null,null,null,null,null,null,null,null,null,{"$f":"'Раздел 2'!C61","v":0}]
[null,"Гандбол (жен.)","53",0,0,0,0,0,0,null,null,null,null,null,null,null,null,null,null,null,null,null,null,null,null,null,null,null,null,null,null,null,null,null,null,null,null,null,null,null,null,null,null,null,null,null,null,null,null,null,null,null,null,null,null,null,null,null,null,null,null,{"$f":"'Раздел 2'!C62","v":0}]
[null,"Пляжный гандбол","54",0,0,0,0,0,0,null,null,null,null,null,null,null,null,null,null,null,null,null,null,null,null,null,null,null,null,null,null,null,null,null,null,null,null,null,null,null,null,null,null,null,null,null,null,null,null,null,null,null,null,null,null,null,null,null,null,null,null,{"$f":"'Раздел 2'!C63","v":0}]
[null,"Гиревой спорт","55",0,0,0,0,0,0,null,null,null,null,null,null,null,null,null,null,null,null,null,null,null,null,null,null,null,null,null,null,null,null,null,null,null,null,null,null,null,null,null,null,null,null,null,null,null,null,null,null,null,null,null,null,null,null,null,null,null,null,{"$f":"'Раздел 2'!C64","v":0}]
[null,"Го","56",0,0,0,0,0,0,null,null,null,null,null,null,null,null,null,null,null,null,null,null,null,null,null,null,null,null,null,null,null,null,null,null,null,null,null,null,null,null,null,null,null,null,null,null,null,null,null,null,null,null,null,null,null,null,null,null,null,null,{"$f":"'Раздел 2'!C65","v":0}]
[null,"Гольф","57",0,0,0,0,0,0,null,null,null,null,null,null,null,null,null,null,null,null,null,null,null,null,null,null,null,null,null,null,null,null,null,null,null,null,null,null,null,null,null,null,null,null,null,null,null,null,null,null,null,null,null,null,null,null,null,null,null,null,{"$f":"'Раздел 2'!C66","v":0}]
[null,"Гонки на охотничьих лыжах","58",0,0,0,0,0,0,null,null,null,null,null,null,null,null,null,null,null,null,null,null,null,null,null,null,null,null,null,null,null,null,null,null,null,null,null,null,null,null,null,null,null,null,null,null,null,null,null,null,null,null,null,null,null,null,null,null,null,null,{"$f":"'Раздел 2'!C67","v":0}]
[null,"Гонки с препятствиями","59",0,0,0,0,0,0,null,null,null,null,null,null,null,null,null,null,null,null,null,null,null,null,null,null,null,null,null,null,null,null,null,null,null,null,null,null,null,null,null,null,null,null,null,null,null,null,null,null,null,null,null,null,null,null,null,null,null,null,{"$f":"'Раздел 2'!C68","v":0}]
[null,"Горнолыжный спорт","60",0,0,0,0,0,0,null,null,null,null,null,null,null,null,null,null,null,null,null,null,null,null,null,null,null,null,null,null,null,null,null,null,null,null,null,null,null,null,null,null,null,null,null,null,null,null,null,null,null,null,null,null,null,null,null,null,null,null,{"$f":"'Раздел 2'!C69","v":0}]
[null,"Городошный спорт","61",0,0,0,0,0,0,null,null,null,null,null,null,null,null,null,null,null,null,null,null,null,null,null,null,null,null,null,null,null,null,null,null,null,null,null,null,null,null,null,null,null,null,null,null,null,null,null,null,null,null,null,null,null,null,null,null,null,null,{"$f":"'Раздел 2'!C70","v":0}]
[null,"Гребля на байдарках и каноэ","62",0,0,0,0,0,0,null,null,null,null,null,null,null,null,null,null,null,null,null,null,null,null,null,null,null,null,null,null,null,null,null,null,null,null,null,null,null,null,null,null,null,null,null,null,null,null,null,null,null,null,null,null,null,null,null,null,null,null,{"$f":"'Раздел 2'!C71","v":0}]
[null,"Гребля на шлюпках","63",0,0,0,0,0,0,null,null,null,null,null,null,null,null,null,null,null,null,null,null,null,null,null,null,null,null,null,null,null,null,null,null,null,null,null,null,null,null,null,null,null,null,null,null,null,null,null,null,null,null,null,null,null,null,null,null,null,null,{"$f":"'Раздел 2'!C72","v":0}]
[null,"Гребной слалом","64",0,0,0,0,0,0,null,null,null,null,null,null,null,null,null,null,null,null,null,null,null,null,null,null,null,null,null,null,null,null,null,null,null,null,null,null,null,null,null,null,null,null,null,null,null,null,null,null,null,null,null,null,null,null,null,null,null,null,{"$f":"'Раздел 2'!C73","v":0}]
[null,"Гребной спорт - всего","65",0,0,0,0,0,0,{"$f":"SUM(J75:J78)","v":0},{"$f":"SUM(K75:K78)","v":0},0,0,0,0,0,0,0,0,0,0,0,0,0,0,0,0,0,0,0,0,0,0,0,0,0,0,0,0,0,0,0,0,0,0,0,0,0,0,0,0,0,0,0,0,0,0,0,0,null,null,{"$f":"'Раздел 2'!C74","v":0}]
[null,"в том числе:\nАкадемическая гребля","66",{"$f":"SUM(E75:G75)","v":0},{"$f":"SUM(J75,O75,T75,Y75,AD75,AI75,AN75,AS75,AX75,BC75)","v":0},{"$f":"SUM(K75,P75,U75,Z75,AE75,AJ75,AO75,AT75,AY75,BD75)","v":0},{"$f":"SUM(L75,Q75,V75,AA75,AF75,AK75,AP75,AU75,AZ75,BE75)","v":0},{"$f":"SUM(M75,R75,W75,AB75,AG75,AL75,AQ75,AV75,BA75,BF75)","v":0},{"$f":"SUM(N75,S75,X75,AC75,AH75,AM75,AR75,AW75,BB75,BG75)","v":0},null,null,null,null,null,null,null,null,null,null,null,null,null,null,null,null,null,null,null,null,null,null,null,null,null,null,null,null,null,null,null,null,null,null,null,null,null,null,null,null,null,null,null,null,null,null,null,null,null,null,null,null,{"$f":"'Раздел 2'!C75","v":0}]
[null,"Гребля-индор","67",0,0,0,0,0,0,null,null,null,null,null,null,null,null,null,null,null,null,null,null,null,null,null,null,null,null,null,null,null,null,null,null,null,null,null,null,null,null,null,null,null,null,null,null,null,null,null,null,null,null,null,null,null,null,null,null,null,null,{"$f":"'Раздел 2'!C76","v":0}]
[null,"Народная гребля","68",0,0,0,0,0,0,null,null,null,null,null,null,null,null,null,null,null,null,null,null,null,null,null,null,null,null,null,null,null,null,null,null,null,null,null,null,null,null,null,null,null,null,null,null,null,null,null,null,null,null,null,null,null,null,null,null,null,null,{"$f":"'Раздел 2'!C77","v":0}]
[null,"Прибрежная гребля","69",0,0,0,0,0,0,null,null,null,null,null,null,null,null,null,null,null,null,null,null,null,null,null,null,null,null,null,null,null,null,null,null,null,null,null,null,null,null,null,null,null,null,null,null,null,null,null,null,null,null,null,null,null,null,null,null,null,null,{"$f":"'Раздел 2'!C78","v":0}]
[null,"Гребно-парусное двоеборье","70",0,0,0,0,0,0,null,null,null,null,null,null,null,null,null,null,null,null,null,null,null,null,null,null,null,null,null,null,null,null,null,null,null,null,null,null,null,null,null,null,null,null,null,null,null,null,null,null,null,null,null,null,null,null,null,null,null,null,{"$f":"'Раздел 2'!C79","v":0}]
[null,"Дартс","71",0,0,0,0,0,0,null,null,null,null,null,null,null,null,null,null,null,null,null,null,null,null,null,null,null,null,null,null,null,null,null,null,null,null,null,null,null,null,null,null,null,null,null,null,null,null,null,null,null,null,null,null,null,null,null,null,null,null,{"$f":"'Раздел 2'!C80","v":0}]
[null,"Джиу-джитсу","72",0,0,0,0,0,0,null,null,null,null,null,null,null,null,null,null,null,null,null,null,null,null,null,null,null,null,null,null,null,null,null,null,null,null,null,null,null,null,null,null,null,null,null,null,null,null,null,null,null,null,null,null,null,null,null,null,null,null,{"$f":"'Раздел 2'!C81","v":0}]
[null,"Дзюдо","73",0,0,0,0,0,0,null,null,null,null,null,null,null,null,null,null,null,null,null,null,null,null,null,null,null,null,null,null,null,null,null,null,null,null,null,null,null,null,null,null,null,null,null,null,null,null,null,null,null,null,null,null,null,null,null,null,null,null,{"$f":"'Раздел 2'!C82","v":1}]
[null,"Ездовой спорт","74",0,0,0,0,0,0,null,null,null,null,null,null,null,null,null,null,null,null,null,null,null,null,null,null,null,null,null,null,null,null,null,null,null,null,null,null,null,null,null,null,null,null,null,null,null,null,null,null,null,null,null,null,null,null,null,null,null,null,{"$f":"'Раздел 2'!C83","v":0}]
[null,"Зимнее плавание","75",0,0,0,0,0,0,null,null,null,null,null,null,null,null,null,null,null,null,null,null,null,null,null,null,null,null,null,null,null,null,null,null,null,null,null,null,null,null,null,null,null,null,null,null,null,null,null,null,null,null,null,null,null,null,null,null,null,null,{"$f":"'Раздел 2'!C84","v":0}]
[null,"Капоэйра","76",0,0,0,0,0,0,null,null,null,null,null,null,null,null,null,null,null,null,null,null,null,null,null,null,null,null,null,null,null,null,null,null,null,null,null,null,null,null,null,null,null,null,null,null,null,null,null,null,null,null,null,null,null,null,null,null,null,null,{"$f":"'Раздел 2'!C85","v":0}]
[null,"Каратэ","77",0,0,0,0,0,0,null,null,null,null,null,null,null,null,null,null,null,null,null,null,null,null,null,null,null,null,null,null,null,null,null,null,null,null,null,null,null,null,null,null,null,null,null,null,null,null,null,null,null,null,null,null,null,null,null,null,null,null,{"$f":"'Раздел 2'!C86","v":0}]
[null,"Кендо","78",0,0,0,0,0,0,null,null,null,null,null,null,null,null,null,null,null,null,null,null,null,null,null,null,null,null,null,null,null,null,null,null,null,null,null,null,null,null,null,null,null,null,null,null,null,null,null,null,null,null,null,null,null,null,null,null,null,null,{"$f":"'Раздел 2'!C87","v":0}]
[null,"Керешу","79",0,0,0,0,0,0,null,null,null,null,null,null,null,null,null,null,null,null,null,null,null,null,null,null,null,null,null,null,null,null,null,null,null,null,null,null,null,null,null,null,null,null,null,null,null,null,null,null,null,null,null,null,null,null,null,null,null,null,{"$f":"'Раздел 2'!C88","v":0}]
[null,"Кёрлинг - всего","80",0,0,0,0,0,0,{"$f":"SUM(J90:J92)","v":0},{"$f":"SUM(K90:K92)","v":0},0,0,0,0,0,0,0,0,0,0,0,0,0,0,0,0,0,0,0,0,0,0,0,0,0,0,0,0,0,0,0,0,0,0,0,0,0,0,0,0,0,0,0,0,0,0,0,0,null,null,{"$f":"'Раздел 2'!C89","v":0}]
[null,"в том числе:\nКёрлинг (муж.)","81",0,0,0,0,0,0,null,null,null,null,null,null,null,null,null,null,null,null,null,null,null,null,null,null,null,null,null,null,null,null,null,null,null,null,null,null,null,null,null,null,null,null,null,null,null,null,null,null,null,null,null,null,null,null,null,null,null,null,{"$f":"'Раздел 2'!C90","v":0}]
[null,"Кёрлинг (жен.)","82",0,0,0,0,0,0,null,null,null,null,null,null,null,null,null,null,null,null,null,null,null,null,null,null,null,null,null,null,null,null,null,null,null,null,null,null,null,null,null,null,null,null,null,null,null,null,null,null,null,null,null,null,null,null,null,null,null,null,{"$f":"'Раздел 2'!C91","v":0}]
[null,"Кёрлинг – смешанные пары","83",0,0,0,0,0,0,null,null,null,null,null,null,null,null,null,null,null,null,null,null,null,null,null,null,null,null,null,null,null,null,null,null,null,null,null,null,null,null,null,null,null,null,null,null,null,null,null,null,null,null,null,null,null,null,null,null,null,null,{"$f":"'Раздел 2'!C92","v":0}]
[null,"Кикбоксинг","84",4,1,2,1,1,0,null,null,null,null,null,null,null,null,null,null,null,null,null,null,null,null,null,null,null,null,null,null,null,null,null,null,null,null,null,null,null,null,null,null,null,null,null,null,null,null,null,null,null,null,null,1,2,1,1,null,null,null,{"$f":"'Раздел 2'!C93","v":1}]
[null,"Кинологический спорт","85",0,0,0,0,0,0,null,null,null,null,null,null,null,null,null,null,null,null,null,null,null,null,null,null,null,null,null,null,null,null,null,null,null,null,null,null,null,null,null,null,null,null,null,null,null,null,null,null,null,null,null,null,null,null,null,null,null,null,{"$f":"'Раздел 2'!C94","v":0}]
[null,"Киокусинкай","86",0,0,0,0,0,0,null,null,null,null,null,null,null,null,null,null,null,null,null,null,null,null,null,null,null,null,null,null,null,null,null,null,null,null,null,null,null,null,null,null,null,null,null,null,null,null,null,null,null,null,null,null,null,null,null,null,null,null,{"$f":"'Раздел 2'!C95","v":0}]
[null,"Киокушин","87",0,0,0,0,0,0,null,null,null,null,null,null,null,null,null,null,null,null,null,null,null,null,null,null,null,null,null,null,null,null,null,null,null,null,null,null,null,null,null,null,null,null,null,null,null,null,null,null,null,null,null,null,null,null,null,null,null,null,{"$f":"'Раздел 2'!C96","v":0}]
[null,"Комплексное единоборство","88",0,0,0,0,0,0,null,null,null,null,null,null,null,null,null,null,null,null,null,null,null,null,null,null,null,null,null,null,null,null,null,null,null,null,null,null,null,null,null,null,null,null,null,null,null,null,null,null,null,null,null,null,null,null,null,null,null,null,{"$f":"'Раздел 2'!C97","v":0}]
[null,"Компьютерный спорт","89",0,0,0,0,0,0,null,null,null,null,null,null,null,null,null,null,null,null,null,null,null,null,null,null,null,null,null,null,null,null,null,null,null,null,null,null,null,null,null,null,null,null,null,null,null,null,null,null,null,null,null,null,null,null,null,null,null,null,{"$f":"'Раздел 2'!C98","v":0}]
[null,"Конный спорт","90",0,0,0,0,0,0,null,null,null,null,null,null,null,null,null,null,null,null,null,null,null,null,null,null,null,null,null,null,null,null,null,null,null,null,null,null,null,null,null,null,null,null,null,null,null,null,null,null,null,null,null,null,null,null,null,null,null,null,{"$f":"'Раздел 2'!C99","v":0}]
[null,"Конькобежный спорт - всего","91",0,0,0,0,0,0,{"$f":"SUM(J101:J102)","v":0},{"$f":"SUM(K101:K102)","v":0},0,0,0,0,0,0,0,0,0,0,0,0,0,0,0,0,0,0,0,0,0,0,0,0,0,0,0,0,0,0,0,0,0,0,0,0,0,0,0,0,0,0,0,0,0,0,0,0,null,null,{"$f":"'Раздел 2'!C100","v":0}]
[null,"в том числе:\nКонькобежный спорт","92",0,0,0,0,0,0,null,null,null,null,null,null,null,null,null,null,null,null,null,null,null,null,null,null,null,null,null,null,null,null,null,null,null,null,null,null,null,null,null,null,null,null,null,null,null,null,null,null,null,null,null,null,null,null,null,null,null,null,{"$f":"'Раздел 2'!C101","v":0}]
[null,"Шорт-трек","93",0,0,0,0,0,0,null,null,null,null,null,null,null,null,null,null,null,null,null,null,null,null,null,null,null,null,null,null,null,null,null,null,null,null,null,null,null,null,null,null,null,null,null,null,null,null,null,null,null,null,null,null,null,null,null,null,null,null,{"$f":"'Раздел 2'!C102","v":0}]
[null,"Корэш","94",0,0,0,0,0,0,null,null,null,null,null,null,null,null,null,null,null,null,null,null,null,null,null,null,null,null,null,null,null,null,null,null,null,null,null,null,null,null,null,null,null,null,null,null,null,null,null,null,null,null,null,null,null,null,null,null,null,null,{"$f":"'Раздел 2'!C103","v":0}]
[null,"Крикет","95",0,0,0,0,0,0,null,null,null,null,null,null,null,null,null,null,null,null,null,null,null,null,null,null,null,null,null,null,null,null,null,null,null,null,null,null,null,null,null,null,null,null,null,null,null,null,null,null,null,null,null,null,null,null,null,null,null,null,{"$f":"'Раздел 2'!C104","v":0}]
[null,"Кудо","96",0,0,0,0,0,0,null,null,null,null,null,null,null,null,null,null,null,null,null,null,null,null,null,null,null,null,null,null,null,null,null,null,null,null,null,null,null,null,null,null,null,null,null,null,null,null,null,null,null,null,null,null,null,null,null,null,null,null,{"$f":"'Раздел 2'!C105","v":0}]
[null,"Лапта","97",0,0,0,0,0,0,null,null,null,null,null,null,null,null,null,null,null,null,null,null,null,null,null,null,null,null,null,null,null,null,null,null,null,null,null,null,null,null,null,null,null,null,null,null,null,null,null,null,null,null,null,null,null,null,null,null,null,null,{"$f":"'Раздел 2'!C106","v":0}]
[null,"Легкая атлетика - всего","98",0,0,0,0,0,0,{"$f":"SUM(J108:J114)","v":0},{"$f":"SUM(K108:K114)","v":0},0,0,0,0,0,0,0,0,0,0,0,0,0,0,0,0,0,0,0,0,0,0,0,0,0,0,0,0,0,0,0,0,0,0,0,0,0,0,0,0,0,0,0,0,0,0,0,0,null,null,{"$f":"'Раздел 2'!C107","v":0}]
[null,"в том числе:\nСпринтерский и барьерный бег","99",0,0,0,0,0,0,null,null,null,null,null,null,null,null,null,null,null,null,null,null,null,null,null,null,null,null,null,null,null,null,null,null,null,null,null,null,null,null,null,null,null,null,null,null,null,null,null,null,null,null,null,null,null,null,null,null,null,null,{"$f":"'Раздел 2'!C108","v":0}]
[null,"Бег на средние дистанции и бег с препятствиями","100",0,0,0,0,0,0,null,null,null,null,null,null,null,null,null,null,null,null,null,null,null,null,null,null,null,null,null,null,null,null,null,null,null,null,null,null,null,null,null,null,null,null,null,null,null,null,null,null,null,null,null,null,null,null,null,null,null,null,{"$f":"'Раздел 2'!C109","v":0}]
[null,"Бег на длинные и сверхдлинные дистанции","101",0,0,0,0,0,0,null,null,null,null,null,null,null,null,null,null,null,null,null,null,null,null,null,null,null,null,null,null,null,null,null,null,null,null,null,null,null,null,null,null,null,null,null,null,null,null,null,null,null,null,null,null,null,null,null,null,null,null,{"$f":"'Раздел 2'!C110","v":0}]
[null,"Многоборья","102",0,0,0,0,0,0,null,null,null,null,null,null,null,null,null,null,null,null,null,null,null,null,null,null,null,null,null,null,null,null,null,null,null,null,null,null,null,null,null,null,null,null,null,null,null,null,null,null,null,null,null,null,null,null,null,null,null,null,{"$f":"'Раздел 2'!C111","v":0}]
[null,"Прыжки","103",0,0,0,0,0,0,null,null,null,null,null,null,null,null,null,null,null,null,null,null,null,null,null,null,null,null,null,null,null,null,null,null,null,null,null,null,null,null,null,null,null,null,null,null,null,null,null,null,null,null,null,null,null,null,null,null,null,null,{"$f":"'Раздел 2'!C112","v":0}]
[null,"Метания","104",0,0,0,0,0,0,null,null,null,null,null,null,null,null,null,null,null,null,null,null,null,null,null,null,null,null,null,null,null,null,null,null,null,null,null,null,null,null,null,null,null,null,null,null,null,null,null,null,null,null,null,null,null,null,null,null,null,null,{"$f":"'Раздел 2'!C113","v":0}]
[null,"Спортивная ходьба","105",0,0,0,0,0,0,null,null,null,null,null,null,null,null,null,null,null,null,null,null,null,null,null,null,null,null,null,null,null,null,null,null,null,null,null,null,null,null,null,null,null,null,null,null,null,null,null,null,null,null,null,null,null,null,null,null,null,null,{"$f":"'Раздел 2'!C114","v":0}]
[null,"Лыжное двоеборье","106",0,0,0,0,0,0,null,null,null,null,null,null,null,null,null,null,null,null,null,null,null,null,null,null,null,null,null,null,null,null,null,null,null,null,null,null,null,null,null,null,null,null,null,null,null,null,null,null,null,null,null,null,null,null,null,null,null,null,{"$f":"'Раздел 2'!C115","v":0}]
[null,"Лыжные гонки","107",0,0,0,0,0,0,null,null,null,null,null,null,null,null,null,null,null,null,null,null,null,null,null,null,null,null,null,null,null,null,null,null,null,null,null,null,null,null,null,null,null,null,null,null,null,null,null,null,null,null,null,null,null,null,null,null,null,null,{"$f":"'Раздел 2'!C116","v":0}]
[null,"Мас-рестлинг","108",0,0,0,0,0,0,null,null,null,null,null,null,null,null,null,null,null,null,null,null,null,null,null,null,null,null,null,null,null,null,null,null,null,null,null,null,null,null,null,null,null,null,null,null,null,null,null,null,null,null,null,null,null,null,null,null,null,null,{"$f":"'Раздел 2'!C117","v":0}]
[null,"Международное военно-спортивное многоборье","109",0,0,0,0,0,0,null,null,null,null,null,null,null,null,null,null,null,null,null,null,null,null,null,null,null,null,null,null,null,null,null,null,null,null,null,null,null,null,null,null,null,null,null,null,null,null,null,null,null,null,null,null,null,null,null,null,null,null,{"$f":"'Раздел 2'!C118","v":0}]
[null,"Микрофутзал","110",0,0,0,0,0,0,null,null,null,null,null,null,null,null,null,null,null,null,null,null,null,null,null,null,null,null,null,null,null,null,null,null,null,null,null,null,null,null,null,null,null,null,null,null,null,null,null,null,null,null,null,null,null,null,null,null,null,null,{"$f":"'Раздел 2'!C119","v":0}]
[null,"Многоборье кинологов","111",0,0,0,0,0,0,null,null,null,null,null,null,null,null,null,null,null,null,null,null,null,null,null,null,null,null,null,null,null,null,null,null,null,null,null,null,null,null,null,null,null,null,null,null,null,null,null,null,null,null,null,null,null,null,null,null,null,null,{"$f":"'Раздел 2'!C120","v":0}]
[null,"Многоборье спасателей МЧС России","112",0,0,0,0,0,0,null,null,null,null,null,null,null,null,null,null,null,null,null,null,null,null,null,null,null,null,null,null,null,null,null,null,null,null,null,null,null,null,null,null,null,null,null,null,null,null,null,null,null,null,null,null,null,null,null,null,null,null,{"$f":"'Раздел 2'!C121","v":0}]
[null,"Морское многоборье","113",0,0,0,0,0,0,null,null,null,null,null,null,null,null,null,null,null,null,null,null,null,null,null,null,null,null,null,null,null,null,null,null,null,null,null,null,null,null,null,null,null,null,null,null,null,null,null,null,null,null,null,null,null,null,null,null,null,null,{"$f":"'Раздел 2'!C122","v":0}]
[null,"Мотоциклетный спорт","114",0,0,0,0,0,0,null,null,null,null,null,null,null,null,null,null,null,null,null,null,null,null,null,null,null,null,null,null,null,null,null,null,null,null,null,null,null,null,null,null,null,null,null,null,null,null,null,null,null,null,null,null,null,null,null,null,null,null,{"$f":"'Раздел 2'!C123","v":0}]
[null,"Муайтай","115",0,0,0,0,0,0,null,null,null,null,null,null,null,null,null,null,null,null,null,null,null,null,null,null,null,null,null,null,null,null,null,null,null,null,null,null,null,null,null,null,null,null,null,null,null,null,null,null,null,null,null,null,null,null,null,null,null,null,{"$f":"'Раздел 2'!C124","v":0}]
[null,"Нарды","116",0,0,0,0,0,0,null,null,null,null,null,null,null,null,null,null,null,null,null,null,null,null,null,null,null,null,null,null,null,null,null,null,null,null,null,null,null,null,null,null,null,null,null,null,null,null,null,null,null,null,null,null,null,null,null,null,null,null,{"$f":"'Раздел 2'!C125","v":0}]
[null,"Настольный теннис","117",0,0,0,0,0,0,null,null,null,null,null,null,null,null,null,null,null,null,null,null,null,null,null,null,null,null,null,null,null,null,null,null,null,null,null,null,null,null,null,null,null,null,null,null,null,null,null,null,null,null,null,null,null,null,null,null,null,null,{"$f":"'Раздел 2'!C126","v":0}]
[null,"Падел","118",0,0,0,0,0,0,null,null,null,null,null,null,null,null,null,null,null,null,null,null,null,null,null,null,null,null,null,null,null,null,null,null,null,null,null,null,null,null,null,null,null,null,null,null,null,null,null,null,null,null,null,null,null,null,null,null,null,null,{"$f":"'Раздел 2'!C127","v":0}]
[null,"Парашютный спорт","119",0,0,0,0,0,0,null,null,null,null,null,null,null,null,null,null,null,null,null,null,null,null,null,null,null,null,null,null,null,null,null,null,null,null,null,null,null,null,null,null,null,null,null,null,null,null,null,null,null,null,null,null,null,null,null,null,null,null,{"$f":"'Раздел 2'!C128","v":0}]
[null,"Парусный спорт","120",0,0,0,0,0,0,null,null,null,null,null,null,null,null,null,null,null,null,null,null,null,null,null,null,null,null,null,null,null,null,null,null,null,null,null,null,null,null,null,null,null,null,null,null,null,null,null,null,null,null,null,null,null,null,null,null,null,null,{"$f":"'Раздел 2'!C129","v":0}]
[null,"Пауэрлифтинг","121",3,2,1,0,0,0,null,null,null,null,null,null,null,null,null,null,null,null,null,null,null,null,null,null,null,null,null,null,null,null,null,null,null,null,null,null,null,null,null,null,null,null,null,null,null,null,null,null,null,null,null,2,1,null,null,null,null,null,{"$f":"'Раздел 2'!C130","v":1}]
[null,"Перетягивание каната","122",0,0,0,0,0,0,null,null,null,null,null,null,null,null,null,null,null,null,null,null,null,null,null,null,null,null,null,null,null,null,null,null,null,null,null,null,null,null,null,null,null,null,null,null,null,null,null,null,null,null,null,null,null,null,null,null,null,null,{"$f":"'Раздел 2'!C131","v":0}]
[null,"Пилонный спорт","123",0,0,0,0,0,0,null,null,null,null,null,null,null,null,null,null,null,null,null,null,null,null,null,null,null,null,null,null,null,null,null,null,null,null,null,null,null,null,null,null,null,null,null,null,null,null,null,null,null,null,null,null,null,null,null,null,null,null,{"$f":"'Раздел 2'!C132","v":0}]
[null,"Плавание - всего","124",0,0,0,0,0,0,{"$f":"SUM(J134:J135)","v":0},{"$f":"SUM(K134:K135)","v":0},0,0,0,0,0,0,0,0,0,0,0,0,0,0,0,0,0,0,0,0,0,0,0,0,0,0,0,0,0,0,0,0,0,0,0,0,0,0,0,0,0,0,0,0,0,0,0,0,null,null,{"$f":"'Раздел 2'!C133","v":0}]
[null,"в том числе:\nПлавание ","125",0,0,0,0,0,0,null,null,null,null,null,null,null,null,null,null,null,null,null,null,null,null,null,null,null,null,null,null,null,null,null,null,null,null,null,null,null,null,null,null,null,null,null,null,null,null,null,null,null,null,null,null,null,null,null,null,null,null,{"$f":"'Раздел 2'!C134","v":0}]
[null,"Открытая вода","126",0,0,0,0,0,0,null,null,null,null,null,null,null,null,null,null,null,null,null,null,null,null,null,null,null,null,null,null,null,null,null,null,null,null,null,null,null,null,null,null,null,null,null,null,null,null,null,null,null,null,null,null,null,null,null,null,null,null,{"$f":"'Раздел 2'!C135","v":0}]
[null,"Планерный спорт","127",0,0,0,0,0,0,null,null,null,null,null,null,null,null,null,null,null,null,null,null,null,null,null,null,null,null,null,null,null,null,null,null,null,null,null,null,null,null,null,null,null,null,null,null,null,null,null,null,null,null,null,null,null,null,null,null,null,null,{"$f":"'Раздел 2'!C136","v":0}]
[null,"Подводный спорт","128",0,0,0,0,0,0,null,null,null,null,null,null,null,null,null,null,null,null,null,null,null,null,null,null,null,null,null,null,null,null,null,null,null,null,null,null,null,null,null,null,null,null,null,null,null,null,null,null,null,null,null,null,null,null,null,null,null,null,{"$f":"'Раздел 2'!C137","v":0}]
[null,"Пожарно-спасательный спорт","129",0,0,0,0,0,0,null,null,null,null,null,null,null,null,null,null,null,null,null,null,null,null,null,null,null,null,null,null,null,null,null,null,null,null,null,null,null,null,null,null,null,null,null,null,null,null,null,null,null,null,null,null,null,null,null,null,null,null,{"$f":"'Раздел 2'!C138","v":0}]
[null,"Полиатлон","130",{"$f":"SUM(E139:G139)","v":0},{"$f":"SUM(J139,O139,T139,Y139,AD139,AI139,AN139,AS139,AX139,BC139)","v":0},{"$f":"SUM(K139,P139,U139,Z139,AE139,AJ139,AO139,AT139,AY139,BD139)","v":0},{"$f":"SUM(L139,Q139,V139,AA139,AF139,AK139,AP139,AU139,AZ139,BE139)","v":0},{"$f":"SUM(M139,R139,W139,AB139,AG139,AL139,AQ139,AV139,BA139,BF139)","v":0},{"$f":"SUM(N139,S139,X139,AC139,AH139,AM139,AR139,AW139,BB139,BG139)","v":0},null,null,null,null,null,null,null,null,null,null,null,null,null,null,null,null,null,null,null,null,null,null,null,null,null,null,null,null,null,null,null,null,null,null,null,null,null,null,null,null,null,null,null,null,null,null,null,null,null,null,null,null,{"$f":"'Раздел 2'!C139","v":0}]
[null,"Практическая стрельба","131",0,0,0,0,0,0,null,null,null,null,null,null,null,null,null,null,null,null,null,null,null,null,null,null,null,null,null,null,null,null,null,null,null,null,null,null,null,null,null,null,null,null,null,null,null,null,null,null,null,null,null,null,null,null,null,null,null,null,{"$f":"'Раздел 2'!C140","v":0}]
[null,"Прыжки в воду - всего","132",0,0,0,0,0,0,{"$f":"SUM(J142:J143)","v":0},{"$f":"SUM(K142:K143)","v":0},0,0,0,0,0,0,0,0,0,0,0,0,0,0,0,0,0,0,0,0,0,0,0,0,0,0,0,0,0,0,0,0,0,0,0,0,0,0,0,0,0,0,0,0,0,0,0,0,null,null,{"$f":"'Раздел 2'!C141","v":0}]
[null,"в том числе:\nПрыжки в воду","133",0,0,0,0,0,0,null,null,null,null,null,null,null,null,null,null,null,null,null,null,null,null,null,null,null,null,null,null,null,null,null,null,null,null,null,null,null,null,null,null,null,null,null,null,null,null,null,null,null,null,null,null,null,null,null,null,null,null,{"$f":"'Раздел 2'!C142","v":0}]
[null,"Прыжки в открытый водоем","134",0,0,0,0,0,0,null,null,null,null,null,null,null,null,null,null,null,null,null,null,null,null,null,null,null,null,null,null,null,null,null,null,null,null,null,null,null,null,null,null,null,null,null,null,null,null,null,null,null,null,null,null,null,null,null,null,null,null,{"$f":"'Раздел 2'!C143","v":0}]
[null,"Прыжки на батуте - всего","135",0,0,0,0,0,0,{"$f":"SUM(J145:J148)","v":0},{"$f":"SUM(K145:K148)","v":0},0,0,0,0,0,0,0,0,0,0,0,0,0,0,0,0,0,0,0,0,0,0,0,0,0,0,0,0,0,0,0,0,0,0,0,0,0,0,0,0,0,0,0,0,0,0,0,0,null,null,{"$f":"'Раздел 2'!C144","v":0}]
[null,"в том числе:\nАкробатическая дорожка","136",0,0,0,0,0,0,null,null,null,null,null,null,null,null,null,null,null,null,null,null,null,null,null,null,null,null,null,null,null,null,null,null,null,null,null,null,null,null,null,null,null,null,null,null,null,null,null,null,null,null,null,null,null,null,null,null,null,null,{"$f":"'Раздел 2'!C145","v":0}]
[null,"Двойной минитрамп","137",0,0,0,0,0,0,null,null,null,null,null,null,null,null,null,null,null,null,null,null,null,null,null,null,null,null,null,null,null,null,null,null,null,null,null,null,null,null,null,null,null,null,null,null,null,null,null,null,null,null,null,null,null,null,null,null,null,null,{"$f":"'Раздел 2'!C146","v":0}]
[null,"Индивидуальные прыжки","138",0,0,0,0,0,0,null,null,null,null,null,null,null,null,null,null,null,null,null,null,null,null,null,null,null,null,null,null,null,null,null,null,null,null,null,null,null,null,null,null,null,null,null,null,null,null,null,null,null,null,null,null,null,null,null,null,null,null,{"$f":"'Раздел 2'!C147","v":0}]
[null,"Синхронные прыжки","139",0,0,0,0,0,0,null,null,null,null,null,null,null,null,null,null,null,null,null,null,null,null,null,null,null,null,null,null,null,null,null,null,null,null,null,null,null,null,null,null,null,null,null,null,null,null,null,null,null,null,null,null,null,null,null,null,null,null,{"$f":"'Раздел 2'!C148","v":0}]
[null,"Прыжки на лыжах с трамплина","140",0,0,0,0,0,0,null,null,null,null,null,null,null,null,null,null,null,null,null,null,null,null,null,null,null,null,null,null,null,null,null,null,null,null,null,null,null,null,null,null,null,null,null,null,null,null,null,null,null,null,null,null,null,null,null,null,null,null,{"$f":"'Раздел 2'!C149","v":0}]
[null,"Пулевая стрельба - всего","141",0,0,0,0,0,0,{"$f":"SUM(J151:J155)","v":0},{"$f":"SUM(K151:K155)","v":0},0,0,0,0,0,0,0,0,0,0,0,0,0,0,0,0,0,0,0,0,0,0,0,0,0,0,0,0,0,0,0,0,0,0,0,0,0,0,0,0,0,0,0,0,0,0,0,0,null,null,{"$f":"'Раздел 2'!C150","v":0}]
[null,"в том числе:\nПневматическая винтовка","142",0,0,0,0,0,0,null,null,null,null,null,null,null,null,null,null,null,null,null,null,null,null,null,null,null,null,null,null,null,null,null,null,null,null,null,null,null,null,null,null,null,null,null,null,null,null,null,null,null,null,null,null,null,null,null,null,null,null,{"$f":"'Раздел 2'!C151","v":0}]
[null,"Пневматический пистолет","143",0,0,0,0,0,0,null,null,null,null,null,null,null,null,null,null,null,null,null,null,null,null,null,null,null,null,null,null,null,null,null,null,null,null,null,null,null,null,null,null,null,null,null,null,null,null,null,null,null,null,null,null,null,null,null,null,null,null,{"$f":"'Раздел 2'!C152","v":0}]
[null,"Малокалиберная винтовка","144",0,0,0,0,0,0,null,null,null,null,null,null,null,null,null,null,null,null,null,null,null,null,null,null,null,null,null,null,null,null,null,null,null,null,null,null,null,null,null,null,null,null,null,null,null,null,null,null,null,null,null,null,null,null,null,null,null,null,{"$f":"'Раздел 2'!C153","v":0}]
[null,"Малокалиберный пистолет","145",0,0,0,0,0,0,null,null,null,null,null,null,null,null,null,null,null,null,null,null,null,null,null,null,null,null,null,null,null,null,null,null,null,null,null,null,null,null,null,null,null,null,null,null,null,null,null,null,null,null,null,null,null,null,null,null,null,null,{"$f":"'Раздел 2'!C154","v":0}]
[null,"Движущаяся мишень","146",0,0,0,0,0,0,null,null,null,null,null,null,null,null,null,null,null,null,null,null,null,null,null,null,null,null,null,null,null,null,null,null,null,null,null,null,null,null,null,null,null,null,null,null,null,null,null,null,null,null,null,null,null,null,null,null,null,null,{"$f":"'Раздел 2'!C155","v":0}]
[null,"Пэйнтбол","147",0,0,0,0,0,0,null,null,null,null,null,null,null,null,null,null,null,null,null,null,null,null,null,null,null,null,null,null,null,null,null,null,null,null,null,null,null,null,null,null,null,null,null,null,null,null,null,null,null,null,null,null,null,null,null,null,null,null,{"$f":"'Раздел 2'!C156","v":0}]
[null,"Радиоспорт","148",0,0,0,0,0,0,null,null,null,null,null,null,null,null,null,null,null,null,null,null,null,null,null,null,null,null,null,null,null,null,null,null,null,null,null,null,null,null,null,null,null,null,null,null,null,null,null,null,null,null,null,null,null,null,null,null,null,null,{"$f":"'Раздел 2'!C157","v":0}]
[null,"Рафтинг","149",0,0,0,0,0,0,null,null,null,null,null,null,null,null,null,null,null,null,null,null,null,null,null,null,null,null,null,null,null,null,null,null,null,null,null,null,null,null,null,null,null,null,null,null,null,null,null,null,null,null,null,null,null,null,null,null,null,null,{"$f":"'Раздел 2'!C158","v":0}]
[null,"Регби - всего","150",0,0,0,0,0,0,{"$f":"SUM(J160:J164)","v":0},{"$f":"SUM(K160:K164)","v":0},0,0,0,0,0,0,0,0,0,0,0,0,0,0,0,0,0,0,0,0,0,0,0,0,0,0,0,0,0,0,0,0,0,0,0,0,0,0,0,0,0,0,0,0,0,0,0,0,null,null,{"$f":"'Раздел 2'!C159","v":0}]
[null,"в том числе:\nРегби","151",0,0,0,0,0,0,null,null,null,null,null,null,null,null,null,null,null,null,null,null,null,null,null,null,null,null,null,null,null,null,null,null,null,null,null,null,null,null,null,null,null,null,null,null,null,null,null,null,null,null,null,null,null,null,null,null,null,null,{"$f":"'Раздел 2'!C160","v":0}]
[null,"Регби 7 (муж.)","152",0,0,0,0,0,0,null,null,null,null,null,null,null,null,null,null,null,null,null,null,null,null,null,null,null,null,null,null,null,null,null,null,null,null,null,null,null,null,null,null,null,null,null,null,null,null,null,null,null,null,null,null,null,null,null,null,null,null,{"$f":"'Раздел 2'!C161","v":0}]
[null,"Регби 7 (жен.)","153",0,0,0,0,0,0,null,null,null,null,null,null,null,null,null,null,null,null,null,null,null,null,null,null,null,null,null,null,null,null,null,null,null,null,null,null,null,null,null,null,null,null,null,null,null,null,null,null,null,null,null,null,null,null,null,null,null,null,{"$f":"'Раздел 2'!C162","v":0}]
[null,"Регби - пляжное","154",0,0,0,0,0,0,null,null,null,null,null,null,null,null,null,null,null,null,null,null,null,null,null,null,null,null,null,null,null,null,null,null,null,null,null,null,null,null,null,null,null,null,null,null,null,null,null,null,null,null,null,null,null,null,null,null,null,null,{"$f":"'Раздел 2'!C163","v":0}]
[null,"Регби на снегу","155",0,0,0,0,0,0,null,null,null,null,null,null,null,null,null,null,null,null,null,null,null,null,null,null,null,null,null,null,null,null,null,null,null,null,null,null,null,null,null,null,null,null,null,null,null,null,null,null,null,null,null,null,null,null,null,null,null,null,{"$f":"'Раздел 2'!C164","v":0}]
[null,"Регбол","156",0,0,0,0,0,0,null,null,null,null,null,null,null,null,null,null,null,null,null,null,null,null,null,null,null,null,null,null,null,null,null,null,null,null,null,null,null,null,null,null,null,null,null,null,null,null,null,null,null,null,null,null,null,null,null,null,null,null,{"$f":"'Раздел 2'!C165","v":0}]
[null,"Роллер спорт","157",0,0,0,0,0,0,null,null,null,null,null,null,null,null,null,null,null,null,null,null,null,null,null,null,null,null,null,null,null,null,null,null,null,null,null,null,null,null,null,null,null,null,null,null,null,null,null,null,null,null,null,null,null,null,null,null,null,null,{"$f":"'Раздел 2'!C166","v":0}]
[null,"Роуп скиппинг (спортивная скакалка)","158",0,0,0,0,0,0,null,null,null,null,null,null,null,null,null,null,null,null,null,null,null,null,null,null,null,null,null,null,null,null,null,null,null,null,null,null,null,null,null,null,null,null,null,null,null,null,null,null,null,null,null,null,null,null,null,null,null,null,{"$f":"'Раздел 2'!C167","v":0}]
[null,"Рукопашный бой","159",0,0,0,0,0,0,null,null,null,null,null,null,null,null,null,null,null,null,null,null,null,null,null,null,null,null,null,null,null,null,null,null,null,null,null,null,null,null,null,null,null,null,null,null,null,null,null,null,null,null,null,null,null,null,null,null,null,null,{"$f":"'Раздел 2'!C168","v":0}]
[null,"Рыболовный спорт","160",0,0,0,0,0,0,null,null,null,null,null,null,null,null,null,null,null,null,null,null,null,null,null,null,null,null,null,null,null,null,null,null,null,null,null,null,null,null,null,null,null,null,null,null,null,null,null,null,null,null,null,null,null,null,null,null,null,null,{"$f":"'Раздел 2'!C169","v":0}]
[null,"Сават","161",0,0,0,0,0,0,null,null,null,null,null,null,null,null,null,null,null,null,null,null,null,null,null,null,null,null,null,null,null,null,null,null,null,null,null,null,null,null,null,null,null,null,null,null,null,null,null,null,null,null,null,null,null,null,null,null,null,null,{"$f":"'Раздел 2'!C170","v":0}]
[null,"Самбо","162",0,0,0,0,0,0,null,null,null,null,null,null,null,null,null,null,null,null,null,null,null,null,null,null,null,null,null,null,null,null,null,null,null,null,null,null,null,null,null,null,null,null,null,null,null,null,null,null,null,null,null,null,null,null,null,null,null,null,{"$f":"'Раздел 2'!C171","v":0}]
[null,"Самолетный спорт","163",0,0,0,0,0,0,null,null,null,null,null,null,null,null,null,null,null,null,null,null,null,null,null,null,null,null,null,null,null,null,null,null,null,null,null,null,null,null,null,null,null,null,null,null,null,null,null,null,null,null,null,null,null,null,null,null,null,null,{"$f":"'Раздел 2'!C172","v":0}]
[null,"Санный спорт","164",0,0,0,0,0,0,null,null,null,null,null,null,null,null,null,null,null,null,null,null,null,null,null,null,null,null,null,null,null,null,null,null,null,null,null,null,null,null,null,null,null,null,null,null,null,null,null,null,null,null,null,null,null,null,null,null,null,null,{"$f":"'Раздел 2'!C173","v":0}]
[null,"Северное многоборье","165",0,0,0,0,0,0,null,null,null,null,null,null,null,null,null,null,null,null,null,null,null,null,null,null,null,null,null,null,null,null,null,null,null,null,null,null,null,null,null,null,null,null,null,null,null,null,null,null,null,null,null,null,null,null,null,null,null,null,{"$f":"'Раздел 2'!C174","v":0}]
[null,"Серфинг","166",0,0,0,0,0,0,null,null,null,null,null,null,null,null,null,null,null,null,null,null,null,null,null,null,null,null,null,null,null,null,null,null,null,null,null,null,null,null,null,null,null,null,null,null,null,null,null,null,null,null,null,null,null,null,null,null,null,null,{"$f":"'Раздел 2'!C175","v":0}]
[null,"Силовой экстрим","167",0,0,0,0,0,0,null,null,null,null,null,null,null,null,null,null,null,null,null,null,null,null,null,null,null,null,null,null,null,null,null,null,null,null,null,null,null,null,null,null,null,null,null,null,null,null,null,null,null,null,null,null,null,null,null,null,null,null,{"$f":"'Раздел 2'!C176","v":0}]
[null,"Синхронное плавание","168",0,0,0,0,0,0,null,null,null,null,null,null,null,null,null,null,null,null,null,null,null,null,null,null,null,null,null,null,null,null,null,null,null,null,null,null,null,null,null,null,null,null,null,null,null,null,null,null,null,null,null,null,null,null,null,null,null,null,{"$f":"'Раздел 2'!C177","v":0}]
[null,"Скалолазание","169",0,0,0,0,0,0,null,null,null,null,null,null,null,null,null,null,null,null,null,null,null,null,null,null,null,null,null,null,null,null,null,null,null,null,null,null,null,null,null,null,null,null,null,null,null,null,null,null,null,null,null,null,null,null,null,null,null,null,{"$f":"'Раздел 2'!C178","v":0}]
[null,"Сквош","170",0,0,0,0,0,0,null,null,null,null,null,null,null,null,null,null,null,null,null,null,null,null,null,null,null,null,null,null,null,null,null,null,null,null,null,null,null,null,null,null,null,null,null,null,null,null,null,null,null,null,null,null,null,null,null,null,null,null,{"$f":"'Раздел 2'!C179","v":0}]
[null,"Скейтбординг","171",0,0,0,0,0,0,null,null,null,null,null,null,null,null,null,null,null,null,null,null,null,null,null,null,null,null,null,null,null,null,null,null,null,null,null,null,null,null,null,null,null,null,null,null,null,null,null,null,null,null,null,null,null,null,null,null,null,null,{"$f":"'Раздел 2'!C180","v":0}]
[null,"Служебно-боевая стрельба ","172",0,0,0,0,0,0,null,null,null,null,null,null,null,null,null,null,null,null,null,null,null,null,null,null,null,null,null,null,null,null,null,null,null,null,null,null,null,null,null,null,null,null,null,null,null,null,null,null,null,null,null,null,null,null,null,null,null,null,{"$f":"'Раздел 2'!C181","v":0}]
[null,"Служебно-прикладной спорт","173",0,0,0,0,0,0,null,null,null,null,null,null,null,null,null,null,null,null,null,null,null,null,null,null,null,null,null,null,null,null,null,null,null,null,null,null,null,null,null,null,null,null,null,null,null,null,null,null,null,null,null,null,null,null,null,null,null,null,{"$f":"'Раздел 2'!C182","v":0}]
[null,"Служебно-прикладной спорт ФСО России","174",0,0,0,0,0,0,null,null,null,null,null,null,null,null,null,null,null,null,null,null,null,null,null,null,null,null,null,null,null,null,null,null,null,null,null,null,null,null,null,null,null,null,null,null,null,null,null,null,null,null,null,null,null,null,null,null,null,null,{"$f":"'Раздел 2'!C183","v":0}]
[null,"Служебно-прикладной спорт ФТС России","175",0,0,0,0,0,0,null,null,null,null,null,null,null,null,null,null,null,null,null,null,null,null,null,null,null,null,null,null,null,null,null,null,null,null,null,null,null,null,null,null,null,null,null,null,null,null,null,null,null,null,null,null,null,null,null,null,null,null,{"$f":"'Раздел 2'!C184","v":0}]
[null,"Служебное двоеборье","176",0,0,0,0,0,0,null,null,null,null,null,null,null,null,null,null,null,null,null,null,null,null,null,null,null,null,null,null,null,null,null,null,null,null,null,null,null,null,null,null,null,null,null,null,null,null,null,null,null,null,null,null,null,null,null,null,null,null,{"$f":"'Раздел 2'!C185","v":0}]
[null,"Служебное единоборство","177",0,0,0,0,0,0,null,null,null,null,null,null,null,null,null,null,null,null,null,null,null,null,null,null,null,null,null,null,null,null,null,null,null,null,null,null,null,null,null,null,null,null,null,null,null,null,null,null,null,null,null,null,null,null,null,null,null,null,{"$f":"'Раздел 2'!C186","v":0}]
[null,"Служебное многоборье","178",0,0,0,0,0,0,null,null,null,null,null,null,null,null,null,null,null,null,null,null,null,null,null,null,null,null,null,null,null,null,null,null,null,null,null,null,null,null,null,null,null,null,null,null,null,null,null,null,null,null,null,null,null,null,null,null,null,null,{"$f":"'Раздел 2'!C187","v":0}]
[null,"Служебный биатлон","179",0,0,0,0,0,0,null,null,null,null,null,null,null,null,null,null,null,null,null,null,null,null,null,null,null,null,null,null,null,null,null,null,null,null,null,null,null,null,null,null,null,null,null,null,null,null,null,null,null,null,null,null,null,null,null,null,null,null,{"$f":"'Раздел 2'!C188","v":0}]
[null,"Спасательный спорт","180",0,0,0,0,0,0,null,null,null,null,null,null,null,null,null,null,null,null,null,null,null,null,null,null,null,null,null,null,null,null,null,null,null,null,null,null,null,null,null,null,null,null,null,null,null,null,null,null,null,null,null,null,null,null,null,null,null,null,{"$f":"'Раздел 2'!C189","v":0}]
[null,"Стрельба из боевого ручного стрелкового оружия","181",0,0,0,0,0,0,null,null,null,null,null,null,null,null,null,null,null,null,null,null,null,null,null,null,null,null,null,null,null,null,null,null,null,null,null,null,null,null,null,null,null,null,null,null,null,null,null,null,null,null,null,null,null,null,null,null,null,null,{"$f":"'Раздел 2'!C190","v":0}]
[null,"Стрельба из штатного или табельного оружия","182",0,0,0,0,0,0,null,null,null,null,null,null,null,null,null,null,null,null,null,null,null,null,null,null,null,null,null,null,null,null,null,null,null,null,null,null,null,null,null,null,null,null,null,null,null,null,null,null,null,null,null,null,null,null,null,null,null,null,{"$f":"'Раздел 2'!C191","v":0}]
[null,"Стрельба на дальние дистанции","183",0,0,0,0,0,0,null,null,null,null,null,null,null,null,null,null,null,null,null,null,null,null,null,null,null,null,null,null,null,null,null,null,null,null,null,null,null,null,null,null,null,null,null,null,null,null,null,null,null,null,null,null,null,null,null,null,null,null,{"$f":"'Раздел 2'!C192","v":0}]
[null,"Смешанное боевое единоборство (ММА)","184",0,0,0,0,0,0,null,null,null,null,null,null,null,null,null,null,null,null,null,null,null,null,null,null,null,null,null,null,null,null,null,null,null,null,null,null,null,null,null,null,null,null,null,null,null,null,null,null,null,null,null,null,null,null,null,null,null,null,{"$f":"'Раздел 2'!C193","v":0}]
[null,"Сноуборд","185",0,0,0,0,0,0,null,null,null,null,null,null,null,null,null,null,null,null,null,null,null,null,null,null,null,null,null,null,null,null,null,null,null,null,null,null,null,null,null,null,null,null,null,null,null,null,null,null,null,null,null,null,null,null,null,null,null,null,{"$f":"'Раздел 2'!C194","v":0}]
[null,"Современное пятиборье","186",0,0,0,0,0,0,null,null,null,null,null,null,null,null,null,null,null,null,null,null,null,null,null,null,null,null,null,null,null,null,null,null,null,null,null,null,null,null,null,null,null,null,null,null,null,null,null,null,null,null,null,null,null,null,null,null,null,null,{"$f":"'Раздел 2'!C195","v":0}]
[null,"Софтбол","187",0,0,0,0,0,0,null,null,null,null,null,null,null,null,null,null,null,null,null,null,null,null,null,null,null,null,null,null,null,null,null,null,null,null,null,null,null,null,null,null,null,null,null,null,null,null,null,null,null,null,null,null,null,null,null,null,null,null,{"$f":"'Раздел 2'!C196","v":0}]
[null,"Спорт сверхлегкой авиации","188",0,0,0,0,0,0,null,null,null,null,null,null,null,null,null,null,null,null,null,null,null,null,null,null,null,null,null,null,null,null,null,null,null,null,null,null,null,null,null,null,null,null,null,null,null,null,null,null,null,null,null,null,null,null,null,null,null,null,{"$f":"'Раздел 2'!C197","v":0}]
[null,"Спортивная акробатика","189",0,0,0,0,0,0,null,null,null,null,null,null,null,null,null,null,null,null,null,null,null,null,null,null,null,null,null,null,null,null,null,null,null,null,null,null,null,null,null,null,null,null,null,null,null,null,null,null,null,null,null,null,null,null,null,null,null,null,{"$f":"'Раздел 2'!C198","v":1}]
[null,"Спортивная аэробика","190",0,0,0,0,0,0,null,null,null,null,null,null,null,null,null,null,null,null,null,null,null,null,null,null,null,null,null,null,null,null,null,null,null,null,null,null,null,null,null,null,null,null,null,null,null,null,null,null,null,null,null,null,null,null,null,null,null,null,{"$f":"'Раздел 2'!C199","v":0}]
[null,"Спортивная борьба - всего","191",0,0,0,0,0,0,{"$f":"SUM(J201:J205)","v":0},{"$f":"SUM(K201:K205)","v":0},0,0,0,0,0,0,0,0,0,0,0,0,0,0,0,0,0,0,0,0,0,0,0,0,0,0,0,0,0,0,0,0,0,0,0,0,0,0,0,0,0,0,0,0,0,0,0,0,null,null,{"$f":"'Раздел 2'!C200","v":0}]
[null,"в том числе:\nВольная борьба","192",0,0,0,0,0,0,null,null,null,null,null,null,null,null,null,null,null,null,null,null,null,null,null,null,null,null,null,null,null,null,null,null,null,null,null,null,null,null,null,null,null,null,null,null,null,null,null,null,null,null,null,null,null,null,null,null,null,null,{"$f":"'Раздел 2'!C201","v":0}]
[null,"Греко-римская борьба","193",0,0,0,0,0,0,null,null,null,null,null,null,null,null,null,null,null,null,null,null,null,null,null,null,null,null,null,null,null,null,null,null,null,null,null,null,null,null,null,null,null,null,null,null,null,null,null,null,null,null,null,null,null,null,null,null,null,null,{"$f":"'Раздел 2'!C202","v":0}]
[null,"Грэпплинг","194",{"$f":"SUM(E203:G203)","v":0},{"$f":"SUM(J203,O203,T203,Y203,AD203,AI203,AN203,AS203,AX203,BC203)","v":0},{"$f":"SUM(K203,P203,U203,Z203,AE203,AJ203,AO203,AT203,AY203,BD203)","v":0},{"$f":"SUM(L203,Q203,V203,AA203,AF203,AK203,AP203,AU203,AZ203,BE203)","v":0},{"$f":"SUM(M203,R203,W203,AB203,AG203,AL203,AQ203,AV203,BA203,BF203)","v":0},{"$f":"SUM(N203,S203,X203,AC203,AH203,AM203,AR203,AW203,BB203,BG203)","v":0},null,null,null,null,null,null,null,null,null,null,null,null,null,null,null,null,null,null,null,null,null,null,null,null,null,null,null,null,null,null,null,null,null,null,null,null,null,null,null,null,null,null,null,null,null,null,null,null,null,null,null,null,{"$f":"'Раздел 2'!C203","v":0}]
[null,"Грэпплинг-ги","195",0,0,0,0,0,0,null,null,null,null,null,null,null,null,null,null,null,null,null,null,null,null,null,null,null,null,null,null,null,null,null,null,null,null,null,null,null,null,null,null,null,null,null,null,null,null,null,null,null,null,null,null,null,null,null,null,null,null,{"$f":"'Раздел 2'!C204","v":0}]
[null,"Панкратион","196",0,0,0,0,0,0,null,null,null,null,null,null,null,null,null,null,null,null,null,null,null,null,null,null,null,null,null,null,null,null,null,null,null,null,null,null,null,null,null,null,null,null,null,null,null,null,null,null,null,null,null,null,null,null,null,null,null,null,{"$f":"'Раздел 2'!C205","v":0}]
[null,"Спортивная гимнастика","197",0,0,0,0,0,0,null,null,null,null,null,null,null,null,null,null,null,null,null,null,null,null,null,null,null,null,null,null,null,null,null,null,null,null,null,null,null,null,null,null,null,null,null,null,null,null,null,null,null,null,null,null,null,null,null,null,null,null,{"$f":"'Раздел 2'!C206","v":0}]
[null,"Спортивная йога","198",0,0,0,0,0,0,null,null,null,null,null,null,null,null,null,null,null,null,null,null,null,null,null,null,null,null,null,null,null,null,null,null,null,null,null,null,null,null,null,null,null,null,null,null,null,null,null,null,null,null,null,null,null,null,null,null,null,null,{"$f":"'Раздел 2'!C207","v":0}]
[null,"Спортивно-прикладное собаководство","199",0,0,0,0,0,0,null,null,null,null,null,null,null,null,null,null,null,null,null,null,null,null,null,null,null,null,null,null,null,null,null,null,null,null,null,null,null,null,null,null,null,null,null,null,null,null,null,null,null,null,null,null,null,null,null,null,null,null,{"$f":"'Раздел 2'!C208","v":0}]
[null,"Спортивное программирование","200",0,0,0,0,0,0,null,null,null,null,null,null,null,null,null,null,null,null,null,null,null,null,null,null,null,null,null,null,null,null,null,null,null,null,null,null,null,null,null,null,null,null,null,null,null,null,null,null,null,null,null,null,null,null,null,null,null,null,{"$f":"'Раздел 2'!C209","v":0}]
[null,"Спортивное метание ножа","201",0,0,0,0,0,0,null,null,null,null,null,null,null,null,null,null,null,null,null,null,null,null,null,null,null,null,null,null,null,null,null,null,null,null,null,null,null,null,null,null,null,null,null,null,null,null,null,null,null,null,null,null,null,null,null,null,null,null,{"$f":"'Раздел 2'!C210","v":0}]
[null,"Спортивное ориентирование","202",0,0,0,0,0,0,null,null,null,null,null,null,null,null,null,null,null,null,null,null,null,null,null,null,null,null,null,null,null,null,null,null,null,null,null,null,null,null,null,null,null,null,null,null,null,null,null,null,null,null,null,null,null,null,null,null,null,null,{"$f":"'Раздел 2'!C211","v":0}]
[null,"Спортивный бридж","203",0,0,0,0,0,0,null,null,null,null,null,null,null,null,null,null,null,null,null,null,null,null,null,null,null,null,null,null,null,null,null,null,null,null,null,null,null,null,null,null,null,null,null,null,null,null,null,null,null,null,null,null,null,null,null,null,null,null,{"$f":"'Раздел 2'!C212","v":0}]
[null,"Спортивный туризм","204",0,0,0,0,0,0,null,null,null,null,null,null,null,null,null,null,null,null,null,null,null,null,null,null,null,null,null,null,null,null,null,null,null,null,null,null,null,null,null,null,null,null,null,null,null,null,null,null,null,null,null,null,null,null,null,null,null,null,{"$f":"'Раздел 2'!C213","v":0}]
[null,"Стендовая стрельба - всего","205",0,0,0,0,0,0,{"$f":"SUM(J215:J218)","v":0},{"$f":"SUM(K215:K218)","v":0},0,0,0,0,0,0,0,0,0,0,0,0,0,0,0,0,0,0,0,0,0,0,0,0,0,0,0,0,0,0,0,0,0,0,0,0,0,0,0,0,0,0,0,0,0,0,0,0,null,null,{"$f":"'Раздел 2'!C214","v":0}]
[null,"в том числе:\nТрап","206",0,0,0,0,0,0,null,null,null,null,null,null,null,null,null,null,null,null,null,null,null,null,null,null,null,null,null,null,null,null,null,null,null,null,null,null,null,null,null,null,null,null,null,null,null,null,null,null,null,null,null,null,null,null,null,null,null,null,{"$f":"'Раздел 2'!C215","v":0}]
[null,"Скит","207",0,0,0,0,0,0,null,null,null,null,null,null,null,null,null,null,null,null,null,null,null,null,null,null,null,null,null,null,null,null,null,null,null,null,null,null,null,null,null,null,null,null,null,null,null,null,null,null,null,null,null,null,null,null,null,null,null,null,{"$f":"'Раздел 2'!C216","v":0}]
[null,"Дубль-трап","208",0,0,0,0,0,0,null,null,null,null,null,null,null,null,null,null,null,null,null,null,null,null,null,null,null,null,null,null,null,null,null,null,null,null,null,null,null,null,null,null,null,null,null,null,null,null,null,null,null,null,null,null,null,null,null,null,null,null,{"$f":"'Раздел 2'!C217","v":0}]
[null,"Спортинг","209",0,0,0,0,0,0,null,null,null,null,null,null,null,null,null,null,null,null,null,null,null,null,null,null,null,null,null,null,null,null,null,null,null,null,null,null,null,null,null,null,null,null,null,null,null,null,null,null,null,null,null,null,null,null,null,null,null,null,{"$f":"'Раздел 2'!C218","v":0}]
[null,"Страйкбол","210",0,0,0,0,0,0,null,null,null,null,null,null,null,null,null,null,null,null,null,null,null,null,null,null,null,null,null,null,null,null,null,null,null,null,null,null,null,null,null,null,null,null,null,null,null,null,null,null,null,null,null,null,null,null,null,null,null,null,{"$f":"'Раздел 2'!C219","v":0}]
[null,"Стрельба из арбалета","211",0,0,0,0,0,0,null,null,null,null,null,null,null,null,null,null,null,null,null,null,null,null,null,null,null,null,null,null,null,null,null,null,null,null,null,null,null,null,null,null,null,null,null,null,null,null,null,null,null,null,null,null,null,null,null,null,null,null,{"$f":"'Раздел 2'!C220","v":0}]
[null,"Стрельба из лука - всего","212",0,0,0,0,0,0,{"$f":"SUM(J222:J224)","v":0},{"$f":"SUM(K222:K224)","v":0},0,0,0,0,0,0,0,0,0,0,0,0,0,0,0,0,0,0,0,0,0,0,0,0,0,0,0,0,0,0,0,0,0,0,0,0,0,0,0,0,0,0,0,0,0,0,0,0,null,null,{"$f":"'Раздел 2'!C221","v":0}]
[null,"в том числе:\nКлассический лук","213",0,0,0,0,0,0,null,null,null,null,null,null,null,null,null,null,null,null,null,null,null,null,null,null,null,null,null,null,null,null,null,null,null,null,null,null,null,null,null,null,null,null,null,null,null,null,null,null,null,null,null,null,null,null,null,null,null,null,{"$f":"'Раздел 2'!C222","v":0}]
[null,"   Блочный лук","214",0,0,0,0,0,0,null,null,null,null,null,null,null,null,null,null,null,null,null,null,null,null,null,null,null,null,null,null,null,null,null,null,null,null,null,null,null,null,null,null,null,null,null,null,null,null,null,null,null,null,null,null,null,null,null,null,null,null,{"$f":"'Раздел 2'!C223","v":0}]
[null,"   Ачери ","215",0,0,0,0,0,0,null,null,null,null,null,null,null,null,null,null,null,null,null,null,null,null,null,null,null,null,null,null,null,null,null,null,null,null,null,null,null,null,null,null,null,null,null,null,null,null,null,null,null,null,null,null,null,null,null,null,null,null,{"$f":"'Раздел 2'!C224","v":0}]
[null,"Судомодельный спорт","216",0,0,0,0,0,0,null,null,null,null,null,null,null,null,null,null,null,null,null,null,null,null,null,null,null,null,null,null,null,null,null,null,null,null,null,null,null,null,null,null,null,null,null,null,null,null,null,null,null,null,null,null,null,null,null,null,null,null,{"$f":"'Раздел 2'!C225","v":0}]
[null,"Сумо","217",0,0,0,0,0,0,null,null,null,null,null,null,null,null,null,null,null,null,null,null,null,null,null,null,null,null,null,null,null,null,null,null,null,null,null,null,null,null,null,null,null,null,null,null,null,null,null,null,null,null,null,null,null,null,null,null,null,null,{"$f":"'Раздел 2'!C226","v":0}]
[null,"Таврели","218",0,0,0,0,0,0,null,null,null,null,null,null,null,null,null,null,null,null,null,null,null,null,null,null,null,null,null,null,null,null,null,null,null,null,null,null,null,null,null,null,null,null,null,null,null,null,null,null,null,null,null,null,null,null,null,null,null,null,{"$f":"'Раздел 2'!C227","v":0}]
[null,"Танцевальный спорт - всего","219",0,0,0,0,0,0,{"$f":"SUM(J229:J230)","v":0},{"$f":"SUM(K229:K230)","v":0},0,0,0,0,0,0,0,0,0,0,0,0,0,0,0,0,0,0,0,0,0,0,0,0,0,0,0,0,0,0,0,0,0,0,0,0,0,0,0,0,0,0,0,0,0,0,0,0,null,null,{"$f":"'Раздел 2'!C228","v":0}]
[null,"в том числе:\nТанцевальный спорт","220",0,0,0,0,0,0,null,null,null,null,null,null,null,null,null,null,null,null,null,null,null,null,null,null,null,null,null,null,null,null,null,null,null,null,null,null,null,null,null,null,null,null,null,null,null,null,null,null,null,null,null,null,null,null,null,null,null,null,{"$f":"'Раздел 2'!C229","v":0}]
[null,"Брейкинг","221",0,0,0,0,0,0,null,null,null,null,null,null,null,null,null,null,null,null,null,null,null,null,null,null,null,null,null,null,null,null,null,null,null,null,null,null,null,null,null,null,null,null,null,null,null,null,null,null,null,null,null,null,null,null,null,null,null,null,{"$f":"'Раздел 2'!C230","v":0}]
[null,"Теннис","222",0,0,0,0,0,0,null,null,null,null,null,null,null,null,null,null,null,null,null,null,null,null,null,null,null,null,null,null,null,null,null,null,null,null,null,null,null,null,null,null,null,null,null,null,null,null,null,null,null,null,null,null,null,null,null,null,null,null,{"$f":"'Раздел 2'!C231","v":0}]
[null,"Триатлон","223",0,0,0,0,0,0,null,null,null,null,null,null,null,null,null,null,null,null,null,null,null,null,null,null,null,null,null,null,null,null,null,null,null,null,null,null,null,null,null,null,null,null,null,null,null,null,null,null,null,null,null,null,null,null,null,null,null,null,{"$f":"'Раздел 2'!C232","v":0}]
[null,"Тхэквондо (ВТФ)","224",0,0,0,0,0,0,null,null,null,null,null,null,null,null,null,null,null,null,null,null,null,null,null,null,null,null,null,null,null,null,null,null,null,null,null,null,null,null,null,null,null,null,null,null,null,null,null,null,null,null,null,null,null,null,null,null,null,null,{"$f":"'Раздел 2'!C233","v":1}]
[null,"Тхэквондо ГТФ","225",0,0,0,0,0,0,null,null,null,null,null,null,null,null,null,null,null,null,null,null,null,null,null,null,null,null,null,null,null,null,null,null,null,null,null,null,null,null,null,null,null,null,null,null,null,null,null,null,null,null,null,null,null,null,null,null,null,null,{"$f":"'Раздел 2'!C234","v":0}]
[null,"Тхэквондо ИТФ","226",0,0,0,0,0,0,null,null,null,null,null,null,null,null,null,null,null,null,null,null,null,null,null,null,null,null,null,null,null,null,null,null,null,null,null,null,null,null,null,null,null,null,null,null,null,null,null,null,null,null,null,null,null,null,null,null,null,null,{"$f":"'Раздел 2'!C235","v":0}]
[null,"Тхэквондо МФТ","227",0,0,0,0,0,0,null,null,null,null,null,null,null,null,null,null,null,null,null,null,null,null,null,null,null,null,null,null,null,null,null,null,null,null,null,null,null,null,null,null,null,null,null,null,null,null,null,null,null,null,null,null,null,null,null,null,null,null,{"$f":"'Раздел 2'!C236","v":0}]
[null,"Тяжелая атлетика","228",0,0,0,0,0,0,null,null,null,null,null,null,null,null,null,null,null,null,null,null,null,null,null,null,null,null,null,null,null,null,null,null,null,null,null,null,null,null,null,null,null,null,null,null,null,null,null,null,null,null,null,null,null,null,null,null,null,null,{"$f":"'Раздел 2'!C237","v":0}]
[null,"Универсальный бой","229",0,0,0,0,0,0,null,null,null,null,null,null,null,null,null,null,null,null,null,null,null,null,null,null,null,null,null,null,null,null,null,null,null,null,null,null,null,null,null,null,null,null,null,null,null,null,null,null,null,null,null,null,null,null,null,null,null,null,{"$f":"'Раздел 2'!C238","v":0}]
[null,"Ушу","230",0,0,0,0,0,0,null,null,null,null,null,null,null,null,null,null,null,null,null,null,null,null,null,null,null,null,null,null,null,null,null,null,null,null,null,null,null,null,null,null,null,null,null,null,null,null,null,null,null,null,null,null,null,null,null,null,null,null,{"$f":"'Раздел 2'!C239","v":0}]
[null,"Фехтование - всего","231",0,0,0,0,0,0,{"$f":"SUM(J241:J244)","v":0},{"$f":"SUM(K241:K244)","v":0},0,0,0,0,0,0,0,0,0,0,0,0,0,0,0,0,0,0,0,0,0,0,0,0,0,0,0,0,0,0,0,0,0,0,0,0,0,0,0,0,0,0,0,0,0,0,0,0,null,null,{"$f":"'Раздел 2'!C240","v":0}]
[null,"в том числе:\nРапира","232",0,0,0,0,0,0,null,null,null,null,null,null,null,null,null,null,null,null,null,null,null,null,null,null,null,null,null,null,null,null,null,null,null,null,null,null,null,null,null,null,null,null,null,null,null,null,null,null,null,null,null,null,null,null,null,null,null,null,{"$f":"'Раздел 2'!C241","v":0}]
[null,"Сабля","233",0,0,0,0,0,0,null,null,null,null,null,null,null,null,null,null,null,null,null,null,null,null,null,null,null,null,null,null,null,null,null,null,null,null,null,null,null,null,null,null,null,null,null,null,null,null,null,null,null,null,null,null,null,null,null,null,null,null,{"$f":"'Раздел 2'!C242","v":0}]
[null,"Шпага","234",0,0,0,0,0,0,null,null,null,null,null,null,null,null,null,null,null,null,null,null,null,null,null,null,null,null,null,null,null,null,null,null,null,null,null,null,null,null,null,null,null,null,null,null,null,null,null,null,null,null,null,null,null,null,null,null,null,null,{"$f":"'Раздел 2'!C243","v":0}]
[null,"Арт-фехтование","235",0,0,0,0,0,0,null,null,null,null,null,null,null,null,null,null,null,null,null,null,null,null,null,null,null,null,null,null,null,null,null,null,null,null,null,null,null,null,null,null,null,null,null,null,null,null,null,null,null,null,null,null,null,null,null,null,null,null,{"$f":"'Раздел 2'!C244","v":0}]
[null,"Фигурное катание на коньках","236",0,0,0,0,0,0,null,null,null,null,null,null,null,null,null,null,null,null,null,null,null,null,null,null,null,null,null,null,null,null,null,null,null,null,null,null,null,null,null,null,null,null,null,null,null,null,null,null,null,null,null,null,null,null,null,null,null,null,{"$f":"'Раздел 2'!C245","v":0}]
[null,"Фиджитал спорт (функционально-цифровй спорт)","237",0,0,0,0,0,0,null,null,null,null,null,null,null,null,null,null,null,null,null,null,null,null,null,null,null,null,null,null,null,null,null,null,null,null,null,null,null,null,null,null,null,null,null,null,null,null,null,null,null,null,null,null,null,null,null,null,null,null,{"$f":"'Раздел 2'!C246","v":0}]
[null,"Фитнес-аэробика","238",0,0,0,0,0,0,null,null,null,null,null,null,null,null,null,null,null,null,null,null,null,null,null,null,null,null,null,null,null,null,null,null,null,null,null,null,null,null,null,null,null,null,null,null,null,null,null,null,null,null,null,null,null,null,null,null,null,null,{"$f":"'Раздел 2'!C247","v":0}]
[null,"Флаинг диск","239",0,0,0,0,0,0,null,null,null,null,null,null,null,null,null,null,null,null,null,null,null,null,null,null,null,null,null,null,null,null,null,null,null,null,null,null,null,null,null,null,null,null,null,null,null,null,null,null,null,null,null,null,null,null,null,null,null,null,{"$f":"'Раздел 2'!C248","v":0}]
[null,"Флорбол","240",0,0,0,0,0,0,null,null,null,null,null,null,null,null,null,null,null,null,null,null,null,null,null,null,null,null,null,null,null,null,null,null,null,null,null,null,null,null,null,null,null,null,null,null,null,null,null,null,null,null,null,null,null,null,null,null,null,null,{"$f":"'Раздел 2'!C249","v":0}]
[null,"Фристайл - всего","241",0,0,0,0,0,0,{"$f":"SUM(J251:J256)","v":0},{"$f":"SUM(K251:K256)","v":0},0,0,0,0,0,0,0,0,0,0,0,0,0,0,0,0,0,0,0,0,0,0,0,0,0,0,0,0,0,0,0,0,0,0,0,0,0,0,0,0,0,0,0,0,0,0,0,0,null,null,{"$f":"'Раздел 2'!C250","v":0}]
[null,"в том числе:\nАкробатика","242",0,0,0,0,0,0,null,null,null,null,null,null,null,null,null,null,null,null,null,null,null,null,null,null,null,null,null,null,null,null,null,null,null,null,null,null,null,null,null,null,null,null,null,null,null,null,null,null,null,null,null,null,null,null,null,null,null,null,{"$f":"'Раздел 2'!C251","v":0}]
[null,"Биг-эйр","243",0,0,0,0,0,0,null,null,null,null,null,null,null,null,null,null,null,null,null,null,null,null,null,null,null,null,null,null,null,null,null,null,null,null,null,null,null,null,null,null,null,null,null,null,null,null,null,null,null,null,null,null,null,null,null,null,null,null,{"$f":"'Раздел 2'!C252","v":0}]
[null,"Могул","244",0,0,0,0,0,0,null,null,null,null,null,null,null,null,null,null,null,null,null,null,null,null,null,null,null,null,null,null,null,null,null,null,null,null,null,null,null,null,null,null,null,null,null,null,null,null,null,null,null,null,null,null,null,null,null,null,null,null,{"$f":"'Раздел 2'!C253","v":0}]
[null,"Ски-кросс","245",0,0,0,0,0,0,null,null,null,null,null,null,null,null,null,null,null,null,null,null,null,null,null,null,null,null,null,null,null,null,null,null,null,null,null,null,null,null,null,null,null,null,null,null,null,null,null,null,null,null,null,null,null,null,null,null,null,null,{"$f":"'Раздел 2'!C254","v":0}]
[null,"Хаф-пайп","246",0,0,0,0,0,0,null,null,null,null,null,null,null,null,null,null,null,null,null,null,null,null,null,null,null,null,null,null,null,null,null,null,null,null,null,null,null,null,null,null,null,null,null,null,null,null,null,null,null,null,null,null,null,null,null,null,null,null,{"$f":"'Раздел 2'!C255","v":0}]
[null,"Слоуп-стайл","247",0,0,0,0,0,0,null,null,null,null,null,null,null,null,null,null,null,null,null,null,null,null,null,null,null,null,null,null,null,null,null,null,null,null,null,null,null,null,null,null,null,null,null,null,null,null,null,null,null,null,null,null,null,null,null,null,null,null,{"$f":"'Раздел 2'!C256","v":0}]
[null,"Функциональное многоборье","248",0,0,0,0,0,0,null,null,null,null,null,null,null,null,null,null,null,null,null,null,null,null,null,null,null,null,null,null,null,null,null,null,null,null,null,null,null,null,null,null,null,null,null,null,null,null,null,null,null,null,null,null,null,null,null,null,null,null,{"$f":"'Раздел 2'!C257","v":0}]
[null,"Футбол - всего","249",0,0,0,0,0,0,{"$f":"SUM(J259:J264)","v":0},{"$f":"SUM(K259:K264)","v":0},0,0,0,0,0,0,0,0,0,0,0,0,0,0,0,0,0,0,0,0,0,0,0,0,0,0,0,0,0,0,0,0,0,0,0,0,0,0,0,0,0,0,0,0,0,0,0,0,null,null,{"$f":"'Раздел 2'!C258","v":0}]
[null,"в том числе:\nФутбол (муж.)","250",0,0,0,0,0,0,null,null,null,null,null,null,null,null,null,null,null,null,null,null,null,null,null,null,null,null,null,null,null,null,null,null,null,null,null,null,null,null,null,null,null,null,null,null,null,null,null,null,null,null,null,null,null,null,null,null,null,null,{"$f":"'Раздел 2'!C259","v":0}]
[null,"Футбол (жен.)","251",0,0,0,0,0,0,null,null,null,null,null,null,null,null,null,null,null,null,null,null,null,null,null,null,null,null,null,null,null,null,null,null,null,null,null,null,null,null,null,null,null,null,null,null,null,null,null,null,null,null,null,null,null,null,null,null,null,null,{"$f":"'Раздел 2'!C260","v":0}]
[null,"Мини-футбол (футзал)","252",0,0,0,0,0,0,null,null,null,null,null,null,null,null,null,null,null,null,null,null,null,null,null,null,null,null,null,null,null,null,null,null,null,null,null,null,null,null,null,null,null,null,null,null,null,null,null,null,null,null,null,null,null,null,null,null,null,null,{"$f":"'Раздел 2'!C261","v":0}]
[null,"Пляжный футбол","253",0,0,0,0,0,0,null,null,null,null,null,null,null,null,null,null,null,null,null,null,null,null,null,null,null,null,null,null,null,null,null,null,null,null,null,null,null,null,null,null,null,null,null,null,null,null,null,null,null,null,null,null,null,null,null,null,null,null,{"$f":"'Раздел 2'!C262","v":0}]
[null,"Футбол 6х6, 7х7, 8х8","254",0,0,0,0,0,0,null,null,null,null,null,null,null,null,null,null,null,null,null,null,null,null,null,null,null,null,null,null,null,null,null,null,null,null,null,null,null,null,null,null,null,null,null,null,null,null,null,null,null,null,null,null,null,null,null,null,null,null,{"$f":"'Раздел 2'!C263","v":0}]
[null,"Интерактивный футбол","255",0,0,0,0,0,0,null,null,null,null,null,null,null,null,null,null,null,null,null,null,null,null,null,null,null,null,null,null,null,null,null,null,null,null,null,null,null,null,null,null,null,null,null,null,null,null,null,null,null,null,null,null,null,null,null,null,null,null,{"$f":"'Раздел 2'!C264","v":0}]
[null,"Хапкидо","256",0,0,0,0,0,0,null,null,null,null,null,null,null,null,null,null,null,null,null,null,null,null,null,null,null,null,null,null,null,null,null,null,null,null,null,null,null,null,null,null,null,null,null,null,null,null,null,null,null,null,null,null,null,null,null,null,null,null,{"$f":"'Раздел 2'!C265","v":0}]
[null,"Хапсагай","257",0,0,0,0,0,0,null,null,null,null,null,null,null,null,null,null,null,null,null,null,null,null,null,null,null,null,null,null,null,null,null,null,null,null,null,null,null,null,null,null,null,null,null,null,null,null,null,null,null,null,null,null,null,null,null,null,null,null,{"$f":"'Раздел 2'!C266","v":0}]
[null,"Хоккей - всего","258",{"$f":"SUM(E267:G267)","v":0},{"$f":"SUM(J267,O267,T267,Y267,AD267,AI267,AN267,AS267,AX267,BC267)","v":0},{"$f":"SUM(K267,P267,U267,Z267,AE267,AJ267,AO267,AT267,AY267,BD267)","v":0},{"$f":"SUM(L267,Q267,V267,AA267,AF267,AK267,AP267,AU267,AZ267,BE267)","v":0},{"$f":"SUM(M267,R267,W267,AB267,AG267,AL267,AQ267,AV267,BA267,BF267)","v":0},{"$f":"SUM(N267,S267,X267,AC267,AH267,AM267,AR267,AW267,BB267,BG267)","v":0},{"$f":"SUM(J268:J269)","v":0},{"$f":"SUM(K268:K269)","v":0},0,0,0,0,0,0,0,0,0,0,0,0,0,0,0,0,0,0,0,0,0,0,0,0,0,0,0,0,0,0,0,0,0,0,0,0,0,0,0,0,0,0,0,0,0,0,0,0,null,null,{"$f":"'Раздел 2'!C267","v":0}]
[null,"в том числе:\nХоккей (муж.)","259",0,0,0,0,0,0,null,null,null,null,null,null,null,null,null,null,null,null,null,null,null,null,null,null,null,null,null,null,null,null,null,null,null,null,null,null,null,null,null,null,null,null,null,null,null,null,null,null,null,null,null,null,null,null,null,null,null,null,{"$f":"'Раздел 2'!C268","v":0}]
[null,"Хоккей (жен.)","260",0,0,0,0,0,0,null,null,null,null,null,null,null,null,null,null,null,null,null,null,null,null,null,null,null,null,null,null,null,null,null,null,null,null,null,null,null,null,null,null,null,null,null,null,null,null,null,null,null,null,null,null,null,null,null,null,null,null,{"$f":"'Раздел 2'!C269","v":0}]
[null,"Хоккей на траве - всего","261",0,0,0,0,0,0,{"$f":"SUM(J271:J273)","v":0},{"$f":"SUM(K271:K273)","v":0},0,0,0,0,0,0,0,0,0,0,0,0,0,0,0,0,0,0,0,0,0,0,0,0,0,0,0,0,0,0,0,0,0,0,0,0,0,0,0,0,0,0,0,0,0,0,0,0,null,null,{"$f":"'Раздел 2'!C270","v":0}]
[null,"в том числе:\nХоккей на траве (муж.)","262",0,0,0,0,0,0,null,null,null,null,null,null,null,null,null,null,null,null,null,null,null,null,null,null,null,null,null,null,null,null,null,null,null,null,null,null,null,null,null,null,null,null,null,null,null,null,null,null,null,null,null,null,null,null,null,null,null,null,{"$f":"'Раздел 2'!C271","v":0}]
[null,"Хоккей на траве (жен.)","263",0,0,0,0,0,0,null,null,null,null,null,null,null,null,null,null,null,null,null,null,null,null,null,null,null,null,null,null,null,null,null,null,null,null,null,null,null,null,null,null,null,null,null,null,null,null,null,null,null,null,null,null,null,null,null,null,null,null,{"$f":"'Раздел 2'!C272","v":0}]
[null,"Индорхоккей","264",0,0,0,0,0,0,null,null,null,null,null,null,null,null,null,null,null,null,null,null,null,null,null,null,null,null,null,null,null,null,null,null,null,null,null,null,null,null,null,null,null,null,null,null,null,null,null,null,null,null,null,null,null,null,null,null,null,null,{"$f":"'Раздел 2'!C273","v":0}]
[null,"Хоккей с мячом","265",0,0,0,0,0,0,null,null,null,null,null,null,null,null,null,null,null,null,null,null,null,null,null,null,null,null,null,null,null,null,null,null,null,null,null,null,null,null,null,null,null,null,null,null,null,null,null,null,null,null,null,null,null,null,null,null,null,null,{"$f":"'Раздел 2'!C274","v":0}]
[null,"Художественная гимнастика","266",0,0,0,0,0,0,null,null,null,null,null,null,null,null,null,null,null,null,null,null,null,null,null,null,null,null,null,null,null,null,null,null,null,null,null,null,null,null,null,null,null,null,null,null,null,null,null,null,null,null,null,null,null,null,null,null,null,null,{"$f":"'Раздел 2'!C275","v":0}]
[null,"Хуреш","267",0,0,0,0,0,0,null,null,null,null,null,null,null,null,null,null,null,null,null,null,null,null,null,null,null,null,null,null,null,null,null,null,null,null,null,null,null,null,null,null,null,null,null,null,null,null,null,null,null,null,null,null,null,null,null,null,null,null,{"$f":"'Раздел 2'!C276","v":0}]
[null,"Чир спорт","268",0,0,0,0,0,0,null,null,null,null,null,null,null,null,null,null,null,null,null,null,null,null,null,null,null,null,null,null,null,null,null,null,null,null,null,null,null,null,null,null,null,null,null,null,null,null,null,null,null,null,null,null,null,null,null,null,null,null,{"$f":"'Раздел 2'!C277","v":0}]
[null,"Шахматы","269",0,0,0,0,0,0,null,null,null,null,null,null,null,null,null,null,null,null,null,null,null,null,null,null,null,null,null,null,null,null,null,null,null,null,null,null,null,null,null,null,null,null,null,null,null,null,null,null,null,null,null,null,null,null,null,null,null,null,{"$f":"'Раздел 2'!C278","v":0}]
[null,"Шашки","270",0,0,0,0,0,0,null,null,null,null,null,null,null,null,null,null,null,null,null,null,null,null,null,null,null,null,null,null,null,null,null,null,null,null,null,null,null,null,null,null,null,null,null,null,null,null,null,null,null,null,null,null,null,null,null,null,null,null,{"$f":"'Раздел 2'!C279","v":0}]
[null,"Шодсанлат","271",0,0,0,0,0,0,null,null,null,null,null,null,null,null,null,null,null,null,null,null,null,null,null,null,null,null,null,null,null,null,null,null,null,null,null,null,null,null,null,null,null,null,null,null,null,null,null,null,null,null,null,null,null,null,null,null,null,null,{"$f":"'Раздел 2'!C280","v":0}]
[null,"Эстетическая гимнастика","272",0,0,0,0,0,0,null,null,null,null,null,null,null,null,null,null,null,null,null,null,null,null,null,null,null,null,null,null,null,null,null,null,null,null,null,null,null,null,null,null,null,null,null,null,null,null,null,null,null,null,null,null,null,null,null,null,null,null,{"$f":"'Раздел 2'!C281","v":0}]
[null,"Якутские национальные прыжки","273",0,0,0,0,{"$f":"SUM(M282,R282,W282,AB282,AG282,AL282,AQ282,AV282,BA282,BF282)","v":0},{"$f":"SUM(N282,S282,X282,AC282,AH282,AM282,AR282,AW282,BB282,BG282)","v":0},null,null,null,null,null,null,null,null,null,null,null,null,null,null,null,null,null,null,null,null,null,null,null,null,null,null,null,null,null,null,null,null,null,null,null,null,null,null,null,null,null,null,null,null,null,null,null,null,null,null,null,null,{"$f":"'Раздел 2'!C282","v":0}]
[null,"ИТОГО","274",7,3,3,1,1,0,{"$f":"SUM(J10:J22,J26:J29,J32:J37,J48:J53,J58:J60,J42:J45,J64:J74,J79:J89,J93:J100,J103:J107,J115:J119,J120:J133,J136:J141,J144,J149:J150,J156:J159,J165:J166,J167:J181,J182:J200,J206:J211,J212:J214,J219:J221,J225:J228,J231:J240,J245:J250,J257:J258,J265:J267,J270,J274:J282)","v":0},{"$f":"SUM(K10:K22,K26:K29,K32:K37,K48:K53,K58:K60,K42:K45,K64:K74,K79:K89,K93:K100,K103:K107,K115:K119,K120:K133,K136:K141,K144,K149:K150,K156:K159,K165:K166,K167:K181,K182:K200,K206:K211,K212:K214,K219:K221,K225:K228,K231:K240,K245:K250,K257:K258,K265:K267,K270,K274:K282)","v":0},0,0,0,0,0,0,0,0,0,0,0,0,0,0,0,0,0,0,0,0,0,0,0,0,0,0,0,0,0,0,0,0,0,0,0,0,0,0,0,0,0,0,0,3,3,1,1,0,null,null,{"$f":"'Раздел 2'!C283","v":5}]

{"sheet":"Раздел 8","index":8,"n_rows":284,"n_cols":30,"rows_kept":284,"cut":false,"hidden":false,"merged":[[4,26,7,26],[5,16,6,17],[6,25,7,25],[4,23,5,25],[6,23,7,23],[4,18,7,18],[4,19,7,19],[4,20,4,22],[5,20,7,20],[5,22,7,22],[5,21,7,21],[5,7,6,8],[5,11,7,11],[5,13,7,13],[5,14,7,14],[4,10,7,10],[4,14,4,17],[5,15,7,15],[4,11,4,13],[5,12,7,12],[1,0,133,0],[1,1,1,26],[2,1,7,1],[2,2,7,2],[2,3,2,26],[3,3,3,4],[3,5,3,13],[3,14,3,22],[3,23,3,26],[4,3,7,3],[4,4,7,4],[4,5,4,8],[5,5,7,5],[4,9,7,9],[6,24,7,24],[5,6,7,6]]}
[]
[null,"Раздел VIII. Тренерско-преподавательский и тренерский состав, человек"]
[null,"Виды спорта","№ строки","Тренеры-преподаватели и тренеры"]
[null,null,null,"Число тренеров-преподавателей и тренеров",null,"тренеры-преподаватели и тренеры по основному месту работы:",null,null,null,null,null,null,null,null,"совместители:",null,null,null,null,null,null,null,null,"из гр.4:"]
[null,null,null,"Всего","в том числе по основному месту работы","профессиональное образование",null,null,null,"Профессиональная переподготовка (за отчетный год)","Повышение квалификации (за отчетный год)","квалификационные категории",null,null,"профессиональное образование",null,null,null,"Профессиональная переподготовка (за отчетный год)","Повышение квалификации (за отчетный год)","квалификационные категории",null,null,"в возрасте:",null,null,"Звание «Заслуженный тренер России»"]
[null,null,null,null,null,"высшее","среднее","в том числе\nфизкультурное",null,null,null,"Высшая","Первая","Вторая","высшее","среднее","в том числе\nфизкультурное",null,null,null,"Высшая","Первая","Вторая"]
[null,null,null,null,null,null,null,null,null,null,null,null,null,null,null,null,null,null,null,null,null,null,null,"до 35 лет","от 36 до 64 лет","старше 64 лет"]
[null,null,null,null,null,null,null,"высшее","среднее",null,null,null,null,null,null,null,"высшее","среднее"]
[null,1,2,3,4,5,6,7,8,9,10,11,12,13,14,15,16,17,18,19,20,21,22,23,24,25,26,null,"3 мин 4","2р"]
[null,"Авиамодельный спорт","01",null,null,null,null,null,null,null,null,null,null,null,null,null,null,null,null,null,null,null,null,null,null,null,null,null,{"$f":"D10-E10","v":0},{"$f":"'Раздел 2'!C10","v":0}]
[null,"Авиационные гонки","02",null,null,null,null,null,null,null,null,null,null,null,null,null,null,null,null,null,null,null,null,null,null,null,null,null,{"$f":"D11-E11","v":0},{"$f":"'Раздел 2'!C11","v":0}]
[null,"Автомобильный спорт","03",null,null,null,null,null,null,null,null,null,null,null,null,null,null,null,null,null,null,null,null,null,null,null,null,null,0,{"$f":"'Раздел 2'!C12","v":0}]
[null,"Автомодельный спорт","04",null,null,null,null,null,null,null,null,null,null,null,null,null,null,null,null,null,null,null,null,null,null,null,null,null,0,{"$f":"'Раздел 2'!C13","v":0}]
[null,"Айкидо","05",null,null,null,null,null,null,null,null,null,null,null,null,null,null,null,null,null,null,null,null,null,null,null,null,null,0,{"$f":"'Раздел 2'!C14","v":0}]
[null,"Акробатический рок-н-ролл","06",null,null,null,null,null,null,null,null,null,null,null,null,null,null,null,null,null,null,null,null,null,null,null,null,null,0,{"$f":"'Раздел 2'!C15","v":0}]
[null,"Альпинизм","07",null,null,null,null,null,null,null,null,null,null,null,null,null,null,null,null,null,null,null,null,null,null,null,null,null,0,{"$f":"'Раздел 2'!C16","v":0}]
[null,"Американский футбол","08",null,null,null,null,null,null,null,null,null,null,null,null,null,null,null,null,null,null,null,null,null,null,null,null,null,0,{"$f":"'Раздел 2'!C17","v":0}]
[null,"Армейский рукопашный бой","09",null,null,null,null,null,null,null,null,null,null,null,null,null,null,null,null,null,null,null,null,null,null,null,null,null,0,{"$f":"'Раздел 2'!C18","v":0}]
[null,"Армейское тактико-стрелковое многоборье","10",null,null,null,null,null,null,null,null,null,null,null,null,null,null,null,null,null,null,null,null,null,null,null,null,null,0,{"$f":"'Раздел 2'!C19","v":0}]
[null,"Армрестлинг","11",null,null,null,null,null,null,null,null,null,null,null,null,null,null,null,null,null,null,null,null,null,null,null,null,null,0,{"$f":"'Раздел 2'!C20","v":0}]
[null,"Бадминтон","12",null,null,null,null,null,null,null,null,null,null,null,null,null,null,null,null,null,null,null,null,null,null,null,null,null,0,{"$f":"'Раздел 2'!C21","v":0}]
[null,"Баскетбол - всего","13",{"$f":"SUM(D23:D25)","v":0},{"$f":"SUM(E23:E25)","v":0},0,0,0,0,0,0,0,0,0,0,0,0,0,0,0,0,0,0,0,0,0,0,null,0,{"$f":"'Раздел 2'!C22","v":0}]
[null,"в том числе:\nБаскетбол (муж.)","14",null,null,null,null,null,null,null,null,null,null,null,null,null,null,null,null,null,null,null,null,null,null,null,null,null,0,{"$f":"'Раздел 2'!C23","v":0}]
[null,"Баскетбол (жен.)","15",null,null,null,null,null,null,null,null,null,null,null,null,null,null,null,null,null,null,null,null,null,null,null,null,null,0,{"$f":"'Раздел 2'!C24","v":0}]
[null,"Баскетбол 3х3","16",null,null,null,null,null,null,null,null,null,null,null,null,null,null,null,null,null,null,null,null,null,null,null,null,null,0,{"$f":"'Раздел 2'!C25","v":0}]
[null,"Бейсбол","17",null,null,null,null,null,null,null,null,null,null,null,null,null,null,null,null,null,null,null,null,null,null,null,null,null,0,{"$f":"'Раздел 2'!C26","v":0}]
[null,"Биатлон","18",null,null,null,null,null,null,null,null,null,null,null,null,null,null,null,null,null,null,null,null,null,null,null,null,null,0,{"$f":"'Раздел 2'!C27","v":0}]
[null,"Бильярдный спорт","19",null,null,null,null,null,null,null,null,null,null,null,null,null,null,null,null,null,null,null,null,null,null,null,null,null,0,{"$f":"'Раздел 2'!C28","v":0}]
[null,"Бобслей - всего","20",{"$f":"SUM(D30:D31)","v":0},{"$f":"SUM(E30:E31)","v":0},0,0,0,0,0,0,0,0,0,0,0,0,0,0,0,0,0,0,0,0,0,0,null,0,{"$f":"'Раздел 2'!C29","v":0}]
[null,"в том числе:\nБобслей","21",null,null,null,null,null,null,null,null,null,null,null,null,null,null,null,null,null,null,null,null,null,null,null,null,null,0,{"$f":"'Раздел 2'!C30","v":0}]
[null,"Скелетон","22",null,null,null,null,null,null,null,null,null,null,null,null,null,null,null,null,null,null,null,null,null,null,null,null,null,0,{"$f":"'Раздел 2'!C31","v":0}]
[null,"Бодибилдинг","23",null,null,null,null,null,null,null,null,null,null,null,null,null,null,null,null,null,null,null,null,null,null,null,null,null,0,{"$f":"'Раздел 2'!C32","v":0}]
[null,"Бокс","24",null,null,null,null,null,null,null,null,null,null,null,null,null,null,null,null,null,null,null,null,null,null,null,null,null,0,{"$f":"'Раздел 2'!C33","v":0}]
[null,"Борьба на поясах","25",null,null,null,null,null,null,null,null,null,null,null,null,null,null,null,null,null,null,null,null,null,null,null,null,null,0,{"$f":"'Раздел 2'!C34","v":0}]
[null,"Боулинг","26",null,null,null,null,null,null,null,null,null,null,null,null,null,null,null,null,null,null,null,null,null,null,null,null,null,0,{"$f":"'Раздел 2'!C35","v":0}]
[null,"Боулспорт","27",null,null,null,null,null,null,null,null,null,null,null,null,null,null,null,null,null,null,null,null,null,null,null,null,null,0,{"$f":"'Раздел 2'!C36","v":0}]
[null,"Велосипедный спорт - всего","28",{"$f":"SUM(D38:D41)","v":0},{"$f":"SUM(E38:E41)","v":0},0,0,0,0,0,0,0,0,0,0,0,0,0,0,0,0,0,0,0,0,0,0,null,0,{"$f":"'Раздел 2'!C37","v":0}]
[null,"в том числе:\nBMX","29",null,null,null,null,null,null,null,null,null,null,null,null,null,null,null,null,null,null,null,null,null,null,null,null,null,0,{"$f":"'Раздел 2'!C38","v":0}]
[null,"Маунтинбайк","30",null,null,null,null,null,null,null,null,null,null,null,null,null,null,null,null,null,null,null,null,null,null,null,null,null,0,{"$f":"'Раздел 2'!C39","v":0}]
[null,"Трек","31",null,null,null,null,null,null,null,null,null,null,null,null,null,null,null,null,null,null,null,null,null,null,null,null,null,0,{"$f":"'Раздел 2'!C40","v":0}]
[null,"Шоссе","32",null,null,null,null,null,null,null,null,null,null,null,null,null,null,null,null,null,null,null,null,null,null,null,null,null,0,{"$f":"'Раздел 2'!C41","v":0}]
[null,"Вертолетный спорт","33",null,null,null,null,null,null,null,null,null,null,null,null,null,null,null,null,null,null,null,null,null,null,null,null,null,0,{"$f":"'Раздел 2'!C42","v":0}]
[null,"Водно-моторный спорт","34",null,null,null,null,null,null,null,null,null,null,null,null,null,null,null,null,null,null,null,null,null,null,null,null,null,0,{"$f":"'Раздел 2'!C43","v":0}]
[null,"Водно-спасательное многоборье","35",null,null,null,null,null,null,null,null,null,null,null,null,null,null,null,null,null,null,null,null,null,null,null,null,null,0,{"$f":"'Раздел 2'!C44","v":0}]
[null,"Водное поло - всего ","36",{"$f":"SUM(D46:D47)","v":0},{"$f":"SUM(E46:E47)","v":0},0,0,0,0,0,0,0,0,0,0,0,0,0,0,0,0,0,0,0,0,0,0,null,0,{"$f":"'Раздел 2'!C45","v":0}]
[null,"в том числе:\nВодное поло (муж.)","37",null,null,null,null,null,null,null,null,null,null,null,null,null,null,null,null,null,null,null,null,null,null,null,null,null,0,{"$f":"'Раздел 2'!C46","v":0}]
[null,"Водное поло (жен.)","38",null,null,null,null,null,null,null,null,null,null,null,null,null,null,null,null,null,null,null,null,null,null,null,null,null,0,{"$f":"'Раздел 2'!C47","v":0}]
[null,"Воднолыжный спорт","39",null,null,null,null,null,null,null,null,null,null,null,null,null,null,null,null,null,null,null,null,null,null,null,null,null,0,{"$f":"'Раздел 2'!C48","v":0}]
[null,"Военно-прикладной спорт","40",null,null,null,null,null,null,null,null,null,null,null,null,null,null,null,null,null,null,null,null,null,null,null,null,null,0,{"$f":"'Раздел 2'!C49","v":0}]
[null,"Военно-спортивное многоборье","41",null,null,null,null,null,null,null,null,null,null,null,null,null,null,null,null,null,null,null,null,null,null,null,null,null,0,{"$f":"'Раздел 2'!C50","v":0}]
[null,"Воздухоплавательный спорт","42",null,null,null,null,null,null,null,null,null,null,null,null,null,null,null,null,null,null,null,null,null,null,null,null,null,0,{"$f":"'Раздел 2'!C51","v":0}]
[null,"Воздушно-силовая атлетика","43",null,null,null,null,null,null,null,null,null,null,null,null,null,null,null,null,null,null,null,null,null,null,null,null,null,0,{"$f":"'Раздел 2'!C52","v":0}]
[null,"Волейбол - всего","44",{"$f":"SUM(D54:D57)","v":0},{"$f":"SUM(E54:E57)","v":0},0,0,0,0,0,0,0,0,0,0,0,0,0,0,0,0,0,0,0,0,0,0,null,0,{"$f":"'Раздел 2'!C53","v":0}]
[null,"в том числе:\nВолейбол (муж.)","45",null,null,null,null,null,null,null,null,null,null,null,null,null,null,null,null,null,null,null,null,null,null,null,null,null,0,{"$f":"'Раздел 2'!C54","v":0}]
[null,"Волейбол (жен.)","46",null,null,null,null,null,null,null,null,null,null,null,null,null,null,null,null,null,null,null,null,null,null,null,null,null,0,{"$f":"'Раздел 2'!C55","v":0}]
[null,"Пляжный волейбол (муж.)","47",null,null,null,null,null,null,null,null,null,null,null,null,null,null,null,null,null,null,null,null,null,null,null,null,null,0,{"$f":"'Раздел 2'!C56","v":0}]
[null,"Пляжный волейбол (жен.)","48",null,null,null,null,null,null,null,null,null,null,null,null,null,null,null,null,null,null,null,null,null,null,null,null,null,0,{"$f":"'Раздел 2'!C57","v":0}]
[null,"Восточное боевое единоборство","49",null,null,null,null,null,null,null,null,null,null,null,null,null,null,null,null,null,null,null,null,null,null,null,null,null,0,{"$f":"'Раздел 2'!C58","v":0}]
[null,"Всестилевое каратэ","50",null,null,null,null,null,null,null,null,null,null,null,null,null,null,null,null,null,null,null,null,null,null,null,null,null,0,{"$f":"'Раздел 2'!C59","v":0}]
[null,"Гандбол - всего","51",{"$f":"SUM(D61:D63)","v":0},{"$f":"SUM(E61:E63)","v":0},0,0,0,0,0,0,0,0,0,0,0,0,0,0,0,0,0,0,0,0,0,0,null,0,{"$f":"'Раздел 2'!C60","v":0}]
[null,"в том числе:\nГандбол (муж.)","52",null,null,null,null,null,null,null,null,null,null,null,null,null,null,null,null,null,null,null,null,null,null,null,null,null,0,{"$f":"'Раздел 2'!C61","v":0}]
[null,"Гандбол (жен.)","53",null,null,null,null,null,null,null,null,null,null,null,null,null,null,null,null,null,null,null,null,null,null,null,null,null,0,{"$f":"'Раздел 2'!C62","v":0}]
[null,"Пляжный гандбол","54",null,null,null,null,null,null,null,null,null,null,null,null,null,null,null,null,null,null,null,null,null,null,null,null,null,0,{"$f":"'Раздел 2'!C63","v":0}]
[null,"Гиревой спорт","55",null,null,null,null,null,null,null,null,null,null,null,null,null,null,null,null,null,null,null,null,null,null,null,null,null,0,{"$f":"'Раздел 2'!C64","v":0}]
[null,"Го","56",null,null,null,null,null,null,null,null,null,null,null,null,null,null,null,null,null,null,null,null,null,null,null,null,null,0,{"$f":"'Раздел 2'!C65","v":0}]
[null,"Гольф","57",null,null,null,null,null,null,null,null,null,null,null,null,null,null,null,null,null,null,null,null,null,null,null,null,null,0,{"$f":"'Раздел 2'!C66","v":0}]
[null,"Гонки на охотничьих лыжах","58",null,null,null,null,null,null,null,null,null,null,null,null,null,null,null,null,null,null,null,null,null,null,null,null,null,0,{"$f":"'Раздел 2'!C67","v":0}]
[null,"Гонки с препятствиями","59",null,null,null,null,null,null,null,null,null,null,null,null,null,null,null,null,null,null,null,null,null,null,null,null,null,0,{"$f":"'Раздел 2'!C68","v":0}]
[null,"Горнолыжный спорт","60",null,null,null,null,null,null,null,null,null,null,null,null,null,null,null,null,null,null,null,null,null,null,null,null,null,0,{"$f":"'Раздел 2'!C69","v":0}]
[null,"Городошный спорт","61",null,null,null,null,null,null,null,null,null,null,null,null,null,null,null,null,null,null,null,null,null,null,null,null,null,0,{"$f":"'Раздел 2'!C70","v":0}]
[null,"Гребля на байдарках и каноэ","62",null,null,null,null,null,null,null,null,null,null,null,null,null,null,null,null,null,null,null,null,null,null,null,null,null,0,{"$f":"'Раздел 2'!C71","v":0}]
[null,"Гребля на шлюпках","63",null,null,null,null,null,null,null,null,null,null,null,null,null,null,null,null,null,null,null,null,null,null,null,null,null,0,{"$f":"'Раздел 2'!C72","v":0}]
[null,"Гребной слалом","64",null,null,null,null,null,null,null,null,null,null,null,null,null,null,null,null,null,null,null,null,null,null,null,null,null,0,{"$f":"'Раздел 2'!C73","v":0}]
[null,"Гребной спорт - всего","65",{"$f":"SUM(D75:D78)","v":0},{"$f":"SUM(E75:E78)","v":0},0,0,0,0,0,0,0,0,0,0,0,0,0,0,0,0,0,0,0,0,0,0,null,0,{"$f":"'Раздел 2'!C74","v":0}]
[null,"в том числе:\nАкадемическая гребля","66",null,null,null,null,null,null,null,null,null,null,null,null,null,null,null,null,null,null,null,null,null,null,null,null,null,{"$f":"D75-E75","v":0},{"$f":"'Раздел 2'!C75","v":0}]
[null,"Гребля-индор","67",null,null,null,null,null,null,null,null,null,null,null,null,null,null,null,null,null,null,null,null,null,null,null,null,null,0,{"$f":"'Раздел 2'!C76","v":0}]
[null,"Народная гребля","68",null,null,null,null,null,null,null,null,null,null,null,null,null,null,null,null,null,null,null,null,null,null,null,null,null,0,{"$f":"'Раздел 2'!C77","v":0}]
[null,"Прибрежная гребля","69",null,null,null,null,null,null,null,null,null,null,null,null,null,null,null,null,null,null,null,null,null,null,null,null,null,0,{"$f":"'Раздел 2'!C78","v":0}]
[null,"Гребно-парусное двоеборье","70",null,null,null,null,null,null,null,null,null,null,null,null,null,null,null,null,null,null,null,null,null,null,null,null,null,0,{"$f":"'Раздел 2'!C79","v":0}]
[null,"Дартс","71",null,null,null,null,null,null,null,null,null,null,null,null,null,null,null,null,null,null,null,null,null,null,null,null,null,0,{"$f":"'Раздел 2'!C80","v":0}]
[null,"Джиу-джитсу","72",null,null,null,null,null,null,null,null,null,null,null,null,null,null,null,null,null,null,null,null,null,null,null,null,null,0,{"$f":"'Раздел 2'!C81","v":0}]
[null,"Дзюдо","73",5,3,3,null,null,null,null,null,1,1,null,2,null,2,null,null,null,1,1,null,2,1,null,null,null,2,{"$f":"'Раздел 2'!C82","v":1}]
[null,"Ездовой спорт","74",null,null,null,null,null,null,null,null,null,null,null,null,null,null,null,null,null,null,null,null,null,null,null,null,null,0,{"$f":"'Раздел 2'!C83","v":0}]
[null,"Зимнее плавание","75",null,null,null,null,null,null,null,null,null,null,null,null,null,null,null,null,null,null,null,null,null,null,null,null,null,0,{"$f":"'Раздел 2'!C84","v":0}]
[null,"Капоэйра","76",null,null,null,null,null,null,null,null,null,null,null,null,null,null,null,null,null,null,null,null,null,null,null,null,null,0,{"$f":"'Раздел 2'!C85","v":0}]
[null,"Каратэ","77",null,null,null,null,null,null,null,null,null,null,null,null,null,null,null,null,null,null,null,null,null,null,null,null,null,0,{"$f":"'Раздел 2'!C86","v":0}]
[null,"Кендо","78",null,null,null,null,null,null,null,null,null,null,null,null,null,null,null,null,null,null,null,null,null,null,null,null,null,0,{"$f":"'Раздел 2'!C87","v":0}]
[null,"Керешу","79",null,null,null,null,null,null,null,null,null,null,null,null,null,null,null,null,null,null,null,null,null,null,null,null,null,0,{"$f":"'Раздел 2'!C88","v":0}]
[null,"Кёрлинг - всего","80",{"$f":"SUM(D90:D92)","v":0},{"$f":"SUM(E90:E92)","v":0},0,0,0,0,0,0,0,0,0,0,0,0,0,0,0,0,0,0,0,0,0,0,null,0,{"$f":"'Раздел 2'!C89","v":0}]
[null,"в том числе:\nКёрлинг (муж.)","81",null,null,null,null,null,null,null,null,null,null,null,null,null,null,null,null,null,null,null,null,null,null,null,null,null,0,{"$f":"'Раздел 2'!C90","v":0}]
[null,"Кёрлинг (жен.)","82",null,null,null,null,null,null,null,null,null,null,null,null,null,null,null,null,null,null,null,null,null,null,null,null,null,0,{"$f":"'Раздел 2'!C91","v":0}]
[null,"Кёрлинг – смешанные пары","83",null,null,null,null,null,null,null,null,null,null,null,null,null,null,null,null,null,null,null,null,null,null,null,null,null,0,{"$f":"'Раздел 2'!C92","v":0}]
[null,"Кикбоксинг","84",2,1,1,null,null,null,null,null,1,null,null,1,null,1,null,null,null,null,null,null,null,1,null,null,null,1,{"$f":"'Раздел 2'!C93","v":1}]
[null,"Кинологический спорт","85",null,null,null,null,null,null,null,null,null,null,null,null,null,null,null,null,null,null,null,null,null,null,null,null,null,0,{"$f":"'Раздел 2'!C94","v":0}]
[null,"Киокусинкай","86",null,null,null,null,null,null,null,null,null,null,null,null,null,null,null,null,null,null,null,null,null,null,null,null,null,0,{"$f":"'Раздел 2'!C95","v":0}]
[null,"Киокушин","87",null,null,null,null,null,null,null,null,null,null,null,null,null,null,null,null,null,null,null,null,null,null,null,null,null,0,{"$f":"'Раздел 2'!C96","v":0}]
[null,"Комплексное единоборство","88",null,null,null,null,null,null,null,null,null,null,null,null,null,null,null,null,null,null,null,null,null,null,null,null,null,0,{"$f":"'Раздел 2'!C97","v":0}]
[null,"Компьютерный спорт","89",null,null,null,null,null,null,null,null,null,null,null,null,null,null,null,null,null,null,null,null,null,null,null,null,null,0,{"$f":"'Раздел 2'!C98","v":0}]
[null,"Конный спорт","90",null,null,null,null,null,null,null,null,null,null,null,null,null,null,null,null,null,null,null,null,null,null,null,null,null,0,{"$f":"'Раздел 2'!C99","v":0}]
[null,"Конькобежный спорт - всего","91",{"$f":"SUM(D101:D102)","v":0},{"$f":"SUM(E101:E102)","v":0},0,0,0,0,0,0,0,0,0,0,0,0,0,0,0,0,0,0,0,0,0,0,null,0,{"$f":"'Раздел 2'!C100","v":0}]
[null,"в том числе:\nКонькобежный спорт","92",null,null,null,null,null,null,null,null,null,null,null,null,null,null,null,null,null,null,null,null,null,null,null,null,null,0,{"$f":"'Раздел 2'!C101","v":0}]
[null,"Шорт-трек","93",null,null,null,null,null,null,null,null,null,null,null,null,null,null,null,null,null,null,null,null,null,null,null,null,null,0,{"$f":"'Раздел 2'!C102","v":0}]
[null,"Корэш","94",null,null,null,null,null,null,null,null,null,null,null,null,null,null,null,null,null,null,null,null,null,null,null,null,null,0,{"$f":"'Раздел 2'!C103","v":0}]
[null,"Крикет","95",null,null,null,null,null,null,null,null,null,null,null,null,null,null,null,null,null,null,null,null,null,null,null,null,null,0,{"$f":"'Раздел 2'!C104","v":0}]
[null,"Кудо","96",null,null,null,null,null,null,null,null,null,null,null,null,null,null,null,null,null,null,null,null,null,null,null,null,null,0,{"$f":"'Раздел 2'!C105","v":0}]
[null,"Лапта","97",null,null,null,null,null,null,null,null,null,null,null,null,null,null,null,null,null,null,null,null,null,null,null,null,null,0,{"$f":"'Раздел 2'!C106","v":0}]
[null,"Легкая атлетика - всего","98",{"$f":"SUM(D108:D114)","v":0},{"$f":"SUM(E108:E114)","v":0},0,0,0,0,0,0,0,0,0,0,0,0,0,0,0,0,0,0,0,0,0,0,null,0,{"$f":"'Раздел 2'!C107","v":0}]
[null,"в том числе:\nСпринтерский и барьерный бег","99",null,null,null,null,null,null,null,null,null,null,null,null,null,null,null,null,null,null,null,null,null,null,null,null,null,0,{"$f":"'Раздел 2'!C108","v":0}]
[null,"Бег на средние дистанции и бег с препятствиями","100",null,null,null,null,null,null,null,null,null,null,null,null,null,null,null,null,null,null,null,null,null,null,null,null,null,0,{"$f":"'Раздел 2'!C109","v":0}]
[null,"Бег на длинные и сверхдлинные дистанции","101",null,null,null,null,null,null,null,null,null,null,null,null,null,null,null,null,null,null,null,null,null,null,null,null,null,0,{"$f":"'Раздел 2'!C110","v":0}]
[null,"Многоборья","102",null,null,null,null,null,null,null,null,null,null,null,null,null,null,null,null,null,null,null,null,null,null,null,null,null,0,{"$f":"'Раздел 2'!C111","v":0}]
[null,"Прыжки","103",null,null,null,null,null,null,null,null,null,null,null,null,null,null,null,null,null,null,null,null,null,null,null,null,null,0,{"$f":"'Раздел 2'!C112","v":0}]
[null,"Метания","104",null,null,null,null,null,null,null,null,null,null,null,null,null,null,null,null,null,null,null,null,null,null,null,null,null,0,{"$f":"'Раздел 2'!C113","v":0}]
[null,"Спортивная ходьба","105",null,null,null,null,null,null,null,null,null,null,null,null,null,null,null,null,null,null,null,null,null,null,null,null,null,0,{"$f":"'Раздел 2'!C114","v":0}]
[null,"Лыжное двоеборье","106",null,null,null,null,null,null,null,null,null,null,null,null,null,null,null,null,null,null,null,null,null,null,null,null,null,0,{"$f":"'Раздел 2'!C115","v":0}]
[null,"Лыжные гонки","107",null,null,null,null,null,null,null,null,null,null,null,null,null,null,null,null,null,null,null,null,null,null,null,null,null,0,{"$f":"'Раздел 2'!C116","v":0}]
[null,"Мас-рестлинг","108",null,null,null,null,null,null,null,null,null,null,null,null,null,null,null,null,null,null,null,null,null,null,null,null,null,0,{"$f":"'Раздел 2'!C117","v":0}]
[null,"Международное военно-спортивное многоборье","109",null,null,null,null,null,null,null,null,null,null,null,null,null,null,null,null,null,null,null,null,null,null,null,null,null,0,{"$f":"'Раздел 2'!C118","v":0}]
[null,"Микрофутзал","110",null,null,null,null,null,null,null,null,null,null,null,null,null,null,null,null,null,null,null,null,null,null,null,null,null,0,{"$f":"'Раздел 2'!C119","v":0}]
[null,"Многоборье кинологов","111",null,null,null,null,null,null,null,null,null,null,null,null,null,null,null,null,null,null,null,null,null,null,null,null,null,0,{"$f":"'Раздел 2'!C120","v":0}]
[null,"Многоборье спасателей МЧС России","112",null,null,null,null,null,null,null,null,null,null,null,null,null,null,null,null,null,null,null,null,null,null,null,null,null,0,{"$f":"'Раздел 2'!C121","v":0}]
[null,"Морское многоборье","113",null,null,null,null,null,null,null,null,null,null,null,null,null,null,null,null,null,null,null,null,null,null,null,null,null,0,{"$f":"'Раздел 2'!C122","v":0}]
[null,"Мотоциклетный спорт","114",null,null,null,null,null,null,null,null,null,null,null,null,null,null,null,null,null,null,null,null,null,null,null,null,null,0,{"$f":"'Раздел 2'!C123","v":0}]
[null,"Муайтай","115",null,null,null,null,null,null,null,null,null,null,null,null,null,null,null,null,null,null,null,null,null,null,null,null,null,0,{"$f":"'Раздел 2'!C124","v":0}]
[null,"Нарды","116",null,null,null,null,null,null,null,null,null,null,null,null,null,null,null,null,null,null,null,null,null,null,null,null,null,0,{"$f":"'Раздел 2'!C125","v":0}]
[null,"Настольный теннис","117",null,null,null,null,null,null,null,null,null,null,null,null,null,null,null,null,null,null,null,null,null,null,null,null,null,0,{"$f":"'Раздел 2'!C126","v":0}]
[null,"Падел","118",null,null,null,null,null,null,null,null,null,null,null,null,null,null,null,null,null,null,null,null,null,null,null,null,null,0,{"$f":"'Раздел 2'!C127","v":0}]
[null,"Парашютный спорт","119",null,null,null,null,null,null,null,null,null,null,null,null,null,null,null,null,null,null,null,null,null,null,null,null,null,0,{"$f":"'Раздел 2'!C128","v":0}]
[null,"Парусный спорт","120",null,null,null,null,null,null,null,null,null,null,null,null,null,null,null,null,null,null,null,null,null,null,null,null,null,0,{"$f":"'Раздел 2'!C129","v":0}]
[null,"Пауэрлифтинг","121",4,3,3,null,3,null,null,null,3,null,null,1,null,1,null,null,null,null,1,null,1,1,1,1,null,1,{"$f":"'Раздел 2'!C130","v":1}]
[null,"Перетягивание каната","122",null,null,null,null,null,null,null,null,null,null,null,null,null,null,null,null,null,null,null,null,null,null,null,null,null,0,{"$f":"'Раздел 2'!C131","v":0}]
[null,"Пилонный спорт","123",null,null,null,null,null,null,null,null,null,null,null,null,null,null,null,null,null,null,null,null,null,null,null,null,null,0,{"$f":"'Раздел 2'!C132","v":0}]
[null,"Плавание - всего","124",{"$f":"SUM(D134:D135)","v":0},{"$f":"SUM(E134:E135)","v":0},0,0,0,0,0,0,0,0,0,0,0,0,0,0,0,0,0,0,0,0,0,0,null,0,{"$f":"'Раздел 2'!C133","v":0}]
[null,"в том числе:\nПлавание ","125",null,null,null,null,null,null,null,null,null,null,null,null,null,null,null,null,null,null,null,null,null,null,null,null,null,0,{"$f":"'Раздел 2'!C134","v":0}]
[null,"Открытая вода","126",null,null,null,null,null,null,null,null,null,null,null,null,null,null,null,null,null,null,null,null,null,null,null,null,null,0,{"$f":"'Раздел 2'!C135","v":0}]
[null,"Планерный спорт","127",null,null,null,null,null,null,null,null,null,null,null,null,null,null,null,null,null,null,null,null,null,null,null,null,null,0,{"$f":"'Раздел 2'!C136","v":0}]
[null,"Подводный спорт","128",null,null,null,null,null,null,null,null,null,null,null,null,null,null,null,null,null,null,null,null,null,null,null,null,null,0,{"$f":"'Раздел 2'!C137","v":0}]
[null,"Пожарно-спасательный спорт","129",null,null,null,null,null,null,null,null,null,null,null,null,null,null,null,null,null,null,null,null,null,null,null,null,null,0,{"$f":"'Раздел 2'!C138","v":0}]
[null,"Полиатлон","130",null,null,null,null,null,null,null,null,null,null,null,null,null,null,null,null,null,null,null,null,null,null,null,null,null,{"$f":"D139-E139","v":0},{"$f":"'Раздел 2'!C139","v":0}]
[null,"Практическая стрельба","131",null,null,null,null,null,null,null,null,null,null,null,null,null,null,null,null,null,null,null,null,null,null,null,null,null,0,{"$f":"'Раздел 2'!C140","v":0}]
[null,"Прыжки в воду - всего","132",{"$f":"SUM(D142:D143)","v":0},{"$f":"SUM(E142:E143)","v":0},0,0,0,0,0,0,0,0,0,0,0,0,0,0,0,0,0,0,0,0,0,0,null,0,{"$f":"'Раздел 2'!C141","v":0}]
[null,"в том числе:\nПрыжки в воду","133",null,null,null,null,null,null,null,null,null,null,null,null,null,null,null,null,null,null,null,null,null,null,null,null,null,0,{"$f":"'Раздел 2'!C142","v":0}]
[null,"Прыжки в открытый водоем","134",null,null,null,null,null,null,null,null,null,null,null,null,null,null,null,null,null,null,null,null,null,null,null,null,null,0,{"$f":"'Раздел 2'!C143","v":0}]
[null,"Прыжки на батуте - всего","135",{"$f":"SUM(D145:D148)","v":0},{"$f":"SUM(E145:E148)","v":0},0,0,0,0,0,0,0,0,0,0,0,0,0,0,0,0,0,0,0,0,0,0,null,0,{"$f":"'Раздел 2'!C144","v":0}]
[null,"в том числе:\nАкробатическая дорожка","136",null,null,null,null,null,null,null,null,null,null,null,null,null,null,null,null,null,null,null,null,null,null,null,null,null,0,{"$f":"'Раздел 2'!C145","v":0}]
[null,"Двойной минитрамп","137",null,null,null,null,null,null,null,null,null,null,null,null,null,null,null,null,null,null,null,null,null,null,null,null,null,0,{"$f":"'Раздел 2'!C146","v":0}]
[null,"Индивидуальные прыжки","138",null,null,null,null,null,null,null,null,null,null,null,null,null,null,null,null,null,null,null,null,null,null,null,null,null,0,{"$f":"'Раздел 2'!C147","v":0}]
[null,"Синхронные прыжки","139",null,null,null,null,null,null,null,null,null,null,null,null,null,null,null,null,null,null,null,null,null,null,null,null,null,0,{"$f":"'Раздел 2'!C148","v":0}]
[null,"Прыжки на лыжах с трамплина","140",null,null,null,null,null,null,null,null,null,null,null,null,null,null,null,null,null,null,null,null,null,null,null,null,null,0,{"$f":"'Раздел 2'!C149","v":0}]
[null,"Пулевая стрельба - всего","141",{"$f":"SUM(D151:D155)","v":0},{"$f":"SUM(E151:E155)","v":0},0,0,0,0,0,0,0,0,0,0,0,0,0,0,0,0,0,0,0,0,0,0,null,0,{"$f":"'Раздел 2'!C150","v":0}]
[null,"в том числе:\nПневматическая винтовка","142",null,null,null,null,null,null,null,null,null,null,null,null,null,null,null,null,null,null,null,null,null,null,null,null,null,0,{"$f":"'Раздел 2'!C151","v":0}]
[null,"Пневматический пистолет","143",null,null,null,null,null,null,null,null,null,null,null,null,null,null,null,null,null,null,null,null,null,null,null,null,null,0,{"$f":"'Раздел 2'!C152","v":0}]
[null,"Малокалиберная винтовка","144",null,null,null,null,null,null,null,null,null,null,null,null,null,null,null,null,null,null,null,null,null,null,null,null,null,0,{"$f":"'Раздел 2'!C153","v":0}]
[null,"Малокалиберный пистолет","145",null,null,null,null,null,null,null,null,null,null,null,null,null,null,null,null,null,null,null,null,null,null,null,null,null,0,{"$f":"'Раздел 2'!C154","v":0}]
[null,"Движущаяся мишень","146",null,null,null,null,null,null,null,null,null,null,null,null,null,null,null,null,null,null,null,null,null,null,null,null,null,0,{"$f":"'Раздел 2'!C155","v":0}]
[null,"Пэйнтбол","147",null,null,null,null,null,null,null,null,null,null,null,null,null,null,null,null,null,null,null,null,null,null,null,null,null,0,{"$f":"'Раздел 2'!C156","v":0}]
[null,"Радиоспорт","148",null,null,null,null,null,null,null,null,null,null,null,null,null,null,null,null,null,null,null,null,null,null,null,null,null,0,{"$f":"'Раздел 2'!C157","v":0}]
[null,"Рафтинг","149",null,null,null,null,null,null,null,null,null,null,null,null,null,null,null,null,null,null,null,null,null,null,null,null,null,0,{"$f":"'Раздел 2'!C158","v":0}]
[null,"Регби - всего","150",{"$f":"SUM(D160:D164)","v":0},{"$f":"SUM(E160:E164)","v":0},0,0,0,0,0,0,0,0,0,0,0,0,0,0,0,0,0,0,0,0,0,0,null,0,{"$f":"'Раздел 2'!C159","v":0}]
[null,"в том числе:\nРегби","151",null,null,null,null,null,null,null,null,null,null,null,null,null,null,null,null,null,null,null,null,null,null,null,null,null,0,{"$f":"'Раздел 2'!C160","v":0}]
[null,"Регби 7 (муж.)","152",null,null,null,null,null,null,null,null,null,null,null,null,null,null,null,null,null,null,null,null,null,null,null,null,null,0,{"$f":"'Раздел 2'!C161","v":0}]
[null,"Регби 7 (жен.)","153",null,null,null,null,null,null,null,null,null,null,null,null,null,null,null,null,null,null,null,null,null,null,null,null,null,0,{"$f":"'Раздел 2'!C162","v":0}]
[null,"Регби - пляжное","154",null,null,null,null,null,null,null,null,null,null,null,null,null,null,null,null,null,null,null,null,null,null,null,null,null,0,{"$f":"'Раздел 2'!C163","v":0}]
[null,"Регби на снегу","155",null,null,null,null,null,null,null,null,null,null,null,null,null,null,null,null,null,null,null,null,null,null,null,null,null,0,{"$f":"'Раздел 2'!C164","v":0}]
[null,"Регбол","156",null,null,null,null,null,null,null,null,null,null,null,null,null,null,null,null,null,null,null,null,null,null,null,null,null,0,{"$f":"'Раздел 2'!C165","v":0}]
[null,"Роллер спорт","157",null,null,null,null,null,null,null,null,null,null,null,null,null,null,null,null,null,null,null,null,null,null,null,null,null,0,{"$f":"'Раздел 2'!C166","v":0}]
[null,"Роуп скиппинг (спортивная скакалка)","158",null,null,null,null,null,null,null,null,null,null,null,null,null,null,null,null,null,null,null,null,null,null,null,null,null,0,{"$f":"'Раздел 2'!C167","v":0}]
[null,"Рукопашный бой","159",null,null,null,null,null,null,null,null,null,null,null,null,null,null,null,null,null,null,null,null,null,null,null,null,null,0,{"$f":"'Раздел 2'!C168","v":0}]
[null,"Рыболовный спорт","160",null,null,null,null,null,null,null,null,null,null,null,null,null,null,null,null,null,null,null,null,null,null,null,null,null,0,{"$f":"'Раздел 2'!C169","v":0}]
[null,"Сават","161",null,null,null,null,null,null,null,null,null,null,null,null,null,null,null,null,null,null,null,null,null,null,null,null,null,0,{"$f":"'Раздел 2'!C170","v":0}]
[null,"Самбо","162",null,null,null,null,null,null,null,null,null,null,null,null,null,null,null,null,null,null,null,null,null,null,null,null,null,0,{"$f":"'Раздел 2'!C171","v":0}]
[null,"Самолетный спорт","163",null,null,null,null,null,null,null,null,null,null,null,null,null,null,null,null,null,null,null,null,null,null,null,null,null,0,{"$f":"'Раздел 2'!C172","v":0}]
[null,"Санный спорт","164",null,null,null,null,null,null,null,null,null,null,null,null,null,null,null,null,null,null,null,null,null,null,null,null,null,0,{"$f":"'Раздел 2'!C173","v":0}]
[null,"Северное многоборье","165",null,null,null,null,null,null,null,null,null,null,null,null,null,null,null,null,null,null,null,null,null,null,null,null,null,0,{"$f":"'Раздел 2'!C174","v":0}]
[null,"Серфинг","166",null,null,null,null,null,null,null,null,null,null,null,null,null,null,null,null,null,null,null,null,null,null,null,null,null,0,{"$f":"'Раздел 2'!C175","v":0}]
[null,"Силовой экстрим","167",null,null,null,null,null,null,null,null,null,null,null,null,null,null,null,null,null,null,null,null,null,null,null,null,null,0,{"$f":"'Раздел 2'!C176","v":0}]
[null,"Синхронное плавание","168",null,null,null,null,null,null,null,null,null,null,null,null,null,null,null,null,null,null,null,null,null,null,null,null,null,0,{"$f":"'Раздел 2'!C177","v":0}]
[null,"Скалолазание","169",null,null,null,null,null,null,null,null,null,null,null,null,null,null,null,null,null,null,null,null,null,null,null,null,null,0,{"$f":"'Раздел 2'!C178","v":0}]
[null,"Сквош","170",null,null,null,null,null,null,null,null,null,null,null,null,null,null,null,null,null,null,null,null,null,null,null,null,null,0,{"$f":"'Раздел 2'!C179","v":0}]
[null,"Скейтбординг","171",null,null,null,null,null,null,null,null,null,null,null,null,null,null,null,null,null,null,null,null,null,null,null,null,null,0,{"$f":"'Раздел 2'!C180","v":0}]
[null,"Служебно-боевая стрельба ","172",null,null,null,null,null,null,null,null,null,null,null,null,null,null,null,null,null,null,null,null,null,null,null,null,null,0,{"$f":"'Раздел 2'!C181","v":0}]
[null,"Служебно-прикладной спорт","173",null,null,null,null,null,null,null,null,null,null,null,null,null,null,null,null,null,null,null,null,null,null,null,null,null,0,{"$f":"'Раздел 2'!C182","v":0}]
[null,"Служебно-прикладной спорт ФСО России","174",null,null,null,null,null,null,null,null,null,null,null,null,null,null,null,null,null,null,null,null,null,null,null,null,null,0,{"$f":"'Раздел 2'!C183","v":0}]
[null,"Служебно-прикладной спорт ФТС России","175",null,null,null,null,null,null,null,null,null,null,null,null,null,null,null,null,null,null,null,null,null,null,null,null,null,0,{"$f":"'Раздел 2'!C184","v":0}]
[null,"Служебное двоеборье","176",null,null,null,null,null,null,null,null,null,null,null,null,null,null,null,null,null,null,null,null,null,null,null,null,null,0,{"$f":"'Раздел 2'!C185","v":0}]
[null,"Служебное единоборство","177",null,null,null,null,null,null,null,null,null,null,null,null,null,null,null,null,null,null,null,null,null,null,null,null,null,0,{"$f":"'Раздел 2'!C186","v":0}]
[null,"Служебное многоборье","178",null,null,null,null,null,null,null,null,null,null,null,null,null,null,null,null,null,null,null,null,null,null,null,null,null,0,{"$f":"'Раздел 2'!C187","v":0}]
[null,"Служебный биатлон","179",null,null,null,null,null,null,null,null,null,null,null,null,null,null,null,null,null,null,null,null,null,null,null,null,null,0,{"$f":"'Раздел 2'!C188","v":0}]
[null,"Спасательный спорт","180",null,null,null,null,null,null,null,null,null,null,null,null,null,null,null,null,null,null,null,null,null,null,null,null,null,0,{"$f":"'Раздел 2'!C189","v":0}]
[null,"Стрельба из боевого ручного стрелкового оружия","181",null,null,null,null,null,null,null,null,null,null,null,null,null,null,null,null,null,null,null,null,null,null,null,null,null,0,{"$f":"'Раздел 2'!C190","v":0}]
[null,"Стрельба из штатного или табельного оружия","182",null,null,null,null,null,null,null,null,null,null,null,null,null,null,null,null,null,null,null,null,null,null,null,null,null,0,{"$f":"'Раздел 2'!C191","v":0}]
[null,"Стрельба на дальние дистанции","183",null,null,null,null,null,null,null,null,null,null,null,null,null,null,null,null,null,null,null,null,null,null,null,null,null,0,{"$f":"'Раздел 2'!C192","v":0}]
[null,"Смешанное боевое единоборство (ММА)","184",null,null,null,null,null,null,null,null,null,null,null,null,null,null,null,null,null,null,null,null,null,null,null,null,null,0,{"$f":"'Раздел 2'!C193","v":0}]
[null,"Сноуборд","185",null,null,null,null,null,null,null,null,null,null,null,null,null,null,null,null,null,null,null,null,null,null,null,null,null,0,{"$f":"'Раздел 2'!C194","v":0}]
[null,"Современное пятиборье","186",null,null,null,null,null,null,null,null,null,null,null,null,null,null,null,null,null,null,null,null,null,null,null,null,null,0,{"$f":"'Раздел 2'!C195","v":0}]
[null,"Софтбол","187",null,null,null,null,null,null,null,null,null,null,null,null,null,null,null,null,null,null,null,null,null,null,null,null,null,0,{"$f":"'Раздел 2'!C196","v":0}]
[null,"Спорт сверхлегкой авиации","188",null,null,null,null,null,null,null,null,null,null,null,null,null,null,null,null,null,null,null,null,null,null,null,null,null,0,{"$f":"'Раздел 2'!C197","v":0}]
[null,"Спортивная акробатика","189",2,2,2,null,2,null,null,null,1,null,null,null,null,null,null,null,null,null,null,null,1,1,null,null,null,0,{"$f":"'Раздел 2'!C198","v":1}]
[null,"Спортивная аэробика","190",null,null,null,null,null,null,null,null,null,null,null,null,null,null,null,null,null,null,null,null,null,null,null,null,null,0,{"$f":"'Раздел 2'!C199","v":0}]
[null,"Спортивная борьба - всего","191",{"$f":"SUM(D201:D205)","v":0},{"$f":"SUM(E201:E205)","v":0},0,0,0,0,0,0,0,0,0,0,0,0,0,0,0,0,0,0,0,0,0,0,null,0,{"$f":"'Раздел 2'!C200","v":0}]
[null,"в том числе:\nВольная борьба","192",null,null,null,null,null,null,null,null,null,null,null,null,null,null,null,null,null,null,null,null,null,null,null,null,null,0,{"$f":"'Раздел 2'!C201","v":0}]
[null,"Греко-римская борьба","193",null,null,null,null,null,null,null,null,null,null,null,null,null,null,null,null,null,null,null,null,null,null,null,null,null,0,{"$f":"'Раздел 2'!C202","v":0}]
[null,"Грэпплинг","194",null,null,null,null,null,null,null,null,null,null,null,null,null,null,null,null,null,null,null,null,null,null,null,null,null,{"$f":"D203-E203","v":0},{"$f":"'Раздел 2'!C203","v":0}]
[null,"Грэпплинг-ги","195",null,null,null,null,null,null,null,null,null,null,null,null,null,null,null,null,null,null,null,null,null,null,null,null,null,0,{"$f":"'Раздел 2'!C204","v":0}]
[null,"Панкратион","196",null,null,null,null,null,null,null,null,null,null,null,null,null,null,null,null,null,null,null,null,null,null,null,null,null,0,{"$f":"'Раздел 2'!C205","v":0}]
[null,"Спортивная гимнастика","197",null,null,null,null,null,null,null,null,null,null,null,null,null,null,null,null,null,null,null,null,null,null,null,null,null,0,{"$f":"'Раздел 2'!C206","v":0}]
[null,"Спортивная йога","198",null,null,null,null,null,null,null,null,null,null,null,null,null,null,null,null,null,null,null,null,null,null,null,null,null,0,{"$f":"'Раздел 2'!C207","v":0}]
[null,"Спортивно-прикладное собаководство","199",null,null,null,null,null,null,null,null,null,null,null,null,null,null,null,null,null,null,null,null,null,null,null,null,null,0,{"$f":"'Раздел 2'!C208","v":0}]
[null,"Спортивное программирование","200",null,null,null,null,null,null,null,null,null,null,null,null,null,null,null,null,null,null,null,null,null,null,null,null,null,0,{"$f":"'Раздел 2'!C209","v":0}]
[null,"Спортивное метание ножа","201",null,null,null,null,null,null,null,null,null,null,null,null,null,null,null,null,null,null,null,null,null,null,null,null,null,0,{"$f":"'Раздел 2'!C210","v":0}]
[null,"Спортивное ориентирование","202",null,null,null,null,null,null,null,null,null,null,null,null,null,null,null,null,null,null,null,null,null,null,null,null,null,0,{"$f":"'Раздел 2'!C211","v":0}]
[null,"Спортивный бридж","203",null,null,null,null,null,null,null,null,null,null,null,null,null,null,null,null,null,null,null,null,null,null,null,null,null,0,{"$f":"'Раздел 2'!C212","v":0}]
[null,"Спортивный туризм","204",null,null,null,null,null,null,null,null,null,null,null,null,null,null,null,null,null,null,null,null,null,null,null,null,null,0,{"$f":"'Раздел 2'!C213","v":0}]
[null,"Стендовая стрельба - всего","205",{"$f":"SUM(D215:D218)","v":0},{"$f":"SUM(E215:E218)","v":0},0,0,0,0,0,0,0,0,0,0,0,0,0,0,0,0,0,0,0,0,0,0,null,0,{"$f":"'Раздел 2'!C214","v":0}]
[null,"в том числе:\nТрап","206",null,null,null,null,null,null,null,null,null,null,null,null,null,null,null,null,null,null,null,null,null,null,null,null,null,0,{"$f":"'Раздел 2'!C215","v":0}]
[null,"Скит","207",null,null,null,null,null,null,null,null,null,null,null,null,null,null,null,null,null,null,null,null,null,null,null,null,null,0,{"$f":"'Раздел 2'!C216","v":0}]
[null,"Дубль-трап","208",null,null,null,null,null,null,null,null,null,null,null,null,null,null,null,null,null,null,null,null,null,null,null,null,null,0,{"$f":"'Раздел 2'!C217","v":0}]
[null,"Спортинг","209",null,null,null,null,null,null,null,null,null,null,null,null,null,null,null,null,null,null,null,null,null,null,null,null,null,0,{"$f":"'Раздел 2'!C218","v":0}]
[null,"Страйкбол","210",null,null,null,null,null,null,null,null,null,null,null,null,null,null,null,null,null,null,null,null,null,null,null,null,null,0,{"$f":"'Раздел 2'!C219","v":0}]
[null,"Стрельба из арбалета","211",null,null,null,null,null,null,null,null,null,null,null,null,null,null,null,null,null,null,null,null,null,null,null,null,null,0,{"$f":"'Раздел 2'!C220","v":0}]
[null,"Стрельба из лука - всего","212",{"$f":"SUM(D222:D224)","v":0},{"$f":"SUM(E222:E224)","v":0},0,0,0,0,0,0,0,0,0,0,0,0,0,0,0,0,0,0,0,0,0,0,null,0,{"$f":"'Раздел 2'!C221","v":0}]
[null,"в том числе:\nКлассический лук","213",null,null,null,null,null,null,null,null,null,null,null,null,null,null,null,null,null,null,null,null,null,null,null,null,null,0,{"$f":"'Раздел 2'!C222","v":0}]
[null,"   Блочный лук","214",null,null,null,null,null,null,null,null,null,null,null,null,null,null,null,null,null,null,null,null,null,null,null,null,null,0,{"$f":"'Раздел 2'!C223","v":0}]
[null,"   Ачери ","215",null,null,null,null,null,null,null,null,null,null,null,null,null,null,null,null,null,null,null,null,null,null,null,null,null,0,{"$f":"'Раздел 2'!C224","v":0}]
[null,"Судомодельный спорт","216",null,null,null,null,null,null,null,null,null,null,null,null,null,null,null,null,null,null,null,null,null,null,null,null,null,0,{"$f":"'Раздел 2'!C225","v":0}]
[null,"Сумо","217",null,null,null,null,null,null,null,null,null,null,null,null,null,null,null,null,null,null,null,null,null,null,null,null,null,0,{"$f":"'Раздел 2'!C226","v":0}]
[null,"Таврели","218",null,null,null,null,null,null,null,null,null,null,null,null,null,null,null,null,null,null,null,null,null,null,null,null,null,0,{"$f":"'Раздел 2'!C227","v":0}]
[null,"Танцевальный спорт - всего","219",{"$f":"SUM(D229:D230)","v":0},{"$f":"SUM(E229:E230)","v":0},0,0,0,0,0,0,0,0,0,0,0,0,0,0,0,0,0,0,0,0,0,0,null,0,{"$f":"'Раздел 2'!C228","v":0}]
[null,"в том числе:\nТанцевальный спорт","220",null,null,null,null,null,null,null,null,null,null,null,null,null,null,null,null,null,null,null,null,null,null,null,null,null,0,{"$f":"'Раздел 2'!C229","v":0}]
[null,"Брейкинг","221",null,null,null,null,null,null,null,null,null,null,null,null,null,null,null,null,null,null,null,null,null,null,null,null,null,0,{"$f":"'Раздел 2'!C230","v":0}]
[null,"Теннис","222",null,null,null,null,null,null,null,null,null,null,null,null,null,null,null,null,null,null,null,null,null,null,null,null,null,0,{"$f":"'Раздел 2'!C231","v":0}]
[null,"Триатлон","223",null,null,null,null,null,null,null,null,null,null,null,null,null,null,null,null,null,null,null,null,null,null,null,null,null,0,{"$f":"'Раздел 2'!C232","v":0}]
[null,"Тхэквондо (ВТФ)","224",3,3,3,null,3,null,null,null,3,null,null,null,null,null,null,null,null,null,null,null,null,3,null,null,null,0,{"$f":"'Раздел 2'!C233","v":1}]
[null,"Тхэквондо ГТФ","225",null,null,null,null,null,null,null,null,null,null,null,null,null,null,null,null,null,null,null,null,null,null,null,null,null,0,{"$f":"'Раздел 2'!C234","v":0}]
[null,"Тхэквондо ИТФ","226",null,null,null,null,null,null,null,null,null,null,null,null,null,null,null,null,null,null,null,null,null,null,null,null,null,0,{"$f":"'Раздел 2'!C235","v":0}]
[null,"Тхэквондо МФТ","227",null,null,null,null,null,null,null,null,null,null,null,null,null,null,null,null,null,null,null,null,null,null,null,null,null,0,{"$f":"'Раздел 2'!C236","v":0}]
[null,"Тяжелая атлетика","228",null,null,null,null,null,null,null,null,null,null,null,null,null,null,null,null,null,null,null,null,null,null,null,null,null,0,{"$f":"'Раздел 2'!C237","v":0}]
[null,"Универсальный бой","229",null,null,null,null,null,null,null,null,null,null,null,null,null,null,null,null,null,null,null,null,null,null,null,null,null,0,{"$f":"'Раздел 2'!C238","v":0}]
[null,"Ушу","230",null,null,null,null,null,null,null,null,null,null,null,null,null,null,null,null,null,null,null,null,null,null,null,null,null,0,{"$f":"'Раздел 2'!C239","v":0}]
[null,"Фехтование - всего","231",{"$f":"SUM(D241:D244)","v":0},{"$f":"SUM(E241:E244)","v":0},0,0,0,0,0,0,0,0,0,0,0,0,0,0,0,0,0,0,0,0,0,0,null,0,{"$f":"'Раздел 2'!C240","v":0}]
[null,"в том числе:\nРапира","232",null,null,null,null,null,null,null,null,null,null,null,null,null,null,null,null,null,null,null,null,null,null,null,null,null,0,{"$f":"'Раздел 2'!C241","v":0}]
[null,"Сабля","233",null,null,null,null,null,null,null,null,null,null,null,null,null,null,null,null,null,null,null,null,null,null,null,null,null,0,{"$f":"'Раздел 2'!C242","v":0}]
[null,"Шпага","234",null,null,null,null,null,null,null,null,null,null,null,null,null,null,null,null,null,null,null,null,null,null,null,null,null,0,{"$f":"'Раздел 2'!C243","v":0}]
[null,"Арт-фехтование","235",null,null,null,null,null,null,null,null,null,null,null,null,null,null,null,null,null,null,null,null,null,null,null,null,null,0,{"$f":"'Раздел 2'!C244","v":0}]
[null,"Фигурное катание на коньках","236",null,null,null,null,null,null,null,null,null,null,null,null,null,null,null,null,null,null,null,null,null,null,null,null,null,0,{"$f":"'Раздел 2'!C245","v":0}]
[null,"Фиджитал спорт (функционально-цифровй спорт)","237",null,null,null,null,null,null,null,null,null,null,null,null,null,null,null,null,null,null,null,null,null,null,null,null,null,0,{"$f":"'Раздел 2'!C246","v":0}]
[null,"Фитнес-аэробика","238",null,null,null,null,null,null,null,null,null,null,null,null,null,null,null,null,null,null,null,null,null,null,null,null,null,0,{"$f":"'Раздел 2'!C247","v":0}]
[null,"Флаинг диск","239",null,null,null,null,null,null,null,null,null,null,null,null,null,null,null,null,null,null,null,null,null,null,null,null,null,0,{"$f":"'Раздел 2'!C248","v":0}]
[null,"Флорбол","240",null,null,null,null,null,null,null,null,null,null,null,null,null,null,null,null,null,null,null,null,null,null,null,null,null,0,{"$f":"'Раздел 2'!C249","v":0}]
[null,"Фристайл - всего","241",{"$f":"SUM(D251:D256)","v":0},{"$f":"SUM(E251:E256)","v":0},0,0,0,0,0,0,0,0,0,0,0,0,0,0,0,0,0,0,0,0,0,0,null,0,{"$f":"'Раздел 2'!C250","v":0}]
[null,"в том числе:\nАкробатика","242",null,null,null,null,null,null,null,null,null,null,null,null,null,null,null,null,null,null,null,null,null,null,null,null,null,0,{"$f":"'Раздел 2'!C251","v":0}]
[null,"Биг-эйр","243",null,null,null,null,null,null,null,null,null,null,null,null,null,null,null,null,null,null,null,null,null,null,null,null,null,0,{"$f":"'Раздел 2'!C252","v":0}]
[null,"Могул","244",null,null,null,null,null,null,null,null,null,null,null,null,null,null,null,null,null,null,null,null,null,null,null,null,null,0,{"$f":"'Раздел 2'!C253","v":0}]
[null,"Ски-кросс","245",null,null,null,null,null,null,null,null,null,null,null,null,null,null,null,null,null,null,null,null,null,null,null,null,null,0,{"$f":"'Раздел 2'!C254","v":0}]
[null,"Хаф-пайп","246",null,null,null,null,null,null,null,null,null,null,null,null,null,null,null,null,null,null,null,null,null,null,null,null,null,0,{"$f":"'Раздел 2'!C255","v":0}]
[null,"Слоуп-стайл","247",null,null,null,null,null,null,null,null,null,null,null,null,null,null,null,null,null,null,null,null,null,null,null,null,null,0,{"$f":"'Раздел 2'!C256","v":0}]
[null,"Функциональное многоборье","248",null,null,null,null,null,null,null,null,null,null,null,null,null,null,null,null,null,null,null,null,null,null,null,null,null,0,{"$f":"'Раздел 2'!C257","v":0}]
[null,"Футбол - всего","249",{"$f":"SUM(D259:D264)","v":0},{"$f":"SUM(E259:E264)","v":0},0,0,0,0,0,0,0,0,0,0,0,0,0,0,0,0,0,0,0,0,0,0,null,0,{"$f":"'Раздел 2'!C258","v":0}]
[null,"в том числе:\nФутбол (муж.)","250",null,null,null,null,null,null,null,null,null,null,null,null,null,null,null,null,null,null,null,null,null,null,null,null,null,0,{"$f":"'Раздел 2'!C259","v":0}]
[null,"Футбол (жен.)","251",null,null,null,null,null,null,null,null,null,null,null,null,null,null,null,null,null,null,null,null,null,null,null,null,null,0,{"$f":"'Раздел 2'!C260","v":0}]
[null,"Мини-футбол (футзал)","252",null,null,null,null,null,null,null,null,null,null,null,null,null,null,null,null,null,null,null,null,null,null,null,null,null,0,{"$f":"'Раздел 2'!C261","v":0}]
[null,"Пляжный футбол","253",null,null,null,null,null,null,null,null,null,null,null,null,null,null,null,null,null,null,null,null,null,null,null,null,null,0,{"$f":"'Раздел 2'!C262","v":0}]
[null,"Футбол 6х6, 7х7, 8х8","254",null,null,null,null,null,null,null,null,null,null,null,null,null,null,null,null,null,null,null,null,null,null,null,null,null,0,{"$f":"'Раздел 2'!C263","v":0}]
[null,"Интерактивный футбол","255",null,null,null,null,null,null,null,null,null,null,null,null,null,null,null,null,null,null,null,null,null,null,null,null,null,0,{"$f":"'Раздел 2'!C264","v":0}]
[null,"Хапкидо","256",null,null,null,null,null,null,null,null,null,null,null,null,null,null,null,null,null,null,null,null,null,null,null,null,null,0,{"$f":"'Раздел 2'!C265","v":0}]
[null,"Хапсагай","257",null,null,null,null,null,null,null,null,null,null,null,null,null,null,null,null,null,null,null,null,null,null,null,null,null,0,{"$f":"'Раздел 2'!C266","v":0}]
[null,"Хоккей - всего","258",{"$f":"SUM(D268:D269)","v":0},{"$f":"SUM(E268:E269)","v":0},0,0,0,0,0,0,0,0,0,0,0,0,0,0,0,0,0,0,0,0,0,0,null,{"$f":"D267-E267","v":0},{"$f":"'Раздел 2'!C267","v":0}]
[null,"в том числе:\nХоккей (муж.)","259",null,null,null,null,null,null,null,null,null,null,null,null,null,null,null,null,null,null,null,null,null,null,null,null,null,0,{"$f":"'Раздел 2'!C268","v":0}]
[null,"Хоккей (жен.)","260",null,null,null,null,null,null,null,null,null,null,null,null,null,null,null,null,null,null,null,null,null,null,null,null,null,0,{"$f":"'Раздел 2'!C269","v":0}]
[null,"Хоккей на траве - всего","261",{"$f":"SUM(D271:D273)","v":0},{"$f":"SUM(E271:E273)","v":0},0,0,0,0,0,0,0,0,0,0,0,0,0,0,0,0,0,0,0,0,0,0,null,0,{"$f":"'Раздел 2'!C270","v":0}]
[null,"в том числе:\nХоккей на траве (муж.)","262",null,null,null,null,null,null,null,null,null,null,null,null,null,null,null,null,null,null,null,null,null,null,null,null,null,0,{"$f":"'Раздел 2'!C271","v":0}]
[null,"Хоккей на траве (жен.)","263",null,null,null,null,null,null,null,null,null,null,null,null,null,null,null,null,null,null,null,null,null,null,null,null,null,0,{"$f":"'Раздел 2'!C272","v":0}]
[null,"Индорхоккей","264",null,null,null,null,null,null,null,null,null,null,null,null,null,null,null,null,null,null,null,null,null,null,null,null,null,0,{"$f":"'Раздел 2'!C273","v":0}]
[null,"Хоккей с мячом","265",null,null,null,null,null,null,null,null,null,null,null,null,null,null,null,null,null,null,null,null,null,null,null,null,null,0,{"$f":"'Раздел 2'!C274","v":0}]
[null,"Художественная гимнастика","266",null,null,null,null,null,null,null,null,null,null,null,null,null,null,null,null,null,null,null,null,null,null,null,null,null,0,{"$f":"'Раздел 2'!C275","v":0}]
[null,"Хуреш","267",null,null,null,null,null,null,null,null,null,null,null,null,null,null,null,null,null,null,null,null,null,null,null,null,null,0,{"$f":"'Раздел 2'!C276","v":0}]
[null,"Чир спорт","268",null,null,null,null,null,null,null,null,null,null,null,null,null,null,null,null,null,null,null,null,null,null,null,null,null,0,{"$f":"'Раздел 2'!C277","v":0}]
[null,"Шахматы","269",null,null,null,null,null,null,null,null,null,null,null,null,null,null,null,null,null,null,null,null,null,null,null,null,null,0,{"$f":"'Раздел 2'!C278","v":0}]
[null,"Шашки","270",null,null,null,null,null,null,null,null,null,null,null,null,null,null,null,null,null,null,null,null,null,null,null,null,null,0,{"$f":"'Раздел 2'!C279","v":0}]
[null,"Шодсанлат","271",null,null,null,null,null,null,null,null,null,null,null,null,null,null,null,null,null,null,null,null,null,null,null,null,null,0,{"$f":"'Раздел 2'!C280","v":0}]
[null,"Эстетическая гимнастика","272",null,null,null,null,null,null,null,null,null,null,null,null,null,null,null,null,null,null,null,null,null,null,null,null,null,0,{"$f":"'Раздел 2'!C281","v":0}]
[null,"Якутские национальные прыжки","273",null,null,null,null,null,null,null,null,null,null,null,null,null,null,null,null,null,null,null,null,null,null,null,null,null,0,{"$f":"'Раздел 2'!C282","v":0}]
[null,"Тренеры  ЦСП","274",null,null,null,null,null,null,null,null,null,null,null,null,null,null,null,null,null,null,null,null,null,null,null,null,null,0]
[null,"ИТОГО","275",{"$f":"SUM(D10:D22,D26:D29,D32:D37,D48:D53,D58:D60,D42:D45,D64:D74,D79:D89,D93:D100,D103:D107,D115:D119,D120:D133,D136:D141,D144,D149:D150,D156:D159,D165:D166,D167:D181,D182:D200,D206:D211,D212:D214,D219:D221,D225:D228,D231:D240,D245:D250,D257:D258,D265:D267,D270,D274:D283)","v":16},{"$f":"SUM(E10:E22,E26:E29,E32:E37,E48:E53,E58:E60,E42:E45,E64:E74,E79:E89,E93:E100,E103:E107,E115:E119,E120:E133,E136:E141,E144,E149:E150,E156:E159,E165:E166,E167:E181,E182:E200,E206:E211,E212:E214,E219:E221,E225:E228,E231:E240,E245:E250,E257:E258,E265:E267,E270,E274:E283)","v":12},12,0,8,0,0,0,9,1,0,4,0,4,0,0,0,1,2,0,4,7,1,1,null,4]

{"sheet":"Раздел 9","index":9,"n_rows":27,"n_cols":17,"rows_kept":27,"cut":false,"hidden":false,"merged":[[6,5,7,5],[6,6,7,6],[6,7,6,8],[6,9,7,9],[6,10,7,10],[1,0,1,8],[3,0,26,0],[3,1,3,13],[3,14,26,14],[4,1,7,1],[4,2,7,2],[4,3,5,4],[4,5,4,13],[5,5,5,8],[6,12,7,12],[6,13,7,13],[5,9,5,11],[5,12,5,13],[6,3,7,3],[6,4,7,4],[6,11,7,11]]}
[]
[]
[]
[null,"Раздел IX. Кадровый состав, человек"]
[null,"Наименование должности","№ строки","Число работников",null,"из них имеют (из гр. 4):"]
[null,null,null,null,null,"профессиональное образование",null,null,null,"квалификационную категорию",null,null,"почетные звания"]
[null,null,null,"Всего","в том числе по основному месту работы","высшее","среднее","в том числе\nфизкультурное",null,"высшую","первую","вторую","Заслужен-ный тренер России","Заслуженный работник физической культуры Российской Федерации"]
[null,null,null,null,null,null,null,"высшее","среднее"]
[null,1,2,3,4,5,6,7,8,9,10,11,12,13,null,null,"р11"]
[null,"Директор (руководитель)","01",1,1,1,null,1,null,1,null,null,null,null,null,null,{"$f":"'Раздел 10'!D44","v":8}]
[null,"Заместители директора, руководители структурных подразделений и их заместители","02",{"$f":"SUM(D12:D13)","v":2},{"$f":"SUM(E12:E13)","v":2},2,0,0,0,0,0,0,0,0]
[null,"в том числе:\nпо спортивной работе","03",1,1,1]
[null,"другие (в том числе:  руководители структурных подразделений и их заместители)","04",1,1,1]
[null,"Инструкторы по спорту","05",3]
[null,"Спортсмены, спортсмены-инструкторы","06",null,null,null,null,null,null,null,null,null,null,null,null,{"$error":"#REF!"}]
[null,"в том числе:\nпроходящие дополнительные образовательные программы спортивной подготовки в организациях, реализующих дополнительные образовательные программы спортивной подготовки","07"]
[null,"Инструкторы – методисты (включая старшего)","08",2,2,1,1,1,1,null,1,1]
[null,"Преподаватели","09"]
[null,"Воспитатели (включая старшего)","10"]
[null,"Методисты (включая старшего)","11"]
[null,"Медицинские работники:","12",{"$f":"SUM(D22:D24)","v":0},{"$f":"SUM(E22:E24)","v":0},0,0,0,0,0,0,0,0,0]
[null,"   в том числе:\n   врачи","13"]
[null,"   средний медицинский персонал","14"]
[null,"   младший медицинский персонал","15"]
[null,"Специалисты спортсооружений","16",1,1,1,null,1]
[null,"Прочий персонал","17",2,1,1]
[null,"ИТОГО","18",{"$f":"SUM(D10:D11,D14:D15,D17:D21,D25:D26)","v":11},{"$f":"SUM(E10:E11,E14:E15,E17:E21,E25:E26)","v":7},6,1,3,1,1,1,1,0,0]

{"sheet":"Раздел 10","index":10,"n_rows":44,"n_cols":16,"rows_kept":44,"cut":false,"hidden":false,"merged":[[4,0,4,13],[5,0,7,0],[5,1,7,1],[5,2,7,2],[5,3,5,7],[5,8,5,12],[5,13,7,13],[5,14,7,14],[6,3,7,3],[6,4,6,7],[6,8,7,8],[6,9,6,12]]}
[]
[]
[]
[]
["Раздел X. Спортивные сооружения, единица"]
["Наименование спортивного сооружения","№ строки","Число спортивных сооружений – итого","находящихся на балансе (из гр. 3)",null,null,null,null,"арендуемых (из гр. 3)",null,null,null,null,"используемых на безвозмездной основе\n(из гр. 3)","Количество спортсооружений, входящих во Всероссийский реестр объектов спорта (из гр. 3)"]
[null,null,null,"всего","в том числе по формам собственности:",null,null,null,"всего","в том числе по формам собственности:"]
[null,null,null,null,"федеральной","субъектов Российской Федерации","муниципальной","другой",null,"федеральной","субъектов Российской Федерации","муниципальной","другой"]
[1,2,3,4,5,6,7,8,9,10,11,12,13,14,15,"Р9"]
["Стадионы с трибунами – всего","01",{"$f":"SUM(D10,I10,N10)","v":0},{"$f":"SUM(E10:H10)","v":0},null,null,null,null,{"$f":"SUM(J10:M10)","v":0},null,null,null,null,null,null,{"$f":"SUM('Раздел 9'!D25:N25)","v":4}]
["в том числе на 1500 мест и более","02",{"$f":"SUM(D11,I11,N11)","v":0},{"$f":"SUM(E11:H11)","v":0},null,null,null,null,{"$f":"SUM(J11:M11)","v":0}]
["Плоскостные спортивные сооружения - всего","03",0,0,{"$f":"SUM(E13:E14)","v":0},{"$f":"SUM(F13:F14)","v":0},0,0,0,0,0,0,0,0,0]
["в том числе:\nПлоскостные спортивные сооружения","04",0,0,null,null,null,null,0]
["Футбольные поля","05",0,0,null,null,null,null,0]
["Спортивные залы – всего","06",9,8,{"$f":"SUM(E16:E19)","v":0},{"$f":"SUM(F16:F19)","v":0},8,0,1,0,1,0,0,0,1]
["      в том числе размером:\n     (42 х 24 м)","07",0,0,null,null,null,null,0]
["     (36 х 18 м); (30 х 18 м) и (30 х 15 м)","08",0,0,null,null,null,null,0]
["     (24 х 12 м) и (18 х 9 м)","09",1,1,null,null,1,null,0]
["     иных размеров",10,8,7,null,null,7,null,1,null,1,null,null,null,1]
["Манежи легкоатлетические",11,0,0,null,null,null,null,0]
["Манежи футбольные",12,0,0,null,null,null,null,0]
["Велотреки",13,0,0,null,null,null,null,0]
["Велодромы",14,0,0,null,null,null,null,0]
["Бассейны – всего",15,{"$f":"SUM(C25:C28)","v":0},0,{"$f":"SUM(E25:E28)","v":0},{"$f":"SUM(F25:F28)","v":0},0,0,0,0,0,0,0,0,0]
["     в том числе: \n     плавательные 50-метровые",16,0,0,null,null,null,null,0]
["     плавательные 25-метровые",17,0,0,null,null,null,null,0]
["     нестандартных размеров",18,0,0,null,null,null,null,0]
["     для прыжков в воду",19,0,0,null,null,null,null,0]
["         из строки 15 - крытые",20,0,0,null,null,null,null,0]
["Гребные базы",21,0,0,null,null,null,null,0]
["Гребные каналы",22,0,0,null,null,null,null,0]
["Крытые спортивные объекты с искусственным льдом – всего",23,0,0,{"$f":"SUM(E33:E34)","v":0},{"$f":"SUM(F33:F34)","v":0},0,0,0,0,0,0,0,0,0]
["  в том числе:\n  крытые спортивные объекты с искусственным     льдом ",24,0,0,null,null,null,null,0]
["     конькобежные",25,0,0,null,null,null,null,0]
["Лыжные базы",26,0,0,null,null,null,null,0]
["Лыжные стадионы",27,0,0,null,null,null,null,0]
["Биатлонные комплексы",28,0,0,null,null,null,null,0]
["Сооружения для стрелковых видов спорта – всего",29,0,0,{"$f":"SUM(E39:E42)","v":0},{"$f":"SUM(F39:F42)","v":0},0,0,0,0,0,0,0,0,0]
["     в том числе: \n     тиры",30,0,0,null,null,null,null,0]
["     стрельбища",31,0,0,null,null,null,null,0]
["     стенды",32,0,0,null,null,null,null,0]
["     лукодромы",33,0,0,null,null,null,null,0]
["Другие спортивные сооружения",34,0,0,null,null,null,null,0]
["ИТОГО",35,9,8,{"$f":"SUM(E10,E12,E15,E20:E24,E30:E32,E35:E38,E43)","v":0},{"$f":"SUM(F10,F12,F15,F20:F24,F30:F32,F35:F38,F43)","v":0},8,0,1,0,1,0,0,0,1]

{"sheet":"Раздел 11","index":11,"n_rows":26,"n_cols":30,"rows_kept":26,"cut":false,"hidden":false,"merged":[[5,27,7,27],[6,6,6,17],[4,23,4,27],[5,6,5,9],[5,10,5,13],[5,18,7,18],[5,19,7,19],[5,20,7,20],[5,21,7,21],[5,22,7,22],[5,23,7,23],[5,24,7,24],[4,18,4,22],[1,0,1,27],[2,0,7,0],[2,1,7,1],[2,2,3,3],[2,4,3,5],[2,6,2,27],[3,6,3,17],[3,18,3,27],[4,2,7,2],[4,3,7,3],[4,4,7,4],[4,5,7,5],[4,6,4,13],[4,14,5,17],[5,25,7,25],[5,26,7,26]]}
[]
["Раздел XI. Сведения о численности и оплате труда работников"]
["Наименование должности","№ строки","Количество ставок, единиц",null,"Средняя численность работников, человек",null,"Фонд начисленной заработной платы работников, тыс руб"]
[null,null,null,null,null,null,"всего",null,null,null,null,null,null,null,null,null,null,null,"по источникам финансирования"]
[null,null,"всего (без внешних совместителей)"," внешних совместителей","списочного состава\n(без внешних совме-стителей)\n","внешних совместителей","списочного состава (без внешних совместителей)",null,null,null,null,null,null,null,"внешних совместителей",null,null,null,"списочного состава\n(без внешних совместителей)",null,null,null,null,"внешних совместителей"]
[null,null,null,null,null,null,"всего",null,null,null,"внутренних совместителей",null,null,null,null,null,null,null,"итого","федеральный бюджет","бюджет субъекта РФ","муниципальный бюджет","внебюджетные источники","итого","федеральный бюджет","бюджет субъекта РФ","муниципальный бюджет","внебюджетные источники"]
[null,null,null,null,null,null,"по разделам функциональной классификации расходов бюджета и внебюджетным источникам"]
[null,null,null,null,null,null,"Итого","КБК 07","КБК 11","внебюджетные источники ","Итого","КБК 07","КБК 11","внебюджетные источники ","Итого","КБК 07","КБК 11","внебюджетные источники "]
[1,2,3,4,5,6,7,8,9,10,11,12,13,14,15,16,17,18,19,20,21,22,23,24,25,26,27,28,null,"13 р"]
["Директор","01",1,null,1,null,{"$f":"SUM(H10:J10)","v":847.2},null,847.2,null,{"$f":"SUM(L10:N10)","v":0},null,null,null,{"$f":"SUM(P10:R10)","v":0},null,null,null,{"$f":"SUM(T10:W10)","v":847.2},null,null,847.2,null,{"$f":"SUM(Y10:AB10)","v":0},null,null,null,null,null,{"$f":"'Раздел 12'!D11+'Раздел 12'!E11","v":0}]
["Заместители директора, руководители структурных подразделений и их заместители","02",2,null,2,null,{"$f":"SUM(H11:J11)","v":1203.0999999999999},null,1152.5999999999999,50.5,{"$f":"SUM(L11:N11)","v":0},null,null,null,{"$f":"SUM(P11:R11)","v":0},null,null,null,{"$f":"SUM(T11:W11)","v":1203.0999999999999},null,null,1152.5999999999999,50.5,{"$f":"SUM(Y11:AB11)","v":0},null,null,null,null,null,{"$f":"'Раздел 12'!F11+'Раздел 12'!G11","v":0}]
["Всего отдельных категорий работников организаций, реализующие дополнительные образовательные программы спортивной подготовки\n(СШ, СШОР, УОР и другие организации): ","03",{"$f":"C13","v":38},{"$f":"D13","v":1},12,1,7484.5,0,7325,159.5,920.3,0,920.3,0,662.6,0,652.70000000000005,9.9,7484.5,0,0,7325,159.5,662.6,0,0,652.70000000000005,9.9,null,{"$f":"'Раздел 12'!H11+'Раздел 12'!I11","v":11320}]
["в том числе:                                                                         тренеры-преподаватели","04",38,1,12,1,7484.5,null,7325,159.5,920.3,null,920.3,null,662.6,null,652.70000000000005,9.9,7484.5,null,null,7325,159.5,662.6,null,null,652.70000000000005,9.9,null,{"$f":"'Раздел 12'!J11","v":219.9}]
["из них:\nстаршие тренеры-преподаватели","05",null,null,null,null,0,null,null,null,0,null,null,null,0,null,null,null,0,null,null,null,null,0]
["Всего отдельных категорий работников организаций, осуществляющих обеспечение подготовки спортивных сборных команд (ЦСП):","06",{"$f":"SUM(C16,C19,C20)","v":0},{"$f":"SUM(D16,D19,D20)","v":0},0,0,0,0,0,0,0,0,0,0,0,0,0,0,0,0,0,0,0,0,0,0,0,0]
["в том числе:\nтренеры спортивных сборных команд","07",null,null,null,null,0,null,null,null,0,null,null,null,0,null,null,null,0,null,null,null,null,0]
["из них: \nстаршие тренеры спортивных сборных команд","08",null,null,null,null,0,null,null,null,0,null,null,null,0,null,null,null,0,null,null,null,null,0]
["главные тренеры спортивных сборных команд","09",null,null,null,null,0,null,null,null,0,null,null,null,0,null,null,null,0,null,null,null,null,0]
["тренеры-консультанты ","10",null,null,null,null,0,null,null,null,0,null,null,null,0,null,null,null,0,null,null,null,null,0]
["старшие тренеры по резерву спортивных сборных команд","11",null,null,null,null,0,null,null,null,0,null,null,null,0,null,null,null,0,null,null,null,null,0]
["Спортсмены, спортсмены - инструкторы","12",null,null,null,null,0,null,null,null,0,null,null,null,0,null,null,null,0,null,null,null,null,0]
["Специалисты по инструкторской и методической работе","13",2,null,2,null,708.4,null,708.4,null,0,null,null,null,0,null,null,null,708.4,null,null,708.4,null,0]
["из них: \nстаршие инструкторы-методисты ","14",null,null,null,null,0,null,null,null,0,null,null,null,0,null,null,null,0,null,null,null,null,0]
["Медицинские работники","15",null,null,null,null,0,null,null,null,0,null,null,null,0,null,null,null,0,null,null,null,null,0]
["Прочий персонал","16",3.1,null,2,null,634.1,null,634.1,null,0,null,null,null,0,null,null,null,634.1,null,null,634.1,null,0]
["ИТОГО","17",{"$f":"SUM(C10:C12,C15,C21:C22,C24:C25)","v":46.1},{"$f":"SUM(D10:D12,D15,D21:D22,D24:D25)","v":1},19,1,10877.3,0,10667.3,210,920.3,0,920.3,0,662.6,0,652.70000000000005,9.9,10877.3,0,0,10667.3,210,662.6,0,0,652.70000000000005,9.9]

{"sheet":"Раздел 12","index":12,"n_rows":39,"n_cols":14,"rows_kept":39,"cut":false,"hidden":false,"merged":[[3,0,3,9],[35,1,35,2],[37,1,37,2],[38,1,38,2],[4,0,7,0],[4,1,7,1],[4,2,7,2],[38,4,38,5],[4,3,5,9],[6,3,6,4],[6,5,6,6],[6,7,6,8],[6,9,7,9]]}
[]
[]
[]
["Раздел XII. Финансовая деятельность организаций, тыс руб"]
["Расходы на содержание организаций\n","№ строки","ВСЕГО","в том числе по источникам финансирования и \nразделам функциональной классификации расходов бюджета:"]
[]
[null,null,null,"федеральный бюджет",null,"бюджет субъекта Российской Федерации ",null,"муниципальный бюджет ",null,"внебюджетные источники "]
[null,null,null,"КБК 07","КБК 11","КБК 07","КБК 11","КБК 07","КБК 11"]
[1,"2",3,4,5,6,7,8,9,"10",null,null,null,"11 р"]
["Всего расходов","01",{"$f":"SUM(D10:J10)","v":18501.199999999997},{"$f":"SUM(D11:D12,D14,D16:D17,D20,D25:D26,D30)","v":0},{"$f":"SUM(E11:E12,E14,E16:E17,E20,E25:E26,E30)","v":0},0,445,0,17317.399999999998,738.8,null,null,null,{"$f":"'Раздел 11'!T26+'Раздел 11'!Y26","v":0}]
["в том числе: \nЗаработная плата","02",{"$f":"SUM(D11:J11)","v":11539.9},null,null,null,null,null,11320,219.9,null,null,null,{"$f":"'Раздел 11'!U26+'Раздел 11'!Z26","v":0}]
["Организация и проведение спортивных мероприятий","03",0,null,null,null,null,null,null,null,null,null,null,{"$f":"'Раздел 11'!V26+'Раздел 11'!AA26","v":11320}]
["в том числе: \nВсероссийских спартакиад между спортсменами субъектов Российской Федерации по летним и зимним видам спорта ","04",0,null,null,null,null,null,null,null,null,null,null,{"$f":"'Раздел 11'!W26+'Раздел 11'!AB26","v":219.9}]
["Участие в соревнованиях и тренировочных сборах","05",1013.7,null,null,null,null,null,696.6,317.10000000000002]
["в том числе: \nВсероссийских спартакиад между спортсменами субъектов Российской Федерации по летним и зимним видам спорта ","06",0]
["Медико-восстановительные мероприятия","07",0,null,null,null,null,null,null,null,null,null,null,"6 р"]
["Материально-техническое обеспечение - всего:","08",641.79999999999995,{"$f":"SUM(D18:D19)","v":0},{"$f":"SUM(E18:E19)","v":0},0,445,0,68.400000000000006,128.4,null,null,null,{"$f":"'Раздел 6'!AD283+'Раздел 6'!AE283+'Раздел 6'!AF283+'Раздел 6'!AG283+'Раздел 6'!AH283","v":0}]
["в том числе: \nэкипировка, спортивное оборудование, инвентарь;","09",468.4,null,null,null,445,null,23.4]
["прочее","10",173.4,null,null,null,null,null,45,128.4,null,null,null,"6р"]
["Профессиональная переподготовка и повышение квалификации  специалистов, осуществляющих деятельность в области физической культуры и спорта - всего:","11",4.8,{"$f":"SUM(D21:D24)","v":0},{"$f":"SUM(E21:E24)","v":0},0,0,0,4.8,0,null,null,null,{"$f":"'Раздел 6'!D283+'Раздел 6'!E283+'Раздел 6'!F283+'Раздел 6'!G283+'Раздел 6'!H283+'Раздел 6'!I283","v":188}]
["в том числе: \nтренеры;","12",0,null,null,null,null,null,null,null,null,null,null,"7р"]
["тренеры-преподаватели;","13",0,null,null,null,null,null,null,null,null,null,null,{"$f":"'Раздел 7'!D283+'Раздел 7'!E283+'Раздел 7'!F283+'Раздел 7'!G283+'Раздел 7'!H283+'Раздел 7'!I283","v":15}]
["инструкторы-методисты;","14",0]
["другие специалисты","15",4.8,null,null,null,null,null,4.8,null,null,null,null,"6 и 7"]
["Предоставление  доступа к объекту спорта","16",0,null,null,null,null,null,null,null,null,null,null,{"$f":"'Раздел 7'!E283+'Раздел 7'!F283+'Раздел 7'!G283+'Раздел 7'!H283+'Раздел 7'!I283+'Раздел 6'!E283+'Раздел 6'!F283+'Раздел 6'!G283+'Раздел 6'!H283+'Раздел 6'!I283","v":138}]
["Содержание спортивных сооружений - всего:","17",5117.2999999999993,{"$f":"SUM(D27:D29)","v":0},{"$f":"SUM(E27:E29)","v":0},0,0,0,5043.8999999999996,73.400000000000006,null,null,null,{"$f":"'Раздел 6'!AD283+'Раздел 6'!AE283+'Раздел 6'!AF283+'Раздел 6'!AG283+'Раздел 6'!AH283","v":0}]
["в том числе: \nаренда (услуги спортсооружений);","18",38.4,null,null,null,null,null,38.4,null,null,null,null,{"$f":"'Раздел 11'!H26+'Раздел 11'!P26","v":0}]
["собственные спортсооружения;","19",5078.8999999999996,null,null,null,null,null,5005.5,73.400000000000006,null,null,null,{"$f":"'Раздел 11'!I26+'Раздел 11'!Q26","v":11320}]
["другие расходы на содержание","20",0,null,null,null,null,null,null,null,null,null,null,{"$f":"'Раздел 11'!J26+'Раздел 11'!R26","v":219.9}]
["Прочие расходы","21",183.7,null,null,null,null,null,183.7]
[]
["Поступило средств от приносящей доход деятельности, тыс руб:",null,368.7]
[]
[]
["Должностное лицо, ответственное за предоставление первичных статистических данных (лицо, уполномоченное предоставлять первичные статистические данные от имени юридического лица)"]
["Директор","Охлюев Е.В.",null,null,null,null,"242-93-55"]
["(Должность руководителя организации)",null," (ФИО)","  ","(подпись)",null,"(номер телефона физкультурно-спортивной организации)"]
["Sportscool22@mail.ru","Sportschool22.ru",null,null,"vk.com/club217508064",null,"2023-11-23"]
["адрес электронной  почты  физкультурно-спортивной организации","(адрес официального сайта физкультурно-спортивной организации (при наличии))",null,null,"(адрес группы физкультурно-спортивной организации в социальных сетях (при наличии))",null,"(дата составления)"]